Workbook

Sheet Label (hidden)
B2: Selection | C2: =VLOOKUP(Start!C10,$A$3:$C$5,3,FALSE) -> 1
A3: EN | B3: English | C3: 1
A4: FR | B4: French | C4: 2
A5: ES | B5: Spanish | C5: 3
A7: ID | B7: English | C7: French | D7: Spanish | E7: Typeof | F7: Ref | G7: Name
A8: 1 | B8: 1 | C8: 2 | D8: 3
A9: 2 | B9: Charcoal Process Description | C9: Description du Processus de Charbon de Bois | D9: Descripción del Proceso de Producción de Carbón Vegetal | E9: label | F9: =HLOOKUP($C$2,$B$8:$D9,$A9,FALSE) -> Charcoal Process Description | G9: =$E9&$A9 -> label2
A10: 3 | B10: Data Entry | C10: Saisie de Données | D10: Datos de Entrada | E10: label | F10: =HLOOKUP($C$2,$B$8:$D10,$A10,FALSE) -> Data Entry | G10: label3
A11: 4 | B11: NEXT >> Energy Demand | C11: SUIVANT >> Demande d'Énergie | D11: SIGUIENTE >> Demanda de Energía | E11: label | F11: =HLOOKUP($C$2,$B$8:$D11,$A11,FALSE) -> NEXT >> Energy Demand | G11: label4
A12: 5 | B12: << BACK Start | C12: << RETOUR Début | D12: << VOLVER Inicio | E12: label | F12: =HLOOKUP($C$2,$B$8:$D12,$A12,FALSE) -> << BACK Start | G12: label5
A13: 6 | B13: Energy Demand | C13: Demande d'Énergie | D13: Demanda de Energía | E13: label | F13: =HLOOKUP($C$2,$B$8:$D13,$A13,FALSE) -> Energy Demand | G13: label6
A14: 7 | B14: NEXT >> Data Entry | C14: SUIVANT >> Saisie de Données | D14: SIGUIENTE >> Datos de Entrada | E14: label | F14: =HLOOKUP($C$2,$B$8:$D14,$A14,FALSE) -> NEXT >> Data Entry | G14: label7
A15: 8 | B15: << BACK Data Entry | C15: << RETOUR Saisie de Données | D15: << VOLVER Datos de Entrada | E15: label | F15: =HLOOKUP($C$2,$B$8:$D15,$A15,FALSE) -> << BACK Data Entry | G15: label8
A16: 9 | B16: Hide this sheet | C16: Cachez cette feuille | D16: Ocultar esta Hoja | E16: label | F16: =HLOOKUP($C$2,$B$8:$D16,$A16,FALSE) -> Hide this sheet | G16: label9
A17: 10 | B17: << BACK Charcoal Calculator M&L Scale | C17: << RETOUR Calculateur du Charbon de Bois à M & L Échelle | D17: << VOLVER Calculadora de Carbón Vegetal a Mediana y Gran Escala | E17: label | F17: =HLOOKUP($C$2,$B$8:$D17,$A17,FALSE) -> << BACK Charcoal Calculator M&L Scale | G17: label10
A18: 11 | B18: << BACK Charcoal Calculator Small Scale | C18: << RETOUR Calculateur du Charbon de Bois à Petite Échelle | D18: << VOLVER Calculadora de Carbón Vegetal a Pequeña Escala | E18: label | F18: =HLOOKUP($C$2,$B$8:$D18,$A18,FALSE) -> << BACK Charcoal Calculator Small Scale | G18: label11
A19: 12 | B19: No Calculator | C19: Aucune Calculatrice | D19: Sin Calculadora | E19: label | F19: =HLOOKUP($C$2,$B$8:$D19,$A19,FALSE) -> No Calculator | G19: label12
A20: 13 | B20: Production Cost 1 | C20: Coût de production 1 | D20: Costo de Producción 1 | E20: label | F20: =HLOOKUP($C$2,$B$8:$D20,$A20,FALSE) -> Production Cost 1 | G20: label13
A21: 14 | B21: Production Cost 2 | C21: Coût de production 2 | D21: Costo de Producción 2 | E21: label | F21: =HLOOKUP($C$2,$B$8:$D21,$A21,FALSE) -> Production Cost 2 | G21: label14
A22: 15 | B22: Production Cost 3 | C22: Coût de production 3 | D22: Costo de Producción 3 | E22: label | F22: =HLOOKUP($C$2,$B$8:$D22,$A22,FALSE) -> Production Cost 3 | G22: label15
A23: 16 | B23: Remove Kiln | C23: Retirer du four | D23: Retirar | E23: label | F23: =HLOOKUP($C$2,$B$8:$D23,$A23,FALSE) -> Remove Kiln | G23: label16
A24: 17 | B24: Add Kiln | C24: Ajouter au four | D24: Añadir | E24: label | F24: =HLOOKUP($C$2,$B$8:$D24,$A24,FALSE) -> Add Kiln | G24: label17
A25: 18 | B25: Traditional Charcoal Price Calculator (Small Scale) | C25: Charbon de bois traditionnel - calculateur de prix (à petite échelle) | D25: Caculadora de Precio de Carbón Vegetal Tradicional (Pequeña Escala) | E25: label | F25: =HLOOKUP($C$2,$B$8:$D25,$A25,FALSE) -> Traditional Charcoal Price Calculator (Small Scale) | G25: label18
A26: 19 | B26: Traditional Charcoal Price Calculator (M & L Scales) | C26: Charbon de bois traditionnel - calculateur de prix (M & L échelle) | D26: Caculadora de Precio de Carbón Vegetal Tradicional (Mediana y Gran Escala) | E26: label | F26: =HLOOKUP($C$2,$B$8:$D26,$A26,FALSE) -> Traditional Charcoal Price Calculator (M & L Scales) | G26: label19
A27: 20 | B27: Price Calculator For Forest Harvesting Residues 1 | C27: Calculateur de prix pour Résidus 1 de l'Exploitation Forestière | D27: Calculadora de Precio para el Aprovechamiento Forestal del Residuo 1 | E27: label | F27: =HLOOKUP($C$2,$B$8:$D27,$A27,FALSE) -> Price Calculator For Forest Harvesting Residues 1 | G27: label20
A28: 21 | B28: Price Calculator For Forest Harvesting Residues 2 | C28: Calculateur de prix pour Résidus 2 de l'Exploitation Forestière | D28: Calculadora de Precio para el Aprovechamiento Forestal del Residuo 2 | E28: label | F28: =HLOOKUP($C$2,$B$8:$D28,$A28,FALSE) -> Price Calculator For Forest Harvesting Residues 2 | G28: label21
A29: 22 | B29: Price Calculator For Forest Harvesting Residues 3 | C29: Calculateur de prix pour Résidus 3 de l'Exploitation Forestière | D29: Calculadora de Precio para el Aprovechamiento Forestal del Residuo 3 | E29: label | F29: =HLOOKUP($C$2,$B$8:$D29,$A29,FALSE) -> Price Calculator For Forest Harvesting Residues 3 | G29: label22
A30: 23 | B30: Investment Details | C30: Détails d'investissement | D30: Detalles de Inversión | E30: label | F30: =HLOOKUP($C$2,$B$8:$D30,$A30,FALSE) -> Investment Details | G30: label23
A31: 24 | B31: NEXT >> Summary of Results by Technology | C31: SUIVANT >> Résumé des Résultats de la Technologie | D31: SIGUIENTE >> Resumen de Resultados de la Tecnología | E31: label | F31: =HLOOKUP($C$2,$B$8:$D31,$A31,FALSE) -> NEXT >> Summary of Results by Technology | G31: label24
A32: 25 | B32: NEXT >> Summary of Results by Feedstock | C32: SUIVANT >> Résumé des Résultats par Matières Premières | D32: SIGUIENTE >> Resumen de Resultados por Materia Prima | E32: label | F32: =HLOOKUP($C$2,$B$8:$D32,$A32,FALSE) -> NEXT >> Summary of Results by Feedstock | G32: label25
A33: 26 | B33: Clear data | C33: Effacer les données | D33: Borrar datos | E33: label | F33: =HLOOKUP($C$2,$B$8:$D33,$A33,FALSE) -> Clear data | G33: label26
A34: 27 | B34: Load Default Values | C34: Charger les Valeurs par Défaut | D34: Cargar Valores por Defecto | E34: label | F34: =HLOOKUP($C$2,$B$8:$D34,$A34,FALSE) -> Load Default Values | G34: label27
A35: 28 | B35: << BACK Production Cost 1 | C35: << RETOUR Coût de Production 1 | D35: << VOLVER Costo de Producción 1 | E35: label | F35: =HLOOKUP($C$2,$B$8:$D35,$A35,FALSE) -> << BACK Production Cost 1 | G35: label28
A36: 29 | B36: << BACK Production Cost 2 | C36: << RETOUR Coût de Production 2 | D36: << VOLVER Costo de Producción 2 | E36: label | F36: =HLOOKUP($C$2,$B$8:$D36,$A36,FALSE) -> << BACK Production Cost 2 | G36: label29
A37: 30 | B37: << BACK Production Cost 3 | C37: << RETOUR Coût de Production 3 | D37: << VOLVER Costo de Producción 3 | E37: label | F37: =HLOOKUP($C$2,$B$8:$D37,$A37,FALSE) -> << BACK Production Cost 3 | G37: label30
A38: 31 | B38: Rural Financial Analysis | C38: Analyse Financière Rurale | D38: Análisis Financiero Rural | E38: label | F38: =HLOOKUP($C$2,$B$8:$D38,$A38,FALSE) -> Rural Financial Analysis | G38: label31
A39: 32 | B39: Urban Financial Analysis | C39: Analyse Financière Urbaine | D39: Análisis Financiero Urbano | E39: label | F39: =HLOOKUP($C$2,$B$8:$D39,$A39,FALSE) -> Urban Financial Analysis | G39: label32
A40: 33 | B40: Industrial Financial Analysis | C40: Analyse Financière Industrielle | D40: Análisis Financiero Industrial | E40: label | F40: =HLOOKUP($C$2,$B$8:$D40,$A40,FALSE) -> Industrial Financial Analysis | G40: label33
A41: 34 | B41: Traditional Charcoal (Small Scale) | C41: Charbon de bois traditionnel (à petite échelle) | D41: Carbón Vegetal Tradicional (Pequeña Escala) | E41: label | F41: =HLOOKUP($C$2,$B$8:$D41,$A41,FALSE) -> Traditional Charcoal (Small Scale) | G41: label34
A42: 35 | B42: Traditional Charcoal (M&L Scale) | C42: Charbon de bois traditionnel (à M & L échelle) | D42: Carbón Vegetal Tradicional (Mediana y Gran Escala) | E42: label | F42: =HLOOKUP($C$2,$B$8:$D42,$A42,FALSE) -> Traditional Charcoal (M&L Scale) | G42: label35
A43: 36 | B43: Create PDF Report | C43: Créer un fichier PDF Rapport | D43: Crear un Reporte en PDF | E43: label | F43: =HLOOKUP($C$2,$B$8:$D43,$A43,FALSE) -> Create PDF Report | G43: label36

Sheet Title (hidden)
B2: Selection | C2: =VLOOKUP(Start!C10,$A$3:$C$5,3,FALSE) -> 1
A3: EN | B3: English | C3: 1
A4: FR | B4: French | C4: 2
A5: ES | B5: Spanish | C5: 3
A7: ID | B7: English | C7: French | D7: Spanish | E7: Typeof | F7: Ref | G7: Name
A8: 1 | B8: 1 | C8: 2 | D8: 3
A9: 2 | B9: RAPID APPRAISAL TOOL FOR CHARCOAL PRODUCTION | C9: OUTIL DE L'ÉVALUATION RAPIDE POUR LA PRODUCTION DE CHARBON DE BOIS | D9: HERRAMIENTA DE EVALUACIÓN RÁPIDA PARA LA PRODUCCIÓN DE CARBÓN VEGETAL | E9: title | F9: =HLOOKUP($C$2,$B$8:$D9,$A9,FALSE) -> RAPID APPRAISAL TOOL FOR CHARCOAL PRODUCTION | G9: =$E9&$A9 -> title2
A10: 3 | B10: Disclaimer | C10: Déni de responsabilité | D10: Descargo de Responsabilidad | E10: title | F10: =HLOOKUP($C$2,$B$8:$D10,$A10,FALSE) -> Disclaimer | G10: title3
A11: 4 | B11: FAO declines all responsibility for errors or deficiencies in the database or software or in the documentation accompanying it, for program maintenance and upgrading as well as for any damage that may arise from them. FAO also declines any responsibility for updating the data and assumes no responsibility for errors and omissions in the data provided. Users are, however, kindly asked to report any errors or deficiencies in this product to FAO. The choices of calculation made in this tool are those of the author(s) and do not necessarily reflect the views and choices of the Food and Agriculture Organization of the United Nations. | C11: La FAO décline toute responsabilité quant aux erreurs ou défauts des textes du présent site et des bases de données y afférentes, ainsi que pour les dommages pouvant en résulter. La FAO décline également toute responsabilité quant à la mise à jour des données et se dégage de toute responsabilité quant aux erreurs ou omissions concernant les données fournies. Les utilisateurs sont toutefois invités à signaler toute erreur ou lacune de ce produit à la FAO. Les choix des calculs faits dans le présent outil sont celles du/des auteur(s) et ne reflètent pas nécessairement les choix et opinions de l’Organisation des Nations Unies pour l’alimentation et l’agriculture (FAO). | D11: La FAO declina cualquier responsabilidad por errores u otros defectos del banco de datos, programa o de la documentación que los acompaña, o por cualquier daño derivado de ellos, así como por el mantenimiento y el mejoramiento de los programas. La FAO declina asimismo cualquier responsabilidad por la actualización de los datos, o por errores u omisiones en los datos que se han proporcionado. Se pide no obstante a los usuarios que señalen eventuales errores o defectos de este producto a la FAO. La elección de los cálculos presente en esta herramienta son las del/de los autor(es) y no reflejan necesariamente las opiniones y elecciones de la Organización de las Naciones Unidas para la Agricultura y la Alimentación. | E11: title | F11: =HLOOKUP($C$2,$B$8:$D11,$A11,FALSE) -> FAO declines all responsibility for errors or deficiencies in the database or software or in the documentation accompanying it, for program maintenance and upgrading as well as for any damage that may arise from them. FAO also declines any responsibility for updating the data and assumes no responsibility for errors and omissions in the data provided. Users are, however, kindly asked to report any errors or deficiencies in this product to FAO. The choices of calculation made in this tool are those of the author(s) and do not necessarily reflect the views and choices of the Food and Agriculture Organization of the United Nations. | G11: title4
A12: 5 | B12: CHARCOAL PRODUCTION FOR RESIDENTIAL (RURAL/URBAN) AND INDUSTRIAL ENERGY | C12: PRODUCCIÓN CARBÓN VEGETAL PARA ENERGÍA RESIDENCIAL (RURAL/URBANA) INDUSTRIAL | D12: PRODUCCIÓN CARBÓN VEGETAL PARA ENERGÍA RESIDENCIAL (RURAL/URBANA) INDUSTRIAL | E12: title | F12: =HLOOKUP($C$2,$B$8:$D12,$A12,FALSE) -> CHARCOAL PRODUCTION FOR RESIDENTIAL (RURAL/URBAN) AND INDUSTRIAL ENERGY | G12: title5
A13: 6 | B13: Forestry and dedicated wood energy plantation | C13: Sylviculture et plantation dédiée au bois-énergie | D13: Silvicultura y plantaciones de madera para obtener energía | E13: title | F13: =HLOOKUP($C$2,$B$8:$D13,$A13,FALSE) -> Forestry and dedicated wood energy plantation | G13: title6
A14: 7 | B14: Forestry and plantation residues | C14: Résidus forestiers et de plantation | D14: Silvicultura y plantation residues | E14: title | F14: =HLOOKUP($C$2,$B$8:$D14,$A14,FALSE) -> Forestry and plantation residues | G14: title7
A15: 8 | B15: Wood products industrial residues (processing plant) | C15: Résidus de la transformation du bois (usine) | D15: Residuos industriales de productos de madera (planta de procesamiento) | E15: title | F15: =HLOOKUP($C$2,$B$8:$D15,$A15,FALSE) -> Wood products industrial residues (processing plant) | G15: title8
A16: 9 | B16: Sustainable charcoal consists of a proper management and planning of supply source to support sustainable production, improvements in carbonization yields and deployment of efficient charcoal-burning stoves. This tool assesses the potential for introduction of more efficient carbonization technologies thus addresses only one aspect of charcoal. The user should use the results from this tool in the context of information relevant to the other two aspects. | C16: Le charbon de bois durable consiste en une gestion et une planification adéquate de la source d'approvisionnement pour soutenir la production durable, l'amélioration des rendements de carbonisation et le déploiement de poêles de charbon de bois. Cet outil évalue le potentiel d'introduction de technologies de carbonisation plus efficaces face à ce seul aspect du charbon de bois. L'utilisateur doit utiliser les résultats de cet outil dans le cadre de l'information pertinente pour les deux autres aspects. | D16: Carbón vegetal sostenible consiste en una adecuada gestión y planificación de la fuente de suministro para apoyar la producción sostenible, mejorar los rendimientos de carbonización e desplegar las estufas eficientes de carbón vegetal. Esta herramienta evalúa el potencial para introducir tecnologías más eficientes de carbonización, por lo tanto dirige a un solo aspecto de carbón vegetal. Los usuarios deben utilizar los resultados de esta herramienta en el contexto de la información relativa a los otros dos aspectos. | E16: title | F16: =HLOOKUP($C$2,$B$8:$D16,$A16,FALSE) -> Sustainable charcoal consists of a proper management and planning of supply source to support sustainable production, improvements in carbonization yields and deployment of efficient charcoal-burning stoves. This tool assesses the potential for introduction of more efficient carbonization technologies thus addresses only one aspect of charcoal. The user should use the results from this tool in the context of information relevant to the other two aspects. | G16: title9
A17: 10 | B17: Tool Information | C17: Outil d'information | D17: Tool Information | E17: title | F17: =HLOOKUP($C$2,$B$8:$D17,$A17,FALSE) -> Tool Information | G17: title10
A18: 11 | B18: Potential applications for charcoal briquettes | C18: Les applications potentielles de briquettes de charbon de bois | D18: Las aplicaciones potenciales de briquetas de carbón vegetal | E18: title | F18: =HLOOKUP($C$2,$B$8:$D18,$A18,FALSE) -> Potential applications for charcoal briquettes | G18: title11
A19: 12 | B19: Industry | C19: Industrie | D19: Industria | E19: title | F19: =HLOOKUP($C$2,$B$8:$D19,$A19,FALSE) -> Industry | G19: title12
A20: 13 | B20: Domestic use | C20: Usage Domestique | D20: El uso doméstico | E20: title | F20: =HLOOKUP($C$2,$B$8:$D20,$A20,FALSE) -> Domestic use | G20: title13
A21: 14 | B21: Commercial and institutional catering | C21: Restauration commerciale et collective | D21: Servicio de comidas comercial e institucional | E21: title | F21: =HLOOKUP($C$2,$B$8:$D21,$A21,FALSE) -> Commercial and institutional catering | G21: title14
A22: 15 | B22: Hospitality | C22: Hospitalité | D22: Hospitalidad | E22: title | F22: =HLOOKUP($C$2,$B$8:$D22,$A22,FALSE) -> Hospitality | G22: title15
A23: 16 | B23: Industrial boilers | C23: Chaudières industrielles | D23: Calderas industriales | E23: title | F23: =HLOOKUP($C$2,$B$8:$D23,$A23,FALSE) -> Industrial boilers | G23: title16
A24: 17 | B24: Food processing | C24: La transformation des aliments | D24: Procesamiento de alimentos | E24: title | F24: =HLOOKUP($C$2,$B$8:$D24,$A24,FALSE) -> Food processing | G24: title17
A25: 18 | B25: Textiles | C25: Textiles | D25: Textiles | E25: title | F25: =HLOOKUP($C$2,$B$8:$D25,$A25,FALSE) -> Textiles | G25: title18
A26: 19 | B26: Crop processing | C26: Transformation de récoltes | D26: Procesamiento de cultivos | E26: title | F26: =HLOOKUP($C$2,$B$8:$D26,$A26,FALSE) -> Crop processing | G26: title19
A27: 20 | B27: Ceramic production | C27: Production de céramique | D27: Producción de cerámicas | E27: title | F27: =HLOOKUP($C$2,$B$8:$D27,$A27,FALSE) -> Ceramic production | G27: title20
A28: 21 | B28: Gasification | C28: Gazéification | D28: Gasificación | E28: title | F28: =HLOOKUP($C$2,$B$8:$D28,$A28,FALSE) -> Gasification | G28: title21
A29: 22 | B29: Charcoal production | C29: Production de charbon de bois | D29: Producción de carbón vegetal | E29: title | F29: =HLOOKUP($C$2,$B$8:$D29,$A29,FALSE) -> Charcoal production | G29: title22
A30: 23 | B30: Poultry | C30: Volaille | D30: Aves de corral | E30: title | F30: =HLOOKUP($C$2,$B$8:$D30,$A30,FALSE) -> Poultry | G30: title23
A31: 24 | B31: Possible application | C31: Application Possible | D31: Posible aplicación | E31: title | F31: =HLOOKUP($C$2,$B$8:$D31,$A31,FALSE) -> Possible application | G31: title24
A32: 25 | B32: Cooking, water heating and space heating | C32: Cuisson, le chauffage de l'eau et le chauffage des locaux | D32: Aves de corral | E32: title | F32: =HLOOKUP($C$2,$B$8:$D32,$A32,FALSE) -> Cooking, water heating and space heating | G32: title25
A33: 26 | B33: Cooking, water heating, grilling | C33: Cuisson, le chauffage de l'eau, griller | D33: Cocina, calentamiento de agua, asar a la parilla | E33: title | F33: =HLOOKUP($C$2,$B$8:$D33,$A33,FALSE) -> Cooking, water heating, grilling | G33: title26
A34: 27 | B34: Cooking, water heating, space heating (outdoor dining areas) | C34: Cuisson, le chauffage de l'eau , le chauffage des locaux ( salles à manger en plein air ) | D34: Cocina, calentamiento de agua, calefacción (comedores al aire libre) | E34: title | F34: =HLOOKUP($C$2,$B$8:$D34,$A34,FALSE) -> Cooking, water heating, space heating (outdoor dining areas) | G34: title27
A35: 28 | B35: Generation of heat and steam | C35: Génération de chaleur et de vapeur | D35: Generación de calor y vapor | E35: title | F35: =HLOOKUP($C$2,$B$8:$D35,$A35,FALSE) -> Generation of heat and steam | G35: title28
A36: 29 | B36: Distilleries, bakeries, canteens, restaurants, drying | C36: Distilleries, boulangeries, cantines, restaurants, séchage | D36: Destilerías, panaderías, comedores, restaurantes, secado | E36: title | F36: =HLOOKUP($C$2,$B$8:$D36,$A36,FALSE) -> Distilleries, bakeries, canteens, restaurants, drying | G36: title29
A37: 30 | B37: Dyeing, bleaching | C37: Teinture, le blanchiment | D37: Tintura, blanqueo | E37: title | F37: =HLOOKUP($C$2,$B$8:$D37,$A37,FALSE) -> Dyeing, bleaching | G37: title30
A38: 31 | B38: Tobacco curing, tea drying, oil milling, | C38: Durcissement de tabac, séchage du thé, de la mouture de l'huile, | D38: Curado de tabaco, secado de té, molienda de aceite | E38: title | F38: =HLOOKUP($C$2,$B$8:$D38,$A38,FALSE) -> Tobacco curing, tea drying, oil milling, | G38: title31
A39: 32 | B39: Brick kilns, tile making, pot firing, etc. | C39: Les fours à briques, fabrication de tuiles , pot tir , etc. | D39: Los hornos de ladrillos, fabricación de tejas, olla de cocción, etc. | E39: title | F39: =HLOOKUP($C$2,$B$8:$D39,$A39,FALSE) -> Brick kilns, tile making, pot firing, etc. | G39: title32
A40: 33 | B40: Fuel for gasifies to produce electricity | C40: Carburant pour produire de l'électricité pour les gazéificateurs | D40: Combustible para gasificadores para producir electricidad | E40: title | F40: =HLOOKUP($C$2,$B$8:$D40,$A40,FALSE) -> Fuel for gasifies to produce electricity | G40: title33
A41: 34 | B41: Initiating pyrolysis to make charcoal production more efficient | C41: Lancement de pyrolyse pour rendre la production de charbon de bois plus efficace | D41: Iniciador de pirolisis para aumentar la eficiencia de la producción de carbón | E41: title | F41: =HLOOKUP($C$2,$B$8:$D41,$A41,FALSE) -> Initiating pyrolysis to make charcoal production more efficient | G41: title34
A42: 35 | B42: Incubation and heating of chicks | C42: Incubation et le chauffage des poussins | D42: Incubación y calentamiento de pollitos | E42: title | F42: =HLOOKUP($C$2,$B$8:$D42,$A42,FALSE) -> Incubation and heating of chicks | G42: title35
A43: 36 | B43: Scope of this tool for charcoal project analysis | C43: Champ d'application de cet outil pour l'analyse du projet de charbon de bois | D43: Alcance de esta herramienta para el análisis de proyectos de carbón vegetal | E43: title | F43: =HLOOKUP($C$2,$B$8:$D43,$A43,FALSE) -> Scope of this tool for charcoal project analysis | G43: title36
A44: 37 | B44: Collection & transportation | C44: Collecte et transport | D44: Recolección y Transporte | E44: title | F44: =HLOOKUP($C$2,$B$8:$D44,$A44,FALSE) -> Collection & transportation | G44: title37
A45: 38 | B45: Biomass stock pile | C45: Stocks de biomasse | D45: Reserva de Biomasa | E45: title | F45: =HLOOKUP($C$2,$B$8:$D45,$A45,FALSE) -> Biomass stock pile | G45: title38
A46: 39 | B46: Pre-treatment | C46: Pré- traitement | D46: Pre-tratamiento | E46: title | F46: =HLOOKUP($C$2,$B$8:$D46,$A46,FALSE) -> Pre-treatment | G46: title39
A47: 40 | B47: Charcoal kiln | C47: Four à charbon de bois | D47: Horno de Carbón Vegetal | E47: title | F47: =HLOOKUP($C$2,$B$8:$D47,$A47,FALSE) -> Charcoal kiln | G47: title40
A48: 41 | B48: Charcoal | C48: Charbon de Bois | D48: Carbón Vegetal | E48: title | F48: =HLOOKUP($C$2,$B$8:$D48,$A48,FALSE) -> Charcoal | G48: title41
A49: 42 | B49: Packaging | C49: Emballage | D49: Empaque | E49: title | F49: =HLOOKUP($C$2,$B$8:$D49,$A49,FALSE) -> Packaging | G49: title42
A50: 43 | B50: Distribute to the market | C50: Distribuer sur le marché | D50: Distribución al Mercado | E50: title | F50: =HLOOKUP($C$2,$B$8:$D50,$A50,FALSE) -> Distribute to the market | G50: title43
A51: 44 | B51: Advantages of charcoal compared to fuel wood | C51: Avantages du charbon de bois par rapport à bois de chauffage | D51: Ventajas de carbón vegetal comparado con madera para combustible | E51: title | F51: =HLOOKUP($C$2,$B$8:$D51,$A51,FALSE) -> Advantages of charcoal compared to fuel wood | G51: title44
A52: 45 | B52: 1. High energy density per mass or volume unit | C52: 1. Haute densité d'énergie par unité de masse ou unité de volume | D52: 1. Alta densidad de energía por unidad de masa o volumen | E52: title | F52: =HLOOKUP($C$2,$B$8:$D52,$A52,FALSE) -> 1. High energy density per mass or volume unit | G52: title45
A53: 46 | B53: 2. Enhance transportation and storage | C53: 2. Améliorer le transport et le stockage | D53: 2. Mejorar el transporte y el almacenamiento | E53: title | F53: =HLOOKUP($C$2,$B$8:$D53,$A53,FALSE) -> 2. Enhance transportation and storage | G53: title46
A54: 47 | B54: 3. Low moisture than fuel wood | C54: 3. Plus faible humidité que le bois de chauffage | D54: 3. Baja humedad que la madera combustible | E54: title | F54: =HLOOKUP($C$2,$B$8:$D54,$A54,FALSE) -> 3. Low moisture than fuel wood | G54: title47
A55: 48 | B55: 4. Low smoke and indoor air pollution | C55: 4. Faible Fumée et pollution de l'air intérieur | D55: 4. Bajo el humo y la contaminación del aire interior | E55: title | F55: =HLOOKUP($C$2,$B$8:$D55,$A55,FALSE) -> 4. Low smoke and indoor air pollution | G55: title48
A56: 49 | B56: 5. Charcoal can be used in metallurgy, soil amendment and in the chemical industry as an adsorbent | C56: 5. Le charbon de bois peut être utilisé dans la métallurgie, l'amendement du sol et dans l'industrie chimique, comme un adsorbant | D56: 5. Carbón vegetal se puede utilizar en la metalurgia, enmienda del suelo y en la industria química como un adsorbente | E56: title | F56: =HLOOKUP($C$2,$B$8:$D56,$A56,FALSE) -> 5. Charcoal can be used in metallurgy, soil amendment and in the chemical industry as an adsorbent | G56: title49
A57: 50 | B57: 6. Charcoal is highly resistant towards biological decay | C57: 6. Le charbon de bois est très résistant à la décomposition biologique | D57: 6. Carbón vegetal es altamente resistente a la descomposición biológica | E57: title | F57: =HLOOKUP($C$2,$B$8:$D57,$A57,FALSE) -> 6. Charcoal is highly resistant towards biological decay | G57: title50
A58: 51 | B58: 7. Charcoal requires little or no preparation before actual use | C58: 7. Le charbon de bois nécessite peu ou pas de préparation avant l'utilisation réelle | D58: 7. Carbón vegetal requiere poca o ninguna preparación antes de su uso real | E58: title | F58: =HLOOKUP($C$2,$B$8:$D58,$A58,FALSE) -> 7. Charcoal requires little or no preparation before actual use | G58: title51
A59: 52 | B59: Typical characteristics of good-quality charcoal | C59: Les caractéristiques typiques du charbon de bois de bonne qualité | D59: Las características típicas de carbón vegetal de buena calidad | E59: title | F59: =HLOOKUP($C$2,$B$8:$D59,$A59,FALSE) -> Typical characteristics of good-quality charcoal | G59: title52
A60: 53 | B60: Characteristics | C60: Caractéristiques | D60: Características | E60: title | F60: =HLOOKUP($C$2,$B$8:$D60,$A60,FALSE) -> Characteristics | G60: title53
A61: 54 | B61: Ash content | C61: La Teneur en Cendres | D61: Contenido de cenizas | E61: title | F61: =HLOOKUP($C$2,$B$8:$D61,$A61,FALSE) -> Ash content | G61: title54
A62: 55 | B62: Fixed carbon content | C62: Teneur en carbone fixe | D62: Contenido de carbón vegetal fijo | E62: title | F62: =HLOOKUP($C$2,$B$8:$D62,$A62,FALSE) -> Fixed carbon content | G62: title55
A63: 56 | B63: Volatiles content | C63: Teneur en matières volatiles | D63: Contenido de volátiles | E63: title | F63: =HLOOKUP($C$2,$B$8:$D63,$A63,FALSE) -> Volatiles content | G63: title56
A64: 57 | B64: Bulk density | C64: Densité en vrac | D64: Densidad aparente | E64: title | F64: =HLOOKUP($C$2,$B$8:$D64,$A64,FALSE) -> Bulk density | G64: title57
A65: 58 | B65: Physical characteristics | C65: Caractéristiques physiques | D65: Características físicas | E65: title | F65: =HLOOKUP($C$2,$B$8:$D65,$A65,FALSE) -> Physical characteristics | G65: title58
A66: 59 | B66: Moderately friable | C66: Modérément friable | D66: Moderadamente friable | E66: title | F66: =HLOOKUP($C$2,$B$8:$D66,$A66,FALSE) -> Moderately friable | G66: title59
A67: 60 | B67: TRADITIONAL CHARCOAL MAKING COST CALCULATOR | C67: CALCULATEUR DES FRAIS COURANTS DE FABRICATION DE CHARBON DE BOIS | D67: CALCULADORA DE COSTOS DE PRODUCCIÓN TRADICIONAL DE CARBÓN VEGETAL | E67: title | F67: =HLOOKUP($C$2,$B$8:$D67,$A67,FALSE) -> TRADITIONAL CHARCOAL MAKING COST CALCULATOR | G67: title60
A68: 61 | B68: Subsistence Producers | C68: Producteurs de Subsistance | D68: Productores de subsistencia | E68: title | F68: =HLOOKUP($C$2,$B$8:$D68,$A68,FALSE) -> Subsistence Producers | G68: title61
A69: 62 | B69: Standard production rate | C69: Taux de production standard | D69: Tasa de producción estándar | E69: title | F69: =HLOOKUP($C$2,$B$8:$D69,$A69,FALSE) -> Standard production rate | G69: title62
A70: 63 | B70: Standard efficiency | C70: Rendement global | D70: Rendimiento Estacional | E70: title | F70: =HLOOKUP($C$2,$B$8:$D70,$A70,FALSE) -> Standard efficiency | G70: title63
A71: 64 | B71: Activities | C71: Activités | D71: Actividades | E71: title | F71: =HLOOKUP($C$2,$B$8:$D71,$A71,FALSE) -> Activities | G71: title64
A72: 65 | B72: Biomass collection and preparation | C72: Collecte et préparation de la biomasse | D72: Recolección y preparación de la biomasa | E72: title | F72: =HLOOKUP($C$2,$B$8:$D72,$A72,FALSE) -> Biomass collection and preparation | G72: title65
A73: 66 | B73: Kiln construction | C73: Construction de four | D73: Construcción de horno | E73: title | F73: =HLOOKUP($C$2,$B$8:$D73,$A73,FALSE) -> Kiln construction | G73: =$E73&$A73 -> title66
A74: 67 | B74: Operating kiln (loading and unloading included) | C74: Operation du four (chargement et déchargement inclus) | D74: Operación del horno (carga y descarga incluidas) | E74: title | F74: =HLOOKUP($C$2,$B$8:$D74,$A74,FALSE) -> Operating kiln (loading and unloading included) | G74: title67
A75: 68 | B75: Packing charcoal | C75: Emballage du charbon de bois | D75: Empaque de carbón vegetal | E75: title | F75: =HLOOKUP($C$2,$B$8:$D75,$A75,FALSE) -> Packing charcoal | G75: title68
A76: 69 | B76: Unit | C76: Unité | D76: Unidad | E76: title | F76: =HLOOKUP($C$2,$B$8:$D76,$A76,FALSE) -> Unit | G76: title69
A77: 70 | B77: t charcoal/year | C77: t charbon de bois/an | D77: t carbón vegetal/año | E77: title | F77: =HLOOKUP($C$2,$B$8:$D77,$A77,FALSE) -> t charcoal/year | G77: title70
A78: 71 | B78: person-day | C78: personne-jour | D78: persona-día | E78: title | F78: =HLOOKUP($C$2,$B$8:$D78,$A78,FALSE) -> person-day | G78: title71
A79: 72 | B79: Charcoal Cost (USD/kg) | C79: Coût de charbon de bois (USD/kg) | D79: Costo de carbón vegetal (USD/kg) | E79: title | F79: =HLOOKUP($C$2,$B$8:$D79,$A79,FALSE) -> Charcoal Cost (USD/kg) | G79: title72
A80: 73 | B80: Tools | C80: Outils | D80: Herramientas | E80: title | F80: =HLOOKUP($C$2,$B$8:$D80,$A80,FALSE) -> Tools | G80: title73
A81: 74 | B81: Axe | C81: Axe | D81: Hacha | E81: title | F81: =HLOOKUP($C$2,$B$8:$D81,$A81,FALSE) -> Axe | G81: title74
A82: 75 | B82: Hoe | C82: Houe | D82: Azadón | E82: title | F82: =HLOOKUP($C$2,$B$8:$D82,$A82,FALSE) -> Hoe | G82: title75
A83: 76 | B83: Machete | C83: Machette | D83: Machete | E83: title | F83: =HLOOKUP($C$2,$B$8:$D83,$A83,FALSE) -> Machete | G83: title76
A84: 77 | B84: Shovel | C84: Pelle | D84: Pala | E84: title | F84: =HLOOKUP($C$2,$B$8:$D84,$A84,FALSE) -> Shovel | G84: title77
A85: 78 | B85: Fork rake | C85: Râteau à fourche | D85: Pala de dientes | E85: title | F85: =HLOOKUP($C$2,$B$8:$D85,$A85,FALSE) -> Fork rake | G85: title78
A86: 79 | B86: Costs | C86: Coûts | D86: Costos | E86: title | F86: =HLOOKUP($C$2,$B$8:$D86,$A86,FALSE) -> Costs | G86: title79
A87: 80 | B87: USD/unit | C87: USD/unité | D87: USD/uunidad | E87: title | F87: =HLOOKUP($C$2,$B$8:$D87,$A87,FALSE) -> USD/unit | G87: title80
A88: 81 | B88: Commercial Producers | C88: Producteurs Commerciaux | D88: Productores comerciales | E88: title | F88: =HLOOKUP($C$2,$B$8:$D88,$A88,FALSE) -> Commercial Producers | G88: title81
A89: 82 | B89: Biomass preparation | C89: Préparation de la biomasse | D89: Preparación de la biomasa | E89: title | F89: =HLOOKUP($C$2,$B$8:$D89,$A89,FALSE) -> Biomass preparation | G89: title82
A90: 83 | B90: Supervising charcoal processing | C90: Superviser le traitement du charbon de bois | D90: Supervisar el procesamiento de carbón vegetal | E90: title | F90: =HLOOKUP($C$2,$B$8:$D90,$A90,FALSE) -> Supervising charcoal processing | G90: title83
A91: 84 | B91: Transportation distance (Fs -> Plant) | C91: Distance de transport (Fs -> Usine) | D91: Distancia de transporte (Fs -> Planta) | E91: title | F91: =HLOOKUP($C$2,$B$8:$D91,$A91,FALSE) -> Transportation distance (Fs -> Plant) | G91: title84
A92: 85 | B92: Feedstock cost | C92: Coût de matières premières | D92: Costo de materia prima | E92: title | F92: =HLOOKUP($C$2,$B$8:$D92,$A92,FALSE) -> Feedstock cost | G92: title85
A93: 86 | B93: Transport cost | C93: Coût de transport | D93: Costo del transporte | E93: title | F93: =HLOOKUP($C$2,$B$8:$D93,$A93,FALSE) -> Transport cost | G93: title86
A94: 87 | B94: Storage cost | C94: Coût de stockage | D94: Costo de almacenamiento | E94: title | F94: =HLOOKUP($C$2,$B$8:$D94,$A94,FALSE) -> Storage cost | G94: title87
A95: 88 | B95: Unskilled worker wage | C95: Salaire de la main-d'œuvre non qualifiée | D95: Salario de trabajadores no cualificados | E95: title | F95: =HLOOKUP($C$2,$B$8:$D95,$A95,FALSE) -> Unskilled worker wage | G95: title88
A96: 89 | B96: Skilled worker wage | C96: Salaire de la main-d'œuvre qualifiée | D96: Salario de mano de obra cualificada | E96: title | F96: =HLOOKUP($C$2,$B$8:$D96,$A96,FALSE) -> Skilled worker wage | G96: title89
A97: 90 | B97: Investment cost | C97: Coût d'investissement | D97: Costo de inversión | E97: title | F97: =HLOOKUP($C$2,$B$8:$D97,$A97,FALSE) -> Investment cost | G97: title90
A98: 91 | B98: USD/person-h | C98: USD/personne-h | D98: USD/persona-h | E98: title | F98: =HLOOKUP($C$2,$B$8:$D98,$A98,FALSE) -> USD/person-h | G98: title91
A99: 92 | B99: Unit cost | C99: Coût unitaire | D99: Costo unitario | E99: title | F99: =HLOOKUP($C$2,$B$8:$D99,$A99,FALSE) -> Unit cost | G99: title92
A100: 93 | B100: ENERGY DEMAND AND POTENTIAL REVENUE FROM CHARCOAL | C100: DEMANDE EN ÉNERGIE ET REVENU POTENTIEL ISSU DU CHARBON DE BOIS | D100: DEMANDA DE ENERGÍA E INGRESOS POTENCIALES DE CARBÓN VEGETAL | E100: title | F100: =HLOOKUP($C$2,$B$8:$D100,$A100,FALSE) -> ENERGY DEMAND AND POTENTIAL REVENUE FROM CHARCOAL | G100: title93
A101: 94 | B101: Rural Households | C101: Ménages Ruraux (hh) | D101: Hogares rurales | E101: title | F101: =HLOOKUP($C$2,$B$8:$D101,$A101,FALSE) -> Rural Households | G101: title94
A102: 95 | B102: Energy consumption per household | C102: La consommation d'énergie par ménage | D102: Consumo de energía por hogar | E102: title | F102: =HLOOKUP($C$2,$B$8:$D102,$A102,FALSE) -> Energy consumption per household | G102: title95
A103: 96 | B103: Fuel wood | C103: Bois de chauffage | D103: Madera combustible | E103: title | F103: =HLOOKUP($C$2,$B$8:$D103,$A103,FALSE) -> Fuel wood | G103: title96
A104: 97 | B104: Price | C104: Prix | D104: Precio | E104: title | F104: =HLOOKUP($C$2,$B$8:$D104,$A104,FALSE) -> Price | G104: title97
A105: 98 | B105: Consumption | C105: Consommation | D105: Consumo | E105: title | F105: =HLOOKUP($C$2,$B$8:$D105,$A105,FALSE) -> Consumption | G105: title98
A106: 99 | B106: Energy expenditure | C106: La dépense d'énergie | D106: Gasto de energía | E106: title | F106: =HLOOKUP($C$2,$B$8:$D106,$A106,FALSE) -> Energy expenditure | G106: title99
A107: 100 | B107: Charcoal consumption equivalent | C107: Équivalent de la consommation du charbon | D107: Consumo de carbón vegetal equivalente | E107: title | F107: =HLOOKUP($C$2,$B$8:$D107,$A107,FALSE) -> Charcoal consumption equivalent | G107: title100
A108: 101 | B108: kg/day/hh | C108: kg/jour/hh | D108: kg/día/hh | E108: title | F108: =HLOOKUP($C$2,$B$8:$D108,$A108,FALSE) -> kg/day/hh | G108: title101
A109: 102 | B109: t/year/hh | C109: t/an/hh | D109: t/año/hh | E109: title | F109: =HLOOKUP($C$2,$B$8:$D109,$A109,FALSE) -> t/year/hh | G109: title102
A110: 103 | B110: USD/year | C110: USD/an | D110: USD/año | E110: title | F110: =HLOOKUP($C$2,$B$8:$D110,$A110,FALSE) -> USD/year | G110: title103
A111: 104 | B111: Industrial Energy Consumption | C111: Consommation d'énergie dans l'industrie | D111: Consumo de energía en la industria | E111: title | F111: =HLOOKUP($C$2,$B$8:$D111,$A111,FALSE) -> Industrial Energy Consumption | G111: title104
A112: 105 | B112: Energy consumption by Industry | C112: La consommation d'énergie par l'industrie | D112: Consumo de energía por industria | E112: title | F112: =HLOOKUP($C$2,$B$8:$D112,$A112,FALSE) -> Energy consumption by Industry | G112: title105
A113: 106 | B113: Briquettes/Pellets | C113: Briquette/Granulés de bois | D113: Briquetas/Pellets | E113: title | F113: =HLOOKUP($C$2,$B$8:$D113,$A113,FALSE) -> Briquettes/Pellets | G113: title106
A114: 107 | B114: LPG | C114: GPL | D114: Gas de baja presión | E114: title | F114: =HLOOKUP($C$2,$B$8:$D114,$A114,FALSE) -> LPG | G114: title107
A115: 108 | B115: Fuel oil | C115: Mazout | D115: Aceite combustible | E115: title | F115: =HLOOKUP($C$2,$B$8:$D115,$A115,FALSE) -> Fuel oil | G115: title108
A116: 109 | B116: Diesel | C116: Diesel | D116: Diesel | E116: title | F116: =HLOOKUP($C$2,$B$8:$D116,$A116,FALSE) -> Diesel | G116: title109
A117: 110 | B117: Coal | C117: Charbon | D117: Carbón | E117: title | F117: =HLOOKUP($C$2,$B$8:$D117,$A117,FALSE) -> Coal | G117: title110
A118: 111 | B118: Natural gas | C118: Gaz naturel | D118: Gas natural | E118: title | F118: =HLOOKUP($C$2,$B$8:$D118,$A118,FALSE) -> Natural gas | G118: title111
A119: 112 | B119: Investment cost of charcoal project | C119: Coût d'investissement du projet de charbon de bois | D119: Costo de inversión del proyecto de carbón vegetal | E119: title | F119: =HLOOKUP($C$2,$B$8:$D119,$A119,FALSE) -> Investment cost of charcoal project | G119: title112
A120: 113 | B120: Item | C120: Article | D120: Artículo | E120: title | F120: =HLOOKUP($C$2,$B$8:$D120,$A120,FALSE) -> Item | G120: title113
A121: 114 | B121: Brick | C121: Brique | D121: Ladrillo | E121: title | F121: =HLOOKUP($C$2,$B$8:$D121,$A121,FALSE) -> Brick | G121: title114
A122: 115 | B122: Concrete | C122: Béton | D122: Concreto | E122: title | F122: =HLOOKUP($C$2,$B$8:$D122,$A122,FALSE) -> Concrete | G122: title115
A123: 116 | B123: Metal sheet (thick.30 mm) m2 | C123: Tôle (épaisseur 30 mm) | D123: Chapa de metal (espesor 30 mm) m2 | E123: title | F123: =HLOOKUP($C$2,$B$8:$D123,$A123,FALSE) -> Metal sheet (thick.30 mm) m2 | G123: title116
A124: 117 | B124: Angle iron for frame 40 x 40 x 5 mm | C124: Fer d'angle pour cadre 40 x 40 x 5 mm | D124: Ángulo de hierro para el marco de 40 x 40 x 5 mm | E124: title | F124: =HLOOKUP($C$2,$B$8:$D124,$A124,FALSE) -> Angle iron for frame 40 x 40 x 5 mm | G124: title117
A125: 118 | B125: Oil drum (200 l) (thick.15 mm) | C125: Tambour d'huile (200 l) | D125: Oil drum (200 l) (espesor 15 mm) | E125: title | F125: =HLOOKUP($C$2,$B$8:$D125,$A125,FALSE) -> Oil drum (200 l) (thick.15 mm) | G125: title118
A126: 119 | B126: Other costs | C126: Autres coûts | D126: Otros costos | E126: title | F126: =HLOOKUP($C$2,$B$8:$D126,$A126,FALSE) -> Other costs | G126: title119
A127: 120 | B127: Equipment cost | C127: Coût de l'équipement | D127: Costo del equipo | E127: title | F127: =HLOOKUP($C$2,$B$8:$D127,$A127,FALSE) -> Equipment cost | G127: title120
A128: 121 | B128: Building cost | C128: Coût de construction | D128: Costo de construcción | E128: title | F128: =HLOOKUP($C$2,$B$8:$D128,$A128,FALSE) -> Building cost | G128: title121
A129: 122 | B129: Installation cost | C129: Coûts d'installations | D129: Costo de instalación | E129: title | F129: =HLOOKUP($C$2,$B$8:$D129,$A129,FALSE) -> Installation cost | G129: title122
A130: 123 | B130: Total investment cost (USD) | C130: Coût total d'investissement (USD) | D130: Costo total de la inversión (USD) | E130: title | F130: =HLOOKUP($C$2,$B$8:$D130,$A130,FALSE) -> Total investment cost (USD) | G130: title123
A131: 124 | B131: Lifetime (years) | C131: Durée de vie (années) | D131: Vida útil (años) | E131: title | F131: =HLOOKUP($C$2,$B$8:$D131,$A131,FALSE) -> Lifetime (years) | G131: title124
A132: 125 | B132: Steel sheet density | C132: Densité des tôles d'acier | D132: Densidad de la lámina de acero | E132: title | F132: =HLOOKUP($C$2,$B$8:$D132,$A132,FALSE) -> Steel sheet density | G132: title125
A133: 126 | B133: Oil drum | C133: Tambour d'huile | D133: Oil drum | E133: title | F133: =HLOOKUP($C$2,$B$8:$D133,$A133,FALSE) -> Oil drum | G133: title126
A134: 127 | B134: Improved pit Liberia | C134: Fosse améliorée Libéria | D134: Improved pit Liberia | E134: title | F134: =HLOOKUP($C$2,$B$8:$D134,$A134,FALSE) -> Improved pit Liberia | G134: title127
A135: 128 | B135: Portable steel kiln | C135: Four Portable en acier | D135: Portable steel kiln | E135: title | F135: =HLOOKUP($C$2,$B$8:$D135,$A135,FALSE) -> Portable steel kiln | G135: title128
A136: 129 | B136: Standard Beehive | C136: Beehive standard | D136: Standard Beehive | E136: title | F136: =HLOOKUP($C$2,$B$8:$D136,$A136,FALSE) -> Standard Beehive | G136: =$E136&$A136 -> title129
A137: 130 | B137: Somalia mound | C137: Monticule de Somalie | D137: Somalia mound | E137: title | F137: =HLOOKUP($C$2,$B$8:$D137,$A137,FALSE) -> Somalia mound | G137: title130
A138: 131 | B138: Quantity (unit) | C138: Quantité (Unité) | D138: Cantidad (Unidad) | E138: title | F138: =HLOOKUP($C$2,$B$8:$D138,$A138,FALSE) -> Quantity (unit) | G138: title131
A139: 132 | B139: Cost (USD) | C139: Coût (USD) | D139: Costo (USD) | E139: title | F139: =HLOOKUP($C$2,$B$8:$D139,$A139,FALSE) -> Cost (USD) | G139: title132
A140: 133 | B140: DATA ENTRY SHEET FOR BIOMASS CHARCOAL PRODUCTION | C140: FICHE DE SAISIE DE PRODUCTION DE CHARBON | D140: HOJA DE ENTRADA DE DATOS PARA LA PRODUCCIÓN DE BIOMASA DE CARBÓN VEGETAL | E140: title | F140: =HLOOKUP($C$2,$B$8:$D140,$A140,FALSE) -> DATA ENTRY SHEET FOR BIOMASS CHARCOAL PRODUCTION | G140: title133
A141: 134 | B141: Use white cells to input data | C141: Utilisez les cellules blanchess pour entrer les donnés | D141: Utilice las celdas blancas para ingresar los datos | E141: title | F141: =HLOOKUP($C$2,$B$8:$D141,$A141,FALSE) -> Use white cells to input data | G141: title134
A142: 135 | B142: Grey cells are used for calculations | C142: Les cellules grises sont utilisées pour les calculs | D142: Utilice las celdas grises para los cálculos | E142: title | F142: =HLOOKUP($C$2,$B$8:$D142,$A142,FALSE) -> Grey cells are used for calculations | G142: title135
A143: 136 | B143: Feedstock Availability and Cost | C143: Disponibilité et Coût des Matières Premières | D143: Disponibilidad y costo de la materia prima | E143: title | F143: =HLOOKUP($C$2,$B$8:$D143,$A143,FALSE) -> Feedstock Availability and Cost | G143: title136
A144: 137 | B144: Feedstock | C144: Matières premières | D144: Materia prima | E144: title | F144: =HLOOKUP($C$2,$B$8:$D144,$A144,FALSE) -> Feedstock | G144: title137
A145: 138 | B145: Feedstock available (t/year) | C145: Matières premières disponibles (t/an) | D145: Materia prima disponible (t/año) | E145: title | F145: =HLOOKUP($C$2,$B$8:$D145,$A145,FALSE) -> Feedstock available (t/year) | G145: title138
A146: 139 | B146: Biomass density (t/m3) | C146: Densité de la biomasse (t/m3) | D146: Densidad de la biomasa (t/m3) | E146: title | F146: =HLOOKUP($C$2,$B$8:$D146,$A146,FALSE) -> Biomass density (t/m3) | G146: title139
A147: 140 | B147: Feedstock price (USD/t) | C147: Prix de matières premières (USD/t) | D147: Precio de la materia prima (USD/t) | E147: title | F147: =HLOOKUP($C$2,$B$8:$D147,$A147,FALSE) -> Feedstock price (USD/t) | G147: title140
A148: 141 | B148: Feedstock storage cost (USD/t) | C148: Coût de stockage de matières premières (USD/t) | D148: Costo de almacenamiento de la materia prima (USD/t) | E148: title | F148: =HLOOKUP($C$2,$B$8:$D148,$A148,FALSE) -> Feedstock storage cost (USD/t) | G148: title141
A149: 142 | B149: Drying period (days/month) | C149: Période de séchage (jours/mois) | D149: Período de secado (día/mes) | E149: title | F149: =HLOOKUP($C$2,$B$8:$D149,$A149,FALSE) -> Drying period (days/month) | G149: title142
A150: 143 | B150: Safety stock rate (%) | C150: Taux des stocks de sécurité (%) | D150: Tasa de stock de seguridad (%) | E150: title | F150: =HLOOKUP($C$2,$B$8:$D150,$A150,FALSE) -> Safety stock rate (%) | G150: title143
A151: 144 | B151: Please Select | C151: Sélectionnez | D151: Seleccione | E151: title | F151: =HLOOKUP($C$2,$B$8:$D151,$A151,FALSE) -> Please Select | G151: title144
A152: 145 | B152: Forest Harvesting Residues | C152: Résidus de l'exploitation forestière | D152: Residuos forestales | E152: title | F152: =HLOOKUP($C$2,$B$8:$D152,$A152,FALSE) -> Forest Harvesting Residues | G152: title145
A153: 146 | B153: Wood Processing Residues | C153: Résidus de la transformation du bois | D153: Residuos de procesamiento de la madera | E153: title | F153: =HLOOKUP($C$2,$B$8:$D153,$A153,FALSE) -> Wood Processing Residues | G153: title146
A154: 147 | B154: Input data below! | C154: Entrée les données ci-dessous! | D154: Ingrese los datos debajo! | E154: title | F154: =HLOOKUP($C$2,$B$8:$D154,$A154,FALSE) -> Input data below! | G154: title147
A155: 148 | B155: It is assumed that this safety storage is for both feedstock and product (charcoal). In the case of small scale kilns e.g. oil drum, casamance and improved pit Liberia is assumed to be 10%. | C155: On présume que ce stockage de sécurité est à la fois pour les mat. premières et les produits (charbon de bois). Dans le cas des fours à petite échelle, par ex. baril de pétrole, casamance et fosse Libéria amélioré on présume que ce stockage est de 10%. | D155: Se asume que este almacenamiento de seguridad es tanto para la materia prima como para el producto (carbón veg.). En el caso de los hornos a pequeña escala, por ej. el Tambor de Aceite, el Casamance y el pozo de Liberia mejorado, se asume que es el 10%. | E155: title | F155: =HLOOKUP($C$2,$B$8:$D155,$A155,FALSE) -> It is assumed that this safety storage is for both feedstock and product (charcoal). In the case of small scale kilns e.g. oil drum, casamance and improved pit Liberia is assumed to be 10%. | G155: title148
A156: 149 | B156: Charcoal Technology Selection | C156: Choix de la Technologie du Charbon de Bois | D156: Opciones de tecnología de carbón vegetal | E156: title | F156: =HLOOKUP($C$2,$B$8:$D156,$A156,FALSE) -> Charcoal Technology Selection | G156: title149
A157: 150 | B157: Small scale options | C157: Options à petites échelles | D157: Opciones a pequeña escala | E157: title | F157: =HLOOKUP($C$2,$B$8:$D157,$A157,FALSE) -> Small scale options | G157: title150
A158: 151 | B158: Operating hours per day (max 8) | C158: Heures de fonctionnement par jour (max 8) | D158: Horas de operación por día (máx 8h) | E158: title | F158: =HLOOKUP($C$2,$B$8:$D158,$A158,FALSE) -> Operating hours per day (max 8) | G158: title151
A159: 152 | B159: Operating days per year | C159: Jours de fonctionnement par an | D159: Días de operación por año | E159: title | F159: =HLOOKUP($C$2,$B$8:$D159,$A159,FALSE) -> Operating days per year | G159: title152
A160: 153 | B160: Medium scale options | C160: Options à moyenne échelle | D160: Opciones a mediana escala | E160: title | F160: =HLOOKUP($C$2,$B$8:$D160,$A160,FALSE) -> Medium scale options | G160: title153
A161: 154 | B161: Large scale options | C161: Options à grande d'échelle | D161: Opciones a gran escala | E161: title | F161: =HLOOKUP($C$2,$B$8:$D161,$A161,FALSE) -> Large scale options | G161: title154
A162: 155 | B162: Current Charcoal Production | C162: Production Actuelle du Charbon de Bois | D162: Producción actual de carbón vegetal | E162: title | F162: =HLOOKUP($C$2,$B$8:$D162,$A162,FALSE) -> Current Charcoal Production | G162: title155
A163: 156 | B163: Select the source of your data | C163: Sélectionnez la source de vos données | D163: Seleccione la fuente de sus datos | E163: title | F163: =HLOOKUP($C$2,$B$8:$D163,$A163,FALSE) -> Select the source of your data | G163: title156
A164: 157 | B164: Select the scales that apply to your country | C164: Sélectionnez les échelles qui s'appliquent à votre pays | D164: Seleccione las escalas que se aplican a su país | E164: title | F164: =HLOOKUP($C$2,$B$8:$D164,$A164,FALSE) -> Select the scales that apply to your country | G164: title157
A165: 158 | B165: Average production efficiency (%) | C165: Efficacité moyenne de la production (%) | D165: Promedio de la eficiencia de producción (%) | E165: title | F165: =HLOOKUP($C$2,$B$8:$D165,$A165,FALSE) -> Average production efficiency (%) | G165: title158
A166: 159 | B166: Average production rate (t/year) | C166: Taux de production moyen (t / an) | D166: Promedio de la tasa de producción (t/año) | E166: title | F166: =HLOOKUP($C$2,$B$8:$D166,$A166,FALSE) -> Average production rate (t/year) | G166: title159
A167: 160 | B167: Average production cost (USD/t) | C167: Coût moyen de production (USD / t) | D167: Costo promedio de producción (USD/t) | E167: title | F167: =HLOOKUP($C$2,$B$8:$D167,$A167,FALSE) -> Average production cost (USD/t) | G167: title160
A168: 161 | B168: Average investment cost (USD) | C168: Coût moyen d'investissement (USD) | D168: Costo promedio de la inversión (USD) | E168: title | F168: =HLOOKUP($C$2,$B$8:$D168,$A168,FALSE) -> Average investment cost (USD) | G168: title161
A169: 162 | B169: In the case of small pieces of wood residues (e.g. saw dust or wood chips), the price of feedstock needs to be estimated by using the briquette component to calculate the production cost and using this as the feedstock price (USD/kg). | C169: Dans le cas de petits morceaux de résidus de bois (par exemple, des sciures ou des copeaux de bois), le prix des matières premières doivent être estimée en utilisant la composante Briquettes pour calculer le coût de production et l'utiliser comme le prix des matières premières (USD/kg). | D169: En el caso de pequeñas piezas de residuos de madera (por ejemplo, aserrín o virutas de madera), el precio de la materia prima tiene que ser estimada mediante el componente de briquetas para calcular el costo de producción y el uso de éste como el precio de la materia prima (USD/kg). | E169: title | F169: =HLOOKUP($C$2,$B$8:$D169,$A169,FALSE) -> In the case of small pieces of wood residues (e.g. saw dust or wood chips), the price of feedstock needs to be estimated by using the briquette component to calculate the production cost and using this as the feedstock price (USD/kg). | G169: title162
A170: 163 | B170: Use Price Calculator for Harvesting Residues | C170: Utilisez le Calculateur de Prix pour les Résidus de la Récolte | D170: Utilice calculadora de precios para los residuos de cosecha | E170: title | F170: =HLOOKUP($C$2,$B$8:$D170,$A170,FALSE) -> Use Price Calculator for Harvesting Residues | G170: title163
A171: 164 | B171: Use Market Price for Harvesting Residues | C171: Utilisez le Prix du Marché pour les Résidus de la Récolte | D171: Utilice precio del mercado para los residuos de cosecha | E171: title | F171: =HLOOKUP($C$2,$B$8:$D171,$A171,FALSE) -> Use Market Price for Harvesting Residues | G171: title164
A172: 165 | B172: Select the Small Scale Production Option First. | C172: Sélectionnez l'option de la production à pettes échelle d'abord. | D172: Seleccione primero la opción de producción a pequeña escala. | E172: title | F172: =HLOOKUP($C$2,$B$8:$D172,$A172,FALSE) -> Select the Small Scale Production Option First. | G172: title165
A173: 166 | B173: Additional data required | C173: Des données supplémentaires sont requises | D173: Datos adicionales requeridos | E173: title | F173: =HLOOKUP($C$2,$B$8:$D173,$A173,FALSE) -> Additional data required | G173: title166
A174: 167 | B174: Select the Medium and Large Scale Production Option First. | C174: Sélectionnez l'option de la production à moyenne et grande échelle d'abord. | D174: Seleccione primero la opción de producción a mediana y gran escala. | E174: title | F174: =HLOOKUP($C$2,$B$8:$D174,$A174,FALSE) -> Select the Medium and Large Scale Production Option First. | G174: title167
A175: 168 | B175: You have selected to input your own values. | C175: Vous avez choisi d'entrer vos propres valeurs. | D175: Ha seleccionado ingresar sus propios valores. | E175: title | F175: =HLOOKUP($C$2,$B$8:$D175,$A175,FALSE) -> You have selected to input your own values. | G175: title168
A176: 169 | B176: Please go first to the General Input Section below and input the following data: wages for both unskilled and skilled labour; working hours per day for feedstock collection, both manual and mechanical, and price of diesel. | C176: S'il vous plaît allez d'abord à la section d'intrant générale ci-dessous et entrez les données suivantes : les salaires à la fois pour la main d'œuvre non qualifiée et qualifiée; heures de travail par jour pour la collecte des matières premières, à la fois manuel et mécanique ; et le prix du diesel. | D176: Por favor, vaya primero a la sección de Entradas Generales e ingrese los siguientes datos: salarios para la mano de obra calificada y no calificada; horas de trabajo por día para la recolección de la materia prima, tanto manual como mecánica, y el precio del diésel. | E176: title | F176: =HLOOKUP($C$2,$B$8:$D176,$A176,FALSE) -> Please go first to the General Input Section below and input the following data: wages for both unskilled and skilled labour; working hours per day for feedstock collection, both manual and mechanical, and price of diesel. | G176: title169
A177: 170 | B177: You have selected the option of market price (transport excluded). Consequently, job creation potential for collection of feedstock will be zero. | C177: Vous avez choisi l'option du prix du marché (transport exclu). Par conséquent, le potentiel de création d'emplois pour la collecte de la matière première sera de zéro. | D177: Ha seleccionado la opción de precio de mercado (excluyendo el transporte). Por lo tanto, el potencial de creación de empleo para la recolección de la materia prima será cero. | E177: title | F177: =HLOOKUP($C$2,$B$8:$D177,$A177,FALSE) -> You have selected the option of market price (transport excluded). Consequently, job creation potential for collection of feedstock will be zero. | G177: title170
A178: 171 | B178: Collection cost calculator is intended for forest harvesting residues only. | C178: Le calculateur de frais de la collecte est destiné pour les résidus d'exploitation forestière seulement. | D178: La calculadora de costos coleccionados está destinada únicamente para el uso de los residuos forestales. | E178: title | F178: =HLOOKUP($C$2,$B$8:$D178,$A178,FALSE) -> Collection cost calculator is intended for forest harvesting residues only. | G178: title171
A179: 172 | B179: Own Values | C179: Propres valeurs | D179: Valores propios | E179: title | F179: =HLOOKUP($C$2,$B$8:$D179,$A179,FALSE) -> Own Values | G179: title172
A180: 173 | B180: Price Calculators | C180: Calculateur de prix | D180: Calculadora de precio | E180: title | F180: =HLOOKUP($C$2,$B$8:$D180,$A180,FALSE) -> Price Calculators | G180: title173
A181: 174 | B181: Small Scale (Subsistence Production) | C181: À petite échelle (production de subsistance) | D181: Pequeña escala (Producción de subsistencia) | E181: title | F181: =HLOOKUP($C$2,$B$8:$D181,$A181,FALSE) -> Small Scale (Subsistence Production) | G181: title174
A182: 175 | B182: Medium and Large Scale (Commercial) | C182: Moyenne et grande échelle (commercial) | D182: Mediana y gran escala (Comercial) | E182: title | F182: =HLOOKUP($C$2,$B$8:$D182,$A182,FALSE) -> Medium and Large Scale (Commercial) | G182: title175
A183: 176 | B183: Production Cost and Financial Parameters | C183: Coût de Production et Paramètres Financiers | D183: Costo de producción y parámetros financieros | E183: title | F183: =HLOOKUP($C$2,$B$8:$D183,$A183,FALSE) -> Production Cost and Financial Parameters | G183: title176
A184: 177 | B184: Labour cost for medium and large scale production | C184: Coût de la main d’oeuvre pour la production à moyenne et grande échelle | D184: Coste laboral para la producción de mediana y gran escala | E184: title | F184: =HLOOKUP($C$2,$B$8:$D184,$A184,FALSE) -> Labour cost for medium and large scale production | G184: title177
A185: 178 | B185: Unskilled worker | C185: Ouvrier non qualifié | D185: Trabajadores no calificados | E185: title | F185: =HLOOKUP($C$2,$B$8:$D185,$A185,FALSE) -> Unskilled worker | G185: title178
A186: 179 | B186: Feedstock collection | C186: Collecte de matières premières | D186: Recolección de la materia prima | E186: title | F186: =HLOOKUP($C$2,$B$8:$D186,$A186,FALSE) -> Feedstock collection | G186: title179
A187: 180 | B187: Working hours per day (manual) | C187: Les heures de travail par jour (manuel) | D187: Horas de trabajo por día (manual) | E187: title | F187: =HLOOKUP($C$2,$B$8:$D187,$A187,FALSE) -> Working hours per day (manual) | G187: title180
A188: 181 | B188: Transportation cost | C188: Coût de transport | D188: Costo de transporte | E188: title | F188: =HLOOKUP($C$2,$B$8:$D188,$A188,FALSE) -> Transportation cost | G188: title181
A189: 182 | B189: Feedstock (field to Charcoal production plant) | C189: Matière première (champ au charbon de bois usine de production) | D189: Materia prima (campo a planta de carbón vegetal) | E189: title | F189: =HLOOKUP($C$2,$B$8:$D189,$A189,FALSE) -> Feedstock (field to Charcoal production plant) | G189: title182
A190: 183 | B190: Charcoal product storage | C190: Stockage de produits à charbon | D190: Almacenamiento de productos de carbón vegetal | E190: title | F190: =HLOOKUP($C$2,$B$8:$D190,$A190,FALSE) -> Charcoal product storage | G190: title183
A191: 184 | B191: Charcoal storage cost | C191: Coût de stockage de charbon de bois | D191: Costo de almacenamiento de carbón vegetal | E191: title | F191: =HLOOKUP($C$2,$B$8:$D191,$A191,FALSE) -> Charcoal storage cost | G191: title184
A192: 185 | B192: General and administrative (%) | C192: Frais généraux et administratifs (%) | D192: Generales y administrativos (%) | E192: title | F192: =HLOOKUP($C$2,$B$8:$D192,$A192,FALSE) -> General and administrative (%) | G192: title185
A193: 186 | B193: Price of charcoal | C193: Prix du charbon de bois | D193: Precio de carbón vegetal | E193: title | F193: =HLOOKUP($C$2,$B$8:$D193,$A193,FALSE) -> Price of charcoal | G193: title186
A194: 187 | B194: Market price (rural areas) | C194: Prix du marché (zones rurales) | D194: Precio del mercado (áreas rurales) | E194: title | F194: =HLOOKUP($C$2,$B$8:$D194,$A194,FALSE) -> Market price (rural areas) | G194: title187
A195: 188 | B195: Market price (urban areas) | C195: Prix du marché (zones urbaines) | D195: Precio del mercado (industrial) | E195: title | F195: =HLOOKUP($C$2,$B$8:$D195,$A195,FALSE) -> Market price (urban areas) | G195: title188
A196: 189 | B196: Market price (industrial) | C196: Prix du marché (industriel) | D196: Precio del mercado (industrial) | E196: title | F196: =HLOOKUP($C$2,$B$8:$D196,$A196,FALSE) -> Market price (industrial) | G196: title189
A197: 190 | B197: Financial parameters | C197: Paramètres financiers | D197: Parámetros financieros | E197: title | F197: =HLOOKUP($C$2,$B$8:$D197,$A197,FALSE) -> Financial parameters | G197: title190
A198: 191 | B198: Discount rate (%) | C198: Taux d'actualisation (%) | D198: Tasa de descuento (%) | E198: title | F198: =HLOOKUP($C$2,$B$8:$D198,$A198,FALSE) -> Discount rate (%) | G198: title191
A199: 192 | B199: Loan ratio (%) | C199: Ratio du prêt (%) | D199: Proporción de créditos (%) | E199: title | F199: =HLOOKUP($C$2,$B$8:$D199,$A199,FALSE) -> Loan ratio (%) | G199: title192
A200: 193 | B200: Loan interest rate (%) | C200: Taux d'intérêt du prêt (%) | D200: Tasa de interés de créditos (%) | E200: title | F200: =HLOOKUP($C$2,$B$8:$D200,$A200,FALSE) -> Loan interest rate (%) | G200: =$E200&$A200 -> title193
A201: 194 | B201: USD/person-hour | C201: USD/heure-personne | D201: USD/persona-hora | E201: title | F201: =HLOOKUP($C$2,$B$8:$D201,$A201,FALSE) -> USD/person-hour | G201: title194
A202: 195 | B202: h/day | C202: h/jour | D202: h/día | E202: title | F202: =HLOOKUP($C$2,$B$8:$D202,$A202,FALSE) -> h/day | G202: title195
... 270 more rows

Sheet Start
E2: =title2 -> RAPID APPRAISAL TOOL FOR CHARCOAL PRODUCTION
C10: EN
C28: =title3 -> Disclaimer
C29: =title4 -> FAO declines all responsibility for errors or deficiencies in the database or software or in the documentation accompanying it, for program maintenance and upgrading as well as for any damage that may arise from them. FAO also declines any responsibility for updating the data and assumes no responsibility for errors and omissions in the data provided. Users are, however, kindly asked to report any errors or deficiencies in this product to FAO. The choices of calculation made in this tool are those of the author(s) and do not necessarily reflect the views and choices of the Food and Agriculture Organization of the United Nations.
C34: © FAO, 2014

Sheet Process Description
C3: =title5 -> CHARCOAL PRODUCTION FOR RESIDENTIAL (RURAL/URBAN) AND INDUSTRIAL ENERGY
N6: =title11 -> Potential applications for charcoal briquettes
N7: =title12 -> Industry | P7: =title24 -> Possible application
N8: =title13 -> Domestic use | P8: =title25 -> Cooking, water heating and space heating
N9: =title14 -> Commercial and institutional catering | P9: =title26 -> Cooking, water heating, grilling
N10: =title15 -> Hospitality | P10: =title27 -> Cooking, water heating, space heating (outdoor dining areas)
N11: =title16 -> Industrial boilers | P11: =title28 -> Generation of heat and steam
N12: =title17 -> Food processing | P12: =title29 -> Distilleries, bakeries, canteens, restaurants, drying
N13: =title18 -> Textiles | P13: =title30 -> Dyeing, bleaching
N14: =title19 -> Crop processing | P14: =title31 -> Tobacco curing, tea drying, oil milling,
N15: =title20 -> Ceramic production | P15: =title32 -> Brick kilns, tile making, pot firing, etc.
N16: =title21 -> Gasification | P16: =title33 -> Fuel for gasifies to produce electricity
C17: =title6 -> Forestry and dedicated wood energy plantation | F17: =title7 -> Forestry and plantation residues | J17: =title8 -> Wood products industrial residues (processing plant) | N17: =title22 -> Charcoal production | P17: =title34 -> Initiating pyrolysis to make charcoal production more efficient
N18: =title23 -> Poultry | P18: =title35 -> Incubation and heating of chicks
J21: =title36 -> Scope of this tool for charcoal project analysis
C40: =title44 -> Advantages of charcoal compared to fuel wood | M40: =title52 -> Typical characteristics of good-quality charcoal
C41: =title45 -> 1. High energy density per mass or volume unit | M41: =title53 -> Characteristics
C42: =title46 -> 2. Enhance transportation and storage | M42: =title54 -> Ash content | P42: 0.05
C43: =title47 -> 3. Low moisture than fuel wood | M43: =title55 -> Fixed carbon content | P43: 0.75
C44: =title48 -> 4. Low smoke and indoor air pollution | M44: =title56 -> Volatiles content | P44: 0.2
C45: =title49 -> 5. Charcoal can be used in metallurgy, soil amendment and in the chemical industry as an adsorbent | M45: =title57 -> Bulk density | P45: 250-300 kg/m3
C46: =title50 -> 6. Charcoal is highly resistant towards biological decay | M46: =title58 -> Physical characteristics | P46: =title59 -> Moderately friable
C47: =title51 -> 7. Charcoal requires little or no preparation before actual use

Sheet Charcoal_Calculator_SMALL
C3: =title60 -> TRADITIONAL CHARCOAL MAKING COST CALCULATOR
C6: =title61 -> Subsistence Producers
E8: =title69 -> Unit | F8: =title72 -> Charcoal Cost (USD/kg) | G8: =+AB15 -> 
C9: =title62 -> Standard production rate | E9: =title70 -> t charcoal/year
C10: =title63 -> Standard efficiency
C12: =title64 -> Activities | E12: =title69 -> Unit | F12: =title73 -> Tools | G12: =title79 -> Costs | H12: =title69 -> Unit
C13: =title65 -> Biomass collection and preparation | E13: =title71 -> person-day | F13: =title74 -> Axe | H13: =title80 -> USD/unit | Z13: =1/AC13 -> 0.06666666667 | AA13: Labor | AB13: =+SUM(D13:D16)*'Data Entry Needs'!$D$35*8 -> 0 | AC13: 15
C14: =title66 -> Kiln construction | E14: =title71 -> person-day | F14: =title75 -> Hoe | H14: =title80 -> USD/unit | Z14: =1/AC14 -> 0.3333333333 | AA14: Materials | AB14: =+SUMPRODUCT(G13:G17,Z13:Z17) -> 0 | AC14: 3
C15: =title67 -> Operating kiln (loading and unloading included) | E15: =title71 -> person-day | F15: =title76 -> Machete | H15: =title80 -> USD/unit | Z15: =1/AC15 -> 0.3333333333 | AA15: =title92 -> Unit cost | AB15: =SUM(AB13:AB14)/(D9*1000) ->  | AC15: 3
C16: =title68 -> Packing charcoal | E16: =title71 -> person-day | F16: =title77 -> Shovel | H16: =title80 -> USD/unit | Z16: =1/AC16 -> 0.25 | AA16: =title289 -> Total investment | AB16: =+SUM(G13:G17) -> 0 | AC16: 4
F17: =title78 -> Fork rake | H17: =title80 -> USD/unit | Z17: =1/AC17 -> 0.2 | AC17: 5

Sheet Charcoal_Calculator_M&L
C3: =title60 -> TRADITIONAL CHARCOAL MAKING COST CALCULATOR
C6: =title81 -> Commercial Producers
E8: =title69 -> Unit | F8: =title72 -> Charcoal Cost (USD/kg) | G8: =+AC16 ->  | AB8: Q | AC8: COST
C9: =title62 -> Standard production rate | E9: =title70 -> t charcoal/year | AA9: =title137 -> Feedstock | AB9: =+D9/D10 ->  | AC9: =+AB9*G13 -> 
C10: =title63 -> Standard efficiency | AA10: Transport | AB10: =+AB9*D18 ->  | AC10: =+AB10*G14 -> 
AA11: =title261 -> Storage | AB11: =20%*AB9 ->  | AC11: =+AB11*G15 -> 
C12: =title64 -> Activities | E12: =title69 -> Unit | F12: =title79 -> Costs | H12: =title69 -> Unit | AA12: Labor Unskilled | AB12: =+SUM(D13:D16)*8 -> 0 | AC12: =+AB12*G16 -> 0
C13: =title82 -> Biomass preparation | E13: =title71 -> person-day | F13: =title85 -> Feedstock cost | H13: USD/t | AA13: Labor Skilled | AB13: =+D17*8 -> 0 | AC13: =+AB13*G17 -> 0
C14: =title66 -> Kiln construction | E14: =title71 -> person-day | F14: =title86 -> Transport cost | H14: USD/t/km | AA14: Investement | AB14: =+G18/3 -> 0 | AC14: =+AB14 -> 0
C15: =title67 -> Operating kiln (loading and unloading included) | E15: =title71 -> person-day | F15: =title87 -> Storage cost | H15: USD/t | AC15: =SUM(AC9:AC14) -> 
C16: =title68 -> Packing charcoal | E16: =title71 -> person-day | F16: =title88 -> Unskilled worker wage | H16: =title91 -> USD/person-h | AB16: =title92 -> Unit cost | AC16: =+AC15/D9/1000 -> 
C17: =title83 -> Supervising charcoal processing | E17: =title71 -> person-day | F17: =title89 -> Skilled worker wage | H17: =title91 -> USD/person-h
C18: =title84 -> Transportation distance (Fs -> Plant) | E18: km | F18: =title90 -> Investment cost | H18: USD

Sheet Energy Demand
C3: =title93 -> ENERGY DEMAND AND POTENTIAL REVENUE FROM CHARCOAL
C5: =title94 -> Rural Households
C7: =title95 -> Energy consumption per household | D7: =title97 -> Price | E7: =title98 -> Consumption | G7: =title99 -> Energy expenditure | H7: =title100 -> Charcoal consumption equivalent
D8: USD/kg | E8: =title101 -> kg/day/hh | F8: =title102 -> t/year/hh | G8: =title103 -> USD/year | H8: =title102 -> t/year/hh
C9: =title96 -> Fuel wood | F9: =E9*365/1000 -> 0 | G9: =F9*1000*D9 -> 0 | H9: =F9/Comparison!G10 -> 0
C10: =title41 -> Charcoal | D10: =+'Data Entry Needs'!$D$52 -> 0 | F10: =E10*365/1000 -> 0 | G10: =F10*1000*D10 -> 0 | H10: =F10/Comparison!G11 -> 0
D11: Total | F11: =SUM(F9:F10) -> 0 | G11: =SUM(G9:G10) -> 0 | H11: =SUM(H9:H10) -> 0
C13: Urban Households
C15: =title95 -> Energy consumption per household | D15: =title97 -> Price | E15: =title98 -> Consumption | G15: =title99 -> Energy expenditure | H15: =title100 -> Charcoal consumption equivalent
D16: USD/kg | E16: =title101 -> kg/day/hh | F16: =title102 -> t/year/hh | G16: =title103 -> USD/year | H16: =title102 -> t/year/hh
C17: =title96 -> Fuel wood | F17: =E17*365/1000 -> 0 | G17: =F17*1000*D17 -> 0 | H17: =F17/Comparison!G15 -> 0
C18: =title41 -> Charcoal | D18: =+'Data Entry Needs'!$D$53 -> 0 | F18: =E18*365/1000 -> 0 | G18: =F18*1000*D18 -> 0 | H18: =F18/Comparison!G16 -> 0
D19: Total | F19: =SUM(F17:F18) -> 0 | G19: =SUM(G17:G18) -> 0 | H19: =SUM(H17:H18) -> 0
C21: =title104 -> Industrial Energy Consumption
C23: =title105 -> Energy consumption by Industry | D23: =title97 -> Price | E23: =title98 -> Consumption | G23: =title99 -> Energy expenditure | H23: =title100 -> Charcoal consumption equivalent
D24: USD/kg | E24: kg/day/ind | F24: t/year/ind | G24: =title103 -> USD/year | H24: t/year/ind
C25: =title106 -> Briquettes/Pellets | F25: =E25*365/1000 -> 0 | G25: =F25*1000*D25 -> 0 | H25: =F25/Comparison!G19 -> 0
C26: =title96 -> Fuel wood | F26: =E26*365/1000 -> 0 | G26: =F26*1000*D26 -> 0 | H26: =F26/Comparison!G20 -> 0
C27: =title41 -> Charcoal | D27: =+'Data Entry Needs'!$D$54 -> 0 | F27: 0 | G27: =F27*1000*D27 -> 0 | H27: =F27/Comparison!G21 -> 0
C28: =title107 -> LPG | F28: 0 | G28: 0 | H28: =F28/Comparison!G22 -> 0
C29: =title108 -> Fuel oil | F29: 0 | G29: 0 | H29: =F29/Comparison!G23 -> 0
C30: =title109 -> Diesel | F30: 0 | G30: 0 | H30: =F30/Comparison!G24 -> 0
C31: =title110 -> Coal | F31: 0 | G31: 0 | H31: =F31/Comparison!G25 -> 0
C32: =title111 -> Natural gas | F32: 0 | G32: 0 | H32: =F32/Comparison!G26 -> 0
D33: Total | F33: =SUM(F25:F32) -> 0 | G33: =SUM(G25:G32) -> 0 | H33: =SUM(H25:H32) -> 0

Sheet Investment (hidden)
C3: =title112 -> Investment cost of charcoal project
C6: =title113 -> Item | E6: =title92 -> Unit cost | F6: =title126 -> Oil drum | H6: Casamance | J6: =title127 -> Improved pit Liberia | L6: =title128 -> Portable steel kiln | N6: =title129 -> Standard Beehive | P6: Missouri | R6: =title130 -> Somalia mound
E7: ="("&title80&")" -> (USD/unit) | F7: =title131 -> Quantity (unit) | G7: =title132 -> Cost (USD) | H7: =title131 -> Quantity (unit) | I7: =title132 -> Cost (USD) | J7: =title131 -> Quantity (unit) | K7: =title132 -> Cost (USD) | L7: =title131 -> Quantity (unit) | M7: =title132 -> Cost (USD) | N7: =title131 -> Quantity (unit) | O7: =title132 -> Cost (USD) | P7: =title131 -> Quantity (unit) | Q7: =title132 -> Cost (USD) | R7: =title131 -> Quantity (unit) | S7: =title132 -> Cost (USD)
C8: =title114 -> Brick | E8: =+'Data Entry Needs'!$I$57 -> 0 | F8: 0 | G8: =+$E8*F8 -> 0 | H8: 0 | I8: =+$E8*H8 -> 0 | J8: 0 | K8: =+$E8*J8 -> 0 | L8: 0 | M8: =+$E8*L8 -> 0 | N8: 8500 | O8: =+$E8*N8 -> 0 | P8: 0 | Q8: =+$E8*P8 -> 0 | R8: 0 | S8: =+$E8*R8 -> 0
C9: =title115 -> Concrete | E9: =+'Data Entry Needs'!$I$58 -> 0 | F9: 0 | G9: =+$E9*F9 -> 0 | H9: 0 | I9: 0 | J9: 0 | K9: =+$E9*J9 -> 0 | L9: 0 | M9: =+$E9*L9 -> 0 | N9: 0 | O9: =+$E9*N9 -> 0 | P9: 46 | Q9: =+$E9*P9 -> 0 | R9: 0 | S9: =+$E9*R9 -> 0
C10: =title116 -> Metal sheet (thick.30 mm) m2 | E10: =+'Data Entry Needs'!$I$61 -> 0 | F10: 0 | G10: 0 | H10: =(0.63*1.8+0.16*0.5*4)*1.5 -> 2.181 | I10: 0 | J10: 0 | K10: =+$E10*J10 -> 0 | L10: =(7.3*0.7)*1.5 -> 7.665 | M10: =+$E10*L10 -> 0 | N10: =0.145*1000/$E$20 ->  | O10: =+$E10*N10 ->  | P10: =4400/$E$20 ->  | Q10: =+$E10*P10 ->  | R10: 0 | S10: =+$E10*R10 -> 0
C11: =title117 -> Angle iron for frame 40 x 40 x 5 mm | E11: =+'Data Entry Needs'!$I$60 -> 0 | F11: 0 | G11: 0 | H11: 0 | I11: 0 | J11: 12 | K11: =+$E11*J11 -> 0 | L11: 0 | M11: =+$E11*L11 -> 0 | N11: 0 | O11: =+$E11*N11 -> 0 | P11: 0 | Q11: =+$E11*P11 -> 0 | R11: 0 | S11: =+$E11*R11 -> 0
C12: =title118 -> Oil drum (200 l) (thick.15 mm) | E12: =+'Data Entry Needs'!$I$59 -> 0 | F12: 1 | G12: 0 | H12: 0 | I12: 0 | J12: =ROUNDUP((((2.44*1.22)*(3+2)/1.62)*1.2),0) -> 12 | K12: =+$E12*J12 -> 0 | L12: =ROUNDUP((((7.3*0.7+2.5*2+1.8*0.01*4)/1.62)*1.2),0) -> 8 | M12: =+$E12*L12 -> 0 | N12: 0 | O12: =+$E12*N12 -> 0 | P12: 0 | Q12: =+$E12*P12 -> 0 | R12: =ROUNDUP((((0.9*1.8)*(15)/1.62)),0)*52/5 -> 156 | S12: =+$E12*R12 -> 0
C13: =title119 -> Other costs | F13: 0.54 | G13: =+SUM(G8:G12)*F$13/(1-F$13) -> 0 | H13: 0 | I13: =+SUM(I8:I12)*H$13/(1-H$13) -> 0 | J13: 0.17 | K13: =+SUM(K8:K12)*J$13/(1-J$13) -> 0 | L13: 0.25 | M13: =+SUM(M8:M12)*L$13/(1-L$13) -> 0 | N13: 0 | O13: =+SUM(O8:O12)*N$13/(1-N$13) ->  | P13: 0.02 | Q13: =+SUM(Q8:Q12)*P$13/(1-P$13) ->  | R13: 0 | S13: =+SUM(S8:S12)*R$13/(1-R$13) -> 0
C14: =title120 -> Equipment cost | G14: =SUM(G8:G13) -> 0 | I14: =SUM(I8:I13) -> 0 | K14: =SUM(K8:K13) -> 0 | M14: =SUM(M8:M13) -> 0 | O14: =SUM(O8:O13) ->  | Q14: =SUM(Q8:Q13) ->  | S14: =SUM(S8:S13) -> 0
C15: =title121 -> Building cost | F15: 0.2 | G15: =F$15*G$14/(1-F$15) -> 0 | H15: 0 | I15: =H$15*I$14/(1-H$15) -> 0 | J15: 0 | K15: =J$15*K$14/(1-J$15) -> 0 | L15: 0 | M15: =L$15*M$14/(1-L$15) -> 0 | N15: 0.44 | O15: =N$15*O$14/(1-N$15) ->  | P15: 0.44 | Q15: =P$15*Q$14/(1-P$15) ->  | R15: 0 | S15: =R$15*S$14/(1-R$15) -> 0
C16: =title122 -> Installation cost | F16: 0.1 | G16: =F$16*G$14 -> 0 | H16: 0 | I16: =H$16*I$14 -> 0 | J16: 0.1 | K16: =J$16*K$14 -> 0 | L16: 0 | M16: =L$16*M$14 -> 0 | N16: 0.1 | O16: =N$16*O$14 ->  | P16: 0.1 | Q16: =P$16*Q$14 ->  | R16: 0 | S16: =R$16*S$14 -> 0
C17: =title123 -> Total investment cost (USD) | G17: =+G16+G14+G15 -> 0 | I17: =+I16+I14+I15 -> 0 | K17: =+K16+K14+K15 -> 0 | M17: =+M16+M14+M15 -> 0 | O17: =+O16+O14+O15 ->  | Q17: =+Q16+Q14+Q15 ->  | S17: =+S16+S14+S15 -> 0
C18: =title124 -> Lifetime (years) | G18: 3 | I18: 3 | K18: 3 | M18: 3 | O18: 6 | Q18: 6 | S18: 1
C20: =title125 -> Steel sheet density | F20: kg/m2

Sheet Data Entry Needs
A1: =+IF($D$11=title146,TRUE,FALSE) -> FALSE
C3: =title133 -> DATA ENTRY SHEET FOR BIOMASS CHARCOAL PRODUCTION
C6: =title134 -> Use white cells to input data | D6: =title135 -> Grey cells are used for calculations
C8: =title136 -> Feedstock Availability and Cost | H8: =title149 -> Charcoal Technology Selection
H9: =IF(AE17=0,"Please select at least one technology to compare","") -> 
D10: =title137&" 1" -> Feedstock 1 | E10: =title137&" 2" -> Feedstock 2 | F10: =title137&" 3" -> Feedstock 3 | H10: =title150 -> Small scale options | J10: =title151 -> Operating hours per day (max 8) | K10: =title152 -> Operating days per year | AB10: =title126 -> Oil drum | AE10: =+IF(AF10,1,0) -> 1 | AF10: TRUE
C11: =title137 -> Feedstock | D11: Please Select | E11: Please Select | F11: Please Select | AB11: Casamance | AE11: =+IF(AF11,1,0) -> 1 | AF11: TRUE
C12: =title138 -> Feedstock available (t/year) | H12: =title126 -> Oil drum | AB12: =title127 -> Improved pit Liberia | AE12: 1 | AF12: TRUE
C13: =title139 -> Biomass density (t/m3) | H13: Casamance | AB13: =title128 -> Portable steel kiln | AE13: 1 | AF13: TRUE
H14: =title127 -> Improved pit Liberia | AB14: =title129 -> Standard Beehive | AE14: 1 | AF14: TRUE
C15: =title140 -> Feedstock price (USD/t) | H15: =title153 -> Medium scale options | AB15: Missouri | AE15: 1 | AF15: TRUE
C16: TRUE | D16: =IF(AND($AC$18=TRUE,$C$16=FALSE),PRICE_RES1!I24,title147) -> Input data below! | E16: =IF(AND($AC$19=TRUE,$C$16=FALSE),PRICE_RES2!I24,title147) -> Input data below! | F16: =IF(AND($AC$20=TRUE,$C$16=FALSE),PRICE_RES3!I24,title147) -> Input data below! | H16: =title128 -> Portable steel kiln | AB16: =title130 -> Somalia mound | AE16: 1 | AF16: TRUE
H17: =title129 -> Standard Beehive | AE17: =SUM(AE10:AE16) -> 7
C18: =title141 -> Feedstock storage cost (USD/t) | H18: =title154 -> Large scale options | AB18: FS1 | AC18: =+IF($D$11=title145,TRUE,FALSE) -> FALSE | AD18: =+NOT(AC18) -> TRUE | AE18: =+IF(OR($D$11=title146,$D$11=title106,$D$11=title96),TRUE,FALSE) -> FALSE
C19: =title142 -> Drying period (days/month) | H19: Missouri | AB19: FS2 | AC19: =+IF($E$11=title145,TRUE,FALSE) -> FALSE | AD19: =+NOT(AC19) -> TRUE | AE19: =+IF(OR($E$11=title146,$E$11=title106,$E$11=title96),TRUE,FALSE) -> FALSE
C20: =title143 -> Safety stock rate (%) | H20: =title130 -> Somalia mound | AB20: FS3 | AC20: =+IF($F$11=title145,TRUE,FALSE) -> FALSE | AD20: =+NOT(AC20) -> TRUE | AE20: =+IF(OR($F$11=title146,$F$11=title106,$F$11=title96),TRUE,FALSE) -> FALSE
C22: =title155 -> Current Charcoal Production
C23: =title156 -> Select the source of your data | D23: FALSE
C24: =title157 -> Select the scales that apply to your country | D24: =title174 -> Small Scale (Subsistence Production) | E24: =title175 -> Medium and Large Scale (Commercial)
D25: TRUE | E25: TRUE
C26: =title158 -> Average production efficiency (%) | D26: =Charcoal_Calculator_SMALL!D10 -> 0 | E26: ='Charcoal_Calculator_M&L'!D10 -> 0 | AB26: =+IF(D25,FALSE,TRUE) -> FALSE | AC26: =+IF(E25,FALSE,TRUE) -> FALSE | AD26: =+IF(F25,FALSE,TRUE) -> TRUE
C27: =title159 -> Average production rate (t/year) | D27: =Charcoal_Calculator_SMALL!D9 -> 0 | E27: ='Charcoal_Calculator_M&L'!D9 -> 0
C28: =title160 -> Average production cost (USD/t) | D28: =Charcoal_Calculator_SMALL!G8 ->  | E28: ='Charcoal_Calculator_M&L'!G8 -> 
C29: =title161 -> Average investment cost (USD) | D29: =Charcoal_Calculator_SMALL!AB16 -> 0 | E29: ='Charcoal_Calculator_M&L'!G18 -> 0
C32: =title176 -> Production Cost and Financial Parameters
C34: =title177 -> Labour cost for medium and large scale production | E34: =title69 -> Unit | J34: =title69 -> Unit
C35: =title178 -> Unskilled worker | E35: =title194 -> USD/person-hour | F35: =title197 -> Skilled worker | J35: =title194 -> USD/person-hour
C37: =title179 -> Feedstock collection | E37: =title69 -> Unit
C38: =title180 -> Working hours per day (manual) | E38: =title195 -> h/day | F38: =title198 -> Working hours per day (mechanized) | J38: =title195 -> h/day
C39: =title109 -> Diesel | E39: USD/l
C41: =title181 -> Transportation cost | E41: =title69 -> Unit | J41: =title69 -> Unit
C42: =title182 -> Feedstock (field to Charcoal production plant) | E42: USD/t/km | F42: =title199 -> Charcoal production plant to market | J42: USD/t/km
C44: =title183 -> Charcoal product storage | E44: =title69 -> Unit
C45: =title184 -> Charcoal storage cost | E45: USD/t
C47: =title119 -> Other costs
F48: =title200 -> Plant overhead (%)
C49: =title185 -> General and administrative (%) | F49: =title201 -> Maintenance (%)
C51: =title186 -> Price of charcoal | E51: =title69 -> Unit
C52: =title187 -> Market price (rural areas) | E52: =title196 -> USD/kg charcoal | F52: =title202 -> Share of market price paid to small scale producers
C53: =title188 -> Market price (urban areas) | E53: =title196 -> USD/kg charcoal | F53: =title203 -> Share of market price paid to medium and large scale producers
C54: =title189 -> Market price (industrial) | E54: =title196 -> USD/kg charcoal
C56: =title190 -> Financial parameters | F56: =title204 -> Basic construction materials for kilns
C57: =title191 -> Discount rate (%) | F57: =title114 -> Brick | J57: =title80 -> USD/unit
C58: =title192 -> Loan ratio (%) | F58: =title115 -> Concrete | J58: USD/m3
C59: =title193 -> Loan interest rate (%) | F59: =title205 -> Oil drum (200 liter) | J59: =title80 -> USD/unit | AC59: Technology
F60: =title117 -> Angle iron for frame 40 x 40 x 5 mm | J60: =title80 -> USD/unit
F61: =title206 -> Metal sheet (thickness 30 mm) | J61: USD/m2
F62: http://www.themetalstore.co.uk/products/mild-steel-sheet
C63: Inflation rate (%) | D63: 0.05 | AC63: =title452 -> Earth Kiln | AD63: 2
AC64: =title453 -> Pit Kiln | AD64: 3
AC65: =title454 -> Brick Kiln | AD65: 4
AC66: =title455 -> Concrete Kiln | AD66: 5
AC67: =title456 -> Fire Clay Kiln | AD67: 6
AC68: =title457 -> Portable steel Kiln | AD68: 7
AC69: =title458 -> Oil drum Kiln | AD69: 8
AC70: Option
AC71: =title144 -> Please Select
AC72: =title465 -> yes
AC73: no
AC74: =title144 -> Please Select
AC75: =title106 -> Briquettes/Pellets
AC76: =title145 -> Forest Harvesting Residues
AC77: =title146 -> Wood Processing Residues
AC78: =title96 -> Fuel wood
AC79: =+$D$11 -> Please Select | AD79: =+IF(AC79=$AC$74,TRUE,FALSE) -> TRUE
AC80: =+$E$11 -> Please Select | AD80: =+IF(AC80=$AC$74,TRUE,FALSE) -> TRUE
AC81: =+$F$11 -> Please Select | AD81: =+IF(AC81=$AC$74,TRUE,FALSE) -> TRUE
AC85: Change in raw material cost (%)
AC86: Change in labour cost (%)
AC87: Change in investment cost (%)
AC88: Change in charcoal price (%)
AC89: Taxes from charcoal production in country | AF89: 0
AD92: =title207 -> Small Scale | AE92: =title208 -> Medium Scale | AF92: =title209 -> Large Scale
AC93: =title158 -> Average production efficiency (%) | AD93: =D26 -> 0 | AE93: =E26 -> 0 | AF93: =F26 -> 0
AC94: =title160 -> Average production cost (USD/t) | AD94: =D28 ->  | AF94: 0 | AN94: Wage1 | AO94: =IF(OR($D$35="",$D$35=" "),TRUE,FALSE) -> TRUE
AC95: Average Investement Cost (USD) | AD95: 0 | AE95: 0 | AF95: 0 | AN95: Wage2 | AO95: =IF(OR($I$35="",$I$35=" "),TRUE,FALSE) -> TRUE
AN96: Working hours1 | AO96: =IF(OR($I$38="",$I$38=" "),TRUE,FALSE) -> TRUE
AN97: Working hours2 | AO97: =IF(OR($D$38="",$D$38=" "),TRUE,FALSE) -> TRUE
AN98: =title109 -> Diesel | AO98: =IF(OR($D$39="",$D$39=" "),TRUE,FALSE) -> TRUE
AN99: Decision1 | AO99: =+OR($AO$94,$AO$95,$AO$98,AO96,AO97) -> TRUE
AN100: Decision2 | AO100: =+C16 -> TRUE
AN101: ICU | AO101: =IF(OR($I$57="",$I$57=" ",$I$58="",$I$58=" ",$I$59="",$I$59=" ",$I$60="",$I$60=" ",$I$61="",$I$61=" "),TRUE,FALSE) -> TRUE

Sheet PRICE_RES1 (hidden)
C3: =title210 -> COLLECTION COSTS CALCULATOR FOR FOREST HARVESTING RESIDUES | AC3: =title212 -> Sources of biomass | AD3: No. | AE3: Selection2 | AF3: Number | AG3: =title230 -> Mechanized | AH3: =title231 -> Number of skilled workers | AI3: =title237 -> person-hour/t
AC4: =title213 -> Forest | AD4: 1 | AE4: =+$F$9 -> Semi-mecanizada | AG4: =title230&2 -> Mechanized2 | AH4: =title232 -> Skilled labour wage | AI4: =title194 -> USD/person-hour
AC5: =title224 -> Forest and plantation residues | AD5: 2 | AE5: Selection1 | AF5: 1 | AG5: =title230&4 -> Mechanized4 | AH5: =title233 -> Average fuel economy | AI5: l/h
C6: =title211 -> Biomass Collection Definition | AC6: =title225 -> Wood products industrial residues | AD6: 3 | AE6: =+VLOOKUP($C$9,$AC$4:$AD$7,2,FALSE) -> 1 | AF6: 2 | AG6: =title230&5 -> Mechanized5 | AH6: =title234 -> Fuel price | AI6: USD/l
AC7: =title226 -> Dedicated wood energy plantation | AD7: 4 | AF7: 3 | AG7: =title228 -> Semi-mechanized | AH7: =title231 -> Number of skilled workers | AI7: =title237 -> person-hour/t
C8: =title212 -> Sources of biomass | F8: =title214 -> Collecting method | AC8: =title227 -> Collection method | AF8: 4 | AG8: =title228&1 -> Semi-mechanized1 | AH8: =title235 -> Number of unskilled workers | AI8: =title237 -> person-hour/t
C9: =title213 -> Forest | F9: Semi-mecanizada | AC9: =title228 -> Semi-mechanized | AF9: 5 | AG9: =title228&2 -> Semi-mechanized2 | AH9: =title232 -> Skilled labour wage | AI9: =title194 -> USD/person-hour
AC10: =title229 -> Manual | AG10: =title228&3 -> Semi-mechanized3 | AH10: =title236 -> Unskilled labour wage | AI10: =title194 -> USD/person-hour
C11: =IF($AE$6=4,title217,IF(OR($AE$6=1,$AE$6=5),title211,title218)) -> Biomass Collection Definition | AG11: =title228&4 -> Semi-mechanized4 | AH11: =title233 -> Average fuel economy | AI11: l/h
AG12: =title228&5 -> Semi-mechanized5 | AH12: =title234 -> Fuel price | AI12: USD/l
AG13: =title229 -> Manual | AH13: =title235 -> Number of unskilled workers | AI13: =title237 -> person-hour/t
C14: =title215 -> Biomass price definition | AG14: =title229&2 -> Manual2 | AH14: =title236 -> Unskilled labour wage | AI14: =title194 -> USD/person-hour
C15: =title216 -> Labour cost | D15: =title219 -> Quantity | E15: =title69 -> Unit | F15: =title219 -> Quantity | H15: =title69 -> Unit | I15: Total | J15: =title69 -> Unit
C16: =+IF(OR($AE$6=1,$AE$6=4,$AE$6=5),IFERROR(VLOOKUP($AE$4&$AF4,$AG$3:$AI$14,2,FALSE),""),"") ->  | E16: =IF(OR($AE$6=1,$AE$6=5),IFERROR(VLOOKUP($AE$4&$AF4,$AG$3:$AI$21,3,FALSE),""),"") ->  | F16: =IF(OR($AE$6=1,$AE$6=5),IFERROR(VLOOKUP($AE$4&$AF6,$AG$3:$AI$14,2,FALSE),""),"") ->  | G16: =IF(F16="","",IF(F16=title236,'Data Entry Needs'!D35,IF(F16=title232,'Data Entry Needs'!$I$35))) ->  | H16: =IF(OR($AE$6=1,$AE$6=5),IFERROR(VLOOKUP($AE$4&$AF6,$AG$3:$AI$18,3,FALSE),""),"") ->  | I16: =+IFERROR(G16*D16*IF($F$9=title229,COST_RES1!$E$11,COST_RES1!$E$11),"") ->  | J16: =+IF(OR($AE$6=1,$AE$6=4,$AE$6=5),title103,"") -> USD/year
C17: =IF(OR($AE$6=1,$AE$6=4,$AE$6=5),IFERROR(VLOOKUP($AE$4&$AF5,$AG$3:$AI$14,2,FALSE),""),"") ->  | E17: =IF(OR($AE$6=1,$AE$6=5),IFERROR(VLOOKUP($AE$4&$AF5,$AG$3:$AI$21,3,FALSE),""),"") ->  | F17: =IF(OR($AE$6=1,$AE$6=5),IFERROR(VLOOKUP($AE$4&$AF7,$AG$3:$AI$14,2,FALSE),""),"") ->  | G17: =IF(F17="","",'Data Entry Needs'!$D35) ->  | H17: =IF(OR($AE$6=1,$AE$6=5),IFERROR(VLOOKUP($AE$4&$AF7,$AG$3:$AI$25,3,FALSE),""),"") ->  | I17: =+IFERROR(G17*D17*IF($F$9=title229,COST_RES1!$E$11,COST_RES1!$E$11),"") ->  | J17: =+IF(OR($AE$6=1,$AE$6=4,$AE$6=5),title103,"") -> USD/year
D18: =+IF(AND(C16="",C17=""),0,IF(C16="",D17,IF(C17="",D16,D16+D17))) -> 0 | H18: =+IF(OR($AE$6=1,$AE$6=5),title223,"") -> Subtotal | I18: =+SUMIF($I$16:$I$17,">0") -> 0 | J18: =+IF(OR($AE$6=1,$AE$6=4,$AE$6=5),title103,"") -> USD/year
C19: =title220 -> Machinery and operating cost | D19: =title219 -> Quantity | E19: =title69 -> Unit | F19: =title219 -> Quantity | H19: =title69 -> Unit | I19: Total | J19: =title69 -> Unit
C20: =IF(OR($AE$6=1,$AE$6=4,$AE$6=5),IFERROR(VLOOKUP($AE$4&$AF8,$AG$3:$AI$14,2,FALSE),""),"") ->  | E20: =IF(OR($AE$6=1,$AE$6=5),IFERROR(VLOOKUP($AE$4&$AF8,$AG$3:$AI$25,3,FALSE),""),"") ->  | F20: =IF(OR($AE$6=1,$AE$6=5),IFERROR(VLOOKUP($AE$4&$AF9,$AG$3:$AI$14,2,FALSE),""),"") ->  | G20: =IF(F20="","",'Data Entry Needs'!$D$39/0.88) ->  | H20: =+IFERROR(VLOOKUP($AE$4&$AF9,$AG$3:$AI$14,3,FALSE),"") ->  | I20: =+IFERROR(G20*D20*IF($F$9=title229,COST_RES1!$E$11,$D$16*COST_RES1!$E$11),"") ->  | J20: =+IF(OR($AE$6=1,$AE$6=4,$AE$6=5),title103,"") -> USD/year
H21: =+IF(OR($AE$6=1,$AE$6=4,$AE$6=5),title223,"") -> Subtotal | I21: =+I20 ->  | J21: =+IF(OR($AE$6=1,$AE$6=4,$AE$6=5),title103,"") -> USD/year | AC21: =title235 -> Number of unskilled workers
H22: =+IF(OR($AE$6=1,$AE$6=4,$AE$6=5),"Total","") -> Total | I22: =IFERROR(I18+I21,I18) -> 0 | J22: =+IF(OR($AE$6=1,$AE$6=4,$AE$6=5),title103,"") -> USD/year
F24: =IF($AE$6=4,"Production cost of "&'Data Entry Needs'!D11,"Collection price of "&'Data Entry Needs'!D11) -> Collection price of Please Select | I24: =I22/'Data Entry Needs'!$D$12 ->  | J24: USD/t

Sheet PRICE_RES2 (hidden)
C3: =title210 -> COLLECTION COSTS CALCULATOR FOR FOREST HARVESTING RESIDUES | AC3: =title212 -> Sources of biomass | AD3: No. | AE3: Selection2 | AF3: Number | AG3: =title230 -> Mechanized | AH3: =title231 -> Number of skilled workers | AI3: =title237 -> person-hour/t
AC4: =title213 -> Forest | AD4: 1 | AE4: =+$F$9 -> Semi-mecanizada | AG4: =title230&2 -> Mechanized2 | AH4: =title232 -> Skilled labour wage | AI4: =title194 -> USD/person-hour
AC5: =title224 -> Forest and plantation residues | AD5: 2 | AE5: Selection1 | AF5: 1 | AG5: =title230&4 -> Mechanized4 | AH5: =title233 -> Average fuel economy | AI5: l/h
C6: =title211 -> Biomass Collection Definition | AC6: =title225 -> Wood products industrial residues | AD6: 3 | AE6: =+VLOOKUP($C$9,$AC$4:$AD$7,2,FALSE) -> 1 | AF6: 2 | AG6: =title230&5 -> Mechanized5 | AH6: =title234 -> Fuel price | AI6: USD/l
AC7: =title226 -> Dedicated wood energy plantation | AD7: 4 | AF7: 3 | AG7: =title228 -> Semi-mechanized | AH7: =title231 -> Number of skilled workers | AI7: =title237 -> person-hour/t
C8: =title212 -> Sources of biomass | F8: =title214 -> Collecting method | AC8: =title227 -> Collection method | AF8: 4 | AG8: =title228&1 -> Semi-mechanized1 | AH8: =title235 -> Number of unskilled workers | AI8: =title237 -> person-hour/t
C9: =title213 -> Forest | F9: Semi-mecanizada | AC9: =title228 -> Semi-mechanized | AF9: 5 | AG9: =title228&2 -> Semi-mechanized2 | AH9: =title232 -> Skilled labour wage | AI9: =title194 -> USD/person-hour
AC10: =title229 -> Manual | AG10: =title228&3 -> Semi-mechanized3 | AH10: =title236 -> Unskilled labour wage | AI10: =title194 -> USD/person-hour
C11: =IF($AE$6=4,title217,IF(OR($AE$6=1,$AE$6=5),title211,title218)) -> Biomass Collection Definition | AG11: =title228&4 -> Semi-mechanized4 | AH11: =title233 -> Average fuel economy | AI11: l/h
AG12: =title228&5 -> Semi-mechanized5 | AH12: =title234 -> Fuel price | AI12: USD/l
AG13: =title229 -> Manual | AH13: =title235 -> Number of unskilled workers | AI13: =title237 -> person-hour/t
C14: =title215 -> Biomass price definition | AG14: =title229&2 -> Manual2 | AH14: =title236 -> Unskilled labour wage | AI14: =title194 -> USD/person-hour
C15: =title216 -> Labour cost | D15: =title219 -> Quantity | E15: =title69 -> Unit | F15: =title219 -> Quantity | H15: =title69 -> Unit | I15: Total | J15: =title69 -> Unit
C16: =+IF(OR($AE$6=1,$AE$6=4,$AE$6=5),IFERROR(VLOOKUP($AE$4&$AF4,$AG$3:$AI$14,2,FALSE),""),"") ->  | E16: =IF(OR($AE$6=1,$AE$6=5),IFERROR(VLOOKUP($AE$4&$AF4,$AG$3:$AI$21,3,FALSE),""),"") ->  | F16: =IF(OR($AE$6=1,$AE$6=5),IFERROR(VLOOKUP($AE$4&$AF6,$AG$3:$AI$14,2,FALSE),""),"") ->  | G16: =IF(F16="","",IF(F16=title236,'Data Entry Needs'!D35,IF(F16=title232,'Data Entry Needs'!$I$35))) ->  | H16: =IF(OR($AE$6=1,$AE$6=5),IFERROR(VLOOKUP($AE$4&$AF6,$AG$3:$AI$18,3,FALSE),""),"") ->  | I16: =+IFERROR(G16*D16*IF($F$9=title229,COST_RES2!$E$11,COST_RES2!$E$11),"") ->  | J16: =+IF(OR($AE$6=1,$AE$6=4,$AE$6=5),title103,"") -> USD/year
C17: =IF(OR($AE$6=1,$AE$6=4,$AE$6=5),IFERROR(VLOOKUP($AE$4&$AF5,$AG$3:$AI$14,2,FALSE),""),"") ->  | E17: =IF(OR($AE$6=1,$AE$6=5),IFERROR(VLOOKUP($AE$4&$AF5,$AG$3:$AI$21,3,FALSE),""),"") ->  | F17: =IF(OR($AE$6=1,$AE$6=5),IFERROR(VLOOKUP($AE$4&$AF7,$AG$3:$AI$14,2,FALSE),""),"") ->  | G17: =IF(F17="","",'Data Entry Needs'!$D35) ->  | H17: =IF(OR($AE$6=1,$AE$6=5),IFERROR(VLOOKUP($AE$4&$AF7,$AG$3:$AI$25,3,FALSE),""),"") ->  | I17: =+IFERROR(G17*D17*IF($F$9=title229,COST_RES2!$E$11,COST_RES2!$E$11),"") ->  | J17: =+IF(OR($AE$6=1,$AE$6=4,$AE$6=5),title103,"") -> USD/year
D18: =+IF(AND(C16="",C17=""),0,IF(C16="",D17,IF(C17="",D16,D16+D17))) -> 0 | H18: =+IF(OR($AE$6=1,$AE$6=5),title223,"") -> Subtotal | I18: =+SUMIF($I$16:$I$17,">0") -> 0 | J18: =+IF(OR($AE$6=1,$AE$6=4,$AE$6=5),title103,"") -> USD/year
C19: =title220 -> Machinery and operating cost | D19: =title219 -> Quantity | E19: =title69 -> Unit | F19: =title219 -> Quantity | H19: =title69 -> Unit | I19: Total | J19: =title69 -> Unit
C20: =IF(OR($AE$6=1,$AE$6=4,$AE$6=5),IFERROR(VLOOKUP($AE$4&$AF8,$AG$3:$AI$14,2,FALSE),""),"") ->  | E20: =IF(OR($AE$6=1,$AE$6=5),IFERROR(VLOOKUP($AE$4&$AF8,$AG$3:$AI$25,3,FALSE),""),"") ->  | F20: =IF(OR($AE$6=1,$AE$6=5),IFERROR(VLOOKUP($AE$4&$AF9,$AG$3:$AI$14,2,FALSE),""),"") ->  | G20: =IF(F20="","",'Data Entry Needs'!$D$39/0.88) ->  | H20: =+IFERROR(VLOOKUP($AE$4&$AF9,$AG$3:$AI$14,3,FALSE),"") ->  | I20: =+IFERROR(G20*D20*IF($F$9=title229,COST_RES2!$E$11,$D$16*COST_RES2!$E$11),"") ->  | J20: =+IF(OR($AE$6=1,$AE$6=4,$AE$6=5),title103,"") -> USD/year
H21: =+IF(OR($AE$6=1,$AE$6=4,$AE$6=5),title223,"") -> Subtotal | I21: =+I20 ->  | J21: =+IF(OR($AE$6=1,$AE$6=4,$AE$6=5),title103,"") -> USD/year | AC21: =title235 -> Number of unskilled workers
H22: =+IF(OR($AE$6=1,$AE$6=4,$AE$6=5),"Total","") -> Total | I22: =IFERROR(I18+I21,I18) -> 0 | J22: =+IF(OR($AE$6=1,$AE$6=4,$AE$6=5),title103,"") -> USD/year
F24: =IF($AE$6=4,"Production cost of "&'Data Entry Needs'!E11,"Collection price of "&'Data Entry Needs'!E11) -> Collection price of Please Select | I24: =I22/'Data Entry Needs'!$E$12 ->  | J24: USD/t

Sheet PRICE_RES3 (hidden)
C3: =title210 -> COLLECTION COSTS CALCULATOR FOR FOREST HARVESTING RESIDUES | AC3: =title212 -> Sources of biomass | AD3: No. | AE3: Selection2 | AF3: Number | AG3: =title230 -> Mechanized | AH3: =title231 -> Number of skilled workers | AI3: =title237 -> person-hour/t
AC4: =title213 -> Forest | AD4: 1 | AE4: =+$F$9 -> Semi-mecanizada | AG4: =title230&2 -> Mechanized2 | AH4: =title232 -> Skilled labour wage | AI4: =title194 -> USD/person-hour
AC5: =title224 -> Forest and plantation residues | AD5: 2 | AE5: Selection1 | AF5: 1 | AG5: =title230&4 -> Mechanized4 | AH5: =title233 -> Average fuel economy | AI5: l/h
C6: =title211 -> Biomass Collection Definition | AC6: =title225 -> Wood products industrial residues | AD6: 3 | AE6: =+VLOOKUP($C$9,$AC$4:$AD$7,2,FALSE) -> 1 | AF6: 2 | AG6: =title230&5 -> Mechanized5 | AH6: =title234 -> Fuel price | AI6: USD/l
AC7: =title226 -> Dedicated wood energy plantation | AD7: 4 | AF7: 3 | AG7: =title228 -> Semi-mechanized | AH7: =title231 -> Number of skilled workers | AI7: =title237 -> person-hour/t
C8: =title212 -> Sources of biomass | F8: =title214 -> Collecting method | AC8: =title227 -> Collection method | AF8: 4 | AG8: =title228&1 -> Semi-mechanized1 | AH8: =title235 -> Number of unskilled workers | AI8: =title237 -> person-hour/t
C9: =title213 -> Forest | F9: Semi-mecanizada | AC9: =title228 -> Semi-mechanized | AF9: 5 | AG9: =title228&2 -> Semi-mechanized2 | AH9: =title232 -> Skilled labour wage | AI9: =title194 -> USD/person-hour
AC10: =title229 -> Manual | AG10: =title228&3 -> Semi-mechanized3 | AH10: =title236 -> Unskilled labour wage | AI10: =title194 -> USD/person-hour
C11: =IF($AE$6=4,title217,IF(OR($AE$6=1,$AE$6=5),title211,title218)) -> Biomass Collection Definition | AG11: =title228&4 -> Semi-mechanized4 | AH11: =title233 -> Average fuel economy | AI11: l/h
AG12: =title228&5 -> Semi-mechanized5 | AH12: =title234 -> Fuel price | AI12: USD/l
AG13: =title229 -> Manual | AH13: =title235 -> Number of unskilled workers | AI13: =title237 -> person-hour/t
C14: =title215 -> Biomass price definition | AG14: =title229&2 -> Manual2 | AH14: =title236 -> Unskilled labour wage | AI14: =title194 -> USD/person-hour
C15: =title216 -> Labour cost | D15: =title219 -> Quantity | E15: =title69 -> Unit | F15: =title219 -> Quantity | H15: =title69 -> Unit | I15: Total | J15: =title69 -> Unit
C16: =+IF(OR($AE$6=1,$AE$6=4,$AE$6=5),IFERROR(VLOOKUP($AE$4&$AF4,$AG$3:$AI$14,2,FALSE),""),"") ->  | E16: =IF(OR($AE$6=1,$AE$6=5),IFERROR(VLOOKUP($AE$4&$AF4,$AG$3:$AI$21,3,FALSE),""),"") ->  | F16: =IF(OR($AE$6=1,$AE$6=5),IFERROR(VLOOKUP($AE$4&$AF6,$AG$3:$AI$14,2,FALSE),""),"") ->  | G16: =IF(F16="","",IF(F16=title236,'Data Entry Needs'!D35,IF(F16=title232,'Data Entry Needs'!$I$35))) ->  | H16: =IF(OR($AE$6=1,$AE$6=5),IFERROR(VLOOKUP($AE$4&$AF6,$AG$3:$AI$18,3,FALSE),""),"") ->  | I16: =+IFERROR(G16*D16*IF($F$9=title229,COST_RES3!$E$11,COST_RES3!$E$11),"") ->  | J16: =+IF(OR($AE$6=1,$AE$6=4,$AE$6=5),title103,"") -> USD/year
C17: =IF(OR($AE$6=1,$AE$6=4,$AE$6=5),IFERROR(VLOOKUP($AE$4&$AF5,$AG$3:$AI$14,2,FALSE),""),"") ->  | E17: =IF(OR($AE$6=1,$AE$6=5),IFERROR(VLOOKUP($AE$4&$AF5,$AG$3:$AI$21,3,FALSE),""),"") ->  | F17: =IF(OR($AE$6=1,$AE$6=5),IFERROR(VLOOKUP($AE$4&$AF7,$AG$3:$AI$14,2,FALSE),""),"") ->  | G17: =IF(F17="","",'Data Entry Needs'!$D35) ->  | H17: =IF(OR($AE$6=1,$AE$6=5),IFERROR(VLOOKUP($AE$4&$AF7,$AG$3:$AI$25,3,FALSE),""),"") ->  | I17: =+IFERROR(G17*D17*IF($F$9=title229,COST_RES3!$E$11,COST_RES3!$E$11),"") ->  | J17: =+IF(OR($AE$6=1,$AE$6=4,$AE$6=5),title103,"") -> USD/year
D18: =+IF(AND(C16="",C17=""),0,IF(C16="",D17,IF(C17="",D16,D16+D17))) -> 0 | H18: =+IF(OR($AE$6=1,$AE$6=5),title223,"") -> Subtotal | I18: =+SUMIF($I$16:$I$17,">0") -> 0 | J18: =+IF(OR($AE$6=1,$AE$6=4,$AE$6=5),title103,"") -> USD/year
C19: =title220 -> Machinery and operating cost | D19: =title219 -> Quantity | E19: =title69 -> Unit | F19: =title219 -> Quantity | H19: =title69 -> Unit | I19: Total | J19: =title69 -> Unit
C20: =IF(OR($AE$6=1,$AE$6=4,$AE$6=5),IFERROR(VLOOKUP($AE$4&$AF8,$AG$3:$AI$14,2,FALSE),""),"") ->  | E20: =IF(OR($AE$6=1,$AE$6=5),IFERROR(VLOOKUP($AE$4&$AF8,$AG$3:$AI$25,3,FALSE),""),"") ->  | F20: =IF(OR($AE$6=1,$AE$6=5),IFERROR(VLOOKUP($AE$4&$AF9,$AG$3:$AI$14,2,FALSE),""),"") ->  | G20: =IF(F20="","",'Data Entry Needs'!$D$39/0.88) ->  | H20: =+IFERROR(VLOOKUP($AE$4&$AF9,$AG$3:$AI$14,3,FALSE),"") ->  | I20: =+IFERROR(G20*D20*IF($F$9=title229,COST_RES3!$E$11,$D$16*COST_RES3!$E$11),"") ->  | J20: =+IF(OR($AE$6=1,$AE$6=4,$AE$6=5),title103,"") -> USD/year
H21: =+IF(OR($AE$6=1,$AE$6=4,$AE$6=5),title223,"") -> Subtotal | I21: =+I20 ->  | J21: =+IF(OR($AE$6=1,$AE$6=4,$AE$6=5),title103,"") -> USD/year | AC21: =title235 -> Number of unskilled workers
H22: =+IF(OR($AE$6=1,$AE$6=4,$AE$6=5),"Total","") -> Total | I22: =IFERROR(I18+I21,I18) -> 0 | J22: =+IF(OR($AE$6=1,$AE$6=4,$AE$6=5),title103,"") -> USD/year
F24: =IF($AE$6=4,"Production cost of "&'Data Entry Needs'!F11,"Collection price of "&'Data Entry Needs'!F11) -> Collection price of Please Select | I24: =I22/'Data Entry Needs'!$F$12 ->  | J24: USD/t

Sheet COST_RES1
C3: =+UPPER(title238&'Data Entry Needs'!D11) -> PROCESSING COSTS FOR CHARCOAL PRODUCTION FROM PLEASE SELECT
C6: =title134 -> Use white cells to input data | D6: =title135 -> Grey cells are used for calculations
C8: =title239 -> Summary of Feedstock and Storage
C10: =title137 -> Feedstock | E10: =+'Data Entry Needs'!$D$11 -> Please Select
C11: =title138 -> Feedstock available (t/year) | E11: ='Data Entry Needs'!D12 -> 0
C12: =title139 -> Biomass density (t/m3) | E12: ='Data Entry Needs'!D13 -> 0
C13: =title141 -> Feedstock storage cost (USD/t) | E13: =+'Data Entry Needs'!$D$18 -> 0
C14: =title240 -> Drying time required (days/month) | E14: =+'Data Entry Needs'!D19 -> 0
C15: =title241 -> Safety stock rate | E15: =+'Data Entry Needs'!D20 -> 0
C16: =title140 -> Feedstock price (USD/t) | E16: =IF('Data Entry Needs'!$D$16=title147,'Data Entry Needs'!$D$17,'Data Entry Needs'!$D$16) -> 0
C19: FALSE
C20: =title242 -> Summary of Technologies Analyzed
C22: =title243 -> Charcoal kiln technology | F22: =title126 -> Oil drum | H22: Casamance | J22: =title127 -> Improved pit Liberia | L22: =title128 -> Portable steel kiln | N22: =title129 -> Standard Beehive | P22: Missouri | R22: =title130 -> Somalia mound
C23: =title244 -> Operating hours per year | D23: =title248 -> h/year | F23: ='Data Entry Needs'!$J$12*'Data Entry Needs'!$K$12 -> 0 | H23: ='Data Entry Needs'!$J$13*'Data Entry Needs'!$K$13 -> 0 | J23: ='Data Entry Needs'!$J$14*'Data Entry Needs'!$K$14 -> 0 | L23: ='Data Entry Needs'!$J$16*'Data Entry Needs'!$K$16 -> 0 | N23: ='Data Entry Needs'!$J$17*'Data Entry Needs'!$K$17 -> 0 | P23: ='Data Entry Needs'!$J$19*'Data Entry Needs'!$K$19 -> 0 | R23: ='Data Entry Needs'!$J$20*'Data Entry Needs'!$K$20 -> 0
C24: =title245 -> Annual production | D24: =title249 -> t/year | F24: 6.57 | H24: 49.713 | J24: 66.284 | L24: 182.5 | N24: 203 | P24: 305.0666667 | R24: 383.25
C25: =title246 -> Maximum technology efficiency | F25: ='Kiln cost'!$M$28 -> 0.2 | H25: 0.3 | J25: 0.3 | L25: ='Kiln cost'!$M$13 -> 0.25 | N25: 0.33 | P25: 0.33 | R25: 0.42
C26: =title247 -> Transportation distance | D26: km | E26: =title250 -> Field -> Factory | G26: =title252 -> Centralized | I26: =title252 -> Centralized | K26: =title252 -> Centralized | L26: 10 | M26: =title254 -> Not Required | O26: =title252 -> Centralized | Q26: =title252 -> Centralized | S26: =title252 -> Centralized
C27: =title247 -> Transportation distance | D27: km | E27: =title251 -> Factory -> Market | G27: =title253 -> Mobile | I27: =title252 -> Centralized | K27: =title252 -> Centralized | M27: =title253 -> Mobile | O27: =title252 -> Centralized | Q27: =title252 -> Centralized | S27: =title252 -> Centralized
C32: =title255 -> Production Cost Details
F34: =title291 -> Capacities (t charcoal/year)
F35: =+F24 -> 6.57 | H35: =+H24 -> 49.713 | J35: =+J24 -> 66.284 | L35: =+L24 -> 182.5 | N35: =+N24 -> 203 | P35: =+P24 -> 305.0666667 | R35: =+R24 -> 383.25
C37: =title256 -> Inputs | D37: =title69 -> Unit | E37: =title284 -> Unit Price | F37: =title219 -> Quantity | G37: Total | H37: =title219 -> Quantity | I37: Total | J37: =title219 -> Quantity | K37: Total | L37: =title219 -> Quantity | M37: Total | N37: =title219 -> Quantity | O37: Total | P37: =title219 -> Quantity | Q37: Total | R37: =title219 -> Quantity | S37: Total
E38: ="("&title80&")" -> (USD/unit) | F38: =title286 -> (Unit/year) | G38: ="("&title103&")" -> (USD/year) | H38: =title286 -> (Unit/year) | I38: ="("&title103&")" -> (USD/year) | J38: =title286 -> (Unit/year) | K38: ="("&title103&")" -> (USD/year) | L38: =title286 -> (Unit/year) | M38: ="("&title103&")" -> (USD/year) | N38: =title286 -> (Unit/year) | O38: ="("&title103&")" -> (USD/year) | P38: =title286 -> (Unit/year) | Q38: ="("&title103&")" -> (USD/year) | R38: =title286 -> (Unit/year) | S38: ="("&title103&")" -> (USD/year)
C39: =title137 -> Feedstock | D39: t | E39: =+$E$16 -> 0 | F39: =F24/F25 -> 32.85 | G39: =+F39*$E$39 -> 0 | H39: =H24/H25 -> 165.71 | I39: =+H39*$E$39 -> 0 | J39: =J24/J25 -> 220.9466667 | K39: =+J39*$E$39 -> 0 | L39: =L24/L25 -> 730 | M39: =+L39*$E$39 -> 0 | N39: =N24/N25 -> 615.1515152 | O39: =+N39*$E$39 -> 0 | P39: =P24/P25 -> 924.4444444 | Q39: =+P39*$E$39 -> 0 | R39: =R24/R25 -> 912.5 | S39: =+R39*$E$39 -> 0
C40: =title223 -> Subtotal | G40: =SUM(G39) -> 0 | I40: =SUM(I39) -> 0 | K40: =SUM(K39) -> 0 | M40: =SUM(M39) -> 0 | O40: =SUM(O39) -> 0 | Q40: =SUM(Q39) -> 0 | S40: =SUM(S39) -> 0
C42: =title257 -> Labour and miscellaneous costs | D42: =title69 -> Unit | E42: =title284 -> Unit Price | F42: =title219 -> Quantity | G42: Total | H42: =title219 -> Quantity | I42: Total | J42: =title219 -> Quantity | K42: Total | L42: =title219 -> Quantity | M42: Total | N42: =title219 -> Quantity | O42: Total | P42: =title219 -> Quantity | Q42: Total | R42: =title219 -> Quantity | S42: Total
E43: ="("&title194&")" -> (USD/person-hour) | F43: ="("&title69&")" -> (Unit) | G43: ="("&title103&")" -> (USD/year) | H43: ="("&title69&")" -> (Unit) | I43: ="("&title103&")" -> (USD/year) | J43: ="("&title69&")" -> (Unit) | K43: ="("&title103&")" -> (USD/year) | L43: ="("&title69&")" -> (Unit) | M43: ="("&title103&")" -> (USD/year) | N43: ="("&title69&")" -> (Unit) | O43: ="("&title103&")" -> (USD/year) | P43: ="("&title69&")" -> (Unit) | Q43: ="("&title103&")" -> (USD/year) | R43: ="("&title69&")" -> (Unit) | S43: ="("&title103&")" -> (USD/year)
C44: =title178 -> Unskilled worker | D44: # employee | E44: =+'Data Entry Needs'!$D$35 -> 0 | F44: 1 | G44: =+$E44*F44*F23 -> 0 | H44: 1 | I44: =E44*H44*$H$23 -> 0 | J44: 2 | K44: =+$E44*J44*J23 -> 0 | L44: 2 | M44: =+$E44*L44*L23 -> 0 | N44: 2 | O44: =+$E44*N44*N23 -> 0 | P44: 2 | Q44: =+$E44*P44*P23 -> 0 | R44: 14 | S44: =+E44*R44*R23 -> 0
C45: =title197 -> Skilled worker | D45: # employee | E45: =+'Data Entry Needs'!$I$35 -> 0 | G45: =+$E45*F45*F23 -> 0 | H45: 1 | I45: =E45*H45*$H$23 -> 0 | J45: 0 | K45: =+$E45*J45*J23 -> 0 | L45: 0 | M45: =+$E45*L45*L23 -> 0 | N45: 1 | O45: =+$E45*N45*N23 -> 0 | P45: 1 | Q45: =+$E45*P45*P23 -> 0 | R45: 1 | S45: =+E45*R45*R23 -> 0
C46: =title223 -> Subtotal | G46: =SUM(G44:G45) -> 0 | I46: =SUM(I44:I45) -> 0 | K46: =SUM(K44:K45) -> 0 | M46: =SUM(M44:M45) -> 0 | O46: =SUM(O44:O45) -> 0 | Q46: =SUM(Q44:Q45) -> 0 | S46: =SUM(S44:S45) -> 0
C48: =title258 -> Transport of feedstock | D48: =title69 -> Unit | E48: =title284 -> Unit Price | F48: =title219 -> Quantity | G48: Total | H48: =title219 -> Quantity | I48: Total | J48: =title219 -> Quantity | K48: Total | L48: =title219 -> Quantity | M48: Total | N48: =title219 -> Quantity | O48: Total | P48: =title219 -> Quantity | Q48: Total | R48: =title219 -> Quantity | S48: Total
E49: (USD/t/km) | F49: ="("&title69&")" -> (Unit) | G49: ="("&title103&")" -> (USD/year) | H49: ="("&title69&")" -> (Unit) | I49: ="("&title103&")" -> (USD/year) | J49: ="("&title69&")" -> (Unit) | K49: ="("&title103&")" -> (USD/year) | L49: ="("&title69&")" -> (Unit) | M49: ="("&title103&")" -> (USD/year) | N49: ="("&title69&")" -> (Unit) | O49: ="("&title103&")" -> (USD/year) | P49: ="("&title69&")" -> (Unit) | Q49: ="("&title103&")" -> (USD/year) | R49: ="("&title69&")" -> (Unit) | S49: ="("&title103&")" -> (USD/year)
C50: =title259 -> Feedstock (farm to plant) | D50: km | E50: ='Data Entry Needs'!D42 -> 0 | F50: =+F26 -> 0 | G50: =+F50*$E50*F$39 -> 0 | H50: =+H26 -> 0 | I50: =E50*H50*H39 -> 0 | J50: =+J26 -> 0 | K50: =+J50*$E50*J$39 -> 0 | L50: =+L26 -> 10 | M50: =+L50*$E50*L$39 -> 0 | N50: =+N26 -> 0 | O50: =+N50*$E50*N$39 -> 0 | P50: =+P26 -> 0 | Q50: =+P50*$E50*P$39 -> 0 | R50: =+R26 -> 0 | S50: =+R50*E50*R39 -> 0
C51: =title260 -> Charcoal (plant to market) | D51: km | E51: =+'Data Entry Needs'!$I$42 -> 0 | F51: =+F27 -> 0 | G51: =+F51*$E51*F24 -> 0 | H51: =+H27 -> 0 | I51: =E51*H51*H24 -> 0 | J51: =+J27 -> 0 | K51: =+J51*$E51*J$24 -> 0 | L51: =+L27 -> 0 | M51: =+L51*$E51*L$24 -> 0 | N51: =+N27 -> 0 | O51: =+N51*$E51*N$24 -> 0 | P51: =+P27 -> 0 | Q51: =+P51*$E51*P$24 -> 0 | R51: =+R27 -> 0 | S51: =+R51*E51*R24 -> 0
C52: =title223 -> Subtotal | G52: =SUM(G50:G51) -> 0 | I52: =SUM(I50:I51) -> 0 | K52: =SUM(K50:K51) -> 0 | M52: =SUM(M50:M51) -> 0 | O52: =SUM(O50:O51) -> 0 | Q52: =SUM(Q50:Q51) -> 0 | S52: =SUM(S50:S51) -> 0
C54: =title261 -> Storage | D54: =title69 -> Unit | E54: =title284 -> Unit Price | F54: =title219 -> Quantity | G54: Total | H54: =title219 -> Quantity | I54: Total | J54: =title219 -> Quantity | K54: Total | L54: =title219 -> Quantity | M54: Total | N54: =title219 -> Quantity | O54: Total | P54: =title219 -> Quantity | Q54: Total | R54: =title219 -> Quantity | S54: Total
E55: (USD/t) | F55: ="("&title69&")" -> (Unit) | G55: ="("&title103&")" -> (USD/year) | H55: ="("&title69&")" -> (Unit) | I55: ="("&title103&")" -> (USD/year) | J55: ="("&title69&")" -> (Unit) | K55: ="("&title103&")" -> (USD/year) | L55: ="("&title69&")" -> (Unit) | M55: ="("&title103&")" -> (USD/year) | N55: ="("&title69&")" -> (Unit) | O55: ="("&title103&")" -> (USD/year) | P55: ="("&title69&")" -> (Unit) | Q55: ="("&title103&")" -> (USD/year) | R55: ="("&title69&")" -> (Unit) | S55: ="("&title103&")" -> (USD/year)
C56: =title137 -> Feedstock | D56: =title249 -> t/year | E56: =+'Data Entry Needs'!$D$18 -> 0 | F56: =+(F24*8/F23)*(1+$E$15)*$E$14*12 ->  | G56: =F56*E56 ->  | H56: =+(H24*8/H23)*(1+$E$15)*$E$14*12 ->  | I56: =E56*H56 ->  | J56: =+(J24*8/J23)*(1+$E$15)*$E$14*12 ->  | K56: =J56*E56 ->  | L56: 0 | M56: =E56*L56 -> 0 | N56: =+(N24*8/N23)*(1+$E$15)*$E$14*12 ->  | O56: =E56*N56 ->  | P56: =+(P24*8/P23)*(1+$E$15)*$E$14*12 ->  | Q56: =E56*P56 ->  | R56: =+(R24*8/R23)*(1+$E$15)*$E$14*12 ->  | S56: =+E56*R56 -> 
C57: =title262 -> Charcoal products | D57: =title249 -> t/year | E57: =+'Data Entry Needs'!$D$45 -> 0 | F57: =+F24*10% -> 0.657 | G57: =F57*E57 -> 0 | H57: =+H24*10% -> 4.9713 | I57: =E57*H57 -> 0 | J57: =+J24*10% -> 6.6284 | K57: =J57*E57 -> 0 | L57: =+L24*$E$15 -> 0 | M57: =E57*L57 -> 0 | N57: =+N24*$E$15 -> 0 | O57: =E57*N57 -> 0 | P57: =+P24*$E$15 -> 0 | Q57: =E57*P57 -> 0 | R57: =+R24*$E$15 -> 0 | S57: =+E57*R57 -> 0
C58: =title223 -> Subtotal | G58: =SUM(G56:G57) ->  | I58: =SUM(I56:I57) ->  | K58: =SUM(K56:K57) ->  | M58: =SUM(M56:M57) -> 0 | O58: =SUM(O56:O57) ->  | Q58: =SUM(Q56:Q57) ->  | S58: =SUM(S56:S57) -> 
C60: =title263 -> Investment | D60: =title69 -> Unit | F60: =title287 -> Depreciation | H60: =title287 -> Depreciation | J60: =title287 -> Depreciation | L60: =title287 -> Depreciation | N60: =title287 -> Depreciation | P60: =title287 -> Depreciation | R60: =title287 -> Depreciation
F61: ="("&title103&")" -> (USD/year) | H61: ="("&title103&")" -> (USD/year) | J61: ="("&title103&")" -> (USD/year) | L61: ="("&title103&")" -> (USD/year) | N61: ="("&title103&")" -> (USD/year) | P61: ="("&title103&")" -> (USD/year) | R61: ="("&title103&")" -> (USD/year)
C62: =title264 -> Equipment | D62: =title103 -> USD/year | F62: =+Investment!G14/Investment!$G$18 -> 0 | H62: =+Investment!I14/Investment!$I$18 -> 0 | J62: =+Investment!K14/Investment!$K$18 -> 0 | L62: =+Investment!M14/Investment!$M$18 -> 0 | N62: =+Investment!O14/Investment!$O$18 ->  | P62: =+Investment!Q14/Investment!$Q$18 ->  | R62: =+Investment!S14/Investment!$S$18 -> 0
C63: =title265 -> Building | D63: =title103 -> USD/year | F63: =+Investment!G15/Investment!$G$18 -> 0 | H63: =+Investment!I15/Investment!$I$18 -> 0 | J63: =+Investment!K15/Investment!$K$18 -> 0 | L63: =+Investment!M15/Investment!$M$18 -> 0 | N63: =+Investment!O15/Investment!$O$18 ->  | P63: =+Investment!Q15/Investment!$Q$18 ->  | R63: =+Investment!S15/Investment!$S$18 -> 0
C64: =title266 -> Installation | D64: =title103 -> USD/year | F64: =+Investment!G16/Investment!$G$18 -> 0 | H64: =+Investment!I16/Investment!$I$18 -> 0 | J64: =+Investment!K16/Investment!$K$18 -> 0 | L64: =+Investment!M16/Investment!$M$18 -> 0 | N64: =+Investment!O16/Investment!$O$18 ->  | P64: =+Investment!Q16/Investment!$Q$18 ->  | R64: =+Investment!S16/Investment!$S$18 -> 0
C65: =title267 -> Total investment depreciation | F65: =SUM(F62:F64) -> 0 | H65: =SUM(H62:H64) -> 0 | J65: =SUM(J62:J64) -> 0 | L65: =SUM(L62:L64) -> 0 | N65: =SUM(N62:N64) ->  | P65: =SUM(P62:P64) ->  | R65: =SUM(R62:R64) -> 0
C66: =title268 -> Maintenance cost | E66: =+'Data Entry Needs'!$I$49 -> 0 | G66: =+F65*$E$66 -> 0 | I66: =+H65*$E$66 -> 0 | K66: =+J65*$E$66 -> 0 | M66: =+L65*$E$66 -> 0 | O66: =+N65*$E$66 ->  | Q66: =+P65*$E$66 ->  | S66: =+R65*$E$66 -> 0
C67: =title223 -> Subtotal | G67: =+G66+F65 -> 0 | I67: =+I66+H65 -> 0 | K67: =+K66+J65 -> 0 | M67: =+M66+L65 -> 0 | O67: =+O66+N65 ->  | Q67: =+Q66+P65 ->  | S67: =+S66+R65 -> 0
C69: =title119 -> Other costs | D69: =title69 -> Unit | E69: =title285 -> Rate (%) | F69: =title288 -> Specific | G69: Total | H69: =title288 -> Specific | I69: Total | J69: =title288 -> Specific | K69: Total | L69: =title288 -> Specific | M69: Total | N69: =title288 -> Specific | O69: Total | P69: =title288 -> Specific | Q69: Total | R69: =title288 -> Specific | S69: Total
F70: =title285 -> Rate (%) | G70: ="("&title103&")" -> (USD/year) | H70: =title285 -> Rate (%) | I70: ="("&title103&")" -> (USD/year) | J70: =title285 -> Rate (%) | K70: ="("&title103&")" -> (USD/year) | L70: =title285 -> Rate (%) | M70: ="("&title103&")" -> (USD/year) | N70: =title285 -> Rate (%) | O70: ="("&title103&")" -> (USD/year) | P70: =title285 -> Rate (%) | Q70: ="("&title103&")" -> (USD/year) | R70: =title285 -> Rate (%) | S70: ="("&title103&")" -> (USD/year)
C71: =title269 -> Plant overhead | D71: USD | F71: 0 | G71: =+(G44+G45+G66)*F71 -> 0 | H71: 0 | I71: =+(I44+I45+I66)*H71 -> 0 | J71: 0 | K71: =+(K44+K45+K66)*J71 -> 0 | L71: =+'Data Entry Needs'!$I$48 -> 0 | M71: =+(M44+M45+M66)*L71 -> 0 | N71: =+'Data Entry Needs'!$I$48 -> 0 | O71: =+(O44+O45+O66)*N71 ->  | P71: =+'Data Entry Needs'!$I$48 -> 0 | Q71: =+(Q44+Q45+Q66)*P71 ->  | R71: =+'Data Entry Needs'!$I$48 -> 0 | S71: =+(S44+S45+S66)*R71 -> 0
C72: =title270 -> General and administrative cost | D72: USD | F72: 0 | G72: =+(G40+G46+G71+G66)*F72 -> 0 | H72: 0 | I72: =+(I40+I46+I71+I66)*H72 -> 0 | J72: 0 | K72: =+(K40+K46+K71+K66)*J72 -> 0 | L72: =+'Data Entry Needs'!$D$49 -> 0 | M72: =+(M40+M46+M71+M66)*L72 -> 0 | N72: =+'Data Entry Needs'!$D$49 -> 0 | O72: =+(O40+O46+O71+O66)*N72 ->  | P72: =+'Data Entry Needs'!$D$49 -> 0 | Q72: =+(Q40+Q46+Q71+Q66)*P72 ->  | R72: =+'Data Entry Needs'!$D$49 -> 0 | S72: =+(S40+S46+S71+S66)*R72 -> 0
C73: =title271 -> Loan interest | D73: USD | F73: =+'Data Entry Needs'!$D$59 -> 0 | G73: =-G99 -> 0 | H73: =+'Data Entry Needs'!$D$59 -> 0 | I73: =-I99 -> 0 | J73: =+'Data Entry Needs'!$D$59 -> 0 | K73: =-K99 -> 0 | L73: =+'Data Entry Needs'!$D$59 -> 0 | M73: =-M99 -> 0 | N73: =+'Data Entry Needs'!$D$59 -> 0 | O73: =-O99 ->  | P73: =+'Data Entry Needs'!$D$59 -> 0 | Q73: =-Q99 ->  | R73: =+'Data Entry Needs'!$D$59 -> 0 | S73: =-S99 -> 0
C74: =title223 -> Subtotal | G74: =SUM(G71:G73) -> 0 | I74: =SUM(I71:I73) -> 0 | K74: =SUM(K71:K73) -> 0 | M74: =SUM(M71:M73) -> 0 | O74: =SUM(O71:O73) ->  | Q74: =SUM(Q71:Q73) ->  | S74: =SUM(S71:S73) -> 0
F76: Total | G76: =title290 -> Share (%) | H76: Total | I76: =title290 -> Share (%) | J76: Total | K76: =title290 -> Share (%) | L76: Total | M76: =title290 -> Share (%) | N76: Total | O76: =title290 -> Share (%) | P76: Total | Q76: =title290 -> Share (%) | R76: Total | S76: =title290 -> Share (%)
F77: ="("&title103&")" -> (USD/year) | H77: ="("&title103&")" -> (USD/year) | J77: ="("&title103&")" -> (USD/year) | L77: ="("&title103&")" -> (USD/year) | N77: ="("&title103&")" -> (USD/year) | P77: ="("&title103&")" -> (USD/year) | R77: ="("&title103&")" -> (USD/year)
C78: =title272 -> Total operating costs | F78: =+G40+G46+G52+G58 ->  | G78: =+F78/F$81 ->  | H78: =+I40+I46+I52+I58 ->  | I78: =+H78/H$81 ->  | J78: =+K40+K46+K52+K58 ->  | K78: =+J78/J$81 ->  | L78: =+M40+M46+M52+M58 -> 0 | M78: =+L78/L$81 ->  | N78: =+O40+O46+O52+O58 ->  | O78: =+N78/N$81 ->  | P78: =+Q40+Q46+Q52+Q58 ->  | Q78: =+P78/P$81 ->  | R78: =+S40+S46+S52+S58 ->  | S78: =+R78/R$81 -> 
C79: =title273 -> Total fixed costs | F79: =+G67 -> 0 | G79: =+F79/F$81 ->  | H79: =+I67 -> 0 | I79: =+H79/H$81 ->  | J79: =+K67 -> 0 | K79: =+J79/J$81 ->  | L79: =+M67 -> 0 | M79: =+L79/L$81 ->  | N79: =+O67 ->  | O79: =+N79/N$81 ->  | P79: =+Q67 ->  | Q79: =+P79/P$81 ->  | R79: =+S67 -> 0 | S79: =+R79/R$81 -> 
C80: =title274 -> Total other costs | F80: =+G74 -> 0 | G80: =+F80/F$81 ->  | H80: =+I74 -> 0 | I80: =+H80/H$81 ->  | J80: =+K74 -> 0 | K80: =+J80/J$81 ->  | L80: =+M74 -> 0 | M80: =+L80/L$81 ->  | N80: =+O74 ->  | O80: =+N80/N$81 ->  | P80: =+Q74 ->  | Q80: =+P80/P$81 ->  | R80: =+S74 -> 0 | S80: =+R80/R$81 -> 
C81: =title275 -> Total production costs | F81: =SUM(F78:F80) ->  | H81: =SUM(H78:H80) ->  | J81: =SUM(J78:J80) ->  | L81: =SUM(L78:L80) -> 0 | N81: =SUM(N78:N80) ->  | P81: =SUM(P78:P80) ->  | R81: =SUM(R78:R80) -> 
F83: =title291 -> Capacities (t charcoal/year)
F84: =F24 -> 6.57 | H84: =H24 -> 49.713 | J84: =J24 -> 66.284 | L84: =L24 -> 182.5 | N84: =N24 -> 203 | P84: =P24 -> 305.0666667 | R84: =R24 -> 383.25
F85: =title126 -> Oil drum | H85: Casamance | J85: =title127 -> Improved pit Liberia | L85: =title128 -> Portable steel kiln | N85: =title129 -> Standard Beehive | P85: Missouri | R85: =title130 -> Somalia mound
C86: =title276 -> Unit cost of charcoal + transport (USD/kg of charcoal) | F86: =F81/(F24*1000) ->  | H86: =H81/(H24*1000) ->  | J86: =J81/(J24*1000) ->  | L86: =L81/(L24*1000) -> 0 | N86: =N81/(N24*1000) ->  | P86: =P81/(P24*1000) ->  | R86: =R81/(R24*1000) -> 
C89: =title277 -> Average loan interest | D89: =title69 -> Unit | E89: =title192 -> Loan ratio (%) | F89: =title126 -> Oil drum | H89: Casamance | J89: =title127 -> Improved pit Liberia | L89: =title128 -> Portable steel kiln | N89: =title129 -> Standard Beehive | P89: Missouri | R89: =title130 -> Somalia mound
F90: =title289 -> Total investment | G90: =title278 -> Loan amount | H90: =title289 -> Total investment | I90: =title278 -> Loan amount | J90: =title289 -> Total investment | K90: =title278 -> Loan amount | L90: =title289 -> Total investment | M90: =title278 -> Loan amount | N90: =title289 -> Total investment | O90: =title278 -> Loan amount | P90: =title289 -> Total investment | Q90: =title278 -> Loan amount | R90: =title289 -> Total investment | S90: =title278 -> Loan amount
F91: (USD) | G91: (USD) | H91: (USD) | I91: (USD) | J91: (USD) | K91: (USD) | L91: (USD) | M91: (USD) | N91: (USD) | O91: (USD) | P91: (USD) | Q91: (USD) | R91: (USD) | S91: (USD)
C92: =title278 -> Loan amount | D92: USD | E92: =+'Data Entry Needs'!$D$58 -> 0 | F92: =+F65*3 -> 0 | G92: =$E$92*F92 -> 0 | H92: =H65*3 -> 0 | I92: =$E$92*H92 -> 0 | J92: =J65*3 -> 0 | K92: =$E$92*J92 -> 0 | L92: =L65*6 -> 0 | M92: =$E$92*L92 -> 0 | N92: =N65*6 ->  | O92: =$E$92*N92 ->  | P92: =P65*6 ->  | Q92: =$E$92*P92 ->  | R92: =R65*6 -> 0 | S92: =$E$92*R92 -> 0
C93: =title279 -> Loan interest rate | D93: % | G93: =+'Data Entry Needs'!$D$59 -> 0 | I93: =+'Data Entry Needs'!$D$59 -> 0 | K93: =+'Data Entry Needs'!$D$59 -> 0 | M93: =+'Data Entry Needs'!$D$59 -> 0 | O93: =+'Data Entry Needs'!$D$59 -> 0 | Q93: =+'Data Entry Needs'!$D$59 -> 0 | S93: =+'Data Entry Needs'!$D$59 -> 0
C94: Loan payment | D94: USD/month | G94: =PMT(G93,G96,G92,0) -> 0 | I94: =PMT(I93,I96,I92,0) -> 0 | K94: =PMT(K93,K96,K92,0) -> 0 | M94: =PMT(M93,M96,M92,0) -> 0 | O94: =PMT(O93,O96,O92,0) ->  | Q94: =PMT(Q93,Q96,Q92,0) ->  | S94: =PMT(S93,S96,S92,0) -> 0
C95: =title280 -> Annual loan payment | D95: =title103 -> USD/year | G95: =G94 -> 0 | I95: =I94 -> 0 | K95: =K94 -> 0 | M95: =M94 -> 0 | O95: =O94 ->  | Q95: =Q94 ->  | S95: =S94 -> 0
C96: =title281 -> Loan terms | D96: year | G96: =+Investment!G18 -> 3 | I96: =+Investment!I18 -> 3 | K96: =+Investment!K18 -> 3 | M96: 6 | O96: 6 | Q96: 6 | S96: 6
C97: =title282 -> Total loan payment | D97: USD | G97: =G95*G96 -> 0 | I97: =I95*I96 -> 0 | K97: =K95*K96 -> 0 | M97: =M95*M96 -> 0 | O97: =O95*O96 ->  | Q97: =Q95*Q96 ->  | S97: =S95*S96 -> 0
C98: =title271 -> Loan interest | D98: USD | G98: =G97+G92 -> 0 | I98: =I97+I92 -> 0 | K98: =K97+K92 -> 0 | M98: =M97+M92 -> 0 | O98: =O97+O92 ->  | Q98: =Q97+Q92 ->  | S98: =S97+S92 -> 0
C99: =title277 -> Average loan interest | D99: =title103 -> USD/year | G99: =+G98/G96 -> 0 | I99: =+I98/I96 -> 0 | K99: =+K98/K96 -> 0 | M99: =+M98/M96 -> 0 | O99: =+O98/O96 ->  | Q99: =+Q98/Q96 ->  | S99: =+S98/S96 -> 0

Sheet COST_RES2
C3: =+UPPER(title238&'Data Entry Needs'!E11) -> PROCESSING COSTS FOR CHARCOAL PRODUCTION FROM PLEASE SELECT
C6: =title134 -> Use white cells to input data | D6: =title135 -> Grey cells are used for calculations
C8: =title239 -> Summary of Feedstock and Storage
C10: =title137 -> Feedstock | E10: =+'Data Entry Needs'!$E$11 -> Please Select
C11: =title138 -> Feedstock available (t/year) | E11: ='Data Entry Needs'!E12 -> 0
C12: =title139 -> Biomass density (t/m3) | E12: ='Data Entry Needs'!E13 -> 0
C13: =title141 -> Feedstock storage cost (USD/t) | E13: =+'Data Entry Needs'!$E$18 -> 0
C14: =title240 -> Drying time required (days/month) | E14: =+'Data Entry Needs'!E19 -> 0
C15: =title241 -> Safety stock rate | E15: =+'Data Entry Needs'!E20 -> 0
C16: =title140 -> Feedstock price (USD/t) | E16: =IF('Data Entry Needs'!$E$16=title147,'Data Entry Needs'!$E$17,'Data Entry Needs'!$E$16) -> 0
C19: FALSE
C20: =title242 -> Summary of Technologies Analyzed
C22: =title243 -> Charcoal kiln technology | F22: =title126 -> Oil drum | H22: Casamance | J22: =title127 -> Improved pit Liberia | L22: =title128 -> Portable steel kiln | N22: =title129 -> Standard Beehive | P22: Missouri | R22: =title130 -> Somalia mound
C23: =title244 -> Operating hours per year | D23: =title248 -> h/year | F23: ='Data Entry Needs'!$J$12*'Data Entry Needs'!$K$12 -> 0 | H23: ='Data Entry Needs'!$J$13*'Data Entry Needs'!$K$13 -> 0 | J23: ='Data Entry Needs'!$J$14*'Data Entry Needs'!$K$14 -> 0 | L23: ='Data Entry Needs'!$J$16*'Data Entry Needs'!$K$16 -> 0 | N23: ='Data Entry Needs'!$J$17*'Data Entry Needs'!$K$17 -> 0 | P23: ='Data Entry Needs'!$J$19*'Data Entry Needs'!$K$19 -> 0 | R23: ='Data Entry Needs'!$J$20*'Data Entry Needs'!$K$20 -> 0
C24: =title245 -> Annual production | D24: =title249 -> t/year | F24: 6.57 | H24: 49.713 | J24: 66.284 | L24: 182.5 | N24: 203 | P24: 305.0666667 | R24: 383.25
C25: =title246 -> Maximum technology efficiency | F25: ='Kiln cost'!M28 -> 0.2 | H25: 0.3 | J25: 0.3 | L25: ='Kiln cost'!$M$13 -> 0.25 | N25: 0.33 | P25: 0.33 | R25: 0.42
C26: =title247 -> Transportation distance | D26: km | E26: =title250 -> Field -> Factory | G26: =title252 -> Centralized | I26: =title252 -> Centralized | K26: =title252 -> Centralized | L26: 10 | M26: =title254 -> Not Required | O26: =title252 -> Centralized | Q26: =title252 -> Centralized | S26: =title252 -> Centralized
C27: =title247 -> Transportation distance | D27: km | E27: =title251 -> Factory -> Market | G27: =title253 -> Mobile | I27: =title252 -> Centralized | K27: =title252 -> Centralized | M27: =title253 -> Mobile | O27: =title252 -> Centralized | Q27: =title252 -> Centralized | S27: =title252 -> Centralized
C32: =title255 -> Production Cost Details
F34: =title291 -> Capacities (t charcoal/year)
F35: =+F24 -> 6.57 | H35: =+H24 -> 49.713 | J35: =+J24 -> 66.284 | L35: =+L24 -> 182.5 | N35: =+N24 -> 203 | P35: =+P24 -> 305.0666667 | R35: =+R24 -> 383.25
C37: =title256 -> Inputs | D37: =title69 -> Unit | E37: =title284 -> Unit Price | F37: =title219 -> Quantity | G37: Total | H37: =title219 -> Quantity | I37: Total | J37: =title219 -> Quantity | K37: Total | L37: =title219 -> Quantity | M37: Total | N37: =title219 -> Quantity | O37: Total | P37: =title219 -> Quantity | Q37: Total | R37: =title219 -> Quantity | S37: Total
E38: ="("&title80&")" -> (USD/unit) | F38: =title286 -> (Unit/year) | G38: ="("&title103&")" -> (USD/year) | H38: =title286 -> (Unit/year) | I38: ="("&title103&")" -> (USD/year) | J38: =title286 -> (Unit/year) | K38: ="("&title103&")" -> (USD/year) | L38: =title286 -> (Unit/year) | M38: ="("&title103&")" -> (USD/year) | N38: =title286 -> (Unit/year) | O38: ="("&title103&")" -> (USD/year) | P38: =title286 -> (Unit/year) | Q38: ="("&title103&")" -> (USD/year) | R38: =title286 -> (Unit/year) | S38: ="("&title103&")" -> (USD/year)
C39: =title137 -> Feedstock | D39: t | E39: =+$E$16 -> 0 | F39: =F24/F25 -> 32.85 | G39: =+F39*$E$39 -> 0 | H39: =H24/H25 -> 165.71 | I39: =+H39*$E$39 -> 0 | J39: =J24/J25 -> 220.9466667 | K39: =+J39*$E$39 -> 0 | L39: =L24/L25 -> 730 | M39: =+L39*$E$39 -> 0 | N39: =N24/N25 -> 615.1515152 | O39: =+N39*$E$39 -> 0 | P39: =P24/P25 -> 924.4444444 | Q39: =+P39*$E$39 -> 0 | R39: =R24/R25 -> 912.5 | S39: =+R39*$E$39 -> 0
C40: =title223 -> Subtotal | G40: =SUM(G39) -> 0 | I40: =SUM(I39) -> 0 | K40: =SUM(K39) -> 0 | M40: =SUM(M39) -> 0 | O40: =SUM(O39) -> 0 | Q40: =SUM(Q39) -> 0 | S40: =SUM(S39) -> 0
C42: =title257 -> Labour and miscellaneous costs | D42: =title69 -> Unit | E42: =title284 -> Unit Price | F42: =title219 -> Quantity | G42: Total | H42: =title219 -> Quantity | I42: Total | J42: =title219 -> Quantity | K42: Total | L42: =title219 -> Quantity | M42: Total | N42: =title219 -> Quantity | O42: Total | P42: =title219 -> Quantity | Q42: Total | R42: =title219 -> Quantity | S42: Total
E43: ="("&title194&")" -> (USD/person-hour) | F43: ="("&title69&")" -> (Unit) | G43: ="("&title103&")" -> (USD/year) | H43: ="("&title69&")" -> (Unit) | I43: ="("&title103&")" -> (USD/year) | J43: ="("&title69&")" -> (Unit) | K43: ="("&title103&")" -> (USD/year) | L43: ="("&title69&")" -> (Unit) | M43: ="("&title103&")" -> (USD/year) | N43: ="("&title69&")" -> (Unit) | O43: ="("&title103&")" -> (USD/year) | P43: ="("&title69&")" -> (Unit) | Q43: ="("&title103&")" -> (USD/year) | R43: ="("&title69&")" -> (Unit) | S43: ="("&title103&")" -> (USD/year)
C44: =title178 -> Unskilled worker | D44: # employee | E44: =+'Data Entry Needs'!$D$35 -> 0 | F44: 1 | G44: =+$E44*F44*F23 -> 0 | H44: 1 | I44: =E44*H44*$H$23 -> 0 | J44: 2 | K44: =+$E44*J44*J23 -> 0 | L44: 2 | M44: =+$E44*L44*L23 -> 0 | N44: 2 | O44: =+$E44*N44*N23 -> 0 | P44: 2 | Q44: =+$E44*P44*P23 -> 0 | R44: 14 | S44: =+E44*R44*R23 -> 0
C45: =title197 -> Skilled worker | D45: # employee | E45: =+'Data Entry Needs'!$I$35 -> 0 | F45: 0 | G45: =+$E45*F45*F23 -> 0 | H45: 1 | I45: =E45*H45*$H$23 -> 0 | J45: 0 | K45: =+$E45*J45*J23 -> 0 | L45: 0 | M45: =+$E45*L45*L23 -> 0 | N45: 1 | O45: =+$E45*N45*N23 -> 0 | P45: 1 | Q45: =+$E45*P45*P23 -> 0 | R45: 1 | S45: =+E45*R45*R23 -> 0
C46: =title223 -> Subtotal | G46: =SUM(G44:G45) -> 0 | I46: =SUM(I44:I45) -> 0 | K46: =SUM(K44:K45) -> 0 | M46: =SUM(M44:M45) -> 0 | O46: =SUM(O44:O45) -> 0 | Q46: =SUM(Q44:Q45) -> 0 | S46: =SUM(S44:S45) -> 0
C48: =title258 -> Transport of feedstock | D48: =title69 -> Unit | E48: =title284 -> Unit Price | F48: =title219 -> Quantity | G48: Total | H48: =title219 -> Quantity | I48: Total | J48: =title219 -> Quantity | K48: Total | L48: =title219 -> Quantity | M48: Total | N48: =title219 -> Quantity | O48: Total | P48: =title219 -> Quantity | Q48: Total | R48: =title219 -> Quantity | S48: Total
E49: (USD/t/km) | F49: ="("&title69&")" -> (Unit) | G49: ="("&title103&")" -> (USD/year) | H49: ="("&title69&")" -> (Unit) | I49: ="("&title103&")" -> (USD/year) | J49: ="("&title69&")" -> (Unit) | K49: ="("&title103&")" -> (USD/year) | L49: ="("&title69&")" -> (Unit) | M49: ="("&title103&")" -> (USD/year) | N49: ="("&title69&")" -> (Unit) | O49: ="("&title103&")" -> (USD/year) | P49: ="("&title69&")" -> (Unit) | Q49: ="("&title103&")" -> (USD/year) | R49: ="("&title69&")" -> (Unit) | S49: ="("&title103&")" -> (USD/year)
C50: =title259 -> Feedstock (farm to plant) | D50: km | E50: ='Data Entry Needs'!D42 -> 0 | F50: =+F26 -> 0 | G50: =+F50*$E50*F$39 -> 0 | H50: =+H26 -> 0 | I50: =E50*H50*H39 -> 0 | J50: =+J26 -> 0 | K50: =+J50*$E50*J$39 -> 0 | L50: =+L26 -> 10 | M50: =+L50*$E50*L$39 -> 0 | N50: =+N26 -> 0 | O50: =+N50*$E50*N$39 -> 0 | P50: =+P26 -> 0 | Q50: =+P50*$E50*P$39 -> 0 | R50: =+R26 -> 0 | S50: =+R50*E50*R39 -> 0
C51: =title260 -> Charcoal (plant to market) | D51: km | E51: =+'Data Entry Needs'!$I$42 -> 0 | F51: =+F27 -> 0 | G51: =+F51*$E51*F24 -> 0 | H51: =+H27 -> 0 | I51: =E51*H51*H24 -> 0 | J51: =+J27 -> 0 | K51: =+J51*$E51*J$24 -> 0 | L51: =+L27 -> 0 | M51: =+L51*$E51*L$24 -> 0 | N51: =+N27 -> 0 | O51: =+N51*$E51*N$24 -> 0 | P51: =+P27 -> 0 | Q51: =+P51*$E51*P$24 -> 0 | R51: =+R27 -> 0 | S51: =+R51*E51*R24 -> 0
C52: =title223 -> Subtotal | G52: =SUM(G50:G51) -> 0 | I52: =SUM(I50:I51) -> 0 | K52: =SUM(K50:K51) -> 0 | M52: =SUM(M50:M51) -> 0 | O52: =SUM(O50:O51) -> 0 | Q52: =SUM(Q50:Q51) -> 0 | S52: =SUM(S50:S51) -> 0
C54: =title261 -> Storage | D54: =title69 -> Unit | E54: =title284 -> Unit Price | F54: =title219 -> Quantity | G54: Total | H54: =title219 -> Quantity | I54: Total | J54: =title219 -> Quantity | K54: Total | L54: =title219 -> Quantity | M54: Total | N54: =title219 -> Quantity | O54: Total | P54: =title219 -> Quantity | Q54: Total | R54: =title219 -> Quantity | S54: Total
E55: (USD/t) | F55: ="("&title69&")" -> (Unit) | G55: ="("&title103&")" -> (USD/year) | H55: ="("&title69&")" -> (Unit) | I55: ="("&title103&")" -> (USD/year) | J55: ="("&title69&")" -> (Unit) | K55: ="("&title103&")" -> (USD/year) | L55: ="("&title69&")" -> (Unit) | M55: ="("&title103&")" -> (USD/year) | N55: ="("&title69&")" -> (Unit) | O55: ="("&title103&")" -> (USD/year) | P55: ="("&title69&")" -> (Unit) | Q55: ="("&title103&")" -> (USD/year) | R55: ="("&title69&")" -> (Unit) | S55: ="("&title103&")" -> (USD/year)
C56: =title137 -> Feedstock | D56: =title249 -> t/year | E56: =+'Data Entry Needs'!$D$18 -> 0 | F56: =+(F24*8/F23)*(1+$E$15)*$E$14*12 ->  | G56: =F56*E56 ->  | H56: =+(H24*8/H23)*(1+$E$15)*$E$14*12 ->  | I56: =E56*H56 ->  | J56: =+(J24*8/J23)*(1+$E$15)*$E$14*12 ->  | K56: =J56*E56 ->  | L56: 0 | M56: =E56*L56 -> 0 | N56: =+(N24*8/N23)*(1+$E$15)*$E$14*12 ->  | O56: =E56*N56 ->  | P56: =+(P24*8/P23)*(1+$E$15)*$E$14*12 ->  | Q56: =E56*P56 ->  | R56: =+(R24*8/R23)*(1+$E$15)*$E$14*12 ->  | S56: =+E56*R56 -> 
C57: =title262 -> Charcoal products | D57: =title249 -> t/year | E57: =+'Data Entry Needs'!$D$45 -> 0 | F57: =+F24*10% -> 0.657 | G57: =F57*E57 -> 0 | H57: =+H24*10% -> 4.9713 | I57: =E57*H57 -> 0 | J57: =+J24*10% -> 6.6284 | K57: =J57*E57 -> 0 | L57: =+L24*$E$15 -> 0 | M57: =E57*L57 -> 0 | N57: =+N24*$E$15 -> 0 | O57: =E57*N57 -> 0 | P57: =+P24*$E$15 -> 0 | Q57: =E57*P57 -> 0 | R57: =+R24*$E$15 -> 0 | S57: =+E57*R57 -> 0
C58: =title223 -> Subtotal | G58: =SUM(G56:G57) ->  | I58: =SUM(I56:I57) ->  | K58: =SUM(K56:K57) ->  | M58: =SUM(M56:M57) -> 0 | O58: =SUM(O56:O57) ->  | Q58: =SUM(Q56:Q57) ->  | S58: =SUM(S56:S57) -> 
C60: =title263 -> Investment | D60: =title69 -> Unit | F60: =title287 -> Depreciation | H60: =title287 -> Depreciation | J60: =title287 -> Depreciation | L60: =title287 -> Depreciation | N60: =title287 -> Depreciation | P60: =title287 -> Depreciation | R60: =title287 -> Depreciation
F61: ="("&title103&")" -> (USD/year) | H61: ="("&title103&")" -> (USD/year) | J61: ="("&title103&")" -> (USD/year) | L61: ="("&title103&")" -> (USD/year) | N61: ="("&title103&")" -> (USD/year) | P61: ="("&title103&")" -> (USD/year) | R61: ="("&title103&")" -> (USD/year)
C62: =title264 -> Equipment | D62: =title103 -> USD/year | F62: =+Investment!G14/Investment!$G$18 -> 0 | H62: =+Investment!I14/Investment!$I$18 -> 0 | J62: =+Investment!K14/Investment!$K$18 -> 0 | L62: =+Investment!M14/Investment!$M$18 -> 0 | N62: =+Investment!O14/Investment!$O$18 ->  | P62: =+Investment!Q14/Investment!$Q$18 ->  | R62: =+Investment!S14/Investment!$S$18 -> 0
C63: =title265 -> Building | D63: =title103 -> USD/year | F63: =+Investment!G15/Investment!$G$18 -> 0 | H63: =+Investment!I15/Investment!$I$18 -> 0 | J63: =+Investment!K15/Investment!$K$18 -> 0 | L63: =+Investment!M15/Investment!$M$18 -> 0 | N63: =+Investment!O15/Investment!$O$18 ->  | P63: =+Investment!Q15/Investment!$Q$18 ->  | R63: =+Investment!S15/Investment!$S$18 -> 0
C64: =title266 -> Installation | D64: =title103 -> USD/year | F64: =+Investment!G16/Investment!$G$18 -> 0 | H64: =+Investment!I16/Investment!$I$18 -> 0 | J64: =+Investment!K16/Investment!$K$18 -> 0 | L64: =+Investment!M16/Investment!$M$18 -> 0 | N64: =+Investment!O16/Investment!$O$18 ->  | P64: =+Investment!Q16/Investment!$Q$18 ->  | R64: =+Investment!S16/Investment!$S$18 -> 0
C65: =title267 -> Total investment depreciation | F65: =SUM(F62:F64) -> 0 | H65: =SUM(H62:H64) -> 0 | J65: =SUM(J62:J64) -> 0 | L65: =SUM(L62:L64) -> 0 | N65: =SUM(N62:N64) ->  | P65: =SUM(P62:P64) ->  | R65: =SUM(R62:R64) -> 0
C66: =title268 -> Maintenance cost | E66: =+'Data Entry Needs'!$I$49 -> 0 | G66: =+F65*$E$66 -> 0 | I66: =+H65*$E$66 -> 0 | K66: =+J65*$E$66 -> 0 | M66: =+L65*$E$66 -> 0 | O66: =+N65*$E$66 ->  | Q66: =+P65*$E$66 ->  | S66: =+R65*$E$66 -> 0
C67: =title223 -> Subtotal | G67: =+G66+F65 -> 0 | I67: =+I66+H65 -> 0 | K67: =+K66+J65 -> 0 | M67: =+M66+L65 -> 0 | O67: =+O66+N65 ->  | Q67: =+Q66+P65 ->  | S67: =+S66+R65 -> 0
C69: =title119 -> Other costs | D69: =title69 -> Unit | E69: =title285 -> Rate (%) | F69: =title288 -> Specific | G69: Total | H69: =title288 -> Specific | I69: Total | J69: =title288 -> Specific | K69: Total | L69: =title288 -> Specific | M69: Total | N69: =title288 -> Specific | O69: Total | P69: =title288 -> Specific | Q69: Total | R69: =title288 -> Specific | S69: Total
F70: =title285 -> Rate (%) | G70: ="("&title103&")" -> (USD/year) | H70: =title285 -> Rate (%) | I70: ="("&title103&")" -> (USD/year) | J70: =title285 -> Rate (%) | K70: ="("&title103&")" -> (USD/year) | L70: =title285 -> Rate (%) | M70: ="("&title103&")" -> (USD/year) | N70: =title285 -> Rate (%) | O70: ="("&title103&")" -> (USD/year) | P70: =title285 -> Rate (%) | Q70: ="("&title103&")" -> (USD/year) | R70: =title285 -> Rate (%) | S70: ="("&title103&")" -> (USD/year)
C71: =title269 -> Plant overhead | D71: USD | F71: 0 | G71: =+(G44+G45+G66)*F71 -> 0 | H71: 0 | I71: =+(I44+I45+I66)*H71 -> 0 | J71: 0 | K71: =+(K44+K45+K66)*J71 -> 0 | L71: =+'Data Entry Needs'!$I$48 -> 0 | M71: =+(M44+M45+M66)*L71 -> 0 | N71: =+'Data Entry Needs'!$I$48 -> 0 | O71: =+(O44+O45+O66)*N71 ->  | P71: =+'Data Entry Needs'!$I$48 -> 0 | Q71: =+(Q44+Q45+Q66)*P71 ->  | R71: =+'Data Entry Needs'!$I$48 -> 0 | S71: =+(S44+S45+S66)*R71 -> 0
C72: =title270 -> General and administrative cost | D72: USD | F72: 0 | G72: =+(G40+G46+G71+G66)*F72 -> 0 | H72: 0 | I72: =+(I40+I46+I71+I66)*H72 -> 0 | J72: 0 | K72: =+(K40+K46+K71+K66)*J72 -> 0 | L72: =+'Data Entry Needs'!$D$49 -> 0 | M72: =+(M40+M46+M71+M66)*L72 -> 0 | N72: =+'Data Entry Needs'!$D$49 -> 0 | O72: =+(O40+O46+O71+O66)*N72 ->  | P72: =+'Data Entry Needs'!$D$49 -> 0 | Q72: =+(Q40+Q46+Q71+Q66)*P72 ->  | R72: =+'Data Entry Needs'!$D$49 -> 0 | S72: =+(S40+S46+S71+S66)*R72 -> 0
C73: =title271 -> Loan interest | D73: USD | F73: =+'Data Entry Needs'!$D$59 -> 0 | G73: =-G99 -> 0 | H73: =+'Data Entry Needs'!$D$59 -> 0 | I73: =-I99 -> 0 | J73: =+'Data Entry Needs'!$D$59 -> 0 | K73: =-K99 -> 0 | L73: =+'Data Entry Needs'!$D$59 -> 0 | M73: =-M99 -> 0 | N73: =+'Data Entry Needs'!$D$59 -> 0 | O73: =-O99 ->  | P73: =+'Data Entry Needs'!$D$59 -> 0 | Q73: =-Q99 ->  | R73: =+'Data Entry Needs'!$D$59 -> 0 | S73: =-S99 -> 0
C74: =title223 -> Subtotal | G74: =SUM(G71:G73) -> 0 | I74: =SUM(I71:I73) -> 0 | K74: =SUM(K71:K73) -> 0 | M74: =SUM(M71:M73) -> 0 | O74: =SUM(O71:O73) ->  | Q74: =SUM(Q71:Q73) ->  | S74: =SUM(S71:S73) -> 0
F76: Total | G76: =title290 -> Share (%) | H76: Total | I76: =title290 -> Share (%) | J76: Total | K76: =title290 -> Share (%) | L76: Total | M76: =title290 -> Share (%) | N76: Total | O76: =title290 -> Share (%) | P76: Total | Q76: =title290 -> Share (%) | R76: Total | S76: =title290 -> Share (%)
F77: ="("&title103&")" -> (USD/year) | H77: ="("&title103&")" -> (USD/year) | J77: ="("&title103&")" -> (USD/year) | L77: ="("&title103&")" -> (USD/year) | N77: ="("&title103&")" -> (USD/year) | P77: ="("&title103&")" -> (USD/year) | R77: ="("&title103&")" -> (USD/year)
C78: =title272 -> Total operating costs | F78: =+G40+G46+G52+G58 ->  | G78: =+F78/F$81 ->  | H78: =+I40+I46+I52+I58 ->  | I78: =+H78/H$81 ->  | J78: =+K40+K46+K52+K58 ->  | K78: =+J78/J$81 ->  | L78: =+M40+M46+M52+M58 -> 0 | M78: =+L78/L$81 ->  | N78: =+O40+O46+O52+O58 ->  | O78: =+N78/N$81 ->  | P78: =+Q40+Q46+Q52+Q58 ->  | Q78: =+P78/P$81 ->  | R78: =+S40+S46+S52+S58 ->  | S78: =+R78/R$81 -> 
C79: =title273 -> Total fixed costs | F79: =+G67 -> 0 | G79: =+F79/F$81 ->  | H79: =+I67 -> 0 | I79: =+H79/H$81 ->  | J79: =+K67 -> 0 | K79: =+J79/J$81 ->  | L79: =+M67 -> 0 | M79: =+L79/L$81 ->  | N79: =+O67 ->  | O79: =+N79/N$81 ->  | P79: =+Q67 ->  | Q79: =+P79/P$81 ->  | R79: =+S67 -> 0 | S79: =+R79/R$81 -> 
C80: =title274 -> Total other costs | F80: =+G74 -> 0 | G80: =+F80/F$81 ->  | H80: =+I74 -> 0 | I80: =+H80/H$81 ->  | J80: =+K74 -> 0 | K80: =+J80/J$81 ->  | L80: =+M74 -> 0 | M80: =+L80/L$81 ->  | N80: =+O74 ->  | O80: =+N80/N$81 ->  | P80: =+Q74 ->  | Q80: =+P80/P$81 ->  | R80: =+S74 -> 0 | S80: =+R80/R$81 -> 
C81: =title275 -> Total production costs | F81: =SUM(F78:F80) ->  | H81: =SUM(H78:H80) ->  | J81: =SUM(J78:J80) ->  | L81: =SUM(L78:L80) -> 0 | N81: =SUM(N78:N80) ->  | P81: =SUM(P78:P80) ->  | R81: =SUM(R78:R80) -> 
F83: =title291 -> Capacities (t charcoal/year)
F84: =F24 -> 6.57 | H84: =H24 -> 49.713 | J84: =J24 -> 66.284 | L84: =L24 -> 182.5 | N84: =N24 -> 203 | P84: =P24 -> 305.0666667 | R84: =R24 -> 383.25
F85: =title126 -> Oil drum | H85: Casamance | J85: =title127 -> Improved pit Liberia | L85: =title128 -> Portable steel kiln | N85: =title129 -> Standard Beehive | P85: Missouri | R85: =title130 -> Somalia mound
C86: =title276 -> Unit cost of charcoal + transport (USD/kg of charcoal) | F86: =F81/(F24*1000) ->  | H86: =H81/(H24*1000) ->  | J86: =J81/(J24*1000) ->  | L86: =L81/(L24*1000) -> 0 | N86: =N81/(N24*1000) ->  | P86: =P81/(P24*1000) ->  | R86: =R81/(R24*1000) -> 
C89: =title277 -> Average loan interest | D89: =title69 -> Unit | E89: =title192 -> Loan ratio (%) | F89: =title126 -> Oil drum | H89: Casamance | J89: =title127 -> Improved pit Liberia | L89: =title128 -> Portable steel kiln | N89: =title129 -> Standard Beehive | P89: Missouri | R89: =title130 -> Somalia mound
F90: =title289 -> Total investment | G90: =title278 -> Loan amount | H90: =title289 -> Total investment | I90: =title278 -> Loan amount | J90: =title289 -> Total investment | K90: =title278 -> Loan amount | L90: =title289 -> Total investment | M90: =title278 -> Loan amount | N90: =title289 -> Total investment | O90: =title278 -> Loan amount | P90: =title289 -> Total investment | Q90: =title278 -> Loan amount | R90: =title289 -> Total investment | S90: =title278 -> Loan amount
F91: (USD) | G91: (USD) | H91: (USD) | I91: (USD) | J91: (USD) | K91: (USD) | L91: (USD) | M91: (USD) | N91: (USD) | O91: (USD) | P91: (USD) | Q91: (USD) | R91: (USD) | S91: (USD)
C92: =title278 -> Loan amount | D92: USD | E92: =+'Data Entry Needs'!$D$58 -> 0 | F92: =+F65*3 -> 0 | G92: =$E$92*F92 -> 0 | H92: =H65*3 -> 0 | I92: =$E$92*H92 -> 0 | J92: =J65*3 -> 0 | K92: =$E$92*J92 -> 0 | L92: =L65*6 -> 0 | M92: =$E$92*L92 -> 0 | N92: =N65*6 ->  | O92: =$E$92*N92 ->  | P92: =P65*6 ->  | Q92: =$E$92*P92 ->  | R92: =R65*6 -> 0 | S92: =$E$92*R92 -> 0
C93: =title279 -> Loan interest rate | D93: % | G93: =+'Data Entry Needs'!$D$59 -> 0 | I93: =+'Data Entry Needs'!$D$59 -> 0 | K93: =+'Data Entry Needs'!$D$59 -> 0 | M93: =+'Data Entry Needs'!$D$59 -> 0 | O93: =+'Data Entry Needs'!$D$59 -> 0 | Q93: =+'Data Entry Needs'!$D$59 -> 0 | S93: =+'Data Entry Needs'!$D$59 -> 0
C94: Loan payment | D94: USD/month | G94: =PMT(G93,G96,G92,0) -> 0 | I94: =PMT(I93,I96,I92,0) -> 0 | K94: =PMT(K93,K96,K92,0) -> 0 | M94: =PMT(M93,M96,M92,0) -> 0 | O94: =PMT(O93,O96,O92,0) ->  | Q94: =PMT(Q93,Q96,Q92,0) ->  | S94: =PMT(S93,S96,S92,0) -> 0
C95: =title280 -> Annual loan payment | D95: =title103 -> USD/year | G95: =G94 -> 0 | I95: =I94 -> 0 | K95: =K94 -> 0 | M95: =M94 -> 0 | O95: =O94 ->  | Q95: =Q94 ->  | S95: =S94 -> 0
C96: =title281 -> Loan terms | D96: year | G96: =+Investment!G18 -> 3 | I96: =+Investment!I18 -> 3 | K96: =+Investment!K18 -> 3 | M96: 6 | O96: 6 | Q96: 6 | S96: 6
C97: =title282 -> Total loan payment | D97: USD | G97: =G95*G96 -> 0 | I97: =I95*I96 -> 0 | K97: =K95*K96 -> 0 | M97: =M95*M96 -> 0 | O97: =O95*O96 ->  | Q97: =Q95*Q96 ->  | S97: =S95*S96 -> 0
C98: =title271 -> Loan interest | D98: USD | G98: =G97+G92 -> 0 | I98: =I97+I92 -> 0 | K98: =K97+K92 -> 0 | M98: =M97+M92 -> 0 | O98: =O97+O92 ->  | Q98: =Q97+Q92 ->  | S98: =S97+S92 -> 0
C99: =title277 -> Average loan interest | D99: =title103 -> USD/year | G99: =+G98/G96 -> 0 | I99: =+I98/I96 -> 0 | K99: =+K98/K96 -> 0 | M99: =+M98/M96 -> 0 | O99: =+O98/O96 ->  | Q99: =+Q98/Q96 ->  | S99: =+S98/S96 -> 0

Sheet COST_RES3
C3: =+UPPER(title238&'Data Entry Needs'!F11) -> PROCESSING COSTS FOR CHARCOAL PRODUCTION FROM PLEASE SELECT
C6: =title134 -> Use white cells to input data | D6: =title135 -> Grey cells are used for calculations
C8: =title239 -> Summary of Feedstock and Storage
C10: =title137 -> Feedstock | E10: =+'Data Entry Needs'!$F$11 -> Please Select
C11: =title138 -> Feedstock available (t/year) | E11: ='Data Entry Needs'!F12 -> 0
C12: =title139 -> Biomass density (t/m3) | E12: ='Data Entry Needs'!F13 -> 0
C13: =title141 -> Feedstock storage cost (USD/t) | E13: =+'Data Entry Needs'!$F$18 -> 0
C14: =title240 -> Drying time required (days/month) | E14: =+'Data Entry Needs'!F19 -> 0
C15: =title241 -> Safety stock rate | E15: =+'Data Entry Needs'!F20 -> 0
C16: =title140 -> Feedstock price (USD/t) | E16: =IF('Data Entry Needs'!$F$16=title147,'Data Entry Needs'!$F$17,'Data Entry Needs'!$F$16) -> 0
C19: FALSE
C20: =title242 -> Summary of Technologies Analyzed
C22: =title243 -> Charcoal kiln technology | F22: =title126 -> Oil drum | H22: Casamance | J22: =title127 -> Improved pit Liberia | L22: =title128 -> Portable steel kiln | N22: =title129 -> Standard Beehive | P22: Missouri | R22: =title130 -> Somalia mound
C23: =title244 -> Operating hours per year | D23: =title248 -> h/year | F23: ='Data Entry Needs'!$J$12*'Data Entry Needs'!$K$12 -> 0 | H23: ='Data Entry Needs'!$J$13*'Data Entry Needs'!$K$13 -> 0 | J23: ='Data Entry Needs'!$J$14*'Data Entry Needs'!$K$14 -> 0 | L23: ='Data Entry Needs'!$J$16*'Data Entry Needs'!$K$16 -> 0 | N23: ='Data Entry Needs'!$J$17*'Data Entry Needs'!$K$17 -> 0 | P23: ='Data Entry Needs'!$J$19*'Data Entry Needs'!$K$19 -> 0 | R23: ='Data Entry Needs'!$J$20*'Data Entry Needs'!$K$20 -> 0
C24: =title245 -> Annual production | D24: =title249 -> t/year | F24: 6.57 | H24: 49.713 | J24: 66.284 | L24: 182.5 | N24: 203 | P24: 305.0666667 | R24: 383.25
C25: =title246 -> Maximum technology efficiency | F25: ='Kiln cost'!M28 -> 0.2 | H25: 0.3 | J25: 0.3 | L25: ='Kiln cost'!$M$13 -> 0.25 | N25: 0.33 | P25: 0.33 | R25: 0.42
C26: =title247 -> Transportation distance | D26: km | E26: =title250 -> Field -> Factory | G26: =title252 -> Centralized | I26: =title252 -> Centralized | K26: =title252 -> Centralized | L26: 10 | M26: =title254 -> Not Required | O26: =title252 -> Centralized | Q26: =title252 -> Centralized | S26: =title252 -> Centralized
C27: =title247 -> Transportation distance | D27: km | E27: =title251 -> Factory -> Market | G27: =title253 -> Mobile | I27: =title252 -> Centralized | K27: =title252 -> Centralized | M27: =title253 -> Mobile | O27: =title252 -> Centralized | Q27: =title252 -> Centralized | S27: =title252 -> Centralized
C32: =title255 -> Production Cost Details
F34: =title291 -> Capacities (t charcoal/year)
F35: =+F24 -> 6.57 | H35: =+H24 -> 49.713 | J35: =+J24 -> 66.284 | L35: =+L24 -> 182.5 | N35: =+N24 -> 203 | P35: =+P24 -> 305.0666667 | R35: =+R24 -> 383.25
C37: =title256 -> Inputs | D37: =title69 -> Unit | E37: =title284 -> Unit Price | F37: =title219 -> Quantity | G37: Total | H37: =title219 -> Quantity | I37: Total | J37: =title219 -> Quantity | K37: Total | L37: =title219 -> Quantity | M37: Total | N37: =title219 -> Quantity | O37: Total | P37: =title219 -> Quantity | Q37: Total | R37: =title219 -> Quantity | S37: Total
E38: ="("&title80&")" -> (USD/unit) | F38: =title286 -> (Unit/year) | G38: ="("&title103&")" -> (USD/year) | H38: =title286 -> (Unit/year) | I38: ="("&title103&")" -> (USD/year) | J38: =title286 -> (Unit/year) | K38: ="("&title103&")" -> (USD/year) | L38: =title286 -> (Unit/year) | M38: ="("&title103&")" -> (USD/year) | N38: =title286 -> (Unit/year) | O38: ="("&title103&")" -> (USD/year) | P38: =title286 -> (Unit/year) | Q38: ="("&title103&")" -> (USD/year) | R38: =title286 -> (Unit/year) | S38: ="("&title103&")" -> (USD/year)
C39: =title137 -> Feedstock | D39: t | E39: =+$E$16 -> 0 | F39: =F24/F25 -> 32.85 | G39: =+F39*$E$39 -> 0 | H39: =H24/H25 -> 165.71 | I39: =+H39*$E$39 -> 0 | J39: =J24/J25 -> 220.9466667 | K39: =+J39*$E$39 -> 0 | L39: =L24/L25 -> 730 | M39: =+L39*$E$39 -> 0 | N39: =N24/N25 -> 615.1515152 | O39: =+N39*$E$39 -> 0 | P39: =P24/P25 -> 924.4444444 | Q39: =+P39*$E$39 -> 0 | R39: =R24/R25 -> 912.5 | S39: =+R39*$E$39 -> 0
C40: =title223 -> Subtotal | G40: =SUM(G39) -> 0 | I40: =SUM(I39) -> 0 | K40: =SUM(K39) -> 0 | M40: =SUM(M39) -> 0 | O40: =SUM(O39) -> 0 | Q40: =SUM(Q39) -> 0 | S40: =SUM(S39) -> 0
C42: =title257 -> Labour and miscellaneous costs | D42: =title69 -> Unit | E42: =title284 -> Unit Price | F42: =title219 -> Quantity | G42: Total | H42: =title219 -> Quantity | I42: Total | J42: =title219 -> Quantity | K42: Total | L42: =title219 -> Quantity | M42: Total | N42: =title219 -> Quantity | O42: Total | P42: =title219 -> Quantity | Q42: Total | R42: =title219 -> Quantity | S42: Total
E43: ="("&title194&")" -> (USD/person-hour) | F43: ="("&title69&")" -> (Unit) | G43: ="("&title103&")" -> (USD/year) | H43: ="("&title69&")" -> (Unit) | I43: ="("&title103&")" -> (USD/year) | J43: ="("&title69&")" -> (Unit) | K43: ="("&title103&")" -> (USD/year) | L43: ="("&title69&")" -> (Unit) | M43: ="("&title103&")" -> (USD/year) | N43: ="("&title69&")" -> (Unit) | O43: ="("&title103&")" -> (USD/year) | P43: ="("&title69&")" -> (Unit) | Q43: ="("&title103&")" -> (USD/year) | R43: ="("&title69&")" -> (Unit) | S43: ="("&title103&")" -> (USD/year)
C44: =title178 -> Unskilled worker | D44: # employee | E44: =+'Data Entry Needs'!$D$35 -> 0 | F44: 1 | G44: =+$E44*F44*F23 -> 0 | H44: 1 | I44: =E44*H44*$H$23 -> 0 | J44: 2 | K44: =+$E44*J44*J23 -> 0 | L44: 2 | M44: =+$E44*L44*L23 -> 0 | N44: 2 | O44: =+$E44*N44*N23 -> 0 | P44: 2 | Q44: =+$E44*P44*P23 -> 0 | R44: 14 | S44: =+E44*R44*R23 -> 0
C45: =title197 -> Skilled worker | D45: # employee | E45: =+'Data Entry Needs'!$I$35 -> 0 | F45: 0 | G45: =+$E45*F45*F23 -> 0 | H45: 1 | I45: =E45*H45*$H$23 -> 0 | J45: 0 | K45: =+$E45*J45*J23 -> 0 | L45: 0 | M45: =+$E45*L45*L23 -> 0 | N45: 1 | O45: =+$E45*N45*N23 -> 0 | P45: 1 | Q45: =+$E45*P45*P23 -> 0 | R45: 1 | S45: =+E45*R45*R23 -> 0
C46: =title223 -> Subtotal | G46: =SUM(G44:G45) -> 0 | I46: =SUM(I44:I45) -> 0 | K46: =SUM(K44:K45) -> 0 | M46: =SUM(M44:M45) -> 0 | O46: =SUM(O44:O45) -> 0 | Q46: =SUM(Q44:Q45) -> 0 | S46: =SUM(S44:S45) -> 0
C48: =title258 -> Transport of feedstock | D48: =title69 -> Unit | E48: =title284 -> Unit Price | F48: =title219 -> Quantity | G48: Total | H48: =title219 -> Quantity | I48: Total | J48: =title219 -> Quantity | K48: Total | L48: =title219 -> Quantity | M48: Total | N48: =title219 -> Quantity | O48: Total | P48: =title219 -> Quantity | Q48: Total | R48: =title219 -> Quantity | S48: Total
E49: (USD/t/km) | F49: ="("&title69&")" -> (Unit) | G49: ="("&title103&")" -> (USD/year) | H49: ="("&title69&")" -> (Unit) | I49: ="("&title103&")" -> (USD/year) | J49: ="("&title69&")" -> (Unit) | K49: ="("&title103&")" -> (USD/year) | L49: ="("&title69&")" -> (Unit) | M49: ="("&title103&")" -> (USD/year) | N49: ="("&title69&")" -> (Unit) | O49: ="("&title103&")" -> (USD/year) | P49: ="("&title69&")" -> (Unit) | Q49: ="("&title103&")" -> (USD/year) | R49: ="("&title69&")" -> (Unit) | S49: ="("&title103&")" -> (USD/year)
C50: =title259 -> Feedstock (farm to plant) | D50: km | E50: ='Data Entry Needs'!D42 -> 0 | F50: =+F26 -> 0 | G50: =+F50*$E50*F$39 -> 0 | H50: =+H26 -> 0 | I50: =E50*H50*H39 -> 0 | J50: =+J26 -> 0 | K50: =+J50*$E50*J$39 -> 0 | L50: =+L26 -> 10 | M50: =+L50*$E50*L$39 -> 0 | N50: =+N26 -> 0 | O50: =+N50*$E50*N$39 -> 0 | P50: =+P26 -> 0 | Q50: =+P50*$E50*P$39 -> 0 | R50: =+R26 -> 0 | S50: =+R50*E50*R39 -> 0
C51: =title260 -> Charcoal (plant to market) | D51: km | E51: =+'Data Entry Needs'!$I$42 -> 0 | F51: =+F27 -> 0 | G51: =+F51*$E51*F24 -> 0 | H51: =+H27 -> 0 | I51: =E51*H51*H24 -> 0 | J51: =+J27 -> 0 | K51: =+J51*$E51*J$24 -> 0 | L51: =+L27 -> 0 | M51: =+L51*$E51*L$24 -> 0 | N51: =+N27 -> 0 | O51: =+N51*$E51*N$24 -> 0 | P51: =+P27 -> 0 | Q51: =+P51*$E51*P$24 -> 0 | R51: =+R27 -> 0 | S51: =+R51*E51*R24 -> 0
C52: =title223 -> Subtotal | G52: =SUM(G50:G51) -> 0 | I52: =SUM(I50:I51) -> 0 | K52: =SUM(K50:K51) -> 0 | M52: =SUM(M50:M51) -> 0 | O52: =SUM(O50:O51) -> 0 | Q52: =SUM(Q50:Q51) -> 0 | S52: =SUM(S50:S51) -> 0
C54: =title261 -> Storage | D54: =title69 -> Unit | E54: =title284 -> Unit Price | F54: =title219 -> Quantity | G54: Total | H54: =title219 -> Quantity | I54: Total | J54: =title219 -> Quantity | K54: Total | L54: =title219 -> Quantity | M54: Total | N54: =title219 -> Quantity | O54: Total | P54: =title219 -> Quantity | Q54: Total | R54: =title219 -> Quantity | S54: Total
E55: (USD/t) | F55: ="("&title69&")" -> (Unit) | G55: ="("&title103&")" -> (USD/year) | H55: ="("&title69&")" -> (Unit) | I55: ="("&title103&")" -> (USD/year) | J55: ="("&title69&")" -> (Unit) | K55: ="("&title103&")" -> (USD/year) | L55: ="("&title69&")" -> (Unit) | M55: ="("&title103&")" -> (USD/year) | N55: ="("&title69&")" -> (Unit) | O55: ="("&title103&")" -> (USD/year) | P55: ="("&title69&")" -> (Unit) | Q55: ="("&title103&")" -> (USD/year) | R55: ="("&title69&")" -> (Unit) | S55: ="("&title103&")" -> (USD/year)
C56: =title137 -> Feedstock | D56: =title249 -> t/year | E56: =+'Data Entry Needs'!$D$18 -> 0 | F56: =+(F24*8/F23)*(1+$E$15)*$E$14*12 ->  | G56: =F56*E56 ->  | H56: =+(H24*8/H23)*(1+$E$15)*$E$14*12 ->  | I56: =E56*H56 ->  | J56: =+(J24*8/J23)*(1+$E$15)*$E$14*12 ->  | K56: =J56*E56 ->  | L56: 0 | M56: =E56*L56 -> 0 | N56: =+(N24*8/N23)*(1+$E$15)*$E$14*12 ->  | O56: =E56*N56 ->  | P56: =+(P24*8/P23)*(1+$E$15)*$E$14*12 ->  | Q56: =E56*P56 ->  | R56: =+(R24*8/R23)*(1+$E$15)*$E$14*12 ->  | S56: =+E56*R56 -> 
C57: =title262 -> Charcoal products | D57: =title249 -> t/year | E57: =+'Data Entry Needs'!$D$45 -> 0 | F57: =+F24*10% -> 0.657 | G57: =F57*E57 -> 0 | H57: =+H24*10% -> 4.9713 | I57: =E57*H57 -> 0 | J57: =+J24*10% -> 6.6284 | K57: =J57*E57 -> 0 | L57: =+L24*$E$15 -> 0 | M57: =E57*L57 -> 0 | N57: =+N24*$E$15 -> 0 | O57: =E57*N57 -> 0 | P57: =+P24*$E$15 -> 0 | Q57: =E57*P57 -> 0 | R57: =+R24*$E$15 -> 0 | S57: =+E57*R57 -> 0
C58: =title223 -> Subtotal | G58: =SUM(G56:G57) ->  | I58: =SUM(I56:I57) ->  | K58: =SUM(K56:K57) ->  | M58: =SUM(M56:M57) -> 0 | O58: =SUM(O56:O57) ->  | Q58: =SUM(Q56:Q57) ->  | S58: =SUM(S56:S57) -> 
C60: =title263 -> Investment | D60: =title69 -> Unit | F60: =title287 -> Depreciation | H60: =title287 -> Depreciation | J60: =title287 -> Depreciation | L60: =title287 -> Depreciation | N60: =title287 -> Depreciation | P60: =title287 -> Depreciation | R60: =title287 -> Depreciation
F61: ="("&title103&")" -> (USD/year) | H61: ="("&title103&")" -> (USD/year) | J61: ="("&title103&")" -> (USD/year) | L61: ="("&title103&")" -> (USD/year) | N61: ="("&title103&")" -> (USD/year) | P61: ="("&title103&")" -> (USD/year) | R61: ="("&title103&")" -> (USD/year)
C62: =title264 -> Equipment | D62: =title103 -> USD/year | F62: =+Investment!G14/Investment!$G$18 -> 0 | H62: =+Investment!I14/Investment!$I$18 -> 0 | J62: =+Investment!K14/Investment!$K$18 -> 0 | L62: =+Investment!M14/Investment!$M$18 -> 0 | N62: =+Investment!O14/Investment!$O$18 ->  | P62: =+Investment!Q14/Investment!$Q$18 ->  | R62: =+Investment!S14/Investment!$S$18 -> 0
C63: =title265 -> Building | D63: =title103 -> USD/year | F63: =+Investment!G15/Investment!$G$18 -> 0 | H63: =+Investment!I15/Investment!$I$18 -> 0 | J63: =+Investment!K15/Investment!$K$18 -> 0 | L63: =+Investment!M15/Investment!$M$18 -> 0 | N63: =+Investment!O15/Investment!$O$18 ->  | P63: =+Investment!Q15/Investment!$Q$18 ->  | R63: =+Investment!S15/Investment!$S$18 -> 0
C64: =title266 -> Installation | D64: =title103 -> USD/year | F64: =+Investment!G16/Investment!$G$18 -> 0 | H64: =+Investment!I16/Investment!$I$18 -> 0 | J64: =+Investment!K16/Investment!$K$18 -> 0 | L64: =+Investment!M16/Investment!$M$18 -> 0 | N64: =+Investment!O16/Investment!$O$18 ->  | P64: =+Investment!Q16/Investment!$Q$18 ->  | R64: =+Investment!S16/Investment!$S$18 -> 0
C65: =title267 -> Total investment depreciation | F65: =SUM(F62:F64) -> 0 | H65: =SUM(H62:H64) -> 0 | J65: =SUM(J62:J64) -> 0 | L65: =SUM(L62:L64) -> 0 | N65: =SUM(N62:N64) ->  | P65: =SUM(P62:P64) ->  | R65: =SUM(R62:R64) -> 0
C66: =title268 -> Maintenance cost | E66: =+'Data Entry Needs'!$I$49 -> 0 | G66: =+F65*$E$66 -> 0 | I66: =+H65*$E$66 -> 0 | K66: =+J65*$E$66 -> 0 | M66: =+L65*$E$66 -> 0 | O66: =+N65*$E$66 ->  | Q66: =+P65*$E$66 ->  | S66: =+R65*$E$66 -> 0
C67: =title223 -> Subtotal | G67: =+G66+F65 -> 0 | I67: =+I66+H65 -> 0 | K67: =+K66+J65 -> 0 | M67: =+M66+L65 -> 0 | O67: =+O66+N65 ->  | Q67: =+Q66+P65 ->  | S67: =+S66+R65 -> 0
C69: =title119 -> Other costs | D69: =title69 -> Unit | E69: =title285 -> Rate (%) | F69: =title288 -> Specific | G69: Total | H69: =title288 -> Specific | I69: Total | J69: =title288 -> Specific | K69: Total | L69: =title288 -> Specific | M69: Total | N69: =title288 -> Specific | O69: Total | P69: =title288 -> Specific | Q69: Total | R69: =title288 -> Specific | S69: Total
F70: =title285 -> Rate (%) | G70: ="("&title103&")" -> (USD/year) | H70: =title285 -> Rate (%) | I70: ="("&title103&")" -> (USD/year) | J70: =title285 -> Rate (%) | K70: ="("&title103&")" -> (USD/year) | L70: =title285 -> Rate (%) | M70: ="("&title103&")" -> (USD/year) | N70: =title285 -> Rate (%) | O70: ="("&title103&")" -> (USD/year) | P70: =title285 -> Rate (%) | Q70: ="("&title103&")" -> (USD/year) | R70: =title285 -> Rate (%) | S70: ="("&title103&")" -> (USD/year)
C71: =title269 -> Plant overhead | D71: USD | F71: 0 | G71: =+(G44+G45+G66)*F71 -> 0 | H71: 0 | I71: =+(I44+I45+I66)*H71 -> 0 | J71: 0 | K71: =+(K44+K45+K66)*J71 -> 0 | L71: =+'Data Entry Needs'!$I$48 -> 0 | M71: =+(M44+M45+M66)*L71 -> 0 | N71: =+'Data Entry Needs'!$I$48 -> 0 | O71: =+(O44+O45+O66)*N71 ->  | P71: =+'Data Entry Needs'!$I$48 -> 0 | Q71: =+(Q44+Q45+Q66)*P71 ->  | R71: =+'Data Entry Needs'!$I$48 -> 0 | S71: =+(S44+S45+S66)*R71 -> 0
C72: =title270 -> General and administrative cost | D72: USD | F72: 0 | G72: =+(G40+G46+G71+G66)*F72 -> 0 | H72: 0 | I72: =+(I40+I46+I71+I66)*H72 -> 0 | J72: 0 | K72: =+(K40+K46+K71+K66)*J72 -> 0 | L72: =+'Data Entry Needs'!$D$49 -> 0 | M72: =+(M40+M46+M71+M66)*L72 -> 0 | N72: =+'Data Entry Needs'!$D$49 -> 0 | O72: =+(O40+O46+O71+O66)*N72 ->  | P72: =+'Data Entry Needs'!$D$49 -> 0 | Q72: =+(Q40+Q46+Q71+Q66)*P72 ->  | R72: =+'Data Entry Needs'!$D$49 -> 0 | S72: =+(S40+S46+S71+S66)*R72 -> 0
C73: =title271 -> Loan interest | D73: USD | F73: =+'Data Entry Needs'!$D$59 -> 0 | G73: =-G99 -> 0 | H73: =+'Data Entry Needs'!$D$59 -> 0 | I73: =-I99 -> 0 | J73: =+'Data Entry Needs'!$D$59 -> 0 | K73: =-K99 -> 0 | L73: =+'Data Entry Needs'!$D$59 -> 0 | M73: =-M99 -> 0 | N73: =+'Data Entry Needs'!$D$59 -> 0 | O73: =-O99 ->  | P73: =+'Data Entry Needs'!$D$59 -> 0 | Q73: =-Q99 ->  | R73: =+'Data Entry Needs'!$D$59 -> 0 | S73: =-S99 -> 0
C74: =title223 -> Subtotal | G74: =SUM(G71:G73) -> 0 | I74: =SUM(I71:I73) -> 0 | K74: =SUM(K71:K73) -> 0 | M74: =SUM(M71:M73) -> 0 | O74: =SUM(O71:O73) ->  | Q74: =SUM(Q71:Q73) ->  | S74: =SUM(S71:S73) -> 0
F76: Total | G76: =title290 -> Share (%) | H76: Total | I76: =title290 -> Share (%) | J76: Total | K76: =title290 -> Share (%) | L76: Total | M76: =title290 -> Share (%) | N76: Total | O76: =title290 -> Share (%) | P76: Total | Q76: =title290 -> Share (%) | R76: Total | S76: =title290 -> Share (%)
F77: ="("&title103&")" -> (USD/year) | H77: ="("&title103&")" -> (USD/year) | J77: ="("&title103&")" -> (USD/year) | L77: ="("&title103&")" -> (USD/year) | N77: ="("&title103&")" -> (USD/year) | P77: ="("&title103&")" -> (USD/year) | R77: ="("&title103&")" -> (USD/year)
C78: =title272 -> Total operating costs | F78: =+G40+G46+G52+G58 ->  | G78: =+F78/F$81 ->  | H78: =+I40+I46+I52+I58 ->  | I78: =+H78/H$81 ->  | J78: =+K40+K46+K52+K58 ->  | K78: =+J78/J$81 ->  | L78: =+M40+M46+M52+M58 -> 0 | M78: =+L78/L$81 ->  | N78: =+O40+O46+O52+O58 ->  | O78: =+N78/N$81 ->  | P78: =+Q40+Q46+Q52+Q58 ->  | Q78: =+P78/P$81 ->  | R78: =+S40+S46+S52+S58 ->  | S78: =+R78/R$81 -> 
C79: =title273 -> Total fixed costs | F79: =+G67 -> 0 | G79: =+F79/F$81 ->  | H79: =+I67 -> 0 | I79: =+H79/H$81 ->  | J79: =+K67 -> 0 | K79: =+J79/J$81 ->  | L79: =+M67 -> 0 | M79: =+L79/L$81 ->  | N79: =+O67 ->  | O79: =+N79/N$81 ->  | P79: =+Q67 ->  | Q79: =+P79/P$81 ->  | R79: =+S67 -> 0 | S79: =+R79/R$81 -> 
C80: =title274 -> Total other costs | F80: =+G74 -> 0 | G80: =+F80/F$81 ->  | H80: =+I74 -> 0 | I80: =+H80/H$81 ->  | J80: =+K74 -> 0 | K80: =+J80/J$81 ->  | L80: =+M74 -> 0 | M80: =+L80/L$81 ->  | N80: =+O74 ->  | O80: =+N80/N$81 ->  | P80: =+Q74 ->  | Q80: =+P80/P$81 ->  | R80: =+S74 -> 0 | S80: =+R80/R$81 -> 
C81: =title275 -> Total production costs | F81: =SUM(F78:F80) ->  | H81: =SUM(H78:H80) ->  | J81: =SUM(J78:J80) ->  | L81: =SUM(L78:L80) -> 0 | N81: =SUM(N78:N80) ->  | P81: =SUM(P78:P80) ->  | R81: =SUM(R78:R80) -> 
F83: =title291 -> Capacities (t charcoal/year)
F84: =F24 -> 6.57 | H84: =H24 -> 49.713 | J84: =J24 -> 66.284 | L84: =L24 -> 182.5 | N84: =N24 -> 203 | P84: =P24 -> 305.0666667 | R84: =R24 -> 383.25
F85: =title126 -> Oil drum | H85: Casamance | J85: =title127 -> Improved pit Liberia | L85: =title128 -> Portable steel kiln | N85: =title129 -> Standard Beehive | P85: Missouri | R85: =title130 -> Somalia mound
C86: =title276 -> Unit cost of charcoal + transport (USD/kg of charcoal) | F86: =F81/(F24*1000) ->  | H86: =H81/(H24*1000) ->  | J86: =J81/(J24*1000) ->  | L86: =L81/(L24*1000) -> 0 | N86: =N81/(N24*1000) ->  | P86: =P81/(P24*1000) ->  | R86: =R81/(R24*1000) -> 
C89: =title277 -> Average loan interest | D89: =title69 -> Unit | E89: =title192 -> Loan ratio (%) | F89: =title126 -> Oil drum | H89: Casamance | J89: =title127 -> Improved pit Liberia | L89: =title128 -> Portable steel kiln | N89: =title129 -> Standard Beehive | P89: Missouri | R89: =title130 -> Somalia mound
F90: =title289 -> Total investment | G90: =title278 -> Loan amount | H90: =title289 -> Total investment | I90: =title278 -> Loan amount | J90: =title289 -> Total investment | K90: =title278 -> Loan amount | L90: =title289 -> Total investment | M90: =title278 -> Loan amount | N90: =title289 -> Total investment | O90: =title278 -> Loan amount | P90: =title289 -> Total investment | Q90: =title278 -> Loan amount | R90: =title289 -> Total investment | S90: =title278 -> Loan amount
F91: (USD) | G91: (USD) | H91: (USD) | I91: (USD) | J91: (USD) | K91: (USD) | L91: (USD) | M91: (USD) | N91: (USD) | O91: (USD) | P91: (USD) | Q91: (USD) | R91: (USD) | S91: (USD)
C92: =title278 -> Loan amount | D92: USD | E92: =+'Data Entry Needs'!$D$58 -> 0 | F92: =+F65*3 -> 0 | G92: =$E$92*F92 -> 0 | H92: =H65*3 -> 0 | I92: =$E$92*H92 -> 0 | J92: =J65*3 -> 0 | K92: =$E$92*J92 -> 0 | L92: =L65*6 -> 0 | M92: =$E$92*L92 -> 0 | N92: =N65*6 ->  | O92: =$E$92*N92 ->  | P92: =P65*6 ->  | Q92: =$E$92*P92 ->  | R92: =R65*6 -> 0 | S92: =$E$92*R92 -> 0
C93: =title279 -> Loan interest rate | D93: % | G93: =+'Data Entry Needs'!$D$59 -> 0 | I93: =+'Data Entry Needs'!$D$59 -> 0 | K93: =+'Data Entry Needs'!$D$59 -> 0 | M93: =+'Data Entry Needs'!$D$59 -> 0 | O93: =+'Data Entry Needs'!$D$59 -> 0 | Q93: =+'Data Entry Needs'!$D$59 -> 0 | S93: =+'Data Entry Needs'!$D$59 -> 0
C94: Loan payment | D94: USD/month | G94: =PMT(G93,G96,G92,0) -> 0 | I94: =PMT(I93,I96,I92,0) -> 0 | K94: =PMT(K93,K96,K92,0) -> 0 | M94: =PMT(M93,M96,M92,0) -> 0 | O94: =PMT(O93,O96,O92,0) ->  | Q94: =PMT(Q93,Q96,Q92,0) ->  | S94: =PMT(S93,S96,S92,0) -> 0
C95: =title280 -> Annual loan payment | D95: =title103 -> USD/year | G95: =G94 -> 0 | I95: =I94 -> 0 | K95: =K94 -> 0 | M95: =M94 -> 0 | O95: =O94 ->  | Q95: =Q94 ->  | S95: =S94 -> 0
C96: =title281 -> Loan terms | D96: year | G96: =+Investment!G18 -> 3 | I96: =+Investment!I18 -> 3 | K96: =+Investment!K18 -> 3 | M96: 6 | O96: 6 | Q96: 6 | S96: 6
C97: =title282 -> Total loan payment | D97: USD | G97: =G95*G96 -> 0 | I97: =I95*I96 -> 0 | K97: =K95*K96 -> 0 | M97: =M95*M96 -> 0 | O97: =O95*O96 ->  | Q97: =Q95*Q96 ->  | S97: =S95*S96 -> 0
C98: =title271 -> Loan interest | D98: USD | G98: =G97+G92 -> 0 | I98: =I97+I92 -> 0 | K98: =K97+K92 -> 0 | M98: =M97+M92 -> 0 | O98: =O97+O92 ->  | Q98: =Q97+Q92 ->  | S98: =S97+S92 -> 0
C99: =title277 -> Average loan interest | D99: =title103 -> USD/year | G99: =+G98/G96 -> 0 | I99: =+I98/I96 -> 0 | K99: =+K98/K96 -> 0 | M99: =+M98/M96 -> 0 | O99: =+O98/O96 ->  | Q99: =+Q98/Q96 ->  | S99: =+S98/S96 -> 0

Sheet Summary of results-by feedstock
L1: 0.2
C3: =UPPER(title295&$AH$117) -> SUMMARY OF RESULTS FOR CHARCOAL PRODUCTION FROM PLEASE SELECT
C6: =title296 -> Select a feedstock to see the summary results
C8: =title297 -> Sustainable Production and Investment Requirement
C10: =title298 -> Distribution of Available Biomass | P10: =title304 -> Investment per Plant and Sustainable Number of Plants
D12: =title299 -> Share of Biomass Small Scale Charcoal | L12: =+$AI$124 -> 0.5813953488
D13: =title300 -> Share of Biomass Medium Scale Charcoal | L13: =+$AJ$124 -> 0.2093023256
D14: =title301 -> Share of Biomass Large Scale Charcoal | L14: =+$AK$124 -> 0.2093023256
C17: =title302 -> Biomass Requirement per Plant
C28: =title313 -> Socio-economic Benefits
C30: =title314 -> Total Number of Jobs | P30: =title320 -> Total Consumers Supplied with Charcoal
P32: =title315 -> Supply Rural Households | S32: =title316 -> Supply Urban Households | V32: =title317 -> Supply Industries
C43: =title321 -> Economic and Financial Results
C45: =title322 -> Market Price Choice | G45: Rural | I45: Urban | L45: Industrial
C47: =+IF($BC$179,title323,title324) -> Small Scale Production
C49: =title325 -> Production cost of charcoal (USD/kg) | J49: =title326 -> Net Present Value (1000 USD) - with loan | R49: =title327 -> Profitability Index - without loan
C63: =+IF($BE$186,title330,title331) -> Medium Scale Production
C65: =title325 -> Production cost of charcoal (USD/kg) | J65: =title326 -> Net Present Value (1000 USD) - with loan | R65: =title327 -> Profitability Index - without loan
C79: =+IF($BG$193,title332,title333) -> Large Scale Production
C81: =title325 -> Production cost of charcoal (USD/kg) | J81: =title326 -> Net Present Value (1000 USD) - with loan | R81: =title327 -> Profitability Index - without loan
AH110: Residue | AI110: Pos.
AH111: =AJ111 -> Please Select | AI111: 1 | AJ111: =+'Data Entry Needs'!D11 -> Please Select | AK111: =+'Data Entry Needs'!AD18 -> TRUE
AH112: =AJ112 -> Please Select | AI112: 2 | AJ112: =+'Data Entry Needs'!E11 -> Please Select | AK112: =+'Data Entry Needs'!AD19 -> TRUE
AH113: =AJ113 -> Please Select | AI113: 3 | AJ113: =+'Data Entry Needs'!F11 -> Please Select | AK113: =+'Data Entry Needs'!AD20 -> TRUE
AH116: Selection | AI116: No.
AH117: Please Select | AI117: =VLOOKUP($AH$117,$AH$111:$AI$113,2,FALSE) -> 1 | AJ117: =+VLOOKUP(AI117,$AI$111:$AK$113,3,FALSE) -> TRUE
AH118: =title157 -> Select the scales that apply to your country | AI118: =title207 -> Small Scale | AJ118: =title208 -> Medium Scale | AK118: =title209 -> Large Scale
AI119: =+'Data Entry Needs'!$D$25 -> TRUE | AJ119: =+'Data Entry Needs'!$E$25 -> TRUE | AK119: =+AJ119 -> TRUE
AH120: =title158 -> Average production efficiency (%) | AI120: =+IF(AI$119,'Data Entry Needs'!D26,0) -> 0 | AJ120: =+IF(AJ$119,'Data Entry Needs'!E26,0) -> 0 | AK120: =+AJ120 -> 0
AH121: =+'Data Entry Needs'!C27 -> Average production rate (t/year) | AI121: =+'Data Entry Needs'!$D$27 -> 0 | AJ121: =+IF(AJ$119,'Data Entry Needs'!E27,0) -> 0 | AK121: =+AJ121 -> 0
AH122: =title160 -> Average production cost (USD/t) | AI122: =+IF(AI$119,'Data Entry Needs'!D28,0) ->  | AJ122: =+IF(AJ$119,'Data Entry Needs'!E28,0) ->  | AK122: =+AJ122 -> 
AH123: Average Investement Cost (USD) | AI123: =+IF(AI$119,'Data Entry Needs'!D29,0) -> 0 | AJ123: =+IF(AJ$119,'Data Entry Needs'!E29,0) -> 0 | AK123: =+AJ123 -> 0
AH124: =title290 -> Share (%) | AI124: =+AI125/SUM($AI$125:$AK$125) -> 0.5813953488 | AJ124: =+AJ125/SUM($AI$125:$AK$125) -> 0.2093023256 | AK124: =+AK125/SUM($AI$125:$AK$125) -> 0.2093023256 | AL124: =SUM(AI124:AK124) -> 1
AI125: 100 | AJ125: 36 | AK125: =ABS(100-AI125-AJ125) -> 36
AK126: Charcoal Consumption Rural (t/year/hh) | AL126: =+'Energy Demand'!$H$11 -> 0
AH127: Total Biomass Available | AI127: =INDIRECT("COST_RES"&$AI$117&"!$E$11") -> 0 | AK127: Charcoal Consumption Urban (t/year/hh) | AL127: =+'Energy Demand'!$H$19 -> 0
AH128: Production Cost | AI128: =title69 -> Unit | AK128: Charcoal Consumption Industrial (t/year/hh) | AL128: =+'Energy Demand'!$H$33 -> 0
AH130: Improved Charcoal technology
AH131: =title338 -> Working days per year | AJ131: =+'Data Entry Needs'!$K$12 -> 0 | AK131: Market Price Rural | AL131: =+'Data Entry Needs'!$D52 -> 0
AH132: =title339 -> Biomass located small scale | AI132: =title249 -> t/year | AJ132: =+$AI$127*$AI$124 -> 0 | AK132: Market Price Urban | AL132: =+'Data Entry Needs'!$D53 -> 0
AH133: =title340 -> Biomass located medium scale | AI133: =title249 -> t/year | AJ133: =+$AI$127*$AJ$124 -> 0 | AK133: Market Price Industrial | AL133: =+'Data Entry Needs'!$D54 -> 0
AH134: =title341 -> Biomass located large scale | AI134: =title249 -> t/year | AJ134: =+$AI$127*$AK$124 -> 0 | AK134: Share Small | AL134: =+'Data Entry Needs'!$I$52 -> 0 | AN134: f | AO134: h | AP134: j | AQ134: l | AR134: n | AS134: p | AT134: r
AK135: Share M&L | AL135: =+'Data Entry Needs'!$I$53 -> 0 | AN135: g | AO135: i | AP135: k | AQ135: m | AR135: o | AS135: q | AT135: s
AH136: =title126 -> Oil drum | AI136: =+'Data Entry Needs'!$AF10 -> TRUE | AK136: Production Rate | AL136: =title249 -> t/year | AN136: =COST_RES1!F24 -> 6.57 | AO136: =COST_RES1!H24 -> 49.713 | AP136: =COST_RES1!J24 -> 66.284 | AQ136: =COST_RES1!L24 -> 182.5 | AR136: =COST_RES1!N24 -> 203 | AS136: =COST_RES1!P24 -> 305.0666667 | AT136: =COST_RES1!R24 -> 383.25 | AU136: =+$AI$121 -> 0 | AV136: =+$AJ$121 -> 0
AH137: Casamance | AI137: =+'Data Entry Needs'!$AF11 -> TRUE | AN137: =title126 -> Oil drum | AO137: =COST_RES1!$H$22 -> Casamance | AP137: =title127 -> Improved pit Liberia | AQ137: =title128 -> Portable steel kiln | AR137: =title129 -> Standard Beehive | AS137: Missouri | AT137: =title130 -> Somalia mound | AU137: Traditional Small Scale | AV137: Traditional M&L Scale
AH138: =title127 -> Improved pit Liberia | AI138: =+'Data Entry Needs'!$AF12 -> TRUE | AK138: Biomass demand equivalent small scale | AL138: =title249 -> t/year | AN138: =IFERROR(AN136/$AI$120,0) -> 0 | AO138: =IFERROR(AO136/$AI$120,0) -> 0 | AP138: =IFERROR(AP136/$AI$120,0) -> 0 | AQ138: 0 | AR138: 0 | AS138: 0 | AT138: 0
AH139: =title128 -> Portable steel kiln | AI139: =+'Data Entry Needs'!$AF13 -> TRUE | AK139: Biomass demand equivalent medium scale | AL139: =title249 -> t/year | AN139: 0 | AO139: 0 | AP139: 0 | AQ139: =IFERROR(AQ136/$AJ$120,0) -> 0 | AR139: =IFERROR(AR136/$AJ$120,0) -> 0 | AS139: 0 | AT139: 0
AH140: =title129 -> Standard Beehive | AI140: =+'Data Entry Needs'!$AF14 -> TRUE | AK140: Biomass demand equivalent large scale | AL140: =title249 -> t/year | AN140: 0 | AO140: 0 | AP140: 0 | AQ140: 0 | AR140: 0 | AS140: =IFERROR(AS136/$AK$120,0) -> 0 | AT140: =IFERROR(AT136/$AK$120,0) -> 0
AH141: Missouri | AI141: =+'Data Entry Needs'!$AF15 -> TRUE | AK141: =title307 -> Efficiency | AN141: =+COST_RES1!F25 -> 0.2 | AO141: =+COST_RES1!H25 -> 0.3 | AP141: =+COST_RES1!J25 -> 0.3 | AQ141: =+COST_RES1!L25 -> 0.25 | AR141: =+COST_RES1!N25 -> 0.33 | AS141: =+COST_RES1!L25 -> 0.25 | AT141: =+COST_RES1!N25 -> 0.33
AH142: =title130 -> Somalia mound | AI142: =+'Data Entry Needs'!$AF16 -> TRUE | AK142: =title308 -> Improved Technology | AL142: =title249 -> t/year | AN142: =AN136/AN141 -> 32.85 | AO142: 165.71 | AP142: 220.9466667 | AQ142: 730 | AR142: 615.1515152 | AS142: 1220.266667 | AT142: 1161.363636
AK143: =+IF($AI$119,title309,"") -> Equivalent Demand Traditional Small Scale | AL143: =title249 -> t/year | AN143: =IF($AI$119,AN136/$AI$120,"") ->  | AO143: =IF($AI$119,AO136/$AI$120,"") ->  | AP143: =IF($AI$119,AP136/$AI$120,"") -> 
AK144: =+IF($AJ$119,title310,"") -> Equivalent Demand Traditional Medium and Large Scale | AL144: =title249 -> t/year | AQ144: =IF($AJ$119,AQ136/$AJ$120,"") ->  | AR144: =IF($AJ$119,AR136/$AJ$120,"") ->  | AS144: =IF($AJ$119,AS136/$AJ$120,"") ->  | AT144: =IF($AJ$119,AT136/$AJ$120,"") ->  | AU144: =+AU136/$AI$120 ->  | AV144: =+AV136/$AJ$120 -> 
AK145: Biomass Savings | AL145: =title249 -> t/year | AN145: =SUM(AN138:AN140)-AN142 -> -32.85 | AO145: =SUM(AO138:AO140)-AO142 -> -165.71 | AP145: -220.9466667 | AQ145: -730 | AR145: -615.1515152 | AS145: -1220.266667 | AT145: -1161.363636
AK146: =title311 -> Number of plants | AN146: =ROUNDDOWN($AJ$132/AN142,0) -> 0 | AO146: =ROUNDDOWN($AJ$132/AO142,0) -> 0 | AP146: =ROUNDDOWN($AJ$132/AP142,0) -> 0 | AQ146: =ROUNDDOWN($AJ$133/AQ142,0) -> 0 | AR146: =ROUNDDOWN($AJ$133/AR142,0) -> 0 | AS146: =ROUNDDOWN($AJ$134/AS142,0) -> 0 | AT146: =ROUNDDOWN($AJ$134/AT142,0) -> 0 | AU146: =ROUNDDOWN($AJ$132/AU144,0) ->  | AV146: =ROUNDDOWN($AJ$133/AV144,0)+ROUNDDOWN($AJ$134/AV144,0) -> 
AK147: =title312 -> Biomass Available | AL147: (t/year) | AM147: =+$AI$127 -> 0 | AN147: =+$AI$127 -> 0 | AO147: =+$AI$127 -> 0 | AP147: 0 | AQ147: 0 | AR147: 0 | AS147: 0 | AT147: 0 | AU147: =+$AI$127 -> 0
AK148: Lifetime of the kiln | AL148: year | AN148: =+Investment!G18 -> 3 | AO148: =+Investment!I18 -> 3 | AP148: =+Investment!K18 -> 3 | AQ148: =+Investment!M18 -> 3 | AR148: =+Investment!O18 -> 6 | AS148: =+Investment!Q18 -> 6 | AT148: =+Investment!S18 -> 1
AK150: =title289 -> Total investment | AL150: USD | AN150: =+Investment!G17 -> 0 | AO150: =+Investment!I17 -> 0 | AP150: =+Investment!K17 -> 0 | AQ150: =+Investment!M17 -> 0 | AR150: =+Investment!O17 ->  | AS150: =+Investment!Q17 ->  | AT150: =+Investment!S17*6 -> 0 | AU150: =+$AI$123 -> 0 | AV150: =+$AJ$123 -> 0
AN151: =title126 -> Oil drum | AO151: =COST_RES1!$H$22 -> Casamance | AP151: =title127 -> Improved pit Liberia | AQ151: =title128 -> Portable steel kiln | AR151: =title129 -> Standard Beehive | AS151: Missouri | AT151: =title130 -> Somalia mound
AN152: Oil_drum_ | AO152: Casamance_ | AP152: Improved_ | AQ152: Portable_Steel_ | AR152: Standard_ | AS152: Missouri_ | AT152: Somalia_
AN153: =+AN137 -> Oil drum | AO153: =+AO137 -> Casamance | AP153: Improved pit Liberia | AQ153: Portable steel kiln | AR153: Standard Beehive | AS153: Missouri | AT153: Somalia mound
AK154: =+COST_RES3!$C$86 -> Unit cost of charcoal + transport (USD/kg of charcoal) | AL154: =title196 -> USD/kg charcoal | AN154: =INDIRECT("COST_RES"&$AI$117&"!"&AN$134&86) ->  | AO154: =INDIRECT("COST_RES"&$AI$117&"!"&AO$134&86) ->  | AP154: =INDIRECT("COST_RES"&$AI$117&"!"&AP$134&86) ->  | AQ154: 0
AK155: ="Comparisson Market Price"&$AW155 -> Comparisson Market PriceRural | AL155: =title196 -> USD/kg charcoal | AM155: =+$AL131*$AL$135 -> 0 | AN155: =+$AL131 -> 0 | AO155: =+$AL131 -> 0 | AP155: 0 | AQ155: 0 | AR155: 0 | AS155: 0 | AT155: 0 | AW155: Rural
AK156: ="Comparisson Market Price"&$AW156 -> Comparisson Market PriceUrban | AL156: =title196 -> USD/kg charcoal | AM156: =+$AL132*$AL$135 -> 0 | AN156: =+$AL132*$AL$134 -> 0 | AO156: 0 | AP156: 0 | AQ156: =+$AL132*$AL$135 -> 0 | AR156: 0 | AS156: 0 | AT156: 0 | AW156: =title328 -> Urban
AK157: ="Comparisson Market Price"&$AW157 -> Comparisson Market PriceIndustrial | AL157: =title196 -> USD/kg charcoal | AM157: =+$AL133*$AL$135 -> 0 | AN157: 0 | AO157: 0 | AP157: 0 | AQ157: 0 | AR157: 0 | AS157: 0 | AT157: 0 | AW157: =title329 -> Industrial
AJ158: NPV | AK158: Rural | AL158: USD | AN158: =INDIRECT(AN$152&$AW158&"_RES"&$AI$117&"!D94") ->  | AQ158: 0 | AW158: Rural
AJ159: NPV | AK159: =title328 -> Urban | AL159: USD | AQ159: 0 | AW159: =title328 -> Urban
AJ160: NPV | AK160: =title329 -> Industrial | AL160: USD | AQ160: 0 | AW160: =title329 -> Industrial
AJ161: Profitability Index -Without Loan | AK161: Rural | AL161: USD | AN161: =INDIRECT(AN$152&$AW161&"_RES"&$AI$117&"!D96") ->  | AW161: Rural
AJ162: Profitability Index -Without Loan | AK162: =title328 -> Urban | AL162: USD | AW162: =title328 -> Urban
AJ163: Profitability Index -Without Loan | AK163: =title329 -> Industrial | AL163: USD | AW163: =title329 -> Industrial
AK164: =title152 -> Operating days per year | AN164: =+'Data Entry Needs'!$K$12 -> 0 | AO164: =+'Data Entry Needs'!$K$13 -> 0 | AP164: =+'Data Entry Needs'!$K$14 -> 0 | AQ164: =+'Data Entry Needs'!$K$16 -> 0 | AR164: =+'Data Entry Needs'!$K$17 -> 0 | AS164: =+'Data Entry Needs'!$K$19 -> 0 | AT164: =+'Data Entry Needs'!$K$20 -> 0 | AU164: =+'Data Entry Needs'!$K$20 -> 0 | AV164: =+'Data Entry Needs'!$K$20 -> 0
AK165: =+title318&" "&$AW165 -> Collection Small Scale | AL165: Jobs | AN165: =IF(OR('Data Entry Needs'!$C$16,$AJ$117),0,ROUNDUP(INDIRECT("PRICE_RES"&$AI$117&"!D18")*AN$142/IF(INDIRECT("PRICE_RES"&$AI$117&"!F9")=title229,'Data Entry Needs'!$D$38,'Data Entry Needs'!$I$38)/AN164,0)) -> 0 | AO165: =IF(OR('Data Entry Needs'!$C$16,$AJ$117),0,ROUNDUP(INDIRECT("PRICE_RES"&$AI$117&"!D18")*AO$142/IF(INDIRECT("PRICE_RES"&$AI$117&"!F9")=title229,'Data Entry Needs'!$D$38,'Data Entry Needs'!$I$38)/AO164,0)) -> 0 | AP165: =IF(OR('Data Entry Needs'!$C$16,$AJ$117),0,ROUNDUP(INDIRECT("PRICE_RES"&$AI$117&"!D18")*AP$142/IF(INDIRECT("PRICE_RES"&$AI$117&"!F9")=title229,'Data Entry Needs'!$D$38,'Data Entry Needs'!$I$38)/AP164,0)) -> 0 | AW165: =title207 -> Small Scale
AK166: =+title318&" "&$AW166 -> Collection Medium Scale | AL166: Jobs | AQ166: =IF(OR('Data Entry Needs'!$C$16,$AJ$117),0,ROUNDUP(INDIRECT("PRICE_RES"&$AI$117&"!D18")*AQ$142/IF(INDIRECT("PRICE_RES"&$AI$117&"!F9")=title229,'Data Entry Needs'!$D$38,'Data Entry Needs'!$I$38)/330,0)) -> 0 | AR166: =IF(OR('Data Entry Needs'!$C$16,$AJ$117),0,ROUNDUP(INDIRECT("PRICE_RES"&$AI$117&"!D18")*AR$142/IF(INDIRECT("PRICE_RES"&$AI$117&"!F9")=title229,'Data Entry Needs'!$D$38,'Data Entry Needs'!$I$38)/330,0)) -> 0 | AW166: =title208 -> Medium Scale
AK167: =+title318&" "&$AW167 -> Collection Large Scale | AL167: Jobs | AS167: =IF(OR('Data Entry Needs'!$C$16,$AJ$117),0,ROUNDUP(INDIRECT("PRICE_RES"&$AI$117&"!D18")*AS$142/IF(INDIRECT("PRICE_RES"&$AI$117&"!F9")=title229,'Data Entry Needs'!$D$38,'Data Entry Needs'!$I$38)/330,0)) -> 0 | AT167: =IF(OR('Data Entry Needs'!$C$16,$AJ$117),0,ROUNDUP(INDIRECT("PRICE_RES"&$AI$117&"!D18")*AT$142/IF(INDIRECT("PRICE_RES"&$AI$117&"!F9")=title229,'Data Entry Needs'!$D$38,'Data Entry Needs'!$I$38)/330,0)) -> 0 | AW167: =title209 -> Large Scale
AN168: =+AN137 -> Oil drum | AO168: Casamance | AP168: Improved pit Liberia | AQ168: Portable steel kiln | AR168: Standard Beehive | AS168: Missouri | AT168: Somalia mound | AU168: =+$AU$137 -> Traditional Small Scale | AV168: =+$AV$137 -> Traditional M&L Scale
AK169: =title318 -> Collection | AL169: Jobs | AN169: =+SUM(AN165:AN167)*AN$146 -> 0 | AO169: 0 | AP169: 0 | AQ169: 0 | AR169: 0 | AS169: 0 | AT169: 0
AK170: =title319 -> Processing | AL170: Jobs | AN170: =(INDIRECT("COST_RES"&$AI$117&"!"&AN$134&44)+INDIRECT("COST_RES"&$AI$117&"!"&AN$134&45))*AN$146 -> 0 | AO170: 0 | AP170: 0 | AQ170: 0 | AR170: 0 | AS170: 0 | AT170: 0 | AU170: =ROUNDUP(SUM(Charcoal_Calculator_SMALL!D13:D16)/AU164,0)*AU146 ->  | AV170: =ROUNDUP(SUM('Charcoal_Calculator_M&L'!D13:D17)/AV164,0)*AV146 -> 
AN171: =+AN168 -> Oil drum | AO171: =+AO168 -> Casamance | AP171: Improved pit Liberia | AQ171: Portable steel kiln | AR171: Standard Beehive | AS171: Missouri | AT171: Somalia mound
AK172: =+"Total Jobs "&AW165 -> Total Jobs Small Scale | AL172: Jobs | AN172: =+AN$165+AN$170 -> 0 | AO172: =+AO$165+AO$170 -> 0 | AP172: =+AP$165+AP$170 -> 0
AK173: =+"Total Jobs "&AW166 -> Total Jobs Medium Scale | AL173: Jobs | AQ173: =+AQ$166+AQ$170 -> 0 | AR173: =+AR$166+AR$170 -> 0
AK174: =+"Total Jobs "&AW167 -> Total Jobs Large Scale | AL174: Jobs | AS174: =+AS$167+AS$170 -> 0 | AT174: =+AT$167+AT$170 -> 0
AJ175: 1 | AN175: =+AN171 -> Oil drum | AO175: =+AO171 -> Casamance | AP175: Improved pit Liberia | AQ175: Portable steel kiln | AR175: Standard Beehive | AS175: Missouri | AT175: Somalia mound | AU175: =+AU168 -> Traditional Small Scale | AV175: =+AV168 -> Traditional M&L Scale
AJ176: =+IF($AJ$175=2,TRUE,FALSE) -> FALSE | AK176: =+"Households "&AW155&" Supplied" -> Households Rural Supplied | AL176: hh | AN176: =IF($AJ176,ROUNDDOWN(AN$136/$AL$126*AN$146,0),"") ->  | AO176: =IF($AJ176,ROUNDDOWN(AO$136/$AL$126*AO$146,0),"") ->  | AU176: =IF($AJ176,ROUNDDOWN(AU$136/$AL$126*AU$146,0),"") ->  | AV176: =IF($AJ176,ROUNDDOWN(AV$136/$AL$126*AV$146,0),"") -> 
AJ177: =+IF($AJ$175=1,TRUE,FALSE) -> TRUE | AK177: =+"Households "&AW156&" Supplied" -> Households Urban Supplied | AL177: hh | AN177: =IF($AJ177,ROUNDDOWN(AN$136/$AL$127*AN$146,0),"") ->  | AO177: =IF($AJ177,ROUNDDOWN(AO$136/$AL$127*AO$146,0),"") ->  | AU177: =IF($AJ177,ROUNDDOWN(AU$136/$AL$127*AU$146,0),"") ->  | AV177: =IF($AJ177,ROUNDDOWN(AV$136/$AL$127*AV$146,0),"") -> 
AJ178: =+IF($AJ$175=3,TRUE,FALSE) -> FALSE | AK178: =+title377 -> Industries Supplied | AL178: hh | AN178: =IF($AJ178,ROUNDDOWN(AN$136/$AL$128*AN$146,0),"") ->  | AO178: =IF($AJ178,ROUNDDOWN(AO$136/$AL$128*AO$146,0),"") ->  | AU178: =IF($AJ178,ROUNDDOWN(AU$136/$AL$128*AU$146,0),"") ->  | AV178: =IF($AJ178,ROUNDDOWN(AV$136/$AL$128*AV$146,0),"") -> 
BC179: =+OR(BD179:BF179) -> TRUE | BD179: =+$AI$136 -> TRUE | BE179: =+$AI$137 -> TRUE | BF179: =+$AI$138 -> TRUE
AK180: Chart NPV | AZ180: =+IF($L$1>0,TRUE,FALSE) -> TRUE | BC180: Traditional Small Scale | BD180: =+AN175 -> Oil drum | BE180: =+AO175 -> Casamance | BF180: =+AP175 -> Improved pit Liberia
AN181: =+AN153 -> Oil drum | AO181: Casamance | AP181: Improved pit Liberia | AQ181: Portable steel kiln | AR181: Standard Beehive | AS181: Missouri | AT181: Somalia mound | BC181: =+IF(AND(BC$179,$AI$119),Charcoal_Calculator_SMALL!$G$8*(1+$L$1),"") ->  | BD181: =+IF(BD$179,AN$154*(1+$L$1),"") ->  | BE181: =+IF(BE$179,AO$154*(1+$L$1),"") ->  | BF181: =+IF(BF$179,AP$154*(1+$L$1),"") -> 
AJ182: =+AY183 -> TRUE | AK182: =IF(AJ182,AK158,"-") -> Rural | AN182: =IF($AJ182,AN158,"") ->  | AQ182: 0 | BC182: =+IF(AND($AZ$180,BC$179,$AI$119),Charcoal_Calculator_SMALL!$G$8*(1-$L$1),"") ->  | BD182: =+IF(AND($AZ$180,BD$179),AN$154*(1-$L$1),"") ->  | BE182: =+IF(AND($AZ$180,BE$179),AO$154*(1-$L$1),"") ->  | BF182: =+IF(AND($AZ$180,BF$179),AP$154*(1-$L$1),"") -> 
AJ183: =+AY184 -> TRUE | AK183: =IF(AJ183,AK159,"-") -> Urban | AQ183: 0 | AY183: TRUE | AZ183: =+IF(AND(AY183,$BC$179),title334,"-") -> Producer Price Rural | BB183: =IF(AND($AY183,$BC$179),$AN155,"") -> 0 | BC183: 0 | BD183: 0 | BE183: 0 | BF183: 0 | BG183: 0
AJ184: =+AY185 -> TRUE | AK184: =IF(AJ184,AK160,"-") -> Industrial | AQ184: 0 | AY184: TRUE | AZ184: =+IF(AND(AY184,$BC$179),title335,"-") -> Producer Price Urban | BB184: 0 | BC184: 0 | BD184: 0 | BE184: 0 | BF184: 0 | BG184: 0 | BH184: 0
AY185: TRUE | AZ185: =+IF(AND(AY185,$BC$179),title336,"-") -> Producer Price Industrial | BB185: 0 | BC185: 0 | BD185: 0 | BE185: 0 | BF185: 0 | BG185: 0 | BH185: 0 | BI185: 0
AK186: Chart PI | BE186: =+OR(BF186:BG186) -> TRUE | BF186: =+$AI$139 -> TRUE | BG186: =+$AI$140 -> TRUE
AN187: =+AN181 -> Oil drum | AO187: Casamance | AP187: Improved pit Liberia | AQ187: Portable steel kiln | AR187: Standard Beehive | AS187: Missouri | AT187: Somalia mound | BE187: Traditional Medium Scale | BF187: =+AQ175 -> Portable steel kiln | BG187: =+AR175 -> Standard Beehive
AJ188: =+AJ182 -> TRUE | AK188: =IF(AJ188,AK158,"-") -> Rural | AN188: =IF($AJ188,AN161,"") ->  | BE188: =+IF(AND($AJ$119,BE$186),$AJ$122*(1+$L$1),"") ->  | BF188: =+IF(BF$186,AQ$154*(1+$L$1),"") -> 0 | BG188: =+IF(BG$186,AR$154*(1+$L$1),"") -> 
AJ189: =+AJ183 -> TRUE | AK189: =IF(AJ189,AK159,"-") -> Urban | BE189: =+IF(AND($AZ$180,BE$186,$AJ$119),$AJ$122*(1-$L$1),"") ->  | BF189: =+IF(AND($AZ$180,BF$186),AQ$154*(1-$L$1),"") -> 0 | BG189: =+IF(AND($AZ$180,BG$186),AR$154*(1-$L$1),"") -> 
AJ190: =+AJ184 -> TRUE | AK190: =IF(AJ190,AK160,"-") -> Industrial | AY190: =+AY183 -> TRUE | AZ190: =+IF(AND(AY190,$BE$186),title334,"-") -> Producer Price Rural | BD190: =IF(AND($AY190,$BE$186),$AQ155,"") -> 0 | BE190: 0 | BF190: 0 | BG190: 0 | BH190: 0
AY191: =+AY184 -> TRUE | AZ191: =+IF(AND(AY191,$BE$186),title335,"-") -> Producer Price Urban | BD191: 0 | BE191: 0 | BF191: 0 | BG191: 0 | BH191: 0 | BI191: =IF(AND($AY191,$BE$186),$AQ156,"") -> 0
AK192: Chart hh | AY192: =+AY185 -> TRUE | AZ192: =+IF(AND(AY192,$BE$186),title336,"-") -> Producer Price Industrial | BD192: =IF(AND($AY192,$BE$186),$AQ157,"") -> 0 | BE192: =IF(AND($AY192,$BE$186),$AQ157,"") -> 0 | BF192: 0 | BG192: 0 | BH192: 0 | BI192: 0 | BJ192: 0
AN193: =+AN175 -> Oil drum | AO193: Casamance | AP193: Improved pit Liberia | AQ193: Portable steel kiln | AR193: Standard Beehive | AS193: Missouri | AT193: Somalia mound | AU193: =+AU175 -> Traditional Small Scale | AV193: Traditional M&L Scale | BG193: =+OR(BH193:BI193) -> TRUE | BH193: =+$AI$141 -> TRUE | BI193: =+$AI$142 -> TRUE
AK194: =+AK158 -> Rural | BG194: Traditional Large Scale | BH194: =+AS175 -> Missouri | BI194: =+AT175 -> Somalia mound
AK195: =+AK159 -> Urban | BG195: =+IF(AND($AJ$119,BG$193),$AJ$122*(1+$L$1),"") ->  | BH195: =+IF(BH$193,AS$154*(1+$L$1),"") ->  | BI195: =+IF(BI$193,AT$154*(1+$L$1),"") -> 
AK196: =+AK160 -> Industrial | BG196: =+IF(AND($AZ$180,BG$193,$AJ$119),$AJ$122*(1-$L$1),"") ->  | BH196: =+IF(AND($AZ$180,BH$193),AS$154*(1-$L$1),"") ->  | BI196: =+IF(AND($AZ$180,BI$193),AT$154*(1-$L$1),"") -> 
AY197: =+AY190 -> TRUE | AZ197: =+IF(AND(AY197,$BG$193),title334,"-") -> Producer Price Rural | BF197: =IF(AND($AY197,$BG$193),$AS155,"") -> 0 | BG197: 0 | BH197: 0 | BI197: 0 | BJ197: 0
AY198: =+AY191 -> TRUE | AZ198: =+IF(AND(AY198,$BG$193),title335,"-") -> Producer Price Urban | BF198: 0 | BG198: 0 | BH198: 0 | BI198: 0 | BJ198: 0 | BK198: =IF(AND($AY198,$BG$193),$AS156,"") -> 0
AY199: =+AY192 -> TRUE | AZ199: =+IF(AND(AY199,$BG$193),title336,"-") -> Producer Price Industrial | BF199: =IF(AND($AY199,$BG$193),$AS157,"") -> 0 | BG199: =IF(AND($AY199,$BG$193),$AS157,"") -> 0 | BH199: 0 | BI199: 0 | BJ199: 0 | BK199: 0 | BL199: 0

Sheet Summary of results-technology
L1: 0.2
C3: =UPPER(title342&$AH$81&title352) -> SUMMARY OF RESULTS FOR CHARCOAL PRODUCTION USING OIL DRUM TECHNOLOGY
C6: =title343 -> Select a technology to see the summary results | K6: =title344 -> Investment Per Plant (USD) | P6: =+VLOOKUP($AH$81,$AI$102:$AV$108,7,FALSE) -> 0 | S6: =title345 -> Annual Production Rate | X6: =+VLOOKUP($AH$81,$AI$102:$AV$108,5,FALSE) -> 6.57 | Y6: =title249 -> t/year
K7: =title307 -> Efficiency | P7: =+VLOOKUP($AH$81,$AI$102:$AV$108,6,FALSE) -> 0.2 | S7: =title244 -> Operating hours per year | X7: =+VLOOKUP($AH$81,$AI$102:$AW$108,13,FALSE)*VLOOKUP($AH$81,$AI$102:$AW$108,15,FALSE) -> 0 | Y7: =title248 -> h/year
K8: =+$AI$81 -> This technology is used for small scale Charcoal Production
K9: =+$AJ$81 -> Traditional small scale technology has a production rate of 0 t/year
C11: =title353 -> Sustainable Production and Socio-Economic Benefits
C13: =title354 -> Distribution of biomass available for Oil drum technology | O13: =title355 -> Comparison of Sustainable Number of Plants for each Feedstock | R13: =+title356&$AH$81 -> Total Consumers Supplied with Oil drum | W13: =+title357&$AH$81&title358&$AQ$112&title359 -> Comparison of Total Job Creation Potential of Oil drum and Traditional small scale Kiln
D15: =title299 -> Share of Biomass Small Scale Charcoal | L15: =+$AI$88 -> 0.22 | R15: =title315 -> Supply Rural Households
D16: =title300 -> Share of Biomass Medium Scale Charcoal | L16: =+$AJ$88 -> 0.19 | R16: =title316 -> Supply Urban Households
D17: =title301 -> Share of Biomass Large Scale Charcoal | L17: =+$AK$88 -> 0.59 | R17: =title317 -> Supply Industries
C20: =+title360&$AH$81 -> Biomass Requirement by Feedstock for each Oil drum
C30: =title321 -> Economic and Financial Results
C32: =title322 -> Market Price Choice | G32: Rural | I32: =title328 -> Urban | O32: =title329 -> Industrial
C34: =title325 -> Production cost of charcoal (USD/kg) | J34: =title326 -> Net Present Value (1000 USD) - with loan | U34: =title327 -> Profitability Index - without loan
AH74: Residue | AI74: Pos.
AH75: =+'Data Entry Needs'!D11 -> Please Select | AI75: 1 | AJ75: =+'Data Entry Needs'!AD18 -> TRUE
AH76: =+'Data Entry Needs'!E11 -> Please Select | AI76: 2 | AJ76: =+'Data Entry Needs'!AD19 -> TRUE
AH77: =+'Data Entry Needs'!F11 -> Please Select | AI77: 3 | AJ77: =+'Data Entry Needs'!AD20 -> TRUE
AH80: Selection
AH81: Oil drum | AI81: =title346&VLOOKUP($AH$81,AI102:AT108,12,FALSE)&title347 -> This technology is used for small scale Charcoal Production | AJ81: =title348&$AQ$112&title349&IF($AQ$112=title350,$AR$119,$AR$120)&title351 -> Traditional small scale technology has a production rate of 0 t/year
AH82: =title157 -> Select the scales that apply to your country | AI82: =title207 -> Small Scale | AJ82: =title208 -> Medium Scale | AK82: =title209 -> Large Scale
AI83: =+'Data Entry Needs'!$D$25 -> TRUE | AJ83: =+'Data Entry Needs'!$E$25 -> TRUE | AK83: =+AJ83 -> TRUE | AL83: 1
AH84: =title158 -> Average production efficiency (%) | AI84: =+IF(AI$83,'Data Entry Needs'!D26,0) -> 0 | AJ84: =+IF(AJ$83,'Data Entry Needs'!E26,0) -> 0 | AK84: =+AJ84 -> 0
AH85: =title159 -> Average production rate (t/year) | AI85: =+'Data Entry Needs'!$D$27 -> 0 | AJ85: =+IF(AJ$83,'Data Entry Needs'!E27,0) -> 0 | AK85: =+AJ85 -> 0
AH86: =title160 -> Average production cost (USD/t) | AI86: =+IF(AI$83,'Data Entry Needs'!D28,0) ->  | AJ86: =+IF(AJ$83,'Data Entry Needs'!E28,0) ->  | AK86: =+AJ86 -> 
AH87: Average Investement Cost (USD) | AI87: =+IF(AI$83,'Data Entry Needs'!D29,0) -> 0 | AJ87: =+IF(AJ$83,'Data Entry Needs'!E29,0) -> 0 | AK87: =+AJ87 -> 0
AH88: =title290 -> Share (%) | AI88: =+AI89/SUM($AI$89:$AK$89) -> 0.22 | AJ88: =+AJ89/SUM($AI$89:$AK$89) -> 0.19 | AK88: =100%-SUM(AI88:AJ88) -> 0.59 | AL88: =SUM(AI88:AK88) -> 1
AI89: 22 | AJ89: 19 | AK89: =ABS(100-AI89-AJ89) -> 59
AH91: Improved Charcoal technology
AH92: =title338 -> Working days per year | AJ92: =+'Data Entry Needs'!$K$12 -> 0 | AK92: Production Cost | AL92: =title69 -> Unit | AM92: List selected
AJ93: =+IF($AH$75="please select",TRUE,FALSE) -> TRUE | AK93: =+IF($AH$76="please select",TRUE,FALSE) -> TRUE | AL93: =+IF($AH$77="please select",TRUE,FALSE) -> TRUE | AM93: =IFERROR(INDEX($AJ$102:$AJ$108,SMALL(IF($AJ$102:$AJ$108<>"",ROW($AJ$102:$AJ$108)-ROW($AJ$102)+1),ROWS(AM$93:AM93))),"") -> Oil drum
AJ94: Fs1 | AK94: Fs2 | AL94: Fs3 | AM94: =IFERROR(INDEX($AJ$102:$AJ$108,SMALL(IF($AJ$102:$AJ$108<>"",ROW($AJ$102:$AJ$108)-ROW($AJ$102)+1),ROWS(AM$93:AM94))),"") -> Casamance
AH95: Total Biomass Available | AI95: =title249 -> t/year | AJ95: =IF($AJ$93,"",'Data Entry Needs'!D$12) ->  | AK95: =IF($AK$93,"",'Data Entry Needs'!E$12) ->  | AL95: =IF($AL$93,"",'Data Entry Needs'!F$12) ->  | AM95: =IFERROR(INDEX($AJ$102:$AJ$108,SMALL(IF($AJ$102:$AJ$108<>"",ROW($AJ$102:$AJ$108)-ROW($AJ$102)+1),ROWS(AM$93:AM95))),"") -> Improved pit Liberia
AH96: =title339 -> Biomass located small scale | AI96: =title249 -> t/year | AJ96: =IF($AJ$93,"",AJ$95*$AI$88) ->  | AK96: =IF($AK$93,"",AK$95*$AI$88) ->  | AL96: =IF($AL$93,"",AL$95*$AI$88) ->  | AM96: =IFERROR(INDEX($AJ$102:$AJ$108,SMALL(IF($AJ$102:$AJ$108<>"",ROW($AJ$102:$AJ$108)-ROW($AJ$102)+1),ROWS(AM$93:AM96))),"") -> Portable steel kiln
AH97: =title340 -> Biomass located medium scale | AI97: =title249 -> t/year | AJ97: =IF($AJ$93,"",AJ$95*$AJ$88) ->  | AK97: =IF($AK$93,"",AK$95*$AJ$88) ->  | AL97: =IF($AL$93,"",AL$95*$AJ$88) ->  | AM97: =IFERROR(INDEX($AJ$102:$AJ$108,SMALL(IF($AJ$102:$AJ$108<>"",ROW($AJ$102:$AJ$108)-ROW($AJ$102)+1),ROWS(AM$93:AM97))),"") -> Standard Beehive
AH98: =title341 -> Biomass located large scale | AI98: =title249 -> t/year | AJ98: =IF($AJ$93,"",AJ$95*$AK$88) ->  | AK98: =IF($AK$93,"",AK$95*$AK$88) ->  | AL98: =IF($AL$93,"",AL$95*$AK$88) ->  | AM98: =IFERROR(INDEX($AJ$102:$AJ$108,SMALL(IF($AJ$102:$AJ$108<>"",ROW($AJ$102:$AJ$108)-ROW($AJ$102)+1),ROWS(AM$93:AM98))),"") -> Missouri
AM99: =IFERROR(INDEX($AJ$102:$AJ$108,SMALL(IF($AJ$102:$AJ$108<>"",ROW($AJ$102:$AJ$108)-ROW($AJ$102)+1),ROWS(AM$93:AM99))),"") -> Somalia mound
AI101: Pos | AM101: Production Rate (t/year) | AN101: Efficiency (%) | AO101: Investment (USD) | AQ101: Demand equivalent small scale (t/year) | AR101: Demand equivalent M & L scale (t/year) | AS101: Biomass demand equivalent Technology (t/year) | AU101: =title152 -> Operating days per year | AV101: Comp.Prod.Cost | AW101: =title195 -> h/day
AH102: =+'Data Entry Needs'!$AF10 -> TRUE | AI102: =title126 -> Oil drum | AJ102: =+IF(AH102,AI102,"") -> Oil drum | AK102: f | AL102: g | AM102: 6.57 | AN102: ='Kiln cost'!$M$28 -> 0.2 | AO102: =+Investment!$G$17 -> 0 | AP102: Oil_drum_ | AQ102: =+AM102/$AI$84 ->  | AR102: =+AM102/$AJ$84 ->  | AS102: =+AM102/$AN102 -> 32.85 | AT102: =LOWER(title207) -> small scale | AU102: =+'Data Entry Needs'!$K12 -> 0 | AV102: =+$AI$86 ->  | AW102: =+'Data Entry Needs'!$J12 -> 0
AH103: =+'Data Entry Needs'!$AF11 -> TRUE | AI103: Casamance | AJ103: Casamance | AK103: h | AL103: i | AM103: 49.713 | AN103: 0.3 | AO103: =INDIRECT("Investment!$"&AL103&"$17") -> 0 | AP103: Casamance_ | AQ103: =+AM103/$AI$84 ->  | AR103: =+AM103/$AJ$84 ->  | AS103: =+AM103/$AN103 -> 165.71 | AT103: =LOWER(title207) -> small scale | AU103: =+'Data Entry Needs'!$K13 -> 0 | AV103: =+$AI$86 ->  | AW103: =+'Data Entry Needs'!$J13 -> 0
AH104: =+'Data Entry Needs'!$AF12 -> TRUE | AI104: =title127 -> Improved pit Liberia | AJ104: Improved pit Liberia | AK104: j | AL104: k | AM104: 66.284 | AN104: 0.3 | AO104: 0 | AP104: Improved_ | AS104: 220.9466667 | AT104: =LOWER(title207) -> small scale | AU104: =+'Data Entry Needs'!$K14 -> 0 | AV104: =+$AI$86 ->  | AW104: =+'Data Entry Needs'!$J14 -> 0
AH105: =+'Data Entry Needs'!$AF13 -> TRUE | AI105: =title128 -> Portable steel kiln | AJ105: Portable steel kiln | AK105: l | AL105: m | AM105: 182.5 | AN105: ='Kiln cost'!$M$13 -> 0.25 | AO105: 0 | AP105: Portable_Steel_ | AS105: 730 | AT105: =LOWER(title208) -> medium scale | AU105: =+'Data Entry Needs'!$K16 -> 0 | AV105: =+$AJ$86 ->  | AW105: =+'Data Entry Needs'!$J16 -> 0
AH106: =+'Data Entry Needs'!$AF14 -> TRUE | AI106: =title129 -> Standard Beehive | AJ106: Standard Beehive | AK106: n | AL106: o | AM106: 203 | AN106: 0.33 | AP106: Standard_ | AS106: 615.1515152 | AT106: =LOWER(title208) -> medium scale | AU106: =+'Data Entry Needs'!$K17 -> 0 | AV106: =+$AJ$86 ->  | AW106: =+'Data Entry Needs'!$J17 -> 0
AH107: =+'Data Entry Needs'!$AF15 -> TRUE | AI107: Missouri | AJ107: Missouri | AK107: p | AL107: q | AM107: 305.0666667 | AN107: 0.33 | AP107: Missouri_ | AS107: 924.4444444 | AT107: =LOWER(title209) -> large scale | AU107: =+'Data Entry Needs'!$K19 -> 0 | AV107: =+$AK$86 ->  | AW107: =+'Data Entry Needs'!$J19 -> 0
AH108: =+'Data Entry Needs'!$AF16 -> TRUE | AI108: =title130 -> Somalia mound | AJ108: Somalia mound | AK108: r | AL108: s | AM108: 383.25 | AN108: 0.42 | AO108: 0 | AP108: Somalia_ | AS108: 912.5 | AT108: =LOWER(title209) -> large scale | AU108: =+'Data Entry Needs'!$K20 -> 0 | AV108: =+$AK$86 ->  | AW108: =+'Data Entry Needs'!$J20 -> 0
AH110: =title378 -> Charcoal Consumption Rural (t/year/hh) | AI110: =+'Energy Demand'!$H$11 -> 0 | AM110: RES1 | AN110: RES2 | AO110: RES3 | AQ110: Position
AH111: =title379 -> Charcoal Consumption Urban (t/year/hh) | AI111: =+'Energy Demand'!$H$19 -> 0 | AK111: Production Cost | AL111: USD/kg | AM111: =IF($AJ$93,0,IFERROR(INDIRECT("COST_"&AM110&"!"&$AQ$111&86),0)) -> 0 | AN111: =IF($AK$93,0,IFERROR(INDIRECT("COST_"&AN110&"!"&$AQ$111&86),0)) -> 0 | AO111: =IF($AL$93,0,IFERROR(INDIRECT("COST_"&AO110&"!"&$AQ$111&86),0)) -> 0 | AQ111: =+VLOOKUP($AH$81,$AI$102:$AS$108,3,FALSE) -> f | AS111: =LOWER(title207) -> small scale | AT111: =+IF($AQ$112=AS111,FALSE,TRUE) -> FALSE
AH112: =title380 -> Charcoal Consumption Industrial (t/year/hh) | AI112: =+'Energy Demand'!$H$33 -> 0 | AK112: =title207 -> Small Scale | AM112: =+AJ96 ->  | AQ112: =+VLOOKUP($AH$81,$AI$102:$AT$108,12,FALSE) -> small scale | AS112: =LOWER(title208) -> medium scale | AT112: =+IF($AQ$112=AS112,FALSE,TRUE) -> TRUE
AK113: =title208 -> Medium Scale | AQ113: =+VLOOKUP($AH$81,$AI$102:$AT$108,8,FALSE) -> Oil_drum_ | AS113: =LOWER(title209) -> large scale | AT113: =+IF($AQ$112=AS113,FALSE,TRUE) -> TRUE
AK114: =title209 -> Large Scale | AQ114: =+VLOOKUP($AH$81,$AI$102:$AU$108,13,FALSE) -> 0
AG115: TRUE | AH115: =title371 -> Price Rural (USD/kg) | AI115: =IF(AG115,'Data Entry Needs'!$D52,"") -> 0 | AK115: Sustainable Number of Plants | AM115: =IFERROR(ROUNDDOWN(VLOOKUP($AQ$112,$AK$112:$AO$114,3,FALSE)/VLOOKUP($AH$81,$AI$102:$AS$108,11,FALSE),0),0) -> 0 | AN115: =IFERROR(ROUNDDOWN(VLOOKUP($AQ$112,$AK$112:$AO$114,4,FALSE)/VLOOKUP($AH$81,$AI$102:$AS$108,11,FALSE),0),0) -> 0 | AO115: =IFERROR(ROUNDDOWN(VLOOKUP($AQ$112,$AK$112:$AO$114,5,FALSE)/VLOOKUP($AH$81,$AI$102:$AS$108,11,FALSE),0),0) -> 0 | AQ115: =+VLOOKUP($AH$81,$AI$102:$AT$108,5,FALSE) -> 6.57
AG116: TRUE | AH116: =title372 -> Price Urban (USD/kg) | AI116: =IF(AG116,'Data Entry Needs'!$D53*$AI$119,"") -> 0 | AJ116: NPV | AK116: Rural | AL116: USD | AM116: =IF($AJ$93,0,INDIRECT($AQ$113&$AK116&"_"&AM$110&"!D94")) -> 0 | AN116: =IF($AK$93,0,INDIRECT($AQ$113&$AK116&"_"&AN$110&"!D94")) -> 0 | AO116: =IF($AL$93,0,INDIRECT($AQ$113&$AK116&"_"&AO$110&"!D94")) -> 0
AG117: TRUE | AH117: =title373 -> Price Industrial (USD/kg) | AI117: =IF(AG117,'Data Entry Needs'!$D54*$AI$119,"") -> 0 | AJ117: NPV | AK117: =title328 -> Urban | AL117: USD | AM117: =IF($AJ$93,0,INDIRECT($AQ$113&$AK117&"_"&AM$110&"!D94")) -> 0 | AN117: =IF($AK$93,0,INDIRECT($AQ$113&$AK117&"_"&AN$110&"!D94")) -> 0 | AO117: =IF($AL$93,0,INDIRECT($AQ$113&$AK117&"_"&AO$110&"!D94")) -> 0
AH118: Share Small | AI118: =+'Data Entry Needs'!$I$52 -> 0 | AJ118: NPV | AK118: =title329 -> Industrial | AL118: USD | AM118: =IF($AJ$93,0,INDIRECT($AQ$113&$AK118&"_"&AM$110&"!D94")) -> 0 | AN118: =IF($AK$93,0,INDIRECT($AQ$113&$AK118&"_"&AN$110&"!D94")) -> 0 | AO118: =IF($AL$93,0,INDIRECT($AQ$113&$AK118&"_"&AO$110&"!D94")) -> 0 | AR118: Production Rate (t/year) | AS118: Fs (t/year) | AT118: Workers
AH119: Share M&L | AI119: =+'Data Entry Needs'!$I$53 -> 0 | AJ119: Profitability Index -Without Loan | AK119: Rural | AL119: USD | AM119: =IF($AJ$93,0,INDIRECT($AQ$113&$AK119&"_"&AM$110&"!D96")) -> 0 | AN119: =IF($AK$93,0,INDIRECT($AQ$113&$AK119&"_"&AN$110&"!D96")) -> 0 | AO119: =IF($AL$93,0,INDIRECT($AQ$113&$AK119&"_"&AO$110&"!D96")) -> 0 | AQ119: Traditional Small Scale | AR119: =+$AI$85 -> 0 | AS119: =+AR119/$AI$84 ->  | AT119: =ROUNDUP(SUM(Charcoal_Calculator_SMALL!$D$13:$D$16)/$AQ$114,0) -> 
AJ120: Profitability Index -Without Loan | AK120: =title328 -> Urban | AL120: USD | AM120: =IF($AJ$93,0,INDIRECT($AQ$113&$AK120&"_"&AM$110&"!D96")) -> 0 | AN120: =IF($AK$93,0,INDIRECT($AQ$113&$AK120&"_"&AN$110&"!D96")) -> 0 | AO120: =IF($AL$93,0,INDIRECT($AQ$113&$AK120&"_"&AO$110&"!D96")) -> 0 | AQ120: Traditional M&L Scale | AR120: =+$AJ$85 -> 0 | AS120: =+AR120/$AJ$84 ->  | AT120: =ROUNDUP(SUM('Charcoal_Calculator_M&L'!$D$13:$D$17)/$AQ$114,0) -> 
AJ121: Profitability Index -Without Loan | AK121: =title329 -> Industrial | AL121: USD | AM121: =IF($AJ$93,0,INDIRECT($AQ$113&$AK121&"_"&AM$110&"!D96")) -> 0 | AN121: =IF($AK$93,0,INDIRECT($AQ$113&$AK121&"_"&AN$110&"!D96")) -> 0 | AO121: =IF($AL$93,0,INDIRECT($AQ$113&$AK121&"_"&AO$110&"!D96")) -> 0
AK122: =title374 -> Total Collection | AL122: Jobs | AM122: =IF($AJ$93,0,IF(OR('Data Entry Needs'!$C$16,$AJ$75),0,ROUNDUP(INDIRECT("PRICE_"&AM$110&"!D18")*VLOOKUP($AQ$112,$AK$112:$AO$114,3,FALSE)/IF(INDIRECT("PRICE_"&AM$110&"!F9")=title229,'Data Entry Needs'!$D$38,'Data Entry Needs'!$I$38)/$AQ$114,0))) -> 0 | AN122: =IF($AK$93,0,IF(OR('Data Entry Needs'!$C$16,$AJ$76),0,ROUNDUP(INDIRECT("PRICE_"&AN$110&"!D18")*VLOOKUP($AQ$112,$AK$112:$AO$114,4,FALSE)/IF(INDIRECT("PRICE_"&AN$110&"!F9")=title229,'Data Entry Needs'!$D$38,'Data Entry Needs'!$I$38)/$AQ$114,0))) -> 0 | AO122: =IF($AL$93,0,IF(OR('Data Entry Needs'!$C$16,$AJ$77),0,ROUNDUP(INDIRECT("PRICE_"&AO$110&"!D18")*VLOOKUP($AQ$112,$AK$112:$AO$114,5,FALSE)/IF(INDIRECT("PRICE_"&AO$110&"!F9")=title229,'Data Entry Needs'!$D$38,'Data Entry Needs'!$I$38)/$AQ$114,0))) -> 0
AK123: =title319 -> Processing | AL123: Jobs | AM123: =IF($AJ$93,0,(INDIRECT("COST_"&AM$110&"!"&$AQ$111&44)+INDIRECT("COST_"&AM$110&"!"&$AQ$111&45))) -> 0 | AN123: =IF($AK$93,0,(INDIRECT("COST_"&AN$110&"!"&$AQ$111&44)+INDIRECT("COST_"&AN$110&"!"&$AQ$111&45))) -> 0 | AO123: =IF($AL$93,0,(INDIRECT("COST_"&AO$110&"!"&$AQ$111&44)+INDIRECT("COST_"&AO$110&"!"&$AQ$111&45))) -> 0
AJ124: Tech | AK124: =title375 -> Rural Households Supplied | AL124: hh | AM124: =IF($AJ$93,0,ROUNDDOWN($AQ$115/$AI110*AM$115,0)) -> 0 | AN124: =IF($AK$93,0,ROUNDDOWN($AQ$115/$AI110*AN$115,0)) -> 0 | AO124: =IF($AL$93,0,ROUNDDOWN($AQ$115/$AI110*AO$115,0)) -> 0
AJ125: Tech | AK125: =title376 -> Urban Households Supplied | AL125: hh | AM125: =IF($AJ$93,0,ROUNDDOWN($AQ$115/$AI111*AM$115,0)) -> 0 | AN125: =IF($AK$93,0,ROUNDDOWN($AQ$115/$AI111*AN$115,0)) -> 0 | AO125: =IF($AL$93,0,ROUNDDOWN($AQ$115/$AI111*AO$115,0)) -> 0
AJ126: Tech | AK126: =title377 -> Industries Supplied | AL126: hh | AM126: =IF($AJ$93,0,ROUNDDOWN($AQ$115/$AI112*AM$115,0)) -> 0 | AN126: =IF($AK$93,0,ROUNDDOWN($AQ$115/$AI112*AN$115,0)) -> 0 | AO126: =IF($AL$93,0,ROUNDDOWN($AQ$115/$AI112*AO$115,0)) -> 0
AJ127: Traditional | AK127: =title375 -> Rural Households Supplied | AL127: hh | AM127: =IF($AJ$93,0,ROUNDDOWN(IF($AQ$112=title350,$AR$119,$AR$120)/$AI110*AL$141,0)) -> 0 | AN127: 0 | AO127: 0
AJ128: Traditional | AK128: =title376 -> Urban Households Supplied | AL128: hh | AM128: 0 | AN128: 0 | AO128: 0
AJ129: Traditional | AK129: =title377 -> Industries Supplied | AL129: hh | AM129: 0 | AN129: 0 | AO129: 0
AK131: Chart 1
AM132: =$AH$75 -> Please Select | AN132: =$AH$76 -> Please Select | AO132: =$AH$77 -> Please Select
AK133: =+IF($AQ$112=title350,title361,"") -> Traditional Small Scale Production | AL133: =+IF($AQ$112=title350,$AS$119,"") ->  | AM133: =+IF($AQ$112=title350,$AS$119,"") ->  | AN133: =+IF($AQ$112=title350,$AS$119,"") ->  | AO133: =+IF($AQ$112=title350,$AS$119,"") ->  | AP133: =+IF($AQ$112=title350,$AS$119,"") -> 
AK134: =+IF(OR($AQ$112=title209,$AQ$112=title208),title362&AQ$112&title363,"") ->  | AL134: =IF(OR($AQ$112=title209,$AQ$112=title208),$AS$120,"") -> 
AK135: =+title364&$AH$81&LOWER(title352) -> Requirement Oil drum technology | AL135: =+VLOOKUP($AH$81,$AI$102:$AU$108,11,FALSE) -> 32.85 | AM135: 32.85 | AN135: 32.85 | AO135: 32.85 | AP135: 32.85 | AQ135: 32.85 | AR135: 32.85
AK136: =+title365&$AQ$112&title363 -> Biomass available small scale Production | AM136: =+IFERROR(VLOOKUP($AQ$112,$AK$112:$AO$114,3,FALSE),0) ->  | AN136: =+IFERROR(VLOOKUP($AQ$112,$AK$112:$AO$114,4,FALSE),0) ->  | AO136: =+IFERROR(VLOOKUP($AQ$112,$AK$112:$AO$114,5,FALSE),0) -> 
AK138: Chart 2
AL139: =+AM132 -> Please Select | AM139: =+AN132 -> Please Select | AN139: =+AO132 -> Please Select
AK140: =title366&$AQ$112 -> Sustainable Number of Plants - small scale | AL140: =+AM115 -> 0 | AM140: =+AN115 -> 0 | AN140: =+AO115 -> 0
AK141: =title367&IF($AQ$112=title350,$AQ$119,$AQ$120) -> Number of Plants - Traditional Small Scale | AL141: =IFERROR(IF($AQ$112=title350,ROUNDDOWN(AM136/$AS$119,0),ROUNDDOWN(AM136/$AS$120,0)),0) -> 0 | AM141: =IFERROR(IF($AQ$112=title350,ROUNDDOWN(AN136/$AS$119,0),ROUNDDOWN(AN136/$AS$120,0)),0) -> 0 | AN141: =IFERROR(IF($AQ$112=title350,ROUNDDOWN(AO136/$AS$119,0),ROUNDDOWN(AO136/$AS$120,0)),0) -> 0
AK142: Chart 3
AL143: =+title368&$AQ$112 -> Traditional small scale | AM143: =+AL139 -> Please Select | AN143: =+AM139 -> Please Select | AO143: =+AN139 -> Please Select
AK144: =title369 -> Production Cost Sup | AL144: =VLOOKUP($AH$81,$AI$102:$AV$108,14,FALSE)*(1+$L$1) ->  | AM144: =+AM$111*(1+$L$1) -> 0 | AN144: =+AN$111*(1+$L$1) -> 0 | AO144: =+AO$111*(1+$L$1) -> 0
AJ145: =+IF($L$1>0,TRUE,FALSE) -> TRUE | AK145: =title370 -> Production Cost inf | AL145: =IF($AJ$145,VLOOKUP($AH$81,$AI$102:$AV$108,14,FALSE)*(1-$L$1),"") ->  | AM145: =IF($AJ$145,AM$111*(1-$L$1),"") -> 0 | AN145: =IF($AJ$145,AN$111*(1-$L$1),"") -> 0 | AO145: =IF($AJ$145,AO$111*(1-$L$1),"") -> 0
AJ146: =+AG115 -> TRUE | AK146: =IF(AJ146,AH115,"") -> Price Rural (USD/kg) | AL146: =+$AI$115 -> 0 | AM146: =+$AI$115 -> 0 | AN146: =+$AI$115 -> 0 | AO146: =+$AI$115 -> 0 | AP146: =+$AI$115 -> 0
AJ147: =+AG116 -> TRUE | AK147: =IF(AJ147,AH116,"") -> Price Urban (USD/kg) | AL147: =+$AI$116 -> 0 | AM147: =+$AI$116 -> 0 | AN147: 0 | AO147: 0 | AP147: 0 | AQ147: 0 | AR147: 0
AJ148: =+AG117 -> TRUE | AK148: =IF(AJ148,AH117,"") -> Price Industrial (USD/kg) | AL148: =+$AI$117 -> 0 | AM148: =+$AI$117 -> 0 | AN148: 0 | AO148: 0 | AP148: 0 | AQ148: 0
AK151: Chart 4
AL152: =+AM$143 -> Please Select | AM152: =+AN$143 -> Please Select | AN152: =+AO$143 -> Please Select
AJ153: =+AG115 -> TRUE | AK153: =IF($AJ153,AK116,"") -> Rural | AL153: =+IF($AJ153,AM116,"") -> 0 | AM153: 0 | AN153: 0
AJ154: =+AG116 -> TRUE | AK154: =IF($AJ154,AK117,"") -> Urban | AL154: 0 | AM154: 0 | AN154: 0
AJ155: =+AG117 -> TRUE | AK155: =IF($AJ155,AK118,"") -> Industrial | AL155: 0 | AM155: 0 | AN155: 0
AK157: Chart 5
AL158: =+AM$143 -> Please Select | AM158: =+AN$143 -> Please Select | AN158: =+AO$143 -> Please Select
AJ159: =+AJ153 -> TRUE | AK159: =IF($AJ159,AK119,"") -> Rural | AL159: =+IF($AJ159,AM119,"") -> 0 | AM159: 0 | AN159: =+IF($AJ159,AO119,"") -> 0
AJ160: =+AJ154 -> TRUE | AK160: =IF($AJ160,AK120,"") -> Urban | AL160: 0 | AM160: 0 | AN160: =+IF($AJ160,AO120,"") -> 0
AJ161: =+AJ155 -> TRUE | AK161: =IF($AJ161,AK121,"") -> Industrial | AL161: 0 | AM161: 0 | AN161: =+IF($AJ161,AO121,"") -> 0
AK163: Chart 6
AL164: =+AM$143 -> Please Select | AM164: =+AN$143 -> Please Select | AN164: =+AO$143 -> Please Select
AJ165: =title318 -> Collection | AK165: =title318 -> Collection | AL165: =+AM122*AL140 -> 0 | AM165: =+AN122 -> 0 | AN165: =+AO122 -> 0
AJ166: =title319 -> Processing | AK166: =title319 -> Processing | AL166: =+AM123*AL140 -> 0 | AM166: =+AN123*AM140 -> 0 | AN166: =+AO123*AN140 -> 0
AK167: =title368&$AQ$112 -> Traditional small scale | AL167: =+IF($AQ$112=title350,$AT$119,$AT$120)*AL$141 ->  | AM167: =+IF($AQ$112=title350,$AT$119,$AT$120)*AM$141 ->  | AN167: =+IF($AQ$112=title350,$AT$119,$AT$120)*AN$141 ->  | AO167: =+IFERROR(MAX(AL165:AN167)*1.2,0) -> 0
AK169: Chart 7
AJ170: 1 | AM170: =+AM$143 -> Please Select | AN170: =+AN$143 -> Please Select | AO170: =+AO$143 -> Please Select
AI171: =+IF($AJ$170=2,TRUE,FALSE) -> FALSE | AJ171: =+IF($AJ$170=2,TRUE,FALSE) -> FALSE | AK171: =+AK124 -> Rural Households Supplied | AL171: =IF($AJ171,$AH$81,"") ->  | AM171: =+IF($AJ171,AM124,"") ->  | AN171: =+IF($AJ171,AN124,"") ->  | AO171: =+IF($AJ171,AO124,"") -> 
AI172: =+IF($AJ$170=2,TRUE,FALSE) -> FALSE | AJ172: =+IF($AJ$170=2,TRUE,FALSE) -> FALSE | AL172: =IF($AJ172,$AQ$112,"") ->  | AM172: =+IF($AJ172,AM127,"") ->  | AN172: =+IF($AJ172,AN127,"") ->  | AO172: =+IF($AJ172,AO127,"") -> 
AI173: =+IF($AJ$170=3,TRUE,FALSE) -> FALSE | AJ173: =+IF($AJ$170=3,TRUE,FALSE) -> FALSE | AK173: =+AK125 -> Urban Households Supplied | AL173: =IF($AJ173,$AH$81,"") ->  | AM173: =+IF($AJ173,AM125,"") ->  | AN173: =+IF($AJ173,AN125,"") ->  | AO173: =+IF($AJ173,AO125,"") -> 
AI174: =+IF($AJ$170=3,TRUE,FALSE) -> FALSE | AJ174: =+IF($AJ$170=3,TRUE,FALSE) -> FALSE | AL174: =IF($AJ174,$AQ$112,"") ->  | AM174: =+IF($AJ174,AM128,"") ->  | AN174: =+IF($AJ174,AN128,"") ->  | AO174: =+IF($AJ174,AO128,"") -> 
AI175: =+IF($AJ$170=1,TRUE,FALSE) -> TRUE | AJ175: =+IF($AJ$170=1,TRUE,FALSE) -> TRUE | AK175: =+AK126 -> Industries Supplied | AL175: =IF($AJ175,$AH$81,"") -> Oil drum | AM175: =+IF($AJ175,AM126,"") -> 0 | AN175: =+IF($AJ175,AN126,"") -> 0 | AO175: =+IF($AJ175,AO126,"") -> 0
AI176: =+IF($AJ$170=1,TRUE,FALSE) -> TRUE | AJ176: =+IF($AJ$170=1,TRUE,FALSE) -> TRUE | AL176: =IF($AJ176,$AQ$112,"") -> small scale | AM176: =+IF($AJ176,AM129,"") -> 0 | AN176: =+IF($AJ176,AN129,"") -> 0 | AO176: =+IF($AJ176,AO129,"") -> 0

Sheet Oil_drum_Rural_RES1 (hidden)
B2: =UPPER(title381&COST_RES1!$F$22&title382) -> FINANCIAL EVALUATION OF CHARCOAL PRODUCTION IN OIL DRUM - RURAL LEVEL
B4: =title383 -> Revenues of biomass charcoal system
B5: =title384 -> Operating Year | D5: 0 | E5: 1 | F5: 2 | G5: 3
B7: =title385 -> Charcoal production capacity (tons per year) | D7: =COST_RES1!F24 -> 6.57 | E7: =D7 -> 6.57 | F7: =E7 -> 6.57 | G7: =F7 -> 6.57
B9: =title386 -> Efficiency % of charcoal kiln | D9: =COST_RES1!F25 -> 0.2 | E9: =D9 -> 0.2 | F9: =E9 -> 0.2 | G9: =F9 -> 0.2
B11: =title244 -> Operating hours per year | D11: =COST_RES1!F23 -> 0 | E11: =D11 -> 0 | F11: =E11 -> 0 | G11: =F11 -> 0
B13: =title387 -> Charcoal production (tons per year) | D13: =D7 -> 6.57 | E13: =E7 -> 6.57 | F13: =F7 -> 6.57 | G13: =G7 -> 6.57
B14: =title388 -> Total charcoal sold to customers (tons per year) | D14: =SUM(D13:D13) -> 6.57 | E14: =SUM(E13:E13) -> 6.57 | F14: =SUM(F13:F13) -> 6.57 | G14: =SUM(G13:G13) -> 6.57
B16: =title389 -> Price of charcoal (USD/kg)-Small Scale | D16: ='Data Entry Needs'!$D$52 -> 0 | E16: =+D16 -> 0 | F16: =+E16 -> 0 | G16: =+F16 -> 0
B18: =title390 -> Income of charcoal-Small Scale (USD per year) | D18: =D14*D16*1000 -> 0 | E18: =E14*E16*1000 -> 0 | F18: =F14*F16*1000 -> 0 | G18: =G14*G16*1000 -> 0
B20: =title391 -> Lifespan of civil work (years) | D20: =+Investment!$G$18 -> 3
B21: =title392 -> Lifespan of charcoal system (years) | D21: =+Investment!$G$18 -> 3
B22: =title393 -> Project lifetime (years) | D22: =+Investment!$G$18 -> 3
B25: =title394 -> Capital and operating cost of biomass charcoal system
B27: =title384 -> Operating Year | D27: =title398 -> Appraisal | E27: =title399 -> Project period (years) | F27: =title400 -> Per kiln per year
B28: =title395 -> Capital cost (USD) | D28: Total
B29: =title264 -> Equipment | D29: =E29*F29 -> 0 | E29: =+D20 -> 3 | F29: =COST_RES1!F62 -> 0
B30: =title265 -> Building | D30: =E30*F30 -> 0 | E30: =+D21 -> 3 | F30: =COST_RES1!F63 -> 0
B31: =title266 -> Installation | D31: =E31*F31 -> 0 | E31: =+D22 -> 3 | F31: =COST_RES1!F64 -> 0
B32: =title396 -> Total capital cost (USD) | D32: =SUM(D29:D31) -> 0 | F32: =SUM(F29:F31) -> 0
B34: =title397 -> Capital cost (USD/kg of Charcoal) | D34: =D32/(D13*1000) -> 0
B36: =title384 -> Operating Year | D36: =title398 -> Appraisal | E36: 1 | F36: 2 | G36: 3
B37: =title401 -> Annual operating and maintenance cost
B38: =title402 -> Sub-total material cost (USD) | D38: =((D39*D40)) -> 0 | E38: =((E39*E40)) -> 0 | F38: =((F39*F40)) -> 0 | G38: =((G39*G40)) -> 0
B39: =title403 -> Biomass consumption (tonne per year) | D39: =D13/D9 -> 32.85 | E39: =E13/E9 -> 32.85 | F39: =F13/F9 -> 32.85 | G39: =G13/G9 -> 32.85
B40: =title404 -> Biomass price (USD/ton) | D40: =SUM(D41:D42) -> 0 | E40: =SUM(E41:E42) -> 0 | F40: =SUM(F41:F42) -> 0 | G40: =SUM(G41:G42) -> 0
B41: =title405 -> Biomass cost of collection (USD/ton) | D41: =+COST_RES1!$E$39 -> 0 | E41: =D41 -> 0 | F41: =E41 -> 0 | G41: =F41 -> 0
B42: =title406 -> Biomass transportation cost (USD/ton) | D42: =D43*D44 -> 0 | E42: =E43*E44 -> 0 | F42: =F43*F44 -> 0 | G42: =G43*G44 -> 0
B43: =title407 -> Biomass from farm to plant (USD/ton/km) | D43: =COST_RES1!E50 -> 0 | E43: =+D43 -> 0 | F43: =+D43 -> 0 | G43: =+D43 -> 0
B44: =title408 -> Transportation distance 1 (km) | D44: =+COST_RES1!$F$26 -> 0 | E44: =D44 -> 0 | F44: =E44 -> 0 | G44: =F44 -> 0
B45: =title409 -> Sub-total operating cost (USD) | D45: =D46+D47+D48 -> 0 | E45: =E46+E47+E48 -> 0 | F45: =F46+F47+F48 -> 0 | G45: =G46+G47+G48 -> 0
B46: =title410 -> Labour cost (USD) | D46: =COST_RES1!G46 -> 0 | E46: =+D46 -> 0 | F46: =+E46 -> 0 | G46: =+F46 -> 0
B47: =title269 -> Plant overhead | D47: =COST_RES1!G71 -> 0 | E47: =D47 -> 0 | F47: =E47 -> 0 | G47: 0
B48: =title270 -> General and administrative cost | D48: =COST_RES1!G72 -> 0 | E48: =D48 -> 0 | F48: 0 | G48: 0
B49: =title411 -> Sub-total maintenance cost (USD) | D49: =F32*'Data Entry Needs'!$I$49 -> 0 | E49: =D49 -> 0 | F49: 0 | G49: 0
B51: =title412 -> Sub-total of annual fixed cost | D51: =F32 -> 0 | E51: =D51 -> 0 | F51: =E51 -> 0 | G51: =F51 -> 0
B53: =title413 -> Sub-total of storage cost | D53: =COST_RES1!G58 ->  | E53: =D53 ->  | F53: =E53 ->  | G53: =F53 -> 
B55: =title414 -> Sub-total of transportation of charcoal to market | D55: =COST_RES1!G51 -> 0 | E55: =D55 -> 0 | F55: =E55 -> 0 | G55: =F55 -> 0
B57: =title415 -> Total operation and maintenance cost (USD) | D57: =D38+D45+D49+D51+D53+D55 ->  | E57: =E38+E45+E49+E51+E53+E55 ->  | F57: =F38+F45+F49+F51+F53+F55 ->  | G57: =G38+G45+G49+G51+G53+G55 -> 
B58: =title416 -> Operation and maintenance cost (USD/kg of charcoal) without loan interest | D58: =D57/(D13*1000) ->  | E58: =E57/(E13*1000) ->  | F58: =F57/(F13*1000) ->  | G58: =G57/(G13*1000) -> 
B60: =title190 -> Financial parameters
B61: =title384 -> Operating Year | D61: =title398 -> Appraisal | E61: 1 | F61: 2 | G61: 3
B62: =title191 -> Discount rate (%) | D62: =+'Data Entry Needs'!$D$57 -> 0
B63: =title192 -> Loan ratio (%) | D63: =+'Data Entry Needs'!$D$58 -> 0
B66: =title384 -> Operating Year | D66: =title398 -> Appraisal
B67: =title417 -> Loan amount (USD) | D67: =D63*(D32) -> 0
B68: =title193 -> Loan interest rate (%) | D68: =+'Data Entry Needs'!$D$59 -> 0
B69: =title418 -> Loan term (years) | D69: =D20 -> 3
B70: =title419 -> Loan payment (USD/year) | D70: =(PMT($D$68,($D$69),$D$67)) -> 0
B71: =title419 -> Loan payment (USD/year) | E71: =D70 -> 0 | F71: =+E71 -> 0 | G71: =+F71 -> 0
B72: =title420 -> Total loan payment (USD) | D72: =SUM(E71:G71) -> 0
B73: =title421 -> Loan interest payment (USD) | D73: =D72+D67 -> 0 | E73: =title422 -> loan interest payment for project lifetime
B75: =title287 -> Depreciation
B76: =title384 -> Operating Year | D76: =title398 -> Appraisal | E76: 1 | F76: 2 | G76: 3
B77: =title423 -> Depreciation method | D77: =title425 -> Straight-line
B78: =title424 -> Total depreciation (USD) | E78: =+COST_RES1!$F$65 -> 0 | F78: =E78 -> 0 | G78: =F78 -> 0
B80: =title426 -> Base case Project Summary
B81: =title427 -> Summary of this project
B82: =title384 -> Operating Year | D82: =title398 -> Appraisal | E82: 1 | F82: 2 | G82: 3
B83: =title428 -> Total revenue (USD) | E83: =E14*1000*E16 -> 0 | F83: =F14*1000*F16 -> 0 | G83: =G14*1000*G16 -> 0
B84: =title396 -> Total capital cost (USD) | D84: =-D32*(1-$D$63) -> 0
B85: =title429 -> Total operating and maintenance cost (USD) | E85: =-E57+E51 ->  | F85: =-F57+F51 ->  | G85: =-G57+G51 -> 
B86: =title430 -> Loan payment (USD) | E86: =+E71 -> 0 | F86: =+F71 -> 0 | G86: =+G71 -> 0
B87: =title431 -> Cash flow with loan (USD) | D87: =SUM(D83:D86) -> 0 | E87: =SUM(E83:E86) ->  | F87: =SUM(F83:F86) ->  | G87: =SUM(G83:G86) -> 
B88: =title432 -> Cash flow without loan (USD) | D88: =-D32 -> 0 | E88: =+E83+E85 ->  | F88: =+F83+F85 ->  | G88: =+G83+G85 -> 
B89: =title384 -> Operating Year | D89: =title398 -> Appraisal | E89: 1 | F89: 2 | G89: 3
B90: =title433 -> Cumulative value of Net Profit | D90: =D87 -> 0 | E90: =D90+(E87) ->  | F90: =E90+(F87) ->  | G90: =F90+(G87) -> 
B92: =title434 -> Financial Analysis Result
B94: =title435 -> Net Present Value (NPV) (USD) | D94: =NPV(D62,E87:J87)+D87 -> 
B95: =title436 -> Internal Rate of Return (IRR) (%) - without loan | D95: =IF(D94<0,title438,IRR(D88:J88,0.001)) -> 
B96: =title437 -> Profitability Index - without loan | D96: =+NPV($D$62,E88:J88)/-D88 -> 

Sheet Oil_drum_Urban_RES1 (hidden)
B2: =UPPER(title381&COST_RES1!$F$22&title439) -> FINANCIAL EVALUATION OF CHARCOAL PRODUCTION IN OIL DRUM - URBAN LEVEL
B4: =title383 -> Revenues of biomass charcoal system
B5: =title384 -> Operating Year | D5: 0 | E5: 1 | F5: 2 | G5: 3
B7: =title385 -> Charcoal production capacity (tons per year) | D7: =COST_RES1!F24 -> 6.57 | E7: =D7 -> 6.57 | F7: =E7 -> 6.57 | G7: =F7 -> 6.57
B9: =title386 -> Efficiency % of charcoal kiln | D9: =COST_RES1!F25 -> 0.2 | E9: =D9 -> 0.2 | F9: =E9 -> 0.2 | G9: =F9 -> 0.2
B11: =title244 -> Operating hours per year | D11: =COST_RES1!F23 -> 0 | E11: =D11 -> 0 | F11: =E11 -> 0 | G11: =F11 -> 0
B13: =title387 -> Charcoal production (tons per year) | D13: =D7 -> 6.57 | E13: =E7 -> 6.57 | F13: =F7 -> 6.57 | G13: =G7 -> 6.57
B14: =title388 -> Total charcoal sold to customers (tons per year) | D14: =SUM(D13:D13) -> 6.57 | E14: =SUM(E13:E13) -> 6.57 | F14: =SUM(F13:F13) -> 6.57 | G14: =SUM(G13:G13) -> 6.57
B16: =title389 -> Price of charcoal (USD/kg)-Small Scale | D16: =+'Data Entry Needs'!$D$53*'Data Entry Needs'!$I$52 -> 0 | E16: =+D16 -> 0 | F16: =+E16 -> 0 | G16: =+F16 -> 0
B18: =title390 -> Income of charcoal-Small Scale (USD per year) | D18: =D14*D16*1000 -> 0 | E18: =E14*E16*1000 -> 0 | F18: =F14*F16*1000 -> 0 | G18: =G14*G16*1000 -> 0
B20: =title391 -> Lifespan of civil work (years) | D20: =+Investment!$G$18 -> 3
B21: =title392 -> Lifespan of charcoal system (years) | D21: =+Investment!$G$18 -> 3
B22: =title393 -> Project lifetime (years) | D22: =+Investment!$G$18 -> 3
B25: =title394 -> Capital and operating cost of biomass charcoal system
B27: =title384 -> Operating Year | D27: =title398 -> Appraisal | E27: =title399 -> Project period (years) | F27: =title400 -> Per kiln per year
B28: =title395 -> Capital cost (USD) | D28: Total
B29: =title264 -> Equipment | D29: =E29*F29 -> 0 | E29: =+D20 -> 3 | F29: =COST_RES1!F62 -> 0
B30: =title265 -> Building | D30: =E30*F30 -> 0 | E30: =+D21 -> 3 | F30: =COST_RES1!F63 -> 0
B31: =title266 -> Installation | D31: =E31*F31 -> 0 | E31: =+D22 -> 3 | F31: =COST_RES1!F64 -> 0
B32: =title396 -> Total capital cost (USD) | D32: =SUM(D29:D31) -> 0 | F32: =SUM(F29:F31) -> 0
B34: =title397 -> Capital cost (USD/kg of Charcoal) | D34: =D32/(D13*1000) -> 0
B36: =title384 -> Operating Year | D36: =title398 -> Appraisal | E36: 1 | F36: 2 | G36: 3
B37: =title401 -> Annual operating and maintenance cost
B38: =title402 -> Sub-total material cost (USD) | D38: =((D39*D40)) -> 0 | E38: =((E39*E40)) -> 0 | F38: =((F39*F40)) -> 0 | G38: =((G39*G40)) -> 0
B39: =title403 -> Biomass consumption (tonne per year) | D39: =D13/D9 -> 32.85 | E39: =E13/E9 -> 32.85 | F39: =F13/F9 -> 32.85 | G39: =G13/G9 -> 32.85
B40: =title404 -> Biomass price (USD/ton) | D40: =SUM(D41:D42) -> 0 | E40: =SUM(E41:E42) -> 0 | F40: =SUM(F41:F42) -> 0 | G40: =SUM(G41:G42) -> 0
B41: =title405 -> Biomass cost of collection (USD/ton) | D41: =+COST_RES1!$E$39 -> 0 | E41: =D41 -> 0 | F41: =E41 -> 0 | G41: =F41 -> 0
B42: =title406 -> Biomass transportation cost (USD/ton) | D42: =D43*D44 -> 0 | E42: =E43*E44 -> 0 | F42: =F43*F44 -> 0 | G42: =G43*G44 -> 0
B43: =title407 -> Biomass from farm to plant (USD/ton/km) | D43: =COST_RES1!E50 -> 0 | E43: =+D43 -> 0 | F43: =+D43 -> 0 | G43: =+D43 -> 0
B44: =title408 -> Transportation distance 1 (km) | D44: =+COST_RES1!$F$26 -> 0 | E44: =D44 -> 0 | F44: =E44 -> 0 | G44: =F44 -> 0
B45: =title409 -> Sub-total operating cost (USD) | D45: =D46+D47+D48 -> 0 | E45: =E46+E47+E48 -> 0 | F45: =F46+F47+F48 -> 0 | G45: =G46+G47+G48 -> 0
B46: =title410 -> Labour cost (USD) | D46: =COST_RES1!G46 -> 0 | E46: =+D46 -> 0 | F46: =+E46 -> 0 | G46: =+F46 -> 0
B47: =title269 -> Plant overhead | D47: =COST_RES1!G71 -> 0 | E47: =D47 -> 0 | F47: =E47 -> 0 | G47: 0
B48: =title270 -> General and administrative cost | D48: =COST_RES1!G72 -> 0 | E48: =D48 -> 0 | F48: 0 | G48: 0
B49: =title411 -> Sub-total maintenance cost (USD) | D49: =F32*'Data Entry Needs'!$I$49 -> 0 | E49: =D49 -> 0 | F49: 0 | G49: 0
B51: =title412 -> Sub-total of annual fixed cost | D51: =F32 -> 0 | E51: =D51 -> 0 | F51: =E51 -> 0 | G51: =F51 -> 0
B53: =title413 -> Sub-total of storage cost | D53: =COST_RES1!G58 ->  | E53: =D53 ->  | F53: =E53 ->  | G53: =F53 -> 
B55: =title414 -> Sub-total of transportation of charcoal to market | D55: =COST_RES1!G51 -> 0 | E55: =D55 -> 0 | F55: =E55 -> 0 | G55: =F55 -> 0
B57: =title415 -> Total operation and maintenance cost (USD) | D57: =D38+D45+D49+D51+D53+D55 ->  | E57: =E38+E45+E49+E51+E53+E55 ->  | F57: =F38+F45+F49+F51+F53+F55 ->  | G57: =G38+G45+G49+G51+G53+G55 -> 
B58: =title416 -> Operation and maintenance cost (USD/kg of charcoal) without loan interest | D58: =D57/(D13*1000) ->  | E58: =E57/(E13*1000) ->  | F58: =F57/(F13*1000) ->  | G58: =G57/(G13*1000) -> 
B60: =title190 -> Financial parameters
B61: =title384 -> Operating Year | D61: =title398 -> Appraisal | E61: 1 | F61: 2 | G61: 3
B62: =title191 -> Discount rate (%) | D62: =+'Data Entry Needs'!$D$57 -> 0
B63: =title192 -> Loan ratio (%) | D63: =+'Data Entry Needs'!$D$58 -> 0
B66: =title384 -> Operating Year | D66: =title398 -> Appraisal
B67: =title417 -> Loan amount (USD) | D67: =D63*(D32) -> 0
B68: =title193 -> Loan interest rate (%) | D68: =+'Data Entry Needs'!$D$59 -> 0
B69: =title418 -> Loan term (years) | D69: =D20 -> 3
B70: =title419 -> Loan payment (USD/year) | D70: =(PMT($D$68,($D$69),$D$67)) -> 0
B71: =title419 -> Loan payment (USD/year) | E71: =D70 -> 0 | F71: =+E71 -> 0 | G71: =+F71 -> 0
B72: =title420 -> Total loan payment (USD) | D72: =SUM(E71:G71) -> 0
B73: =title421 -> Loan interest payment (USD) | D73: =D72+D67 -> 0 | E73: =title422 -> loan interest payment for project lifetime
B75: =title287 -> Depreciation
B76: =title384 -> Operating Year | D76: =title398 -> Appraisal | E76: 1 | F76: 2 | G76: 3
B77: =title423 -> Depreciation method | D77: =title425 -> Straight-line
B78: =title424 -> Total depreciation (USD) | E78: =+COST_RES1!$F$65 -> 0 | F78: =E78 -> 0 | G78: =F78 -> 0
B80: =title426 -> Base case Project Summary
B81: =title427 -> Summary of this project
B82: =title384 -> Operating Year | D82: =title398 -> Appraisal | E82: 1 | F82: 2 | G82: 3
B83: =title428 -> Total revenue (USD) | E83: =E14*1000*E16 -> 0 | F83: =F14*1000*F16 -> 0 | G83: =G14*1000*G16 -> 0
B84: =title396 -> Total capital cost (USD) | D84: =-D32*(1-$D$63) -> 0
B85: =title429 -> Total operating and maintenance cost (USD) | E85: =-E57+E51 ->  | F85: =-F57+F51 ->  | G85: =-G57+G51 -> 
B86: =title430 -> Loan payment (USD) | E86: =+E71 -> 0 | F86: =+F71 -> 0 | G86: =+G71 -> 0
B87: =title431 -> Cash flow with loan (USD) | D87: =SUM(D83:D86) -> 0 | E87: =SUM(E83:E86) ->  | F87: =SUM(F83:F86) ->  | G87: =SUM(G83:G86) -> 
B88: =title432 -> Cash flow without loan (USD) | D88: =-D32 -> 0 | E88: =+E83+E85 ->  | F88: =+F83+F85 ->  | G88: =+G83+G85 -> 
B89: =title384 -> Operating Year | D89: =title398 -> Appraisal | E89: 1 | F89: 2 | G89: 3
B90: =title433 -> Cumulative value of Net Profit | D90: =D87 -> 0 | E90: =D90+(E87) ->  | F90: =E90+(F87) ->  | G90: =F90+(G87) -> 
B92: =title434 -> Financial Analysis Result
B94: =title435 -> Net Present Value (NPV) (USD) | D94: =NPV(D62,E87:J87)+D87 -> 
B95: =title436 -> Internal Rate of Return (IRR) (%) - without loan | D95: =IF(D94<0,title438,IRR(D88:J88,0.001)) -> 
B96: =title437 -> Profitability Index - without loan | D96: =+NPV($D$62,E88:J88)/-D88 -> 

Sheet Oil_drum_Industrial_RES1 (hidden)
B2: =UPPER(title381&COST_RES1!$F$22&title440) -> FINANCIAL EVALUATION OF CHARCOAL PRODUCTION IN OIL DRUM - INDUSTRIAL LEVEL
B4: =title383 -> Revenues of biomass charcoal system
B5: =title384 -> Operating Year | D5: 0 | E5: 1 | F5: 2 | G5: 3
B7: =title385 -> Charcoal production capacity (tons per year) | D7: =COST_RES1!F24 -> 6.57 | E7: =D7 -> 6.57 | F7: =E7 -> 6.57 | G7: =F7 -> 6.57
B9: =title386 -> Efficiency % of charcoal kiln | D9: =COST_RES1!F25 -> 0.2 | E9: =D9 -> 0.2 | F9: =E9 -> 0.2 | G9: =F9 -> 0.2
B11: =title244 -> Operating hours per year | D11: =COST_RES1!F23 -> 0 | E11: =D11 -> 0 | F11: =E11 -> 0 | G11: =F11 -> 0
B13: =title387 -> Charcoal production (tons per year) | D13: =D7 -> 6.57 | E13: =E7 -> 6.57 | F13: =F7 -> 6.57 | G13: =G7 -> 6.57
B14: =title388 -> Total charcoal sold to customers (tons per year) | D14: =SUM(D13:D13) -> 6.57 | E14: =SUM(E13:E13) -> 6.57 | F14: =SUM(F13:F13) -> 6.57 | G14: =SUM(G13:G13) -> 6.57
B16: =title389 -> Price of charcoal (USD/kg)-Small Scale | D16: =+'Data Entry Needs'!$D$54*'Data Entry Needs'!$I$52 -> 0 | E16: =+D16 -> 0 | F16: =+E16 -> 0 | G16: =+F16 -> 0
B18: =title390 -> Income of charcoal-Small Scale (USD per year) | D18: =D14*D16*1000 -> 0 | E18: =E14*E16*1000 -> 0 | F18: =F14*F16*1000 -> 0 | G18: =G14*G16*1000 -> 0
B20: =title391 -> Lifespan of civil work (years) | D20: =+Investment!$G$18 -> 3
B21: =title392 -> Lifespan of charcoal system (years) | D21: =+Investment!$G$18 -> 3
B22: =title393 -> Project lifetime (years) | D22: =+Investment!$G$18 -> 3
B25: =title394 -> Capital and operating cost of biomass charcoal system
B27: =title384 -> Operating Year | D27: =title398 -> Appraisal | E27: =title399 -> Project period (years) | F27: =title400 -> Per kiln per year
B28: =title395 -> Capital cost (USD) | D28: Total
B29: =title264 -> Equipment | D29: =E29*F29 -> 0 | E29: =+D20 -> 3 | F29: =COST_RES1!F62 -> 0
B30: =title265 -> Building | D30: =E30*F30 -> 0 | E30: =+D21 -> 3 | F30: =COST_RES1!F63 -> 0
B31: =title266 -> Installation | D31: =E31*F31 -> 0 | E31: =+D22 -> 3 | F31: =COST_RES1!F64 -> 0
B32: =title396 -> Total capital cost (USD) | D32: =SUM(D29:D31) -> 0 | F32: =SUM(F29:F31) -> 0
B34: =title397 -> Capital cost (USD/kg of Charcoal) | D34: =D32/(D13*1000) -> 0
B36: =title384 -> Operating Year | D36: =title398 -> Appraisal | E36: 1 | F36: 2 | G36: 3
B37: =title401 -> Annual operating and maintenance cost
B38: =title402 -> Sub-total material cost (USD) | D38: =((D39*D40)) -> 0 | E38: =((E39*E40)) -> 0 | F38: =((F39*F40)) -> 0 | G38: =((G39*G40)) -> 0
B39: =title403 -> Biomass consumption (tonne per year) | D39: =D13/D9 -> 32.85 | E39: =E13/E9 -> 32.85 | F39: =F13/F9 -> 32.85 | G39: =G13/G9 -> 32.85
B40: =title404 -> Biomass price (USD/ton) | D40: =SUM(D41:D42) -> 0 | E40: =SUM(E41:E42) -> 0 | F40: =SUM(F41:F42) -> 0 | G40: =SUM(G41:G42) -> 0
B41: =title405 -> Biomass cost of collection (USD/ton) | D41: =+COST_RES1!$E$39 -> 0 | E41: =D41 -> 0 | F41: =E41 -> 0 | G41: =F41 -> 0
B42: =title406 -> Biomass transportation cost (USD/ton) | D42: =D43*D44 -> 0 | E42: =E43*E44 -> 0 | F42: =F43*F44 -> 0 | G42: =G43*G44 -> 0
B43: =title407 -> Biomass from farm to plant (USD/ton/km) | D43: =COST_RES1!E50 -> 0 | E43: =+D43 -> 0 | F43: =+D43 -> 0 | G43: =+D43 -> 0
B44: =title408 -> Transportation distance 1 (km) | D44: =+COST_RES1!$F$26 -> 0 | E44: =D44 -> 0 | F44: =E44 -> 0 | G44: =F44 -> 0
B45: =title409 -> Sub-total operating cost (USD) | D45: =D46+D47+D48 -> 0 | E45: =E46+E47+E48 -> 0 | F45: =F46+F47+F48 -> 0 | G45: =G46+G47+G48 -> 0
B46: =title410 -> Labour cost (USD) | D46: =COST_RES1!G46 -> 0 | E46: =+D46 -> 0 | F46: =+E46 -> 0 | G46: =+F46 -> 0
B47: =title269 -> Plant overhead | D47: =COST_RES1!G71 -> 0 | E47: =D47 -> 0 | F47: =E47 -> 0 | G47: 0
B48: =title270 -> General and administrative cost | D48: =COST_RES1!G72 -> 0 | E48: =D48 -> 0 | F48: 0 | G48: 0
B49: =title411 -> Sub-total maintenance cost (USD) | D49: =F32*'Data Entry Needs'!$I$49 -> 0 | E49: =D49 -> 0 | F49: 0 | G49: 0
B51: =title412 -> Sub-total of annual fixed cost | D51: =F32 -> 0 | E51: =D51 -> 0 | F51: =E51 -> 0 | G51: =F51 -> 0
B53: =title413 -> Sub-total of storage cost | D53: =COST_RES1!G58 ->  | E53: =D53 ->  | F53: =E53 ->  | G53: =F53 -> 
B55: =title414 -> Sub-total of transportation of charcoal to market | D55: =COST_RES1!G51 -> 0 | E55: =D55 -> 0 | F55: =E55 -> 0 | G55: =F55 -> 0
B57: =title415 -> Total operation and maintenance cost (USD) | D57: =D38+D45+D49+D51+D53+D55 ->  | E57: =E38+E45+E49+E51+E53+E55 ->  | F57: =F38+F45+F49+F51+F53+F55 ->  | G57: =G38+G45+G49+G51+G53+G55 -> 
B58: =title416 -> Operation and maintenance cost (USD/kg of charcoal) without loan interest | D58: =D57/(D13*1000) ->  | E58: =E57/(E13*1000) ->  | F58: =F57/(F13*1000) ->  | G58: =G57/(G13*1000) -> 
B60: =title190 -> Financial parameters
B61: =title384 -> Operating Year | D61: =title398 -> Appraisal | E61: 1 | F61: 2 | G61: 3
B62: =title191 -> Discount rate (%) | D62: =+'Data Entry Needs'!$D$57 -> 0
B63: =title192 -> Loan ratio (%) | D63: =+'Data Entry Needs'!$D$58 -> 0
B66: =title384 -> Operating Year | D66: =title398 -> Appraisal
B67: =title417 -> Loan amount (USD) | D67: =D63*(D32) -> 0
B68: =title193 -> Loan interest rate (%) | D68: =+'Data Entry Needs'!$D$59 -> 0
B69: =title418 -> Loan term (years) | D69: =D20 -> 3
B70: =title419 -> Loan payment (USD/year) | D70: =(PMT($D$68,($D$69),$D$67)) -> 0
B71: =title419 -> Loan payment (USD/year) | E71: =D70 -> 0 | F71: =+E71 -> 0 | G71: =+F71 -> 0
B72: =title420 -> Total loan payment (USD) | D72: =SUM(E71:G71) -> 0
B73: =title421 -> Loan interest payment (USD) | D73: =D72+D67 -> 0 | E73: =title422 -> loan interest payment for project lifetime
B75: =title287 -> Depreciation
B76: =title384 -> Operating Year | D76: =title398 -> Appraisal | E76: 1 | F76: 2 | G76: 3
B77: =title423 -> Depreciation method | D77: =title425 -> Straight-line
B78: =title424 -> Total depreciation (USD) | E78: =+COST_RES1!$F$65 -> 0 | F78: =E78 -> 0 | G78: =F78 -> 0
B80: =title426 -> Base case Project Summary
B81: =title427 -> Summary of this project
B82: =title384 -> Operating Year | D82: =title398 -> Appraisal | E82: 1 | F82: 2 | G82: 3
B83: =title428 -> Total revenue (USD) | E83: =E14*1000*E16 -> 0 | F83: =F14*1000*F16 -> 0 | G83: =G14*1000*G16 -> 0
B84: =title396 -> Total capital cost (USD) | D84: =-D32*(1-$D$63) -> 0
B85: =title429 -> Total operating and maintenance cost (USD) | E85: =-E57+E51 ->  | F85: =-F57+F51 ->  | G85: =-G57+G51 -> 
B86: =title430 -> Loan payment (USD) | E86: =+E71 -> 0 | F86: =+F71 -> 0 | G86: =+G71 -> 0
B87: =title431 -> Cash flow with loan (USD) | D87: =SUM(D83:D86) -> 0 | E87: =SUM(E83:E86) ->  | F87: =SUM(F83:F86) ->  | G87: =SUM(G83:G86) -> 
B88: =title432 -> Cash flow without loan (USD) | D88: =-D32 -> 0 | E88: =+E83+E85 ->  | F88: =+F83+F85 ->  | G88: =+G83+G85 -> 
B89: =title384 -> Operating Year | D89: =title398 -> Appraisal | E89: 1 | F89: 2 | G89: 3
B90: =title433 -> Cumulative value of Net Profit | D90: =D87 -> 0 | E90: =D90+(E87) ->  | F90: =E90+(F87) ->  | G90: =F90+(G87) -> 
B92: =title434 -> Financial Analysis Result
B94: =title435 -> Net Present Value (NPV) (USD) | D94: =NPV(D62,E87:J87)+D87 -> 
B95: =title436 -> Internal Rate of Return (IRR) (%) - without loan | D95: =IF(D94<0,title438,IRR(D88:J88,0.001)) -> 
B96: =title437 -> Profitability Index - without loan | D96: =+NPV($D$62,E88:J88)/-D88 -> 

Sheet Casamance_Rural_RES1 (hidden)
B2: =UPPER(title381&COST_RES1!$H$22&title382) -> FINANCIAL EVALUATION OF CHARCOAL PRODUCTION IN CASAMANCE - RURAL LEVEL
B4: =title383 -> Revenues of biomass charcoal system
B5: =title384 -> Operating Year | D5: 0 | E5: 1 | F5: 2 | G5: 3
B7: =title385 -> Charcoal production capacity (tons per year) | D7: =+COST_RES1!$H$24 -> 49.713 | E7: =D7 -> 49.713 | F7: =E7 -> 49.713 | G7: =F7 -> 49.713
B9: =title386 -> Efficiency % of charcoal kiln | D9: =+COST_RES1!$H$25 -> 0.3 | E9: =D9 -> 0.3 | F9: =E9 -> 0.3 | G9: =F9 -> 0.3
B11: =title244 -> Operating hours per year | D11: =+COST_RES1!$H$23 -> 0 | E11: =D11 -> 0 | F11: =E11 -> 0 | G11: =F11 -> 0
B13: =title387 -> Charcoal production (tons per year) | D13: =D7 -> 49.713 | E13: =E7 -> 49.713 | F13: =F7 -> 49.713 | G13: =G7 -> 49.713
B14: =title388 -> Total charcoal sold to customers (tons per year) | D14: =SUM(D13:D13) -> 49.713 | E14: =SUM(E13:E13) -> 49.713 | F14: =SUM(F13:F13) -> 49.713 | G14: =SUM(G13:G13) -> 49.713
B16: =title389 -> Price of charcoal (USD/kg)-Small Scale | D16: ='Data Entry Needs'!$D$52 -> 0 | E16: =+D16 -> 0 | F16: =+E16 -> 0 | G16: =+F16 -> 0
B18: =title390 -> Income of charcoal-Small Scale (USD per year) | D18: =D14*D16*1000 -> 0 | E18: =E14*E16*1000 -> 0 | F18: =F14*F16*1000 -> 0 | G18: =G14*G16*1000 -> 0
B20: =title391 -> Lifespan of civil work (years) | D20: =+Investment!$I$18 -> 3
B21: =title392 -> Lifespan of charcoal system (years) | D21: =+Investment!$I$18 -> 3
B22: =title393 -> Project lifetime (years) | D22: =+Investment!$I$18 -> 3
B25: =title394 -> Capital and operating cost of biomass charcoal system
B27: =title384 -> Operating Year | D27: =title398 -> Appraisal | E27: =title399 -> Project period (years) | F27: =title400 -> Per kiln per year
B28: =title395 -> Capital cost (USD) | D28: Total
B29: =title264 -> Equipment | D29: =E29*F29 -> 0 | E29: =+D20 -> 3 | F29: =+COST_RES1!H62 -> 0
B30: =title265 -> Building | D30: =E30*F30 -> 0 | E30: =+D21 -> 3 | F30: =+COST_RES1!H63 -> 0
B31: =title266 -> Installation | D31: =E31*F31 -> 0 | E31: =+D22 -> 3 | F31: =+COST_RES1!H64 -> 0
B32: =title396 -> Total capital cost (USD) | D32: =SUM(D29:D31) -> 0 | F32: =SUM(F29:F31) -> 0
B34: =title397 -> Capital cost (USD/kg of Charcoal) | D34: =D32/(D13*1000) -> 0
B36: =title384 -> Operating Year | D36: =title398 -> Appraisal | E36: 1 | F36: 2 | G36: 3
B37: =title401 -> Annual operating and maintenance cost
B38: =title402 -> Sub-total material cost (USD) | D38: =((D39*D40)) -> 0 | E38: =((E39*E40)) -> 0 | F38: =((F39*F40)) -> 0 | G38: =((G39*G40)) -> 0
B39: =title403 -> Biomass consumption (tonne per year) | D39: =D13/D9 -> 165.71 | E39: =E13/E9 -> 165.71 | F39: =F13/F9 -> 165.71 | G39: =G13/G9 -> 165.71
B40: =title404 -> Biomass price (USD/ton) | D40: =SUM(D41:D42) -> 0 | E40: =SUM(E41:E42) -> 0 | F40: =SUM(F41:F42) -> 0 | G40: =SUM(G41:G42) -> 0
B41: =title405 -> Biomass cost of collection (USD/ton) | D41: =+COST_RES1!$E$39 -> 0 | E41: =D41 -> 0 | F41: =E41 -> 0 | G41: =F41 -> 0
B42: =title406 -> Biomass transportation cost (USD/ton) | D42: =D43*D44 -> 0 | E42: =E43*E44 -> 0 | F42: =F43*F44 -> 0 | G42: =G43*G44 -> 0
B43: =title407 -> Biomass from farm to plant (USD/ton/km) | D43: =COST_RES1!E50 -> 0 | E43: =+D43 -> 0 | F43: =+D43 -> 0 | G43: =+D43 -> 0
B44: =title408 -> Transportation distance 1 (km) | D44: =+COST_RES1!$H$26 -> 0 | E44: =D44 -> 0 | F44: =E44 -> 0 | G44: =F44 -> 0
B45: =title409 -> Sub-total operating cost (USD) | D45: =D46+D47+D48 -> 0 | E45: =E46+E47+E48 -> 0 | F45: =F46+F47+F48 -> 0 | G45: =G46+G47+G48 -> 0
B46: =title410 -> Labour cost (USD) | D46: =+COST_RES1!I46 -> 0 | E46: =+D46 -> 0 | F46: =+E46 -> 0 | G46: =+F46 -> 0
B47: =title269 -> Plant overhead | D47: =COST_RES1!I71 -> 0 | E47: =D47 -> 0 | F47: =E47 -> 0 | G47: 0
B48: =title270 -> General and administrative cost | D48: =COST_RES1!I72 -> 0 | E48: =D48 -> 0 | F48: 0 | G48: 0
B49: =title411 -> Sub-total maintenance cost (USD) | D49: =F32*'Data Entry Needs'!$I$49 -> 0 | E49: =D49 -> 0 | F49: 0 | G49: 0
B51: =title412 -> Sub-total of annual fixed cost | D51: =F32 -> 0 | E51: =D51 -> 0 | F51: =E51 -> 0 | G51: =F51 -> 0
B53: =title413 -> Sub-total of storage cost | D53: =COST_RES1!I58 ->  | E53: =D53 ->  | F53: =E53 ->  | G53: =F53 -> 
B55: =title414 -> Sub-total of transportation of charcoal to market | D55: =COST_RES1!I51 -> 0 | E55: =D55 -> 0 | F55: =E55 -> 0 | G55: =F55 -> 0
B57: =title415 -> Total operation and maintenance cost (USD) | D57: =D38+D45+D49+D51+D53+D55 ->  | E57: =E38+E45+E49+E51+E53+E55 ->  | F57: =F38+F45+F49+F51+F53+F55 ->  | G57: =G38+G45+G49+G51+G53+G55 -> 
B58: =title416 -> Operation and maintenance cost (USD/kg of charcoal) without loan interest | D58: =D57/(D13*1000) ->  | E58: =E57/(E13*1000) ->  | F58: =F57/(F13*1000) ->  | G58: =G57/(G13*1000) -> 
B60: =title190 -> Financial parameters
B61: =title384 -> Operating Year | D61: =title398 -> Appraisal | E61: 1 | F61: 2 | G61: 3
B62: =title191 -> Discount rate (%) | D62: =+'Data Entry Needs'!$D$57 -> 0
B63: =title192 -> Loan ratio (%) | D63: =+'Data Entry Needs'!$D$58 -> 0
B66: =title384 -> Operating Year | D66: =title398 -> Appraisal | E66: 1 | F66: 2 | G66: 3
B67: =title417 -> Loan amount (USD) | D67: =D63*(D32) -> 0
B68: =title193 -> Loan interest rate (%) | D68: =+'Data Entry Needs'!$D$59 -> 0
B69: =title418 -> Loan term (years) | D69: =D20 -> 3
B70: =title419 -> Loan payment (USD/year) | D70: =(PMT($D$68,($D$69),$D$67)) -> 0
B71: =title419 -> Loan payment (USD/year) | E71: =D70 -> 0 | F71: =+E71 -> 0 | G71: =+F71 -> 0
B72: =title420 -> Total loan payment (USD) | D72: =SUM(E71:G71) -> 0
B73: =title421 -> Loan interest payment (USD) | D73: =D72+D67 -> 0 | E73: =title422 -> loan interest payment for project lifetime
B75: =title287 -> Depreciation
B76: =title384 -> Operating Year | D76: =title398 -> Appraisal | E76: 1 | F76: 2 | G76: 3
B77: =title423 -> Depreciation method | D77: =title425 -> Straight-line
B78: =title424 -> Total depreciation (USD) | E78: =+COST_RES1!$H$65 -> 0 | F78: =E78 -> 0 | G78: =F78 -> 0
B80: =title426 -> Base case Project Summary
B81: =title427 -> Summary of this project
B82: =title384 -> Operating Year | D82: =title398 -> Appraisal | E82: 1 | F82: 2 | G82: 3
B83: =title428 -> Total revenue (USD) | E83: =E14*1000*E16 -> 0 | F83: =F14*1000*F16 -> 0 | G83: =G14*1000*G16 -> 0
B84: =title396 -> Total capital cost (USD) | D84: =-D32*(1-$D$63)-D46 -> 0
B85: =title429 -> Total operating and maintenance cost (USD) | E85: =-E57+E51 ->  | F85: =-F57+F51 ->  | G85: =-G57+G51 -> 
B86: =title430 -> Loan payment (USD) | E86: =+E71 -> 0 | F86: =+F71 -> 0 | G86: =+G71 -> 0
B87: =title431 -> Cash flow with loan (USD) | D87: =SUM(D83:D86) -> 0 | E87: =SUM(E83:E86) ->  | F87: =SUM(F83:F86) ->  | G87: =SUM(G83:G86) -> 
B88: =title432 -> Cash flow without loan (USD) | D88: =-D32-D46 -> 0 | E88: =+E83+E85 ->  | F88: =+F83+F85 ->  | G88: =+G83+G85 -> 
B89: =title384 -> Operating Year | D89: =title398 -> Appraisal | E89: 1 | F89: 2 | G89: 3
B90: =title433 -> Cumulative value of Net Profit | D90: =D87 -> 0 | E90: =D90+(E87) ->  | F90: =E90+(F87) ->  | G90: =F90+(G87) -> 
B92: =title434 -> Financial Analysis Result
B94: =title435 -> Net Present Value (NPV) (USD) | D94: =NPV(D62,E87:J87)+D87 -> 
B95: =title436 -> Internal Rate of Return (IRR) (%) - without loan | D95: =IF(D94<0,title438,IRR(D88:J88,0.001)) -> 
B96: =title437 -> Profitability Index - without loan | D96: =+NPV($D$62,E88:J88)/-D88 -> 

Sheet Casamance_Urban_RES1 (hidden)
B2: =UPPER(title381&COST_RES1!$H$22&title439) -> FINANCIAL EVALUATION OF CHARCOAL PRODUCTION IN CASAMANCE - URBAN LEVEL
B4: =title383 -> Revenues of biomass charcoal system
B5: =title384 -> Operating Year | D5: 0 | E5: 1 | F5: 2 | G5: 3
B7: =title385 -> Charcoal production capacity (tons per year) | D7: =+COST_RES1!$H$24 -> 49.713 | E7: =D7 -> 49.713 | F7: =E7 -> 49.713 | G7: =F7 -> 49.713
B9: =title386 -> Efficiency % of charcoal kiln | D9: =+COST_RES1!$H$25 -> 0.3 | E9: =D9 -> 0.3 | F9: =E9 -> 0.3 | G9: =F9 -> 0.3
B11: =title244 -> Operating hours per year | D11: =+COST_RES1!$H$23 -> 0 | E11: =D11 -> 0 | F11: =E11 -> 0 | G11: =F11 -> 0
B13: =title387 -> Charcoal production (tons per year) | D13: =D7 -> 49.713 | E13: =E7 -> 49.713 | F13: =F7 -> 49.713 | G13: =G7 -> 49.713
B14: =title388 -> Total charcoal sold to customers (tons per year) | D14: =SUM(D13:D13) -> 49.713 | E14: =SUM(E13:E13) -> 49.713 | F14: =SUM(F13:F13) -> 49.713 | G14: =SUM(G13:G13) -> 49.713
B16: =title389 -> Price of charcoal (USD/kg)-Small Scale | D16: =+'Data Entry Needs'!$D$53*'Data Entry Needs'!$I$52 -> 0 | E16: =+D16 -> 0 | F16: =+E16 -> 0 | G16: =+F16 -> 0
B18: =title390 -> Income of charcoal-Small Scale (USD per year) | D18: =D14*D16*1000 -> 0 | E18: =E14*E16*1000 -> 0 | F18: =F14*F16*1000 -> 0 | G18: =G14*G16*1000 -> 0
B20: =title391 -> Lifespan of civil work (years) | D20: =+Investment!$I$18 -> 3
B21: =title392 -> Lifespan of charcoal system (years) | D21: =+Investment!$I$18 -> 3
B22: =title393 -> Project lifetime (years) | D22: =+Investment!$I$18 -> 3
B25: =title394 -> Capital and operating cost of biomass charcoal system
B27: =title384 -> Operating Year | D27: =title398 -> Appraisal | E27: =title399 -> Project period (years) | F27: =title400 -> Per kiln per year
B28: =title395 -> Capital cost (USD) | D28: Total
B29: =title264 -> Equipment | D29: =E29*F29 -> 0 | E29: =+D20 -> 3 | F29: =+COST_RES1!H62 -> 0
B30: =title265 -> Building | D30: =E30*F30 -> 0 | E30: =+D21 -> 3 | F30: =+COST_RES1!H63 -> 0
B31: =title266 -> Installation | D31: =E31*F31 -> 0 | E31: =+D22 -> 3 | F31: =+COST_RES1!H64 -> 0
B32: =title396 -> Total capital cost (USD) | D32: =SUM(D29:D31) -> 0 | F32: =SUM(F29:F31) -> 0
B34: =title397 -> Capital cost (USD/kg of Charcoal) | D34: =D32/(D13*1000) -> 0
B36: =title384 -> Operating Year | D36: =title398 -> Appraisal | E36: 1 | F36: 2 | G36: 3
B37: =title401 -> Annual operating and maintenance cost
B38: =title402 -> Sub-total material cost (USD) | D38: =((D39*D40)) -> 0 | E38: =((E39*E40)) -> 0 | F38: =((F39*F40)) -> 0 | G38: =((G39*G40)) -> 0
B39: =title403 -> Biomass consumption (tonne per year) | D39: =D13/D9 -> 165.71 | E39: =E13/E9 -> 165.71 | F39: =F13/F9 -> 165.71 | G39: =G13/G9 -> 165.71
B40: =title404 -> Biomass price (USD/ton) | D40: =SUM(D41:D42) -> 0 | E40: =SUM(E41:E42) -> 0 | F40: =SUM(F41:F42) -> 0 | G40: =SUM(G41:G42) -> 0
B41: =title405 -> Biomass cost of collection (USD/ton) | D41: =+COST_RES1!$E$39 -> 0 | E41: =D41 -> 0 | F41: =E41 -> 0 | G41: =F41 -> 0
B42: =title406 -> Biomass transportation cost (USD/ton) | D42: =D43*D44 -> 0 | E42: =E43*E44 -> 0 | F42: =F43*F44 -> 0 | G42: =G43*G44 -> 0
B43: =title407 -> Biomass from farm to plant (USD/ton/km) | D43: =COST_RES1!E50 -> 0 | E43: =+D43 -> 0 | F43: =+D43 -> 0 | G43: =+D43 -> 0
B44: =title408 -> Transportation distance 1 (km) | D44: =+COST_RES1!$H$26 -> 0 | E44: =D44 -> 0 | F44: =E44 -> 0 | G44: =F44 -> 0
B45: =title409 -> Sub-total operating cost (USD) | D45: =D46+D47+D48 -> 0 | E45: =E46+E47+E48 -> 0 | F45: =F46+F47+F48 -> 0 | G45: =G46+G47+G48 -> 0
B46: =title410 -> Labour cost (USD) | D46: =+COST_RES1!I46 -> 0 | E46: =+D46 -> 0 | F46: =+E46 -> 0 | G46: =+F46 -> 0
B47: =title269 -> Plant overhead | D47: =COST_RES1!I71 -> 0 | E47: =D47 -> 0 | F47: =E47 -> 0 | G47: 0
B48: =title270 -> General and administrative cost | D48: =COST_RES1!I72 -> 0 | E48: =D48 -> 0 | F48: 0 | G48: 0
B49: =title411 -> Sub-total maintenance cost (USD) | D49: =F32*'Data Entry Needs'!$I$49 -> 0 | E49: =D49 -> 0 | F49: 0 | G49: 0
B51: =title412 -> Sub-total of annual fixed cost | D51: =F32 -> 0 | E51: =D51 -> 0 | F51: =E51 -> 0 | G51: =F51 -> 0
B53: =title413 -> Sub-total of storage cost | D53: =COST_RES1!I58 ->  | E53: =D53 ->  | F53: =E53 ->  | G53: =F53 -> 
B55: =title414 -> Sub-total of transportation of charcoal to market | D55: =COST_RES1!I51 -> 0 | E55: =D55 -> 0 | F55: =E55 -> 0 | G55: =F55 -> 0
B57: =title415 -> Total operation and maintenance cost (USD) | D57: =D38+D45+D49+D51+D53+D55 ->  | E57: =E38+E45+E49+E51+E53+E55 ->  | F57: =F38+F45+F49+F51+F53+F55 ->  | G57: =G38+G45+G49+G51+G53+G55 -> 
B58: =title416 -> Operation and maintenance cost (USD/kg of charcoal) without loan interest | D58: =D57/(D13*1000) ->  | E58: =E57/(E13*1000) ->  | F58: =F57/(F13*1000) ->  | G58: =G57/(G13*1000) -> 
B60: =title190 -> Financial parameters
B61: =title384 -> Operating Year | D61: =title398 -> Appraisal | E61: 1 | F61: 2 | G61: 3
B62: =title191 -> Discount rate (%) | D62: =+'Data Entry Needs'!$D$57 -> 0
B63: =title192 -> Loan ratio (%) | D63: =+'Data Entry Needs'!$D$58 -> 0
B66: =title384 -> Operating Year | D66: =title398 -> Appraisal | E66: 1 | F66: 2 | G66: 3
B67: =title417 -> Loan amount (USD) | D67: =D63*(D32) -> 0
B68: =title193 -> Loan interest rate (%) | D68: =+'Data Entry Needs'!$D$59 -> 0
B69: =title418 -> Loan term (years) | D69: =D20 -> 3
B70: =title419 -> Loan payment (USD/year) | D70: =(PMT($D$68,($D$69),$D$67)) -> 0
B71: =title419 -> Loan payment (USD/year) | E71: =D70 -> 0 | F71: =+E71 -> 0 | G71: =+F71 -> 0
B72: =title420 -> Total loan payment (USD) | D72: =SUM(E71:G71) -> 0
B73: =title421 -> Loan interest payment (USD) | D73: =D72+D67 -> 0 | E73: =title422 -> loan interest payment for project lifetime
B75: =title287 -> Depreciation
B76: =title384 -> Operating Year | D76: =title398 -> Appraisal | E76: 1 | F76: 2 | G76: 3
B77: =title423 -> Depreciation method | D77: =title425 -> Straight-line
B78: =title424 -> Total depreciation (USD) | E78: =+COST_RES1!$H$65 -> 0 | F78: =E78 -> 0 | G78: =F78 -> 0
B80: =title426 -> Base case Project Summary
B81: =title427 -> Summary of this project
B82: =title384 -> Operating Year | D82: =title398 -> Appraisal | E82: 1 | F82: 2 | G82: 3
B83: =title428 -> Total revenue (USD) | E83: =E14*1000*E16 -> 0 | F83: =F14*1000*F16 -> 0 | G83: =G14*1000*G16 -> 0
B84: =title396 -> Total capital cost (USD) | D84: =-D32*(1-$D$63)-D46 -> 0
B85: =title429 -> Total operating and maintenance cost (USD) | E85: =-E57+E51 ->  | F85: =-F57+F51 ->  | G85: =-G57+G51 -> 
B86: =title430 -> Loan payment (USD) | E86: =+E71 -> 0 | F86: =+F71 -> 0 | G86: =+G71 -> 0
B87: =title431 -> Cash flow with loan (USD) | D87: =SUM(D83:D86) -> 0 | E87: =SUM(E83:E86) ->  | F87: =SUM(F83:F86) ->  | G87: =SUM(G83:G86) -> 
B88: =title432 -> Cash flow without loan (USD) | D88: =-D32-D46 -> 0 | E88: =+E83+E85 ->  | F88: =+F83+F85 ->  | G88: =+G83+G85 -> 
B89: =title384 -> Operating Year | D89: =title398 -> Appraisal | E89: 1 | F89: 2 | G89: 3
B90: =title433 -> Cumulative value of Net Profit | D90: =D87 -> 0 | E90: =D90+(E87) ->  | F90: =E90+(F87) ->  | G90: =F90+(G87) -> 
B92: =title434 -> Financial Analysis Result
B94: =title435 -> Net Present Value (NPV) (USD) | D94: =NPV(D62,E87:J87)+D87 -> 
B95: =title436 -> Internal Rate of Return (IRR) (%) - without loan | D95: =IF(D94<0,title438,IRR(D88:J88,0.001)) -> 
B96: =title437 -> Profitability Index - without loan | D96: =+NPV($D$62,E88:J88)/-D88 -> 

Sheet Casamance_Industrial_RES1 (hidden)
B2: =UPPER(title381&COST_RES1!$H$22&title440) -> FINANCIAL EVALUATION OF CHARCOAL PRODUCTION IN CASAMANCE - INDUSTRIAL LEVEL
B4: =title383 -> Revenues of biomass charcoal system
B5: =title384 -> Operating Year | D5: 0 | E5: 1 | F5: 2 | G5: 3
B7: =title385 -> Charcoal production capacity (tons per year) | D7: =+COST_RES1!$H$24 -> 49.713 | E7: =D7 -> 49.713 | F7: =E7 -> 49.713 | G7: =F7 -> 49.713
B9: =title386 -> Efficiency % of charcoal kiln | D9: =+COST_RES1!$H$25 -> 0.3 | E9: =D9 -> 0.3 | F9: =E9 -> 0.3 | G9: =F9 -> 0.3
B11: =title244 -> Operating hours per year | D11: =+COST_RES1!$H$23 -> 0 | E11: =D11 -> 0 | F11: =E11 -> 0 | G11: =F11 -> 0
B13: =title387 -> Charcoal production (tons per year) | D13: =D7 -> 49.713 | E13: =E7 -> 49.713 | F13: =F7 -> 49.713 | G13: =G7 -> 49.713
B14: =title388 -> Total charcoal sold to customers (tons per year) | D14: =SUM(D13:D13) -> 49.713 | E14: =SUM(E13:E13) -> 49.713 | F14: =SUM(F13:F13) -> 49.713 | G14: =SUM(G13:G13) -> 49.713
B16: =title389 -> Price of charcoal (USD/kg)-Small Scale | D16: =+'Data Entry Needs'!$D$54*'Data Entry Needs'!$I$52 -> 0 | E16: =+D16 -> 0 | F16: =+E16 -> 0 | G16: =+F16 -> 0
B18: =title390 -> Income of charcoal-Small Scale (USD per year) | D18: =D14*D16*1000 -> 0 | E18: =E14*E16*1000 -> 0 | F18: =F14*F16*1000 -> 0 | G18: =G14*G16*1000 -> 0
B20: =title391 -> Lifespan of civil work (years) | D20: =+Investment!$I$18 -> 3
B21: =title392 -> Lifespan of charcoal system (years) | D21: =+Investment!$I$18 -> 3
B22: =title393 -> Project lifetime (years) | D22: =+Investment!$I$18 -> 3
B25: =title394 -> Capital and operating cost of biomass charcoal system
B27: =title384 -> Operating Year | D27: =title398 -> Appraisal | E27: =title399 -> Project period (years) | F27: =title400 -> Per kiln per year
B28: =title395 -> Capital cost (USD) | D28: Total
B29: =title264 -> Equipment | D29: =E29*F29 -> 0 | E29: =+D20 -> 3 | F29: =+COST_RES1!H62 -> 0
B30: =title265 -> Building | D30: =E30*F30 -> 0 | E30: =+D21 -> 3 | F30: =+COST_RES1!H63 -> 0
B31: =title266 -> Installation | D31: =E31*F31 -> 0 | E31: =+D22 -> 3 | F31: =+COST_RES1!H64 -> 0
B32: =title396 -> Total capital cost (USD) | D32: =SUM(D29:D31) -> 0 | F32: =SUM(F29:F31) -> 0
B34: =title397 -> Capital cost (USD/kg of Charcoal) | D34: =D32/(D13*1000) -> 0
B36: =title384 -> Operating Year | D36: =title398 -> Appraisal | E36: 1 | F36: 2 | G36: 3
B37: =title401 -> Annual operating and maintenance cost
B38: =title402 -> Sub-total material cost (USD) | D38: =((D39*D40)) -> 0 | E38: =((E39*E40)) -> 0 | F38: =((F39*F40)) -> 0 | G38: =((G39*G40)) -> 0
B39: =title403 -> Biomass consumption (tonne per year) | D39: =D13/D9 -> 165.71 | E39: =E13/E9 -> 165.71 | F39: =F13/F9 -> 165.71 | G39: =G13/G9 -> 165.71
B40: =title404 -> Biomass price (USD/ton) | D40: =SUM(D41:D42) -> 0 | E40: =SUM(E41:E42) -> 0 | F40: =SUM(F41:F42) -> 0 | G40: =SUM(G41:G42) -> 0
B41: =title405 -> Biomass cost of collection (USD/ton) | D41: =+COST_RES1!$E$39 -> 0 | E41: =D41 -> 0 | F41: =E41 -> 0 | G41: =F41 -> 0
B42: =title406 -> Biomass transportation cost (USD/ton) | D42: =D43*D44 -> 0 | E42: =E43*E44 -> 0 | F42: =F43*F44 -> 0 | G42: =G43*G44 -> 0
B43: =title407 -> Biomass from farm to plant (USD/ton/km) | D43: =COST_RES1!E50 -> 0 | E43: =+D43 -> 0 | F43: =+D43 -> 0 | G43: =+D43 -> 0
B44: =title408 -> Transportation distance 1 (km) | D44: =+COST_RES1!$H$26 -> 0 | E44: =D44 -> 0 | F44: =E44 -> 0 | G44: =F44 -> 0
B45: =title409 -> Sub-total operating cost (USD) | D45: =D46+D47+D48 -> 0 | E45: =E46+E47+E48 -> 0 | F45: =F46+F47+F48 -> 0 | G45: =G46+G47+G48 -> 0
B46: =title410 -> Labour cost (USD) | D46: =+COST_RES1!I46 -> 0 | E46: =+D46 -> 0 | F46: =+E46 -> 0 | G46: =+F46 -> 0
B47: =title269 -> Plant overhead | D47: =COST_RES1!I71 -> 0 | E47: =D47 -> 0 | F47: =E47 -> 0 | G47: 0
B48: =title270 -> General and administrative cost | D48: =COST_RES1!I72 -> 0 | E48: =D48 -> 0 | F48: 0 | G48: 0
B49: =title411 -> Sub-total maintenance cost (USD) | D49: =F32*'Data Entry Needs'!$I$49 -> 0 | E49: =D49 -> 0 | F49: 0 | G49: 0
B51: =title412 -> Sub-total of annual fixed cost | D51: =F32 -> 0 | E51: =D51 -> 0 | F51: =E51 -> 0 | G51: =F51 -> 0
B53: =title413 -> Sub-total of storage cost | D53: =COST_RES1!I58 ->  | E53: =D53 ->  | F53: =E53 ->  | G53: =F53 -> 
B55: =title414 -> Sub-total of transportation of charcoal to market | D55: =COST_RES1!I51 -> 0 | E55: =D55 -> 0 | F55: =E55 -> 0 | G55: =F55 -> 0
B57: =title415 -> Total operation and maintenance cost (USD) | D57: =D38+D45+D49+D51+D53+D55 ->  | E57: =E38+E45+E49+E51+E53+E55 ->  | F57: =F38+F45+F49+F51+F53+F55 ->  | G57: =G38+G45+G49+G51+G53+G55 -> 
B58: =title416 -> Operation and maintenance cost (USD/kg of charcoal) without loan interest | D58: =D57/(D13*1000) ->  | E58: =E57/(E13*1000) ->  | F58: =F57/(F13*1000) ->  | G58: =G57/(G13*1000) -> 
B60: =title190 -> Financial parameters
B61: =title384 -> Operating Year | D61: =title398 -> Appraisal | E61: 1 | F61: 2 | G61: 3
B62: =title191 -> Discount rate (%) | D62: =+'Data Entry Needs'!$D$57 -> 0
B63: =title192 -> Loan ratio (%) | D63: =+'Data Entry Needs'!$D$58 -> 0
B66: =title384 -> Operating Year | D66: =title398 -> Appraisal | E66: 1 | F66: 2 | G66: 3
B67: =title417 -> Loan amount (USD) | D67: =D63*(D32) -> 0
B68: =title193 -> Loan interest rate (%) | D68: =+'Data Entry Needs'!$D$59 -> 0
B69: =title418 -> Loan term (years) | D69: =D20 -> 3
B70: =title419 -> Loan payment (USD/year) | D70: =(PMT($D$68,($D$69),$D$67)) -> 0
B71: =title419 -> Loan payment (USD/year) | E71: =D70 -> 0 | F71: =+E71 -> 0 | G71: =+F71 -> 0
B72: =title420 -> Total loan payment (USD) | D72: =SUM(E71:G71) -> 0
B73: =title421 -> Loan interest payment (USD) | D73: =D72+D67 -> 0 | E73: =title422 -> loan interest payment for project lifetime
B75: =title287 -> Depreciation
B76: =title384 -> Operating Year | D76: =title398 -> Appraisal | E76: 1 | F76: 2 | G76: 3
B77: =title423 -> Depreciation method | D77: =title425 -> Straight-line
B78: =title424 -> Total depreciation (USD) | E78: =+COST_RES1!$H$65 -> 0 | F78: =E78 -> 0 | G78: =F78 -> 0
B80: =title426 -> Base case Project Summary
B81: =title427 -> Summary of this project
B82: =title384 -> Operating Year | D82: =title398 -> Appraisal | E82: 1 | F82: 2 | G82: 3
B83: =title428 -> Total revenue (USD) | E83: =E14*1000*E16 -> 0 | F83: =F14*1000*F16 -> 0 | G83: =G14*1000*G16 -> 0
B84: =title396 -> Total capital cost (USD) | D84: =-D32*(1-$D$63)-D46 -> 0
B85: =title429 -> Total operating and maintenance cost (USD) | E85: =-E57+E51 ->  | F85: =-F57+F51 ->  | G85: =-G57+G51 -> 
B86: =title430 -> Loan payment (USD) | E86: =+E71 -> 0 | F86: =+F71 -> 0 | G86: =+G71 -> 0
B87: =title431 -> Cash flow with loan (USD) | D87: =SUM(D83:D86) -> 0 | E87: =SUM(E83:E86) ->  | F87: =SUM(F83:F86) ->  | G87: =SUM(G83:G86) -> 
B88: =title432 -> Cash flow without loan (USD) | D88: =-D32-D46 -> 0 | E88: =+E83+E85 ->  | F88: =+F83+F85 ->  | G88: =+G83+G85 -> 
B89: =title384 -> Operating Year | D89: =title398 -> Appraisal | E89: 1 | F89: 2 | G89: 3
B90: =title433 -> Cumulative value of Net Profit | D90: =D87 -> 0 | E90: =D90+(E87) ->  | F90: =E90+(F87) ->  | G90: =F90+(G87) -> 
B92: =title434 -> Financial Analysis Result
B94: =title435 -> Net Present Value (NPV) (USD) | D94: =NPV(D62,E87:J87)+D87 -> 
B95: =title436 -> Internal Rate of Return (IRR) (%) - without loan | D95: =IF(D94<0,title438,IRR(D88:J88,0.001)) -> 
B96: =title437 -> Profitability Index - without loan | D96: =+NPV($D$62,E88:J88)/-D88 -> 

Sheet Improved_Rural_RES1 (hidden)
B2: =UPPER(title381&COST_RES1!$J$22&title382) -> FINANCIAL EVALUATION OF CHARCOAL PRODUCTION IN IMPROVED PIT LIBERIA - RURAL LEVEL
B4: =title383 -> Revenues of biomass charcoal system
B5: =title384 -> Operating Year | D5: 0 | E5: 1 | F5: 2 | G5: 3
B7: =title385 -> Charcoal production capacity (tons per year) | D7: =+COST_RES1!$J$24 -> 66.284 | E7: =D7 -> 66.284 | F7: =E7 -> 66.284 | G7: =F7 -> 66.284
B9: =title386 -> Efficiency % of charcoal kiln | D9: =+COST_RES1!$J$25 -> 0.3 | E9: =D9 -> 0.3 | F9: =E9 -> 0.3 | G9: =F9 -> 0.3
B11: =title244 -> Operating hours per year | D11: =+COST_RES1!$J$23 -> 0 | E11: =D11 -> 0 | F11: =E11 -> 0 | G11: =F11 -> 0
B13: =title387 -> Charcoal production (tons per year) | D13: =D7 -> 66.284 | E13: =E7 -> 66.284 | F13: =F7 -> 66.284 | G13: =G7 -> 66.284
B14: =title388 -> Total charcoal sold to customers (tons per year) | D14: =SUM(D13:D13) -> 66.284 | E14: =SUM(E13:E13) -> 66.284 | F14: =SUM(F13:F13) -> 66.284 | G14: =SUM(G13:G13) -> 66.284
B16: =title389 -> Price of charcoal (USD/kg)-Small Scale | D16: ='Data Entry Needs'!$D$52 -> 0 | E16: =+D16 -> 0 | F16: =+E16 -> 0 | G16: =+F16 -> 0
B18: =title390 -> Income of charcoal-Small Scale (USD per year) | D18: =D14*D16*1000 -> 0 | E18: =E14*E16*1000 -> 0 | F18: =F14*F16*1000 -> 0 | G18: =G14*G16*1000 -> 0
B20: =title391 -> Lifespan of civil work (years) | D20: =+Investment!$K$18 -> 3
B21: =title392 -> Lifespan of charcoal system (years) | D21: =+Investment!$K$18 -> 3
B22: =title393 -> Project lifetime (years) | D22: =+Investment!$K$18 -> 3
B25: =title394 -> Capital and operating cost of biomass charcoal system
B27: =title384 -> Operating Year | D27: =title398 -> Appraisal | E27: =title399 -> Project period (years) | F27: =title400 -> Per kiln per year
B28: =title395 -> Capital cost (USD) | D28: Total
B29: =title264 -> Equipment | D29: =E29*F29 -> 0 | E29: =+D20 -> 3 | F29: =+COST_RES1!J62 -> 0
B30: =title265 -> Building | D30: =E30*F30 -> 0 | E30: =+D21 -> 3 | F30: =+COST_RES1!J63 -> 0
B31: =title266 -> Installation | D31: =E31*F31 -> 0 | E31: =+D22 -> 3 | F31: =+COST_RES1!J64 -> 0
B32: =title396 -> Total capital cost (USD) | D32: =SUM(D29:D31) -> 0 | F32: =SUM(F29:F31) -> 0
B34: =title397 -> Capital cost (USD/kg of Charcoal) | D34: =D32/(D13*1000) -> 0
B36: =title384 -> Operating Year | D36: =title398 -> Appraisal | E36: 1 | F36: 2 | G36: 3
B37: =title401 -> Annual operating and maintenance cost
B38: =title402 -> Sub-total material cost (USD) | D38: =((D39*D40)) -> 0 | E38: =((E39*E40)) -> 0 | F38: =((F39*F40)) -> 0 | G38: =((G39*G40)) -> 0
B39: =title403 -> Biomass consumption (tonne per year) | D39: =D13/D9 -> 220.9466667 | E39: =E13/E9 -> 220.9466667 | F39: =F13/F9 -> 220.9466667 | G39: =G13/G9 -> 220.9466667
B40: =title404 -> Biomass price (USD/ton) | D40: =SUM(D41:D42) -> 0 | E40: =SUM(E41:E42) -> 0 | F40: =SUM(F41:F42) -> 0 | G40: =SUM(G41:G42) -> 0
B41: =title405 -> Biomass cost of collection (USD/ton) | D41: =+COST_RES1!$E$39 -> 0 | E41: =D41 -> 0 | F41: =E41 -> 0 | G41: =F41 -> 0
B42: =title406 -> Biomass transportation cost (USD/ton) | D42: =D43*D44 -> 0 | E42: =E43*E44 -> 0 | F42: =F43*F44 -> 0 | G42: =G43*G44 -> 0
B43: =title407 -> Biomass from farm to plant (USD/ton/km) | D43: =COST_RES1!E50 -> 0 | E43: =+D43 -> 0 | F43: =+D43 -> 0 | G43: =+D43 -> 0
B44: =title408 -> Transportation distance 1 (km) | D44: =+COST_RES1!$J$26 -> 0 | E44: =D44 -> 0 | F44: =E44 -> 0 | G44: =F44 -> 0
B45: =title409 -> Sub-total operating cost (USD) | D45: =D46+D47+D48 -> 0 | E45: =E46+E47+E48 -> 0 | F45: =F46+F47+F48 -> 0 | G45: =G46+G47+G48 -> 0
B46: =title410 -> Labour cost (USD) | D46: =+COST_RES1!K46 -> 0 | E46: =+D46 -> 0 | F46: =+E46 -> 0 | G46: =+F46 -> 0
B47: =title269 -> Plant overhead | D47: =COST_RES1!K71 -> 0 | E47: =D47 -> 0 | F47: =E47 -> 0 | G47: 0
B48: =title270 -> General and administrative cost | D48: =COST_RES1!K72 -> 0 | E48: =D48 -> 0 | F48: 0 | G48: 0
B49: =title411 -> Sub-total maintenance cost (USD) | D49: =F32*'Data Entry Needs'!$I$49 -> 0 | E49: =D49 -> 0 | F49: 0 | G49: 0
B51: =title412 -> Sub-total of annual fixed cost | D51: =F32 -> 0 | E51: =D51 -> 0 | F51: =E51 -> 0 | G51: =F51 -> 0
B53: =title413 -> Sub-total of storage cost | D53: =COST_RES1!K58 ->  | E53: =D53 ->  | F53: =E53 ->  | G53: =F53 -> 
B55: =title414 -> Sub-total of transportation of charcoal to market | D55: =COST_RES1!K51 -> 0 | E55: =D55 -> 0 | F55: =E55 -> 0 | G55: =F55 -> 0
B57: =title415 -> Total operation and maintenance cost (USD) | D57: =D38+D45+D49+D51+D53+D55 ->  | E57: =E38+E45+E49+E51+E53+E55 ->  | F57: =F38+F45+F49+F51+F53+F55 ->  | G57: =G38+G45+G49+G51+G53+G55 -> 
B58: =title416 -> Operation and maintenance cost (USD/kg of charcoal) without loan interest | D58: =D57/(D13*1000) ->  | E58: =E57/(E13*1000) ->  | F58: =F57/(F13*1000) ->  | G58: =G57/(G13*1000) -> 
B60: =title190 -> Financial parameters
B61: =title384 -> Operating Year | D61: =title398 -> Appraisal | E61: 1 | F61: 2 | G61: 3
B62: =title191 -> Discount rate (%) | D62: =+'Data Entry Needs'!$D$57 -> 0
B63: =title192 -> Loan ratio (%) | D63: =+'Data Entry Needs'!$D$58 -> 0
B66: =title384 -> Operating Year | D66: =title398 -> Appraisal | E66: 1 | F66: 2 | G66: 3
B67: =title417 -> Loan amount (USD) | D67: =D63*(D32) -> 0
B68: =title193 -> Loan interest rate (%) | D68: =+'Data Entry Needs'!$D$59 -> 0
B69: =title418 -> Loan term (years) | D69: =D20 -> 3
B70: =title419 -> Loan payment (USD/year) | D70: =(PMT($D$68,($D$69),$D$67)) -> 0
B71: =title419 -> Loan payment (USD/year) | E71: =D70 -> 0 | F71: =+E71 -> 0 | G71: =+F71 -> 0
B72: =title420 -> Total loan payment (USD) | D72: =SUM(E71:G71) -> 0
B73: =title421 -> Loan interest payment (USD) | D73: =D72+D67 -> 0 | E73: =title422 -> loan interest payment for project lifetime
B75: =title287 -> Depreciation
B76: =title384 -> Operating Year | D76: =title398 -> Appraisal | E76: 1 | F76: 2 | G76: 3
B77: =title423 -> Depreciation method | D77: =title425 -> Straight-line
B78: =title424 -> Total depreciation (USD) | E78: =+COST_RES1!$J$65 -> 0 | F78: =E78 -> 0 | G78: =F78 -> 0
B80: =title426 -> Base case Project Summary
B81: =title427 -> Summary of this project
B82: =title384 -> Operating Year | D82: =title398 -> Appraisal | E82: 1 | F82: 2 | G82: 3
B83: =title428 -> Total revenue (USD) | E83: =E14*1000*E16 -> 0 | F83: =F14*1000*F16 -> 0 | G83: =G14*1000*G16 -> 0
B84: =title396 -> Total capital cost (USD) | D84: =-D32*(1-$D$63) -> 0
B85: =title429 -> Total operating and maintenance cost (USD) | E85: =-E57+E51 ->  | F85: =-F57+F51 ->  | G85: =-G57+G51 -> 
B86: =title430 -> Loan payment (USD) | E86: =+E71 -> 0 | F86: =+F71 -> 0 | G86: =+G71 -> 0
B87: =title431 -> Cash flow with loan (USD) | D87: =SUM(D83:D86) -> 0 | E87: =SUM(E83:E86) ->  | F87: =SUM(F83:F86) ->  | G87: =SUM(G83:G86) -> 
B88: =title432 -> Cash flow without loan (USD) | D88: =-D32 -> 0 | E88: =+E83+E85 ->  | F88: =+F83+F85 ->  | G88: =+G83+G85 -> 
B89: =title384 -> Operating Year | D89: =title398 -> Appraisal | E89: 1 | F89: 2 | G89: 3
B90: =title433 -> Cumulative value of Net Profit | D90: =D87 -> 0 | E90: =D90+(E87) ->  | F90: =E90+(F87) ->  | G90: =F90+(G87) -> 
B92: =title434 -> Financial Analysis Result
B94: =title435 -> Net Present Value (NPV) (USD) | D94: =NPV(D62,E87:J87)+D87 -> 
B95: =title436 -> Internal Rate of Return (IRR) (%) - without loan | D95: =IF(D94<0,title438,IRR(D88:J88,0.001)) -> 
B96: =title437 -> Profitability Index - without loan | D96: =+NPV($D$62,E88:J88)/-D88 -> 

Sheet Improved_Urban_RES1 (hidden)
B2: =UPPER(title381&COST_RES1!$J$22&title439) -> FINANCIAL EVALUATION OF CHARCOAL PRODUCTION IN IMPROVED PIT LIBERIA - URBAN LEVEL
B4: =title383 -> Revenues of biomass charcoal system
B5: =title384 -> Operating Year | D5: 0 | E5: 1 | F5: 2 | G5: 3
B7: =title385 -> Charcoal production capacity (tons per year) | D7: =+COST_RES1!$J$24 -> 66.284 | E7: =D7 -> 66.284 | F7: =E7 -> 66.284 | G7: =F7 -> 66.284
B9: =title386 -> Efficiency % of charcoal kiln | D9: =+COST_RES1!$J$25 -> 0.3 | E9: =D9 -> 0.3 | F9: =E9 -> 0.3 | G9: =F9 -> 0.3
B11: =title244 -> Operating hours per year | D11: =+COST_RES1!$J$23 -> 0 | E11: =D11 -> 0 | F11: =E11 -> 0 | G11: =F11 -> 0
B13: =title387 -> Charcoal production (tons per year) | D13: =D7 -> 66.284 | E13: =E7 -> 66.284 | F13: =F7 -> 66.284 | G13: =G7 -> 66.284
B14: =title388 -> Total charcoal sold to customers (tons per year) | D14: =SUM(D13:D13) -> 66.284 | E14: =SUM(E13:E13) -> 66.284 | F14: =SUM(F13:F13) -> 66.284 | G14: =SUM(G13:G13) -> 66.284
B16: =title389 -> Price of charcoal (USD/kg)-Small Scale | D16: =+'Data Entry Needs'!$D$53*'Data Entry Needs'!$I$52 -> 0 | E16: =+D16 -> 0 | F16: =+E16 -> 0 | G16: =+F16 -> 0
B18: =title390 -> Income of charcoal-Small Scale (USD per year) | D18: =D14*D16*1000 -> 0 | E18: =E14*E16*1000 -> 0 | F18: =F14*F16*1000 -> 0 | G18: =G14*G16*1000 -> 0
B20: =title391 -> Lifespan of civil work (years) | D20: =+Investment!$K$18 -> 3
B21: =title392 -> Lifespan of charcoal system (years) | D21: =+Investment!$K$18 -> 3
B22: =title393 -> Project lifetime (years) | D22: =+Investment!$K$18 -> 3
B25: =title394 -> Capital and operating cost of biomass charcoal system
B27: =title384 -> Operating Year | D27: =title398 -> Appraisal | E27: =title399 -> Project period (years) | F27: =title400 -> Per kiln per year
B28: =title395 -> Capital cost (USD) | D28: Total
B29: =title264 -> Equipment | D29: =E29*F29 -> 0 | E29: =+D20 -> 3 | F29: =+COST_RES1!J62 -> 0
B30: =title265 -> Building | D30: =E30*F30 -> 0 | E30: =+D21 -> 3 | F30: =+COST_RES1!J63 -> 0
B31: =title266 -> Installation | D31: =E31*F31 -> 0 | E31: =+D22 -> 3 | F31: =+COST_RES1!J64 -> 0
B32: =title396 -> Total capital cost (USD) | D32: =SUM(D29:D31) -> 0 | F32: =SUM(F29:F31) -> 0
B34: =title397 -> Capital cost (USD/kg of Charcoal) | D34: =D32/(D13*1000) -> 0
B36: =title384 -> Operating Year | D36: =title398 -> Appraisal | E36: 1 | F36: 2 | G36: 3
B37: =title401 -> Annual operating and maintenance cost
B38: =title402 -> Sub-total material cost (USD) | D38: =((D39*D40)) -> 0 | E38: =((E39*E40)) -> 0 | F38: =((F39*F40)) -> 0 | G38: =((G39*G40)) -> 0
B39: =title403 -> Biomass consumption (tonne per year) | D39: =D13/D9 -> 220.9466667 | E39: =E13/E9 -> 220.9466667 | F39: =F13/F9 -> 220.9466667 | G39: =G13/G9 -> 220.9466667
B40: =title404 -> Biomass price (USD/ton) | D40: =SUM(D41:D42) -> 0 | E40: =SUM(E41:E42) -> 0 | F40: =SUM(F41:F42) -> 0 | G40: =SUM(G41:G42) -> 0
B41: =title405 -> Biomass cost of collection (USD/ton) | D41: =+COST_RES1!$E$39 -> 0 | E41: =D41 -> 0 | F41: =E41 -> 0 | G41: =F41 -> 0
B42: =title406 -> Biomass transportation cost (USD/ton) | D42: =D43*D44 -> 0 | E42: =E43*E44 -> 0 | F42: =F43*F44 -> 0 | G42: =G43*G44 -> 0
B43: =title407 -> Biomass from farm to plant (USD/ton/km) | D43: =COST_RES1!E50 -> 0 | E43: =+D43 -> 0 | F43: =+D43 -> 0 | G43: =+D43 -> 0
B44: =title408 -> Transportation distance 1 (km) | D44: =+COST_RES1!$J$26 -> 0 | E44: =D44 -> 0 | F44: =E44 -> 0 | G44: =F44 -> 0
B45: =title409 -> Sub-total operating cost (USD) | D45: =D46+D47+D48 -> 0 | E45: =E46+E47+E48 -> 0 | F45: =F46+F47+F48 -> 0 | G45: =G46+G47+G48 -> 0
B46: =title410 -> Labour cost (USD) | D46: =+COST_RES1!K46 -> 0 | E46: =+D46 -> 0 | F46: =+E46 -> 0 | G46: =+F46 -> 0
B47: =title269 -> Plant overhead | D47: =COST_RES1!K71 -> 0 | E47: =D47 -> 0 | F47: =E47 -> 0 | G47: 0
B48: =title270 -> General and administrative cost | D48: =COST_RES1!K72 -> 0 | E48: =D48 -> 0 | F48: 0 | G48: 0
B49: =title411 -> Sub-total maintenance cost (USD) | D49: =F32*'Data Entry Needs'!$I$49 -> 0 | E49: =D49 -> 0 | F49: 0 | G49: 0
B51: =title412 -> Sub-total of annual fixed cost | D51: =F32 -> 0 | E51: =D51 -> 0 | F51: =E51 -> 0 | G51: =F51 -> 0
B53: =title413 -> Sub-total of storage cost | D53: =COST_RES1!K58 ->  | E53: =D53 ->  | F53: =E53 ->  | G53: =F53 -> 
B55: =title414 -> Sub-total of transportation of charcoal to market | D55: =COST_RES1!K51 -> 0 | E55: =D55 -> 0 | F55: =E55 -> 0 | G55: =F55 -> 0
B57: =title415 -> Total operation and maintenance cost (USD) | D57: =D38+D45+D49+D51+D53+D55 ->  | E57: =E38+E45+E49+E51+E53+E55 ->  | F57: =F38+F45+F49+F51+F53+F55 ->  | G57: =G38+G45+G49+G51+G53+G55 -> 
B58: =title416 -> Operation and maintenance cost (USD/kg of charcoal) without loan interest | D58: =D57/(D13*1000) ->  | E58: =E57/(E13*1000) ->  | F58: =F57/(F13*1000) ->  | G58: =G57/(G13*1000) -> 
B60: =title190 -> Financial parameters
B61: =title384 -> Operating Year | D61: =title398 -> Appraisal | E61: 1 | F61: 2 | G61: 3
B62: =title191 -> Discount rate (%) | D62: =+'Data Entry Needs'!$D$57 -> 0
B63: =title192 -> Loan ratio (%) | D63: =+'Data Entry Needs'!$D$58 -> 0
B66: =title384 -> Operating Year | D66: =title398 -> Appraisal | E66: 1 | F66: 2 | G66: 3
B67: =title417 -> Loan amount (USD) | D67: =D63*(D32) -> 0
B68: =title193 -> Loan interest rate (%) | D68: =+'Data Entry Needs'!$D$59 -> 0
B69: =title418 -> Loan term (years) | D69: =D20 -> 3
B70: =title419 -> Loan payment (USD/year) | D70: =(PMT($D$68,($D$69),$D$67)) -> 0
B71: =title419 -> Loan payment (USD/year) | E71: =D70 -> 0 | F71: =+E71 -> 0 | G71: =+F71 -> 0
B72: =title420 -> Total loan payment (USD) | D72: =SUM(E71:G71) -> 0
B73: =title421 -> Loan interest payment (USD) | D73: =D72+D67 -> 0 | E73: =title422 -> loan interest payment for project lifetime
B75: =title287 -> Depreciation
B76: =title384 -> Operating Year | D76: =title398 -> Appraisal | E76: 1 | F76: 2 | G76: 3
B77: =title423 -> Depreciation method | D77: =title425 -> Straight-line
B78: =title424 -> Total depreciation (USD) | E78: =+COST_RES1!$J$65 -> 0 | F78: =E78 -> 0 | G78: =F78 -> 0
B80: =title426 -> Base case Project Summary
B81: =title427 -> Summary of this project
B82: =title384 -> Operating Year | D82: =title398 -> Appraisal | E82: 1 | F82: 2 | G82: 3
B83: =title428 -> Total revenue (USD) | E83: =E14*1000*E16 -> 0 | F83: =F14*1000*F16 -> 0 | G83: =G14*1000*G16 -> 0
B84: =title396 -> Total capital cost (USD) | D84: =-D32*(1-$D$63) -> 0
B85: =title429 -> Total operating and maintenance cost (USD) | E85: =-E57+E51 ->  | F85: =-F57+F51 ->  | G85: =-G57+G51 -> 
B86: =title430 -> Loan payment (USD) | E86: =+E71 -> 0 | F86: =+F71 -> 0 | G86: =+G71 -> 0
B87: =title431 -> Cash flow with loan (USD) | D87: =SUM(D83:D86) -> 0 | E87: =SUM(E83:E86) ->  | F87: =SUM(F83:F86) ->  | G87: =SUM(G83:G86) -> 
B88: =title432 -> Cash flow without loan (USD) | D88: =-D32 -> 0 | E88: =+E83+E85 ->  | F88: =+F83+F85 ->  | G88: =+G83+G85 -> 
B89: =title384 -> Operating Year | D89: =title398 -> Appraisal | E89: 1 | F89: 2 | G89: 3
B90: =title433 -> Cumulative value of Net Profit | D90: =D87 -> 0 | E90: =D90+(E87) ->  | F90: =E90+(F87) ->  | G90: =F90+(G87) -> 
B92: =title434 -> Financial Analysis Result
B94: =title435 -> Net Present Value (NPV) (USD) | D94: =NPV(D62,E87:J87)+D87 -> 
B95: =title436 -> Internal Rate of Return (IRR) (%) - without loan | D95: =IF(D94<0,title438,IRR(D88:J88,0.001)) -> 
B96: =title437 -> Profitability Index - without loan | D96: =+NPV($D$62,E88:J88)/-D88 -> 

Sheet Improved_Industrial_RES1 (hidden)
B2: =UPPER(title381&COST_RES1!$J$22&title440) -> FINANCIAL EVALUATION OF CHARCOAL PRODUCTION IN IMPROVED PIT LIBERIA - INDUSTRIAL LEVEL
B4: =title383 -> Revenues of biomass charcoal system
B5: =title384 -> Operating Year | D5: 0 | E5: 1 | F5: 2 | G5: 3
B7: =title385 -> Charcoal production capacity (tons per year) | D7: =+COST_RES1!$J$24 -> 66.284 | E7: =D7 -> 66.284 | F7: =E7 -> 66.284 | G7: =F7 -> 66.284
B9: =title386 -> Efficiency % of charcoal kiln | D9: =+COST_RES1!$J$25 -> 0.3 | E9: =D9 -> 0.3 | F9: =E9 -> 0.3 | G9: =F9 -> 0.3
B11: =title244 -> Operating hours per year | D11: =+COST_RES1!$J$23 -> 0 | E11: =D11 -> 0 | F11: =E11 -> 0 | G11: =F11 -> 0
B13: =title387 -> Charcoal production (tons per year) | D13: =D7 -> 66.284 | E13: =E7 -> 66.284 | F13: =F7 -> 66.284 | G13: =G7 -> 66.284
B14: =title388 -> Total charcoal sold to customers (tons per year) | D14: =SUM(D13:D13) -> 66.284 | E14: =SUM(E13:E13) -> 66.284 | F14: =SUM(F13:F13) -> 66.284 | G14: =SUM(G13:G13) -> 66.284
B16: =title389 -> Price of charcoal (USD/kg)-Small Scale | D16: =+'Data Entry Needs'!$D$54*'Data Entry Needs'!$I$52 -> 0 | E16: =+D16 -> 0 | F16: =+E16 -> 0 | G16: =+F16 -> 0
B18: =title390 -> Income of charcoal-Small Scale (USD per year) | D18: =D14*D16*1000 -> 0 | E18: =E14*E16*1000 -> 0 | F18: =F14*F16*1000 -> 0 | G18: =G14*G16*1000 -> 0
B20: =title391 -> Lifespan of civil work (years) | D20: =+Investment!$K$18 -> 3
B21: =title392 -> Lifespan of charcoal system (years) | D21: =+Investment!$K$18 -> 3
B22: =title393 -> Project lifetime (years) | D22: =+Investment!$K$18 -> 3
B25: =title394 -> Capital and operating cost of biomass charcoal system
B27: =title384 -> Operating Year | D27: =title398 -> Appraisal | E27: =title399 -> Project period (years) | F27: =title400 -> Per kiln per year
B28: =title395 -> Capital cost (USD) | D28: Total
B29: =title264 -> Equipment | D29: =E29*F29 -> 0 | E29: =+D20 -> 3 | F29: =+COST_RES1!J62 -> 0
B30: =title265 -> Building | D30: =E30*F30 -> 0 | E30: =+D21 -> 3 | F30: =+COST_RES1!J63 -> 0
B31: =title266 -> Installation | D31: =E31*F31 -> 0 | E31: =+D22 -> 3 | F31: =+COST_RES1!J64 -> 0
B32: =title396 -> Total capital cost (USD) | D32: =SUM(D29:D31) -> 0 | F32: =SUM(F29:F31) -> 0
B34: =title397 -> Capital cost (USD/kg of Charcoal) | D34: =D32/(D13*1000) -> 0
B36: =title384 -> Operating Year | D36: =title398 -> Appraisal | E36: 1 | F36: 2 | G36: 3
B37: =title401 -> Annual operating and maintenance cost
B38: =title402 -> Sub-total material cost (USD) | D38: =((D39*D40)) -> 0 | E38: =((E39*E40)) -> 0 | F38: =((F39*F40)) -> 0 | G38: =((G39*G40)) -> 0
B39: =title403 -> Biomass consumption (tonne per year) | D39: =D13/D9 -> 220.9466667 | E39: =E13/E9 -> 220.9466667 | F39: =F13/F9 -> 220.9466667 | G39: =G13/G9 -> 220.9466667
B40: =title404 -> Biomass price (USD/ton) | D40: =SUM(D41:D42) -> 0 | E40: =SUM(E41:E42) -> 0 | F40: =SUM(F41:F42) -> 0 | G40: =SUM(G41:G42) -> 0
B41: =title405 -> Biomass cost of collection (USD/ton) | D41: =+COST_RES1!$E$39 -> 0 | E41: =D41 -> 0 | F41: =E41 -> 0 | G41: =F41 -> 0
B42: =title406 -> Biomass transportation cost (USD/ton) | D42: =D43*D44 -> 0 | E42: =E43*E44 -> 0 | F42: =F43*F44 -> 0 | G42: =G43*G44 -> 0
B43: =title407 -> Biomass from farm to plant (USD/ton/km) | D43: =COST_RES1!E50 -> 0 | E43: =+D43 -> 0 | F43: =+D43 -> 0 | G43: =+D43 -> 0
B44: =title408 -> Transportation distance 1 (km) | D44: =+COST_RES1!$J$26 -> 0 | E44: =D44 -> 0 | F44: =E44 -> 0 | G44: =F44 -> 0
B45: =title409 -> Sub-total operating cost (USD) | D45: =D46+D47+D48 -> 0 | E45: =E46+E47+E48 -> 0 | F45: =F46+F47+F48 -> 0 | G45: =G46+G47+G48 -> 0
B46: =title410 -> Labour cost (USD) | D46: =+COST_RES1!K46 -> 0 | E46: =+D46 -> 0 | F46: =+E46 -> 0 | G46: =+F46 -> 0
B47: =title269 -> Plant overhead | D47: =COST_RES1!K71 -> 0 | E47: =D47 -> 0 | F47: =E47 -> 0 | G47: 0
B48: =title270 -> General and administrative cost | D48: =COST_RES1!K72 -> 0 | E48: =D48 -> 0 | F48: 0 | G48: 0
B49: =title411 -> Sub-total maintenance cost (USD) | D49: =F32*'Data Entry Needs'!$I$49 -> 0 | E49: =D49 -> 0 | F49: 0 | G49: 0
B51: =title412 -> Sub-total of annual fixed cost | D51: =F32 -> 0 | E51: =D51 -> 0 | F51: =E51 -> 0 | G51: =F51 -> 0
B53: =title413 -> Sub-total of storage cost | D53: =COST_RES1!K58 ->  | E53: =D53 ->  | F53: =E53 ->  | G53: =F53 -> 
B55: =title414 -> Sub-total of transportation of charcoal to market | D55: =COST_RES1!K51 -> 0 | E55: =D55 -> 0 | F55: =E55 -> 0 | G55: =F55 -> 0
B57: =title415 -> Total operation and maintenance cost (USD) | D57: =D38+D45+D49+D51+D53+D55 ->  | E57: =E38+E45+E49+E51+E53+E55 ->  | F57: =F38+F45+F49+F51+F53+F55 ->  | G57: =G38+G45+G49+G51+G53+G55 -> 
B58: =title416 -> Operation and maintenance cost (USD/kg of charcoal) without loan interest | D58: =D57/(D13*1000) ->  | E58: =E57/(E13*1000) ->  | F58: =F57/(F13*1000) ->  | G58: =G57/(G13*1000) -> 
B60: =title190 -> Financial parameters
B61: =title384 -> Operating Year | D61: =title398 -> Appraisal | E61: 1 | F61: 2 | G61: 3
B62: =title191 -> Discount rate (%) | D62: =+'Data Entry Needs'!$D$57 -> 0
B63: =title192 -> Loan ratio (%) | D63: =+'Data Entry Needs'!$D$58 -> 0
B66: =title384 -> Operating Year | D66: =title398 -> Appraisal | E66: 1 | F66: 2 | G66: 3
B67: =title417 -> Loan amount (USD) | D67: =D63*(D32) -> 0
B68: =title193 -> Loan interest rate (%) | D68: =+'Data Entry Needs'!$D$59 -> 0
B69: =title418 -> Loan term (years) | D69: =D20 -> 3
B70: =title419 -> Loan payment (USD/year) | D70: =(PMT($D$68,($D$69),$D$67)) -> 0
B71: =title419 -> Loan payment (USD/year) | E71: =D70 -> 0 | F71: =+E71 -> 0 | G71: =+F71 -> 0
B72: =title420 -> Total loan payment (USD) | D72: =SUM(E71:G71) -> 0
B73: =title421 -> Loan interest payment (USD) | D73: =D72+D67 -> 0 | E73: =title422 -> loan interest payment for project lifetime
B75: =title287 -> Depreciation
B76: =title384 -> Operating Year | D76: =title398 -> Appraisal | E76: 1 | F76: 2 | G76: 3
B77: =title423 -> Depreciation method | D77: =title425 -> Straight-line
B78: =title424 -> Total depreciation (USD) | E78: =+COST_RES1!$J$65 -> 0 | F78: =E78 -> 0 | G78: =F78 -> 0
B80: =title426 -> Base case Project Summary
B81: =title427 -> Summary of this project
B82: =title384 -> Operating Year | D82: =title398 -> Appraisal | E82: 1 | F82: 2 | G82: 3
B83: =title428 -> Total revenue (USD) | E83: =E14*1000*E16 -> 0 | F83: =F14*1000*F16 -> 0 | G83: =G14*1000*G16 -> 0
B84: =title396 -> Total capital cost (USD) | D84: =-D32*(1-$D$63) -> 0
B85: =title429 -> Total operating and maintenance cost (USD) | E85: =-E57+E51 ->  | F85: =-F57+F51 ->  | G85: =-G57+G51 -> 
B86: =title430 -> Loan payment (USD) | E86: =+E71 -> 0 | F86: =+F71 -> 0 | G86: =+G71 -> 0
B87: =title431 -> Cash flow with loan (USD) | D87: =SUM(D83:D86) -> 0 | E87: =SUM(E83:E86) ->  | F87: =SUM(F83:F86) ->  | G87: =SUM(G83:G86) -> 
B88: =title432 -> Cash flow without loan (USD) | D88: =-D32 -> 0 | E88: =+E83+E85 ->  | F88: =+F83+F85 ->  | G88: =+G83+G85 -> 
B89: =title384 -> Operating Year | D89: =title398 -> Appraisal | E89: 1 | F89: 2 | G89: 3
B90: =title433 -> Cumulative value of Net Profit | D90: =D87 -> 0 | E90: =D90+(E87) ->  | F90: =E90+(F87) ->  | G90: =F90+(G87) -> 
B92: =title434 -> Financial Analysis Result
B94: =title435 -> Net Present Value (NPV) (USD) | D94: =NPV(D62,E87:J87)+D87 -> 
B95: =title436 -> Internal Rate of Return (IRR) (%) - without loan | D95: =IF(D94<0,title438,IRR(D88:J88,0.001)) -> 
B96: =title437 -> Profitability Index - without loan | D96: =+NPV($D$62,E88:J88)/-D88 -> 

Sheet Portable_Steel_Rural_RES1 (hidden)
B2: =UPPER(title381&COST_RES1!$L$22&title382) -> FINANCIAL EVALUATION OF CHARCOAL PRODUCTION IN PORTABLE STEEL KILN - RURAL LEVEL
B4: =title383 -> Revenues of biomass charcoal system
B5: =title384 -> Operating Year | D5: 0 | E5: 1 | F5: 2 | G5: 3 | H5: 4 | I5: 5 | J5: 6
B7: =title385 -> Charcoal production capacity (tons per year) | D7: =+COST_RES1!$L$24 -> 182.5 | E7: =D7 -> 182.5 | F7: 182.5 | G7: 182.5 | H7: 182.5 | I7: 182.5 | J7: 182.5
B9: =title386 -> Efficiency % of charcoal kiln | D9: =+COST_RES1!$L$25 -> 0.25 | E9: =D9 -> 0.25 | F9: 0.25 | G9: 0.25 | H9: 0.25 | I9: 0.25 | J9: 0.25
B11: =title244 -> Operating hours per year | D11: =+COST_RES1!$L$23 -> 0 | E11: =D11 -> 0 | F11: 0 | G11: 0 | H11: 0 | I11: 0 | J11: 0
B13: =title387 -> Charcoal production (tons per year) | D13: =D7 -> 182.5 | E13: 182.5 | F13: 182.5 | G13: 182.5 | H13: 182.5 | I13: 182.5 | J13: 182.5
B14: =title388 -> Total charcoal sold to customers (tons per year) | D14: =SUM(D13:D13) -> 182.5 | E14: 182.5 | F14: 182.5 | G14: 182.5 | H14: 182.5 | I14: 182.5 | J14: 182.5
B16: =title441 -> Price of charcoal (USD/kg)-Medium Scale | D16: ='Data Entry Needs'!$D$52 -> 0 | E16: =+D16 -> 0 | F16: 0 | G16: 0 | H16: 0 | I16: 0 | J16: 0
B18: =title442 -> Income of charcoal-Medium Scale (USD per year) | D18: =D14*D16*1000 -> 0 | E18: 0 | F18: 0 | G18: 0 | H18: 0 | I18: 0 | J18: 0
B20: =title391 -> Lifespan of civil work (years) | D20: =+Investment!$M$18 -> 3
B21: =title392 -> Lifespan of charcoal system (years) | D21: =+Investment!$M$18 -> 3
B22: =title393 -> Project lifetime (years) | D22: =+Investment!$M$18 -> 3
B25: =title394 -> Capital and operating cost of biomass charcoal system
B27: =title384 -> Operating Year | D27: =title398 -> Appraisal | E27: =title399 -> Project period (years) | F27: =title400 -> Per kiln per year
B28: =title395 -> Capital cost (USD) | D28: Total
B29: =title264 -> Equipment | D29: =E29*F29 -> 0 | E29: =+D20 -> 3 | F29: =+COST_RES1!L62 -> 0
B30: =title265 -> Building | D30: =E30*F30 -> 0 | E30: =+D21 -> 3 | F30: =+COST_RES1!L63 -> 0
B31: =title266 -> Installation | D31: =E31*F31 -> 0 | E31: =+D22 -> 3 | F31: =+COST_RES1!L64 -> 0
B32: =title396 -> Total capital cost (USD) | D32: =SUM(D29:D31) -> 0 | F32: =SUM(F29:F31) -> 0
B34: =title397 -> Capital cost (USD/kg of Charcoal) | D34: =D32/(D13*1000) -> 0
B36: =title384 -> Operating Year | D36: =title398 -> Appraisal | E36: 1 | F36: 2 | G36: 3 | H36: 4 | I36: 5 | J36: 6
B37: =title401 -> Annual operating and maintenance cost
B38: =title402 -> Sub-total material cost (USD) | D38: =((D39*D40)) -> 0 | E38: 0 | F38: 0 | G38: 0 | H38: 0 | I38: 0 | J38: 0
B39: =title403 -> Biomass consumption (tonne per year) | D39: =D13/D9 -> 730 | E39: 730 | F39: 730 | G39: 730 | H39: 730 | I39: 730 | J39: 730
B40: =title404 -> Biomass price (USD/ton) | D40: =SUM(D41:D42) -> 0 | E40: 0 | F40: 0 | G40: 0 | H40: 0 | I40: 0 | J40: 0
B41: =title405 -> Biomass cost of collection (USD/ton) | D41: =+COST_RES1!$E$39 -> 0 | E41: =D41 -> 0 | F41: 0 | G41: 0 | H41: 0 | I41: 0 | J41: 0
B42: =title406 -> Biomass transportation cost (USD/ton) | D42: =D43*D44 -> 0 | E42: 0 | F42: 0 | G42: 0 | H42: 0 | I42: 0 | J42: 0
B43: =title407 -> Biomass from farm to plant (USD/ton/km) | D43: =COST_RES1!E50 -> 0 | E43: =+D43 -> 0 | F43: 0 | G43: 0 | H43: 0 | I43: 0 | J43: 0
B44: =title408 -> Transportation distance 1 (km) | D44: =+COST_RES1!$L$26 -> 10 | E44: =D44 -> 10 | F44: 10 | G44: 10 | H44: 10 | I44: 10 | J44: 10
B45: =title409 -> Sub-total operating cost (USD) | D45: =D46+D47+D48 -> 0 | E45: 0 | F45: 0 | G45: 0 | H45: 0 | I45: 0 | J45: 0
B46: =title410 -> Labour cost (USD) | D46: =+COST_RES1!M46 -> 0 | E46: =+D46 -> 0 | F46: 0 | G46: 0 | H46: 0 | I46: 0 | J46: 0
B47: =title269 -> Plant overhead | D47: =COST_RES1!M71 -> 0 | E47: =D47 -> 0 | F47: =E47 -> 0 | G47: 0 | H47: =G47 -> 0 | I47: 0 | J47: 0
B48: =title270 -> General and administrative cost | D48: =COST_RES1!M72 -> 0 | E48: =D48 -> 0 | F48: 0 | G48: 0 | H48: 0 | I48: 0 | J48: 0
B49: =title411 -> Sub-total maintenance cost (USD) | D49: =F32*'Data Entry Needs'!$I$49 -> 0 | E49: =D49 -> 0 | F49: 0 | G49: 0 | H49: 0 | I49: 0 | J49: 0
B51: =title412 -> Sub-total of annual fixed cost | D51: =F32 -> 0 | E51: =D51 -> 0 | F51: 0 | G51: 0 | H51: 0 | I51: 0 | J51: 0
B53: =title413 -> Sub-total of storage cost | D53: =COST_RES1!M58 -> 0 | E53: =D53 -> 0 | F53: 0 | G53: 0 | H53: 0 | I53: 0 | J53: 0
B55: =title414 -> Sub-total of transportation of charcoal to market | D55: =COST_RES1!M51 -> 0 | E55: =D55 -> 0 | F55: 0 | G55: 0 | H55: 0 | I55: 0 | J55: 0
B57: =title415 -> Total operation and maintenance cost (USD) | D57: =D38+D45+D49+D51+D53+D55 -> 0 | E57: 0 | F57: 0 | G57: 0 | H57: 0 | I57: 0 | J57: 0
B58: =title416 -> Operation and maintenance cost (USD/kg of charcoal) without loan interest | D58: =D57/(D13*1000) -> 0 | E58: 0 | F58: 0 | G58: 0 | H58: 0 | I58: 0 | J58: 0
B60: =title190 -> Financial parameters
B61: =title384 -> Operating Year | D61: =title398 -> Appraisal | E61: 1 | F61: 2 | G61: 3 | H61: 4 | I61: 5 | J61: 6
B62: =title191 -> Discount rate (%) | D62: =+'Data Entry Needs'!$D$57 -> 0
B63: =title192 -> Loan ratio (%) | D63: =+'Data Entry Needs'!$D$58 -> 0
B66: =title384 -> Operating Year | D66: =title398 -> Appraisal | E66: 1 | F66: 2 | G66: 3 | H66: 4 | I66: 5 | J66: 6
B67: =title417 -> Loan amount (USD) | D67: =D63*(D32)*2 -> 0
B68: =title193 -> Loan interest rate (%) | D68: =+'Data Entry Needs'!$D$59 -> 0
B69: =title418 -> Loan term (years) | D69: =D20*2 -> 6
B70: =title419 -> Loan payment (USD/year) | D70: =(PMT($D$68,($D$69),$D$67)) -> 0
B71: =title419 -> Loan payment (USD/year) | E71: =D70 -> 0 | F71: =+E71 -> 0 | G71: =+F71 -> 0 | H71: =+G71 -> 0 | I71: =+H71 -> 0 | J71: =+I71 -> 0
B72: =title420 -> Total loan payment (USD) | D72: =SUM(E71:J71) -> 0
B73: =title421 -> Loan interest payment (USD) | D73: =D72+D67 -> 0 | E73: =title422 -> loan interest payment for project lifetime
B75: =title287 -> Depreciation
B76: =title384 -> Operating Year | D76: =title398 -> Appraisal | E76: 1 | F76: 2 | G76: 3 | H76: 4 | I76: 5 | J76: 6
B77: =title423 -> Depreciation method | D77: =title425 -> Straight-line
B78: =title424 -> Total depreciation (USD) | E78: =+COST_RES1!$L$65 -> 0 | F78: =E78 -> 0 | G78: =F78 -> 0 | H78: =G78 -> 0 | I78: =H78 -> 0 | J78: =I78 -> 0
B80: =title426 -> Base case Project Summary
B81: =title427 -> Summary of this project
B82: =title384 -> Operating Year | D82: =title398 -> Appraisal | E82: 1 | F82: 2 | G82: 3 | H82: 4 | I82: 5 | J82: 6
B83: =title428 -> Total revenue (USD) | E83: =E14*1000*E16 -> 0 | F83: 0 | G83: 0 | H83: 0 | I83: 0 | J83: 0
B84: =title396 -> Total capital cost (USD) | D84: =-$D$32*(1-$D$63)*2-D46 -> 0
B85: =title429 -> Total operating and maintenance cost (USD) | E85: =-E57+E51 -> 0 | F85: 0 | G85: 0 | H85: 0 | I85: 0 | J85: 0
B86: =title430 -> Loan payment (USD) | E86: =+E71 -> 0 | F86: 0 | G86: 0 | H86: 0 | I86: 0 | J86: 0
B87: =title431 -> Cash flow with loan (USD) | D87: =SUM(D83:D86) -> 0 | E87: 0 | F87: 0 | G87: 0 | H87: 0 | I87: 0 | J87: 0
B88: =title432 -> Cash flow without loan (USD) | D88: =-D32*2-D46 -> 0 | E88: =+E83+E85 -> 0 | F88: 0 | G88: 0 | H88: 0 | I88: 0 | J88: 0
B89: =title384 -> Operating Year | D89: =title398 -> Appraisal | E89: 1 | F89: 2 | G89: 3 | H89: 4 | I89: 5 | J89: 6
B90: =title433 -> Cumulative value of Net Profit | D90: =D87 -> 0 | E90: =D90+(E87) -> 0 | F90: 0 | G90: 0 | H90: 0 | I90: 0 | J90: 0
B92: =title434 -> Financial Analysis Result
B94: =title435 -> Net Present Value (NPV) (USD) | D94: =NPV(D62,E87:J87)+D87 -> 0
B95: =title436 -> Internal Rate of Return (IRR) (%) - without loan | D95: =IF(D94<0,title438,IRR(D88:J88,0.001)) -> 
B96: =title437 -> Profitability Index - without loan | D96: =+NPV($D$62,E88:J88)/-D88 -> 

Sheet Portable_Steel_Urban_RES1 (hidden)
B2: =UPPER(title381&COST_RES1!$L$22&title439) -> FINANCIAL EVALUATION OF CHARCOAL PRODUCTION IN PORTABLE STEEL KILN - URBAN LEVEL
B4: =title383 -> Revenues of biomass charcoal system
B5: =title384 -> Operating Year | D5: 0 | E5: 1 | F5: 2 | G5: 3 | H5: 4 | I5: 5 | J5: 6
B7: =title385 -> Charcoal production capacity (tons per year) | D7: =+COST_RES1!$L$24 -> 182.5 | E7: =D7 -> 182.5 | F7: 182.5 | G7: 182.5 | H7: 182.5 | I7: 182.5 | J7: 182.5
B9: =title386 -> Efficiency % of charcoal kiln | D9: =+COST_RES1!$L$25 -> 0.25 | E9: =D9 -> 0.25 | F9: 0.25 | G9: 0.25 | H9: 0.25 | I9: 0.25 | J9: 0.25
B11: =title244 -> Operating hours per year | D11: =+COST_RES1!$L$23 -> 0 | E11: =D11 -> 0 | F11: 0 | G11: 0 | H11: 0 | I11: 0 | J11: 0
B13: =title387 -> Charcoal production (tons per year) | D13: =D7 -> 182.5 | E13: =E7 -> 182.5 | F13: 182.5 | G13: 182.5 | H13: 182.5 | I13: 182.5 | J13: 182.5
B14: =title388 -> Total charcoal sold to customers (tons per year) | D14: =SUM(D13:D13) -> 182.5 | E14: =SUM(E13:E13) -> 182.5 | F14: 182.5 | G14: 182.5 | H14: 182.5 | I14: 182.5 | J14: 182.5
B16: =title441 -> Price of charcoal (USD/kg)-Medium Scale | D16: =+'Data Entry Needs'!$D$53*'Data Entry Needs'!$I$53 -> 0 | E16: =+D16 -> 0 | F16: 0 | G16: 0 | H16: 0 | I16: 0 | J16: 0
B18: =title442 -> Income of charcoal-Medium Scale (USD per year) | D18: =D14*D16*1000 -> 0 | E18: =E14*E16*1000 -> 0 | F18: 0 | G18: 0 | H18: 0 | I18: 0 | J18: 0
B20: =title391 -> Lifespan of civil work (years) | D20: =+Investment!$M$18 -> 3
B21: =title392 -> Lifespan of charcoal system (years) | D21: =+Investment!$M$18 -> 3
B22: =title393 -> Project lifetime (years) | D22: =+Investment!$M$18 -> 3
B25: =title394 -> Capital and operating cost of biomass charcoal system
B27: =title384 -> Operating Year | D27: =title398 -> Appraisal | E27: =title399 -> Project period (years) | F27: =title400 -> Per kiln per year
B28: =title395 -> Capital cost (USD) | D28: Total
B29: =title264 -> Equipment | D29: =E29*F29 -> 0 | E29: =+D20 -> 3 | F29: =+COST_RES1!L62 -> 0
B30: =title265 -> Building | D30: =E30*F30 -> 0 | E30: =+D21 -> 3 | F30: =+COST_RES1!L63 -> 0
B31: =title266 -> Installation | D31: =E31*F31 -> 0 | E31: =+D22 -> 3 | F31: =+COST_RES1!L64 -> 0
B32: =title396 -> Total capital cost (USD) | D32: =SUM(D29:D31) -> 0 | F32: =SUM(F29:F31) -> 0
B34: =title397 -> Capital cost (USD/kg of Charcoal) | D34: =D32/(D13*1000) -> 0
B36: =title384 -> Operating Year | D36: =title398 -> Appraisal | E36: 1 | F36: 2 | G36: 3 | H36: 4 | I36: 5 | J36: 6
B37: =title401 -> Annual operating and maintenance cost
B38: =title402 -> Sub-total material cost (USD) | D38: =((D39*D40)) -> 0 | E38: =((E39*E40)) -> 0 | F38: 0 | G38: 0 | H38: 0 | I38: 0 | J38: 0
B39: =title403 -> Biomass consumption (tonne per year) | D39: =D13/D9 -> 730 | E39: 730 | F39: 730 | G39: 730 | H39: 730 | I39: 730 | J39: 730
B40: =title404 -> Biomass price (USD/ton) | D40: =SUM(D41:D42) -> 0 | E40: =SUM(E41:E42) -> 0 | F40: 0 | G40: 0 | H40: 0 | I40: 0 | J40: 0
B41: =title405 -> Biomass cost of collection (USD/ton) | D41: =+COST_RES1!$E$39 -> 0 | E41: =D41 -> 0 | F41: 0 | G41: 0 | H41: 0 | I41: 0 | J41: 0
B42: =title406 -> Biomass transportation cost (USD/ton) | D42: =D43*D44 -> 0 | E42: =E43*E44 -> 0 | F42: 0 | G42: 0 | H42: 0 | I42: 0 | J42: 0
B43: =title407 -> Biomass from farm to plant (USD/ton/km) | D43: =COST_RES1!E50 -> 0 | E43: =+D43 -> 0 | F43: 0 | G43: 0 | H43: 0 | I43: 0 | J43: 0
B44: =title408 -> Transportation distance 1 (km) | D44: =+COST_RES1!$L$26 -> 10 | E44: =D44 -> 10 | F44: 10 | G44: 10 | H44: 10 | I44: 10 | J44: 10
B45: =title409 -> Sub-total operating cost (USD) | D45: =D46+D47+D48 -> 0 | E45: 0 | F45: 0 | G45: 0 | H45: 0 | I45: 0 | J45: 0
B46: =title410 -> Labour cost (USD) | D46: =+COST_RES1!M46 -> 0 | E46: =+D46 -> 0 | F46: 0 | G46: 0 | H46: 0 | I46: 0 | J46: 0
B47: =title269 -> Plant overhead | D47: =COST_RES1!M71 -> 0 | E47: =D47 -> 0 | F47: =E47 -> 0 | G47: 0 | H47: 0 | I47: 0 | J47: 0
B48: =title270 -> General and administrative cost | D48: =COST_RES1!M72 -> 0 | E48: =D48 -> 0 | F48: 0 | G48: 0 | H48: 0 | I48: 0 | J48: 0
B49: =title411 -> Sub-total maintenance cost (USD) | D49: =F32*'Data Entry Needs'!$I$49 -> 0 | E49: =D49 -> 0 | F49: 0 | G49: 0 | H49: 0 | I49: 0 | J49: 0
B51: =title412 -> Sub-total of annual fixed cost | D51: =F32 -> 0 | E51: =D51 -> 0 | F51: 0 | G51: 0 | H51: 0 | I51: 0 | J51: 0
B53: =title413 -> Sub-total of storage cost | D53: =COST_RES1!M58 -> 0 | E53: =D53 -> 0 | F53: 0 | G53: 0 | H53: 0 | I53: 0 | J53: 0
B55: =title414 -> Sub-total of transportation of charcoal to market | D55: =COST_RES1!M51 -> 0 | E55: =D55 -> 0 | F55: 0 | G55: 0 | H55: 0 | I55: 0 | J55: 0
B57: =title415 -> Total operation and maintenance cost (USD) | D57: =D38+D45+D49+D51+D53+D55 -> 0 | E57: 0 | F57: 0 | G57: 0 | H57: 0 | I57: 0 | J57: 0
B58: =title416 -> Operation and maintenance cost (USD/kg of charcoal) without loan interest | D58: =D57/(D13*1000) -> 0 | E58: 0 | F58: 0 | G58: 0 | H58: 0 | I58: 0 | J58: 0
B60: =title190 -> Financial parameters
B61: =title384 -> Operating Year | D61: =title398 -> Appraisal | E61: 1 | F61: 2 | G61: 3 | H61: 4 | I61: 5 | J61: 6
B62: =title191 -> Discount rate (%) | D62: =+'Data Entry Needs'!$D$57 -> 0
B63: =title192 -> Loan ratio (%) | D63: =+'Data Entry Needs'!$D$58 -> 0
B66: =title384 -> Operating Year | D66: =title398 -> Appraisal | E66: 1 | F66: 2 | G66: 3 | H66: 4 | I66: 5 | J66: 6
B67: =title417 -> Loan amount (USD) | D67: =D63*(D32)*2 -> 0
B68: =title193 -> Loan interest rate (%) | D68: =+'Data Entry Needs'!$D$59 -> 0
B69: =title418 -> Loan term (years) | D69: =D20*2 -> 6
B70: =title419 -> Loan payment (USD/year) | D70: =(PMT($D$68,($D$69),$D$67)) -> 0
B71: =title419 -> Loan payment (USD/year) | E71: =D70 -> 0 | F71: =+E71 -> 0 | G71: =+F71 -> 0 | H71: =+G71 -> 0 | I71: =+H71 -> 0 | J71: =+I71 -> 0
B72: =title420 -> Total loan payment (USD) | D72: =SUM(E71:J71) -> 0
B73: =title421 -> Loan interest payment (USD) | D73: =D72+D67 -> 0 | E73: =title422 -> loan interest payment for project lifetime
B75: =title287 -> Depreciation
B76: =title384 -> Operating Year | D76: =title398 -> Appraisal | E76: 1 | F76: 2 | G76: 3 | H76: 4 | I76: 5 | J76: 6
B77: =title423 -> Depreciation method | D77: =title425 -> Straight-line
B78: =title424 -> Total depreciation (USD) | E78: =+COST_RES1!$L$65 -> 0 | F78: =E78 -> 0 | G78: =F78 -> 0 | H78: =G78 -> 0 | I78: =H78 -> 0 | J78: =I78 -> 0
B80: =title426 -> Base case Project Summary
B81: =title427 -> Summary of this project
B82: =title384 -> Operating Year | D82: =title398 -> Appraisal | E82: 1 | F82: 2 | G82: 3 | H82: 4 | I82: 5 | J82: 6
B83: =title428 -> Total revenue (USD) | E83: =E14*1000*E16 -> 0 | F83: 0 | G83: 0 | H83: 0 | I83: 0 | J83: 0
B84: =title396 -> Total capital cost (USD) | D84: =-$D$32*(1-$D$63)*2-D46 -> 0
B85: =title429 -> Total operating and maintenance cost (USD) | E85: =-E57+E51 -> 0 | F85: 0 | G85: 0 | H85: 0 | I85: 0 | J85: 0
B86: =title430 -> Loan payment (USD) | E86: =+E71 -> 0 | F86: 0 | G86: 0 | H86: 0 | I86: 0 | J86: 0
B87: =title431 -> Cash flow with loan (USD) | D87: =SUM(D83:D86) -> 0 | E87: 0 | F87: 0 | G87: 0 | H87: 0 | I87: 0 | J87: 0
B88: =title432 -> Cash flow without loan (USD) | D88: =-D32*2-D46 -> 0 | E88: =+E83+E85 -> 0 | F88: 0 | G88: 0 | H88: 0 | I88: 0 | J88: 0
B89: =title384 -> Operating Year | D89: =title398 -> Appraisal | E89: 1 | F89: 2 | G89: 3 | H89: 4 | I89: 5 | J89: 6
B90: =title433 -> Cumulative value of Net Profit | D90: =D87 -> 0 | E90: =D90+(E87) -> 0 | F90: 0 | G90: 0 | H90: 0 | I90: 0 | J90: 0
B92: =title434 -> Financial Analysis Result
B94: =title435 -> Net Present Value (NPV) (USD) | D94: =NPV(D62,E87:J87)+D87 -> 0
B95: =title436 -> Internal Rate of Return (IRR) (%) - without loan | D95: =IF(D94<0,title438,IRR(D88:J88,0.001)) -> 
B96: =title437 -> Profitability Index - without loan | D96: =+NPV($D$62,E88:J88)/-D88 -> 

Sheet Portable_Steel_Industrial_RES1 (hidden)
B2: =UPPER(title381&COST_RES1!$L$22&title440) -> FINANCIAL EVALUATION OF CHARCOAL PRODUCTION IN PORTABLE STEEL KILN - INDUSTRIAL LEVEL
B4: =title383 -> Revenues of biomass charcoal system
B5: =title384 -> Operating Year | D5: 0 | E5: 1 | F5: 2 | G5: 3 | H5: 4 | I5: 5 | J5: 6
B7: =title385 -> Charcoal production capacity (tons per year) | D7: =+COST_RES1!$L$24 -> 182.5 | E7: =D7 -> 182.5 | F7: 182.5 | G7: 182.5 | H7: 182.5 | I7: 182.5 | J7: 182.5
B9: =title386 -> Efficiency % of charcoal kiln | D9: =+COST_RES1!$L$25 -> 0.25 | E9: =D9 -> 0.25 | F9: 0.25 | G9: 0.25 | H9: 0.25 | I9: 0.25 | J9: 0.25
B11: =title244 -> Operating hours per year | D11: =+COST_RES1!$L$23 -> 0 | E11: =D11 -> 0 | F11: 0 | G11: 0 | H11: 0 | I11: 0 | J11: 0
B13: =title387 -> Charcoal production (tons per year) | D13: =D7 -> 182.5 | E13: =E7 -> 182.5 | F13: 182.5 | G13: 182.5 | H13: 182.5 | I13: 182.5 | J13: 182.5
B14: =title388 -> Total charcoal sold to customers (tons per year) | D14: =SUM(D13:D13) -> 182.5 | E14: =SUM(E13:E13) -> 182.5 | F14: 182.5 | G14: 182.5 | H14: 182.5 | I14: 182.5 | J14: 182.5
B16: =title441 -> Price of charcoal (USD/kg)-Medium Scale | D16: =+'Data Entry Needs'!$D$54*'Data Entry Needs'!$I$53 -> 0 | E16: =+D16 -> 0 | F16: 0 | G16: 0 | H16: 0 | I16: 0 | J16: 0
B18: =title442 -> Income of charcoal-Medium Scale (USD per year) | D18: =D14*D16*1000 -> 0 | E18: =E14*E16*1000 -> 0 | F18: 0 | G18: 0 | H18: 0 | I18: 0 | J18: 0
B20: =title391 -> Lifespan of civil work (years) | D20: =+Investment!$M$18 -> 3
B21: =title392 -> Lifespan of charcoal system (years) | D21: =+Investment!$M$18 -> 3
B22: =title393 -> Project lifetime (years) | D22: =+Investment!$M$18 -> 3
B25: =title394 -> Capital and operating cost of biomass charcoal system
B27: =title384 -> Operating Year | D27: =title398 -> Appraisal | E27: =title399 -> Project period (years) | F27: =title400 -> Per kiln per year
B28: =title395 -> Capital cost (USD) | D28: Total
B29: =title264 -> Equipment | D29: =E29*F29 -> 0 | E29: =+D20 -> 3 | F29: =+COST_RES1!L62 -> 0
B30: =title265 -> Building | D30: =E30*F30 -> 0 | E30: =+D21 -> 3 | F30: =+COST_RES1!L63 -> 0
B31: =title266 -> Installation | D31: =E31*F31 -> 0 | E31: =+D22 -> 3 | F31: =+COST_RES1!L64 -> 0
B32: =title396 -> Total capital cost (USD) | D32: =SUM(D29:D31) -> 0 | F32: =SUM(F29:F31) -> 0
B34: =title397 -> Capital cost (USD/kg of Charcoal) | D34: =D32/(D13*1000) -> 0
B36: =title384 -> Operating Year | D36: =title398 -> Appraisal | E36: 1 | F36: 2 | G36: 3 | H36: 4 | I36: 5 | J36: 6
B37: =title401 -> Annual operating and maintenance cost
B38: =title402 -> Sub-total material cost (USD) | D38: =((D39*D40)) -> 0 | E38: =((E39*E40)) -> 0 | F38: 0 | G38: 0 | H38: 0 | I38: 0 | J38: 0
B39: =title403 -> Biomass consumption (tonne per year) | D39: =D13/D9 -> 730 | E39: 730 | F39: 730 | G39: 730 | H39: 730 | I39: 730 | J39: 730
B40: =title404 -> Biomass price (USD/ton) | D40: =SUM(D41:D42) -> 0 | E40: =SUM(E41:E42) -> 0 | F40: 0 | G40: 0 | H40: 0 | I40: 0 | J40: 0
B41: =title405 -> Biomass cost of collection (USD/ton) | D41: =+COST_RES1!$E$39 -> 0 | E41: =D41 -> 0 | F41: 0 | G41: 0 | H41: 0 | I41: 0 | J41: 0
B42: =title406 -> Biomass transportation cost (USD/ton) | D42: =D43*D44 -> 0 | E42: =E43*E44 -> 0 | F42: 0 | G42: 0 | H42: 0 | I42: 0 | J42: 0
B43: =title407 -> Biomass from farm to plant (USD/ton/km) | D43: =COST_RES1!E50 -> 0 | E43: =+D43 -> 0 | F43: 0 | G43: 0 | H43: 0 | I43: 0 | J43: 0
B44: =title408 -> Transportation distance 1 (km) | D44: =+COST_RES1!$L$26 -> 10 | E44: =D44 -> 10 | F44: 10 | G44: 10 | H44: 10 | I44: 10 | J44: 10
B45: =title409 -> Sub-total operating cost (USD) | D45: =D46+D47+D48 -> 0 | E45: 0 | F45: 0 | G45: 0 | H45: 0 | I45: 0 | J45: 0
B46: =title410 -> Labour cost (USD) | D46: =+COST_RES1!M46 -> 0 | E46: =+D46 -> 0 | F46: 0 | G46: 0 | H46: 0 | I46: 0 | J46: 0
B47: =title269 -> Plant overhead | D47: =COST_RES1!M71 -> 0 | E47: =D47 -> 0 | F47: =E47 -> 0 | G47: 0 | H47: 0 | I47: 0 | J47: 0
B48: =title270 -> General and administrative cost | D48: =COST_RES1!M72 -> 0 | E48: =D48 -> 0 | F48: 0 | G48: 0 | H48: 0 | I48: 0 | J48: 0
B49: =title411 -> Sub-total maintenance cost (USD) | D49: =F32*'Data Entry Needs'!$I$49 -> 0 | E49: =D49 -> 0 | F49: 0 | G49: 0 | H49: 0 | I49: 0 | J49: 0
B51: =title412 -> Sub-total of annual fixed cost | D51: =F32 -> 0 | E51: =D51 -> 0 | F51: 0 | G51: 0 | H51: 0 | I51: 0 | J51: 0
B53: =title413 -> Sub-total of storage cost | D53: =COST_RES1!M58 -> 0 | E53: =D53 -> 0 | F53: 0 | G53: 0 | H53: 0 | I53: 0 | J53: 0
B55: =title414 -> Sub-total of transportation of charcoal to market | D55: =COST_RES1!M51 -> 0 | E55: =D55 -> 0 | F55: 0 | G55: 0 | H55: 0 | I55: 0 | J55: 0
B57: =title415 -> Total operation and maintenance cost (USD) | D57: =D38+D45+D49+D51+D53+D55 -> 0 | E57: 0 | F57: 0 | G57: 0 | H57: 0 | I57: 0 | J57: 0
B58: =title416 -> Operation and maintenance cost (USD/kg of charcoal) without loan interest | D58: =D57/(D13*1000) -> 0 | E58: 0 | F58: 0 | G58: 0 | H58: 0 | I58: 0 | J58: 0
B60: =title190 -> Financial parameters
B61: =title384 -> Operating Year | D61: =title398 -> Appraisal | E61: 1 | F61: 2 | G61: 3 | H61: 4 | I61: 5 | J61: 6
B62: =title191 -> Discount rate (%) | D62: =+'Data Entry Needs'!$D$57 -> 0
B63: =title192 -> Loan ratio (%) | D63: =+'Data Entry Needs'!$D$58 -> 0
B66: =title384 -> Operating Year | D66: =title398 -> Appraisal | E66: 1 | F66: 2 | G66: 3 | H66: 4 | I66: 5 | J66: 6
B67: =title417 -> Loan amount (USD) | D67: =D63*(D32)*2 -> 0
B68: =title193 -> Loan interest rate (%) | D68: =+'Data Entry Needs'!$D$59 -> 0
B69: =title418 -> Loan term (years) | D69: =D20*2 -> 6
B70: =title419 -> Loan payment (USD/year) | D70: =(PMT($D$68,($D$69),$D$67)) -> 0
B71: =title419 -> Loan payment (USD/year) | E71: =D70 -> 0 | F71: =+E71 -> 0 | G71: =+F71 -> 0 | H71: =+G71 -> 0 | I71: =+H71 -> 0 | J71: =+I71 -> 0
B72: =title420 -> Total loan payment (USD) | D72: =SUM(E71:J71) -> 0
B73: =title421 -> Loan interest payment (USD) | D73: =D72+D67 -> 0 | E73: =title422 -> loan interest payment for project lifetime
B75: =title287 -> Depreciation
B76: =title384 -> Operating Year | D76: =title398 -> Appraisal | E76: 1 | F76: 2 | G76: 3 | H76: 4 | I76: 5 | J76: 6
B77: =title423 -> Depreciation method | D77: =title425 -> Straight-line
B78: =title424 -> Total depreciation (USD) | E78: =+COST_RES1!$L$65 -> 0 | F78: =E78 -> 0 | G78: =F78 -> 0 | H78: =G78 -> 0 | I78: =H78 -> 0 | J78: =I78 -> 0
B80: =title426 -> Base case Project Summary
B81: =title427 -> Summary of this project
B82: =title384 -> Operating Year | D82: =title398 -> Appraisal | E82: 1 | F82: 2 | G82: 3 | H82: 4 | I82: 5 | J82: 6
B83: =title428 -> Total revenue (USD) | E83: =E14*1000*E16 -> 0 | F83: 0 | G83: 0 | H83: 0 | I83: 0 | J83: 0
B84: =title396 -> Total capital cost (USD) | D84: =-$D$32*(1-$D$63)*2-D46 -> 0
B85: =title429 -> Total operating and maintenance cost (USD) | E85: =-E57+E51 -> 0 | F85: 0 | G85: 0 | H85: 0 | I85: 0 | J85: 0
B86: =title430 -> Loan payment (USD) | E86: =+E71 -> 0 | F86: 0 | G86: 0 | H86: 0 | I86: 0 | J86: 0
B87: =title431 -> Cash flow with loan (USD) | D87: =SUM(D83:D86) -> 0 | E87: 0 | F87: 0 | G87: 0 | H87: 0 | I87: 0 | J87: 0
B88: =title432 -> Cash flow without loan (USD) | D88: =-D32*2-D46 -> 0 | E88: =+E83+E85 -> 0 | F88: 0 | G88: 0 | H88: 0 | I88: 0 | J88: 0
B89: =title384 -> Operating Year | D89: =title398 -> Appraisal | E89: 1 | F89: 2 | G89: 3 | H89: 4 | I89: 5 | J89: 6
B90: =title433 -> Cumulative value of Net Profit | D90: =D87 -> 0 | E90: =D90+(E87) -> 0 | F90: 0 | G90: 0 | H90: 0 | I90: 0 | J90: 0
B92: =title434 -> Financial Analysis Result
B94: =title435 -> Net Present Value (NPV) (USD) | D94: =NPV(D62,E87:J87)+D87 -> 0
B95: =title436 -> Internal Rate of Return (IRR) (%) - without loan | D95: =IF(D94<0,title438,IRR(D88:J88,0.001)) -> 
B96: =title437 -> Profitability Index - without loan | D96: =+NPV($D$62,E88:J88)/-D88 -> 

Sheet Standard_Rural_RES1 (hidden)
B2: =UPPER(title381&COST_RES1!$N$22&title382) -> FINANCIAL EVALUATION OF CHARCOAL PRODUCTION IN STANDARD BEEHIVE - RURAL LEVEL
B4: =title383 -> Revenues of biomass charcoal system
B5: =title384 -> Operating Year | D5: 0 | E5: 1 | F5: 2 | G5: 3 | H5: 4 | I5: 5 | J5: 6
B7: =title385 -> Charcoal production capacity (tons per year) | D7: =+COST_RES1!$N$24 -> 203 | E7: =D7 -> 203 | F7: 203 | G7: 203 | H7: 203 | I7: 203 | J7: 203
B9: =title386 -> Efficiency % of charcoal kiln | D9: =+COST_RES1!$N$25 -> 0.33 | E9: =D9 -> 0.33 | F9: 0.33 | G9: 0.33 | H9: 0.33 | I9: 0.33 | J9: 0.33
B11: =title244 -> Operating hours per year | D11: =+COST_RES1!$N$23 -> 0 | E11: =D11 -> 0 | F11: 0 | G11: 0 | H11: 0 | I11: 0 | J11: 0
B13: =title387 -> Charcoal production (tons per year) | D13: =D7 -> 203 | E13: =E7 -> 203 | F13: 203 | G13: 203 | H13: 203 | I13: 203 | J13: 203
B14: =title388 -> Total charcoal sold to customers (tons per year) | D14: =SUM(D13:D13) -> 203 | E14: =SUM(E13:E13) -> 203 | F14: 203 | G14: 203 | H14: 203 | I14: 203 | J14: 203
B16: =title441 -> Price of charcoal (USD/kg)-Medium Scale | D16: ='Data Entry Needs'!$D$52 -> 0 | E16: =+D16 -> 0 | F16: 0 | G16: 0 | H16: 0 | I16: 0 | J16: 0
B18: =title442 -> Income of charcoal-Medium Scale (USD per year) | D18: =D14*D16*1000 -> 0 | E18: =E14*E16*1000 -> 0 | F18: 0 | G18: 0 | H18: 0 | I18: 0 | J18: 0
B20: =title391 -> Lifespan of civil work (years) | D20: =+Investment!$O$18 -> 6
B21: =title392 -> Lifespan of charcoal system (years) | D21: =+Investment!$O$18 -> 6
B22: =title393 -> Project lifetime (years) | D22: =+Investment!$O$18 -> 6
B25: =title394 -> Capital and operating cost of biomass charcoal system
B27: =title384 -> Operating Year | D27: =title398 -> Appraisal | E27: =title399 -> Project period (years) | F27: =title400 -> Per kiln per year
B28: =title395 -> Capital cost (USD) | D28: Total
B29: =title264 -> Equipment | D29: =E29*F29 ->  | E29: =+D20 -> 6 | F29: =+COST_RES1!N62 -> 
B30: =title265 -> Building | D30: =E30*F30 ->  | E30: =+D21 -> 6 | F30: =+COST_RES1!N63 -> 
B31: =title266 -> Installation | D31: =E31*F31 ->  | E31: =+D22 -> 6 | F31: =+COST_RES1!N64 -> 
B32: =title396 -> Total capital cost (USD) | D32: =SUM(D29:D31) ->  | F32: =SUM(F29:F31) -> 
B34: =title397 -> Capital cost (USD/kg of Charcoal) | D34: =D32/(D13*1000) -> 
B36: =title384 -> Operating Year | D36: =title398 -> Appraisal | E36: 1 | F36: 2 | G36: 3 | H36: 4 | I36: 5 | J36: 6
B37: =title401 -> Annual operating and maintenance cost
B38: =title402 -> Sub-total material cost (USD) | D38: =((D39*D40)) -> 0 | E38: =((E39*E40)) -> 0 | F38: 0 | G38: 0 | H38: 0 | I38: 0 | J38: 0
B39: =title403 -> Biomass consumption (tonne per year) | D39: =D13/D9 -> 615.1515152 | E39: 615.1515152 | F39: 615.1515152 | G39: 615.1515152 | H39: 615.1515152 | I39: 615.1515152 | J39: 615.1515152
B40: =title404 -> Biomass price (USD/ton) | D40: =SUM(D41:D42) -> 0 | E40: =SUM(E41:E42) -> 0 | F40: 0 | G40: 0 | H40: 0 | I40: 0 | J40: 0
B41: =title405 -> Biomass cost of collection (USD/ton) | D41: =+COST_RES1!$E$39 -> 0 | E41: =D41 -> 0 | F41: 0 | G41: 0 | H41: 0 | I41: 0 | J41: 0
B42: =title406 -> Biomass transportation cost (USD/ton) | D42: =D43*D44 -> 0 | E42: =E43*E44 -> 0 | F42: 0 | G42: 0 | H42: 0 | I42: 0 | J42: 0
B43: =title407 -> Biomass from farm to plant (USD/ton/km) | D43: =COST_RES1!E50 -> 0 | E43: =+D43 -> 0 | F43: 0 | G43: 0 | H43: 0 | I43: 0 | J43: 0
B44: =title408 -> Transportation distance 1 (km) | D44: =+COST_RES1!$N$26 -> 0 | E44: =D44 -> 0 | F44: 0 | G44: 0 | H44: 0 | I44: 0 | J44: 0
B45: =title409 -> Sub-total operating cost (USD) | D45: =D46+D47+D48 -> 
B46: =title410 -> Labour cost (USD) | D46: =+COST_RES1!O46 -> 0 | E46: =+D46 -> 0 | F46: 0 | G46: 0 | H46: 0 | I46: 0 | J46: 0
B47: =title269 -> Plant overhead | D47: =COST_RES1!O71 ->  | E47: =D47 ->  | F47: =E47 -> 
B48: =title270 -> General and administrative cost | D48: =COST_RES1!O72 ->  | E48: =D48 -> 
B49: =title411 -> Sub-total maintenance cost (USD) | D49: =F32*'Data Entry Needs'!$I$49 ->  | E49: =D49 -> 
B51: =title412 -> Sub-total of annual fixed cost | D51: =F32 ->  | E51: =D51 -> 
B53: =title413 -> Sub-total of storage cost | D53: =COST_RES1!O58 ->  | E53: =D53 -> 
B55: =title414 -> Sub-total of transportation of charcoal to market | D55: =COST_RES1!O51 -> 0 | E55: =D55 -> 0 | F55: 0 | G55: 0 | H55: 0 | I55: 0 | J55: 0
B57: =title415 -> Total operation and maintenance cost (USD) | D57: =D38+D45+D49+D51+D53+D55 -> 
B58: =title416 -> Operation and maintenance cost (USD/kg of charcoal) without loan interest | D58: =D57/(D13*1000) -> 
B60: =title190 -> Financial parameters
B61: =title384 -> Operating Year | D61: =title398 -> Appraisal | E61: 1 | F61: 2 | G61: 3 | H61: 4 | I61: 5 | J61: 6
B62: =title191 -> Discount rate (%) | D62: =+'Data Entry Needs'!$D$57 -> 0
B63: =title192 -> Loan ratio (%) | D63: =+'Data Entry Needs'!$D$58 -> 0
B66: =title384 -> Operating Year | D66: =title398 -> Appraisal | E66: 1 | F66: 2 | G66: 3 | H66: 4 | I66: 5 | J66: 6
B67: =title417 -> Loan amount (USD) | D67: =D63*(D32) -> 
B68: =title193 -> Loan interest rate (%) | D68: =+'Data Entry Needs'!$D$59 -> 0
B69: =title418 -> Loan term (years) | D69: =D20 -> 6
B70: =title419 -> Loan payment (USD/year) | D70: =(PMT($D$68,($D$69),$D$67)) -> 
B71: =title419 -> Loan payment (USD/year) | E71: =D70 ->  | F71: =+E71 ->  | G71: =+F71 ->  | H71: =+G71 ->  | I71: =+H71 ->  | J71: =+I71 -> 
B72: =title420 -> Total loan payment (USD) | D72: =SUM(E71:J71) -> 
B73: =title421 -> Loan interest payment (USD) | D73: =D72+D67 ->  | E73: =title422 -> loan interest payment for project lifetime
B75: =title287 -> Depreciation
B76: =title384 -> Operating Year | D76: =title398 -> Appraisal | E76: 1 | F76: 2 | G76: 3 | H76: 4 | I76: 5 | J76: 6
B77: =title423 -> Depreciation method | D77: =title425 -> Straight-line
B78: =title424 -> Total depreciation (USD) | E78: =+COST_RES1!$N$65 ->  | F78: =E78 ->  | G78: =F78 ->  | H78: =G78 ->  | I78: =H78 ->  | J78: =I78 -> 
B80: =title426 -> Base case Project Summary
B81: =title427 -> Summary of this project
B82: =title384 -> Operating Year | D82: =title398 -> Appraisal | E82: 1 | F82: 2 | G82: 3 | H82: 4 | I82: 5 | J82: 6
B83: =title428 -> Total revenue (USD) | E83: =E14*1000*E16 -> 0 | F83: 0 | G83: 0 | H83: 0 | I83: 0 | J83: 0
B84: =title396 -> Total capital cost (USD) | D84: =-D32*(1-$D$63) -> 
B85: =title429 -> Total operating and maintenance cost (USD) | E85: =-E57+E51 -> 
B86: =title430 -> Loan payment (USD) | E86: =+E71 -> 
B87: =title431 -> Cash flow with loan (USD) | D87: =SUM(D83:D86) -> 
B88: =title432 -> Cash flow without loan (USD) | D88: =-D32 ->  | E88: =+E83+E85 -> 
B89: =title384 -> Operating Year | D89: =title398 -> Appraisal | E89: 1 | F89: 2 | G89: 3 | H89: 4 | I89: 5 | J89: 6
B90: =title433 -> Cumulative value of Net Profit | D90: =D87 ->  | E90: =D90+(E87) -> 
B92: =title434 -> Financial Analysis Result
B94: =title435 -> Net Present Value (NPV) (USD) | D94: =NPV(D62,E87:J87)+D87 -> 
B95: =title436 -> Internal Rate of Return (IRR) (%) - without loan | D95: =IF(D94<0,title438,IRR(D88:J88,0.001)) -> 
B96: =title437 -> Profitability Index - without loan | D96: =+NPV($D$62,E88:J88)/-D88 -> 

Sheet Standard_Urban_RES1 (hidden)
B2: =UPPER(title381&COST_RES1!$N$22&title439) -> FINANCIAL EVALUATION OF CHARCOAL PRODUCTION IN STANDARD BEEHIVE - URBAN LEVEL
B4: =title383 -> Revenues of biomass charcoal system
B5: =title384 -> Operating Year | D5: 0 | E5: 1 | F5: 2 | G5: 3 | H5: 4 | I5: 5 | J5: 6
B7: =title385 -> Charcoal production capacity (tons per year) | D7: =+COST_RES1!$N$24 -> 203 | E7: =D7 -> 203 | F7: 203 | G7: 203 | H7: 203 | I7: 203 | J7: 203
B9: =title386 -> Efficiency % of charcoal kiln | D9: =+COST_RES1!$N$25 -> 0.33 | E9: =D9 -> 0.33 | F9: 0.33 | G9: 0.33 | H9: 0.33 | I9: 0.33 | J9: 0.33
B11: =title244 -> Operating hours per year | D11: =+COST_RES1!$N$23 -> 0 | E11: =D11 -> 0 | F11: 0 | G11: 0 | H11: 0 | I11: 0 | J11: 0
B13: =title387 -> Charcoal production (tons per year) | D13: =D7 -> 203 | E13: =E7 -> 203 | F13: 203 | G13: 203 | H13: 203 | I13: 203 | J13: 203
B14: =title388 -> Total charcoal sold to customers (tons per year) | D14: =SUM(D13:D13) -> 203 | E14: =SUM(E13:E13) -> 203 | F14: 203 | G14: 203 | H14: 203 | I14: 203 | J14: 203
B16: =title441 -> Price of charcoal (USD/kg)-Medium Scale | D16: =+'Data Entry Needs'!$D$53*'Data Entry Needs'!$I$53 -> 0 | E16: =+D16 -> 0 | F16: 0 | G16: 0 | H16: 0 | I16: 0 | J16: 0
B18: =title442 -> Income of charcoal-Medium Scale (USD per year) | D18: =D14*D16*1000 -> 0 | E18: =E14*E16*1000 -> 0 | F18: 0 | G18: 0 | H18: 0 | I18: 0 | J18: 0
B20: =title391 -> Lifespan of civil work (years) | D20: =+Investment!$O$18 -> 6
